Workbook

Sheet DASHBOARD
G1: ="GLOBAL CLIMATESCOPE INDEX " & int_Year+1 -> GLOBAL CLIMATESCOPE INDEX 2017
B3: INSTRUCTIONS
B4: Climatescope is a comprehensive index and report assessing the environment for low-carbon investment in 71 countries and regions in Africa, Asia, the Middle East, Latin America and the Caribbean, developed by the
B5: UK Department for International Development, the US Agency for International Development and Bloomberg New Energy Finance.
B6: FUNCTIONALITY
B7: The Climatescope tool allows users to fine tune the methodology for parameter weights to fit their preferences. To customise parameter weighting scenarios...
B8: 1) Choose to 'Rank by…' the official 'Climatescope Scores' or directly by a select few underlying data points e.g. clean energy investment etc, instead of the 'Climatescope Scores'.
B9: 2) Choose between global and regional results, Indian states and off-grid focus countries in the 'Region' drop-down menu.
B10: 3) Choose pre-selected scenarios to analyse countries’ performance under a specific parameter. Country rankings will automatically reshuffle to reflect the results of your personalised index.
B11: 4) To assign custom weights, choose the option 'Custom' in the drop-down menu and type in your own weighting assumptions. Click on 'Calculate Scores' to see the changes in the results.
B12: FOR QUESTIONS OR FEEDBACK PLEASE EMAIL CLIMATESCOPE@BLOOMBERG.NET
B14: Rank by… | F14: Climatescope Scores
B15: Region | F15: Global
B16: Parameter Weighting (for Scores) | F16: Defaults
B17: I. Enabling Framework | F17: 0.4
B18: II. Clean Investment & Climate Financing | F18: 0.3
B19: III. Low Carbon Value Chain | F19: 0.15
B20: IV. GHG Management Activities | F20: 0.15
B21: Total Weight | F21: =dbl_DBWeightP1+dbl_DBWeightP2+dbl_DBWeightP3+dbl_DBWeightP4 -> 1
B23: Chart Data | F23: =COUNTIF($E$25:$E$101, "<>") & " " & IF(COUNTIF($E$25:$E$101, "<>")=1, IF(ISNUMBER(FIND(" States", str_Region)), "State", "Country"), IF(ISNUMBER(FIND(" States", str_Region)), "States", "Countries")) -> 71 Countries
B24: Rank | C24: Region | D24: Data | E24: Country | F24: =DEFN!$A$7 -> Climatescope Scores (#)
B25: =IF(F25="", "", IFERROR(RANK(F25, $F$25:$F$101), "")) -> 1 | C25: =IFERROR(INDEX(IND!$K$10:$K$102, MATCH(E25, IND!$L$10:$L$102, 0), 1), "") -> Asia | D25: View Profile | E25: China | F25: 2.517655331
B26: 2 | C26: =IFERROR(INDEX(IND!$K$10:$K$102, MATCH(E26, IND!$L$10:$L$102, 0), 1), "") -> LAC | D26: View Profile | E26: Brazil | F26: 2.207666483
B27: 3 | C27: =IFERROR(INDEX(IND!$K$10:$K$102, MATCH(E27, IND!$L$10:$L$102, 0), 1), "") -> Middle East | D27: View Profile | E27: Jordan | F27: 2.170474187
B28: 4 | C28: =IFERROR(INDEX(IND!$K$10:$K$102, MATCH(E28, IND!$L$10:$L$102, 0), 1), "") -> LAC | D28: View Profile | E28: Mexico | F28: 2.025566965
B29: 5 | C29: =IFERROR(INDEX(IND!$K$10:$K$102, MATCH(E29, IND!$L$10:$L$102, 0), 1), "") -> Asia | D29: View Profile | E29: India | F29: 1.967110437
B30: 6 | C30: =IFERROR(INDEX(IND!$K$10:$K$102, MATCH(E30, IND!$L$10:$L$102, 0), 1), "") -> Africa | D30: View Profile | E30: South Africa | F30: 1.966474164
B31: 7 | C31: =IFERROR(INDEX(IND!$K$10:$K$102, MATCH(E31, IND!$L$10:$L$102, 0), 1), "") -> LAC | D31: View Profile | E31: Chile | F31: 1.956818907
B32: 8 | C32: =IFERROR(INDEX(IND!$K$10:$K$102, MATCH(E32, IND!$L$10:$L$102, 0), 1), "") -> Africa | D32: View Profile | E32: Kenya | F32: 1.9172386
B33: 9 | C33: =IFERROR(INDEX(IND!$K$10:$K$102, MATCH(E33, IND!$L$10:$L$102, 0), 1), "") -> LAC | D33: View Profile | E33: Uruguay | F33: 1.83331335
B34: 10 | C34: =IFERROR(INDEX(IND!$K$10:$K$102, MATCH(E34, IND!$L$10:$L$102, 0), 1), "") -> Asia | D34: View Profile | E34: Vietnam | F34: 1.798731953
B35: 11 | C35: =IFERROR(INDEX(IND!$K$10:$K$102, MATCH(E35, IND!$L$10:$L$102, 0), 1), "") -> Africa | D35: View Profile | E35: Senegal | F35: 1.680307433
B36: 12 | C36: =IFERROR(INDEX(IND!$K$10:$K$102, MATCH(E36, IND!$L$10:$L$102, 0), 1), "") -> Asia | D36: View Profile | E36: Indonesia | F36: 1.643240302
B37: 13 | C37: =IFERROR(INDEX(IND!$K$10:$K$102, MATCH(E37, IND!$L$10:$L$102, 0), 1), "") -> Asia | D37: View Profile | E37: Pakistan | F37: 1.595112991
B38: 14 | C38: =IFERROR(INDEX(IND!$K$10:$K$102, MATCH(E38, IND!$L$10:$L$102, 0), 1), "") -> LAC | D38: View Profile | E38: Honduras | F38: 1.583352994
B39: 15 | C39: =IFERROR(INDEX(IND!$K$10:$K$102, MATCH(E39, IND!$L$10:$L$102, 0), 1), "") -> Europe | D39: View Profile | E39: Turkey | F39: 1.576886542
B40: 16 | C40: =IFERROR(INDEX(IND!$K$10:$K$102, MATCH(E40, IND!$L$10:$L$102, 0), 1), "") -> Africa | D40: View Profile | E40: Rwanda | F40: 1.555467579
B41: 17 | C41: =IFERROR(INDEX(IND!$K$10:$K$102, MATCH(E41, IND!$L$10:$L$102, 0), 1), "") -> Africa | D41: View Profile | E41: Uganda | F41: 1.471513804
B42: 18 | C42: =IFERROR(INDEX(IND!$K$10:$K$102, MATCH(E42, IND!$L$10:$L$102, 0), 1), "") -> LAC | D42: View Profile | E42: Costa Rica | F42: 1.420942141
B43: 19 | C43: =IFERROR(INDEX(IND!$K$10:$K$102, MATCH(E43, IND!$L$10:$L$102, 0), 1), "") -> Middle East | D43: View Profile | E43: Egypt | F43: 1.406781697
B44: 20 | C44: =IFERROR(INDEX(IND!$K$10:$K$102, MATCH(E44, IND!$L$10:$L$102, 0), 1), "") -> LAC | D44: View Profile | E44: Argentina | F44: 1.402313597
B45: 21 | C45: =IFERROR(INDEX(IND!$K$10:$K$102, MATCH(E45, IND!$L$10:$L$102, 0), 1), "") -> Asia | D45: View Profile | E45: Mongolia | F45: 1.381603085
B46: 22 | C46: =IFERROR(INDEX(IND!$K$10:$K$102, MATCH(E46, IND!$L$10:$L$102, 0), 1), "") -> Asia | D46: View Profile | E46: Sri Lanka | F46: 1.360023158
B47: 23 | C47: =IFERROR(INDEX(IND!$K$10:$K$102, MATCH(E47, IND!$L$10:$L$102, 0), 1), "") -> Africa | D47: View Profile | E47: Nigeria | F47: 1.326585329
B48: 24 | C48: =IFERROR(INDEX(IND!$K$10:$K$102, MATCH(E48, IND!$L$10:$L$102, 0), 1), "") -> Asia | D48: View Profile | E48: Nepal | F48: 1.325686593
B49: 25 | C49: =IFERROR(INDEX(IND!$K$10:$K$102, MATCH(E49, IND!$L$10:$L$102, 0), 1), "") -> LAC | D49: View Profile | E49: Peru | F49: 1.325064455
B50: 26 | C50: =IFERROR(INDEX(IND!$K$10:$K$102, MATCH(E50, IND!$L$10:$L$102, 0), 1), "") -> LAC | D50: View Profile | E50: Colombia | F50: 1.324289504
B51: 27 | C51: =IFERROR(INDEX(IND!$K$10:$K$102, MATCH(E51, IND!$L$10:$L$102, 0), 1), "") -> LAC | D51: View Profile | E51: Barbados | F51: 1.2981509
B52: 28 | C52: =IFERROR(INDEX(IND!$K$10:$K$102, MATCH(E52, IND!$L$10:$L$102, 0), 1), "") -> LAC | D52: View Profile | E52: Guatemala | F52: 1.293728732
B53: 29 | C53: =IFERROR(INDEX(IND!$K$10:$K$102, MATCH(E53, IND!$L$10:$L$102, 0), 1), "") -> Africa | D53: View Profile | E53: Tanzania | F53: 1.261851821
B54: 30 | C54: =IFERROR(INDEX(IND!$K$10:$K$102, MATCH(E54, IND!$L$10:$L$102, 0), 1), "") -> Africa | D54: View Profile | E54: Ethiopia | F54: 1.243353322
B55: 31 | C55: =IFERROR(INDEX(IND!$K$10:$K$102, MATCH(E55, IND!$L$10:$L$102, 0), 1), "") -> Asia | D55: View Profile | E55: Bangladesh | F55: 1.232724508
B56: 32 | C56: =IFERROR(INDEX(IND!$K$10:$K$102, MATCH(E56, IND!$L$10:$L$102, 0), 1), "") -> Africa | D56: View Profile | E56: Ghana | F56: 1.227611312
B57: =IF(F57="", "", IFERROR(RANK(F57, $F$25:$F$101), "")) -> 33 | C57: =IFERROR(INDEX(IND!$K$10:$K$102, MATCH(E57, IND!$L$10:$L$102, 0), 1), "") -> LAC | D57: View Profile | E57: Panama | F57: 1.221657926
B58: 34 | C58: =IFERROR(INDEX(IND!$K$10:$K$102, MATCH(E58, IND!$L$10:$L$102, 0), 1), "") -> Europe | D58: View Profile | E58: Russia | F58: 1.216123008
B59: 35 | C59: =IFERROR(INDEX(IND!$K$10:$K$102, MATCH(E59, IND!$L$10:$L$102, 0), 1), "") -> Africa | D59: View Profile | E59: Sierra Leone | F59: 1.198094912
B60: 36 | C60: =IFERROR(INDEX(IND!$K$10:$K$102, MATCH(E60, IND!$L$10:$L$102, 0), 1), "") -> Middle East | D60: View Profile | E60: Lebanon | F60: 1.198030764
B61: 37 | C61: =IFERROR(INDEX(IND!$K$10:$K$102, MATCH(E61, IND!$L$10:$L$102, 0), 1), "") -> LAC | D61: View Profile | E61: Nicaragua | F61: 1.162389212
B62: 38 | C62: =IFERROR(INDEX(IND!$K$10:$K$102, MATCH(E62, IND!$L$10:$L$102, 0), 1), "") -> LAC | D62: View Profile | E62: El Salvador | F62: 1.148707953
B63: 39 | C63: =IFERROR(INDEX(IND!$K$10:$K$102, MATCH(E63, IND!$L$10:$L$102, 0), 1), "") -> Africa | D63: View Profile | E63: Liberia | F63: 1.130533368
B64: 40 | C64: =IFERROR(INDEX(IND!$K$10:$K$102, MATCH(E64, IND!$L$10:$L$102, 0), 1), "") -> Europe | D64: View Profile | E64: Ukraine | F64: 1.129813097
B65: 41 | C65: =IFERROR(INDEX(IND!$K$10:$K$102, MATCH(E65, IND!$L$10:$L$102, 0), 1), "") -> Europe | D65: View Profile | E65: Georgia | F65: 1.106602086
B66: 42 | C66: =IFERROR(INDEX(IND!$K$10:$K$102, MATCH(E66, IND!$L$10:$L$102, 0), 1), "") -> LAC | D66: View Profile | E66: Bolivia | F66: 1.104434468
B67: 43 | C67: =IFERROR(INDEX(IND!$K$10:$K$102, MATCH(E67, IND!$L$10:$L$102, 0), 1), "") -> LAC | D67: View Profile | E67: Ecuador | F67: 1.056617553
B68: 44 | C68: =IFERROR(INDEX(IND!$K$10:$K$102, MATCH(E68, IND!$L$10:$L$102, 0), 1), "") -> Africa | D68: View Profile | E68: Cameroon | F68: 1.038687266
B69: 45 | C69: =IFERROR(INDEX(IND!$K$10:$K$102, MATCH(E69, IND!$L$10:$L$102, 0), 1), "") -> Africa | D69: View Profile | E69: Botswana | F69: 0.9924457897
B70: 46 | C70: =IFERROR(INDEX(IND!$K$10:$K$102, MATCH(E70, IND!$L$10:$L$102, 0), 1), "") -> LAC | D70: View Profile | E70: Jamaica | F70: 0.9745357296
B71: 47 | C71: =IFERROR(INDEX(IND!$K$10:$K$102, MATCH(E71, IND!$L$10:$L$102, 0), 1), "") -> Africa | D71: View Profile | E71: Zambia | F71: 0.963647732
B72: 48 | C72: =IFERROR(INDEX(IND!$K$10:$K$102, MATCH(E72, IND!$L$10:$L$102, 0), 1), "") -> Africa | D72: View Profile | E72: Cote d'Ivoire | F72: 0.9156354287
B73: 49 | C73: =IFERROR(INDEX(IND!$K$10:$K$102, MATCH(E73, IND!$L$10:$L$102, 0), 1), "") -> LAC | D73: View Profile | E73: Dominican Republic | F73: 0.8990725531
B74: 50 | C74: =IFERROR(INDEX(IND!$K$10:$K$102, MATCH(E74, IND!$L$10:$L$102, 0), 1), "") -> LAC | D74: View Profile | E74: Belize | F74: 0.8691553791
B75: =IF(F75="", "", IFERROR(RANK(F75, $F$25:$F$101), "")) -> 51 | C75: =IFERROR(INDEX(IND!$K$10:$K$102, MATCH(E75, IND!$L$10:$L$102, 0), 1), "") -> Europe | D75: View Profile | E75: Moldova | F75: 0.8617115026
B76: 52 | C76: =IFERROR(INDEX(IND!$K$10:$K$102, MATCH(E76, IND!$L$10:$L$102, 0), 1), "") -> LAC | D76: View Profile | E76: Haiti | F76: 0.8548466556
B77: 53 | C77: =IFERROR(INDEX(IND!$K$10:$K$102, MATCH(E77, IND!$L$10:$L$102, 0), 1), "") -> Africa | D77: View Profile | E77: Zimbabwe | F77: 0.8300825944
B78: 54 | C78: =IFERROR(INDEX(IND!$K$10:$K$102, MATCH(E78, IND!$L$10:$L$102, 0), 1), "") -> Asia | D78: View Profile | E78: Kazakhstan | F78: 0.8245719292
B79: 55 | C79: =IFERROR(INDEX(IND!$K$10:$K$102, MATCH(E79, IND!$L$10:$L$102, 0), 1), "") -> Africa | D79: View Profile | E79: Mozambique | F79: 0.8114479488
B80: 56 | C80: =IFERROR(INDEX(IND!$K$10:$K$102, MATCH(E80, IND!$L$10:$L$102, 0), 1), "") -> Asia | D80: View Profile | E80: Armenia | F80: 0.8105226555
B81: 57 | C81: =IFERROR(INDEX(IND!$K$10:$K$102, MATCH(E81, IND!$L$10:$L$102, 0), 1), "") -> Asia | D81: View Profile | E81: Azerbaijan | F81: 0.793847306
B82: 58 | C82: =IFERROR(INDEX(IND!$K$10:$K$102, MATCH(E82, IND!$L$10:$L$102, 0), 1), "") -> Europe | D82: View Profile | E82: Belarus | F82: 0.7766371044
B83: 59 | C83: =IFERROR(INDEX(IND!$K$10:$K$102, MATCH(E83, IND!$L$10:$L$102, 0), 1), "") -> Asia | D83: View Profile | E83: Kyrgyzstan | F83: 0.7717546669
B84: 60 | C84: =IFERROR(INDEX(IND!$K$10:$K$102, MATCH(E84, IND!$L$10:$L$102, 0), 1), "") -> Asia | D84: View Profile | E84: Myanmar | F84: 0.7451529185
B85: 61 | C85: =IFERROR(INDEX(IND!$K$10:$K$102, MATCH(E85, IND!$L$10:$L$102, 0), 1), "") -> Africa | D85: View Profile | E85: Malawi | F85: 0.7173626145
B86: 62 | C86: =IFERROR(INDEX(IND!$K$10:$K$102, MATCH(E86, IND!$L$10:$L$102, 0), 1), "") -> LAC | D86: View Profile | E86: Bahamas | F86: 0.7136254953
B87: 63 | C87: =IFERROR(INDEX(IND!$K$10:$K$102, MATCH(E87, IND!$L$10:$L$102, 0), 1), "") -> Asia | D87: View Profile | E87: Tajikistan | F87: 0.6587054006
B88: 64 | C88: =IFERROR(INDEX(IND!$K$10:$K$102, MATCH(E88, IND!$L$10:$L$102, 0), 1), "") -> LAC | D88: View Profile | E88: Trinidad & Tobago | F88: 0.6313003548
B89: 65 | C89: =IFERROR(INDEX(IND!$K$10:$K$102, MATCH(E89, IND!$L$10:$L$102, 0), 1), "") -> Africa | D89: View Profile | E89: Congo (Dem. Rep.) | F89: 0.6242472198
B90: 66 | C90: =IFERROR(INDEX(IND!$K$10:$K$102, MATCH(E90, IND!$L$10:$L$102, 0), 1), "") -> LAC | D90: View Profile | E90: Guyana | F90: 0.5528712969
B91: 67 | C91: =IFERROR(INDEX(IND!$K$10:$K$102, MATCH(E91, IND!$L$10:$L$102, 0), 1), "") -> Asia | D91: View Profile | E91: Uzbekistan | F91: 0.5400761528
B92: 68 | C92: =IFERROR(INDEX(IND!$K$10:$K$102, MATCH(E92, IND!$L$10:$L$102, 0), 1), "") -> LAC | D92: View Profile | E92: Venezuela | F92: 0.4899990672
B93: 69 | C93: =IFERROR(INDEX(IND!$K$10:$K$102, MATCH(E93, IND!$L$10:$L$102, 0), 1), "") -> LAC | D93: View Profile | E93: Suriname | F93: 0.469628368
B94: 70 | C94: =IFERROR(INDEX(IND!$K$10:$K$102, MATCH(E94, IND!$L$10:$L$102, 0), 1), "") -> LAC | D94: View Profile | E94: Paraguay | F94: 0.4675788894
B95: 71 | C95: =IFERROR(INDEX(IND!$K$10:$K$102, MATCH(E95, IND!$L$10:$L$102, 0), 1), "") -> Asia | D95: View Profile | E95: Turkmenistan | F95: 0.2082512585
C96: =IFERROR(INDEX(IND!$K$10:$K$102, MATCH(E96, IND!$L$10:$L$102, 0), 1), "") -> 
C97: =IFERROR(INDEX(IND!$K$10:$K$102, MATCH(E97, IND!$L$10:$L$102, 0), 1), "") -> 
C98: =IFERROR(INDEX(IND!$K$10:$K$102, MATCH(E98, IND!$L$10:$L$102, 0), 1), "") -> 
C99: =IFERROR(INDEX(IND!$K$10:$K$102, MATCH(E99, IND!$L$10:$L$102, 0), 1), "") -> 
C100: =IFERROR(INDEX(IND!$K$10:$K$102, MATCH(E100, IND!$L$10:$L$102, 0), 1), "") -> 
C101: =IFERROR(INDEX(IND!$K$10:$K$102, MATCH(E101, IND!$L$10:$L$102, 0), 1), "") -> 

Sheet COUNTRY
N1: =DASHBOARD!$G$1 -> GLOBAL CLIMATESCOPE INDEX 2017
B3: Country | C3: Nigeria
B4: Region | C4: =INDEX(IND!$K$10:$K$102, MATCH(str_Country, IND!$L$10:$L$102, 0), 1) -> Africa
B5: Score | C5: =SUM($M$18:$M$67) -> 1.326585329
B7: INSTRUCTIONS
B8: =DASHBOARD!B4 -> Climatescope is a comprehensive index and report assessing the environment for low-carbon investment in 71 countries and regions in Africa, Asia, the Middle East, Latin America and the Caribbean, developed by the
B9: =DASHBOARD!B5 -> UK Department for International Development, the US Agency for International Development and Bloomberg New Energy Finance.
B10: FUNCTIONALITY
B11: 1) Select country of choice in the drop-down menu.
B12: 2) Click on indicator hyperlinks for further indicator details. Here you can see charts and tables which provide a more details on the related indicators.
B13: 3) Expand the indicator additional information by clicking on the '+' (plus sign) on the left.
B14: FOR QUESTIONS OR FEEDBACK PLEASE EMAIL CLIMATESCOPE@BLOOMBERG.NET
B16: Country Profile | Q16: Grid type… | S16: =IF(ISNUMBER(MATCH(str_Country, list_RegionOnGrid, 0)), "On-Grid", "Off-Grid") -> Off-Grid
B17: Parameter | C17: P-Weight* | D17: Category | E17: C-Weight* | F17: ID. | G17: Indicator | H17: Grid | I17: I-Weight* | J17: Net Weight* | K17: =COUNTIF(K18:K67, "<>0") -> 37 | L17: Units | M17: Score | N17: Performance* | O17: IND. | P17: UNIT TYPE | Q17: OFF-GRID I-WEIGHT | R17: ON-GRID I-WEIGHT | S17: I-WEIGHT
B18: Enabling Framework | C18: 0.4 | D18: Policy & Regulation | E18: 0.4 | F18: 1.01 | G18: =HYPERLINK("#" & "str_Hyperlink" & $F18*100, IFERROR(INDEX(DEFN!$E$11:$E$60, MATCH($F18, DEFN!$B$11:$B$60, 0), 1), "Cannot Find Indicator")) -> Clean energy policies | H18: Both | I18: =IF(ISNUMBER(S18), S18, IF(AND(S18="None", K18<>0), (1-SUMIFS($S$18:$S$67, $D$18:$D$67, D18, $S$18:$S$67, ">0"))/COUNTIFS($D$18:$D$67, D18, $S$18:$S$67, "None", $K$18:$K$67, "<>0"), 0)) -> 0.4 | J18: =IF(I18="", "", C18*E18*I18) -> 0.064 | K18: =IFERROR(INDEX(IND!$P$10:$P$3859, MATCH($F18&" > "&$C$3, IND!$Y$10:$Y$3859, 0), 1)*IF(P18="Percentage (Calculated)", 100, 1), 0) -> 7 | L18: =IF(K18=1, "Policy Type", "Policy Types") -> Policy Types | M18: =IF(J18="", "", IFERROR(J18*dbl_ScoreMax*MAX(0, IFERROR(INDEX(IND!$S$10:$S$3859, MATCH($F18&" > "&$C$3, IND!$Y$10:$Y$3859, 0), 1), 0))/100, 0)) -> 0.1219361339 | N18: =IF(OR(M18="", M18=0), "", IFERROR(M18/(J18*dbl_ScoreMax), 0)) -> 0.3810504183 | O18: 1 | P18: Decimal | Q18: 0.4 | R18: 0.6 | S18: =IF(str_GridStatus="Off-Grid", Q18, R18) -> 0.4
B19: =B18 -> Enabling Framework | C19: =C18 -> 0.4 | D19: Policy & Regulation | E19: =E18 -> 0.4 | F19: 1.02 | G19: =HYPERLINK("#" & "str_Hyperlink" & $F19*100, IFERROR(INDEX(DEFN!$E$11:$E$60, MATCH($F19, DEFN!$B$11:$B$60, 0), 1), "Cannot Find Indicator")) -> Power sector structure | H19: Both | I19: =IF(ISNUMBER(S19), S19, IF(AND(S19="None", K19<>0), (1-SUMIFS($S$18:$S$67, $D$18:$D$67, D19, $S$18:$S$67, ">0"))/COUNTIFS($D$18:$D$67, D19, $S$18:$S$67, "None", $K$18:$K$67, "<>0"), 0)) -> 0.25 | J19: =IF(I19="", "", C19*E19*I19) -> 0.04 | K19: =IFERROR(INDEX(IND!$P$10:$P$3859, MATCH($F19&" > "&$C$3, IND!$Y$10:$Y$3859, 0), 1)*IF(P19="Percentage (Calculated)", 100, 1), 0) -> 9.024089912 | L19: =IF(K19=1, "Question", "Questions") -> Questions | M19: =IF(J19="", "", IFERROR(J19*dbl_ScoreMax*MAX(0, IFERROR(INDEX(IND!$S$10:$S$3859, MATCH($F19&" > "&$C$3, IND!$Y$10:$Y$3859, 0), 1), 0))/100, 0)) -> 0.1128011239 | N19: 0.5640056195 | O19: =O18+1 -> 2 | P19: Decimal | Q19: 0.25 | R19: 0.3 | S19: 0.25
B20: =B19 -> Enabling Framework | C20: 0.4 | D20: Policy & Regulation | E20: =E19 -> 0.4 | F20: 1.03 | G20: =HYPERLINK("#" & "str_Hyperlink" & $F20*100, IFERROR(INDEX(DEFN!$E$11:$E$60, MATCH($F20, DEFN!$B$11:$B$60, 0), 1), "Cannot Find Indicator")) -> Distributed energy framework | H20: Off-grid | I20: 0.15 | J20: =IF(I20="", "", C20*E20*I20) -> 0.024 | K20: =IFERROR(INDEX(IND!$P$10:$P$3859, MATCH($F20&" > "&$C$3, IND!$Y$10:$Y$3859, 0), 1)*IF(P20="Percentage (Calculated)", 100, 1), 0) -> 12.5 | L20: =IF(K20=1, "Question", "Questions") -> Questions | M20: =IF(J20="", "", IFERROR(J20*dbl_ScoreMax*MAX(0, IFERROR(INDEX(IND!$S$10:$S$3859, MATCH($F20&" > "&$C$3, IND!$Y$10:$Y$3859, 0), 1), 0))/100, 0)) -> 0.09677419355 | N20: 0.8064516129 | O20: 3 | P20: Decimal | Q20: 0.15 | R20: 0 | S20: 0.15
B21: Enabling Framework | C21: 0.4 | D21: Policy & Regulation | E21: =E20 -> 0.4 | F21: 1.04 | G21: Clean energy rural electrification | H21: Both | I21: 0.05 | J21: 0.008 | K21: =IFERROR(INDEX(IND!$P$10:$P$3859, MATCH($F21&" > "&$C$3, IND!$Y$10:$Y$3859, 0), 1)*IF(P21="Percentage (Calculated)", 100, 1), 0) -> 0.5 | L21: =IF(K21=1, "Program", "Programs") -> Programs | M21: =IF(J21="", "", IFERROR(J21*dbl_ScoreMax*MAX(0, IFERROR(INDEX(IND!$S$10:$S$3859, MATCH($F21&" > "&$C$3, IND!$Y$10:$Y$3859, 0), 1), 0))/100, 0)) -> 0.02 | N21: 0.5 | O21: 4 | P21: Decimal | Q21: 0.05 | R21: 0.05 | S21: 0.05
B22: Enabling Framework | C22: 0.4 | D22: Policy & Regulation | E22: =E21 -> 0.4 | F22: 1.05 | G22: =HYPERLINK("#" & "str_Hyperlink" & $F22*100, IFERROR(INDEX(DEFN!$E$11:$E$60, MATCH($F22, DEFN!$B$11:$B$60, 0), 1), "Cannot Find Indicator")) -> Energy access policies | H22: Off-grid | I22: 0.1 | J22: 0.016 | K22: =IFERROR(INDEX(IND!$P$10:$P$3859, MATCH($F22&" > "&$C$3, IND!$Y$10:$Y$3859, 0), 1)*IF(P22="Percentage (Calculated)", 100, 1), 0) -> 8.733162908 | L22: =IF(K22=1, "Policy", "Policies") -> Policies | M22: =IF(J22="", "", IFERROR(J22*dbl_ScoreMax*MAX(0, IFERROR(INDEX(IND!$S$10:$S$3859, MATCH($F22&" > "&$C$3, IND!$Y$10:$Y$3859, 0), 1), 0))/100, 0)) -> 0.05374254097 | N22: 0.6717817621 | O22: 5 | P22: Decimal | Q22: 0.1 | R22: 0 | S22: 0.1
B23: Enabling Framework | C23: 0.4 | D23: Policy & Regulation | E23: =E22 -> 0.4 | F23: 1.06 | G23: =HYPERLINK("#" & "str_Hyperlink" & $F23*100, IFERROR(INDEX(DEFN!$E$11:$E$60, MATCH($F23, DEFN!$B$11:$B$60, 0), 1), "Cannot Find Indicator")) -> Barriers | H23: Both | I23: 0.05 | J23: 0.008 | K23: =IFERROR(INDEX(IND!$P$10:$P$3859, MATCH($F23&" > "&$C$3, IND!$Y$10:$Y$3859, 0), 1)*IF(P23="Percentage (Calculated)", 100, 1), 0) -> 3.624235006 | L23: =IF(K22=1, "Barrier", "Barriers") -> Barriers | M23: =IF(J23="", "", IFERROR(J23*dbl_ScoreMax*MAX(0, IFERROR(INDEX(IND!$S$10:$S$3859, MATCH($F23&" > "&$C$3, IND!$Y$10:$Y$3859, 0), 1), 0))/100, 0)) -> 0.02070991432 | N23: 0.517747858 | O23: 6 | P23: Decimal | Q23: 0.05 | R23: 0.05 | S23: 0.05
B24: Enabling Framework | C24: 0.4 | D24: Clean Energy Penetration | E24: 0.4 | F24: 1.07 | G24: =HYPERLINK("#" & "str_Hyperlink" & $F24*100, IFERROR(INDEX(DEFN!$E$11:$E$60, MATCH($F24, DEFN!$B$11:$B$60, 0), 1), "Cannot Find Indicator")) -> Clean energy installed capacity | H24: Both | I24: 0.2 | J24: 0.032 | K24: =IFERROR(INDEX(IND!$P$10:$P$3859, MATCH($F24&" > "&$C$3, IND!$Y$10:$Y$3859, 0), 1)*IF(P24="Percentage (Calculated)", 100, 1), 0) -> 62 | L24: MW | M24: =IF(J24="", "", IFERROR(J24*dbl_ScoreMax*MAX(0, IFERROR(INDEX(IND!$S$10:$S$3859, MATCH($F24&" > "&$C$3, IND!$Y$10:$Y$3859, 0), 1), 0))/100, 0)) -> 0.001237231728 | N24: 0.007732698297 | O24: 7 | P24: Decimal | Q24: 0.2 | R24: 0.2 | S24: 0.2
B25: Enabling Framework | C25: 0.4 | D25: Clean Energy Penetration | E25: =E24 -> 0.4 | F25: 1.08 | G25: Growth rate of installed capacity | H25: Both | I25: 0.2 | J25: 0.032 | K25: =IFERROR(INDEX(IND!$P$10:$P$3859, MATCH($F25&" > "&$C$3, IND!$Y$10:$Y$3859, 0), 1)*IF(P25="Percentage (Calculated)", 100, 1), 0) -> 0 | L25: % | M25: =IF(J25="", "", IFERROR(J25*dbl_ScoreMax*MAX(0, IFERROR(INDEX(IND!$S$10:$S$3859, MATCH($F25&" > "&$C$3, IND!$Y$10:$Y$3859, 0), 1), 0))/100, 0)) -> 0 | O25: 8 | P25: Percentage (Calculated) | Q25: 0.2 | R25: 0.2 | S25: 0.2
B26: Enabling Framework | C26: 0.4 | D26: Clean Energy Penetration | E26: =E25 -> 0.4 | F26: 1.09 | G26: =HYPERLINK("#" & "str_Hyperlink" & $F26*100, IFERROR(INDEX(DEFN!$E$11:$E$60, MATCH($F26, DEFN!$B$11:$B$60, 0), 1), "Cannot Find Indicator")) -> Clean energy electricity generation | H26: Both | I26: 0.2 | J26: 0.032 | K26: =IFERROR(INDEX(IND!$P$10:$P$3859, MATCH($F26&" > "&$C$3, IND!$Y$10:$Y$3859, 0), 1)*IF(P26="Percentage (Calculated)", 100, 1), 0) -> 248.1399568 | L26: GWh | M26: =IF(J26="", "", IFERROR(J26*dbl_ScoreMax*MAX(0, IFERROR(INDEX(IND!$S$10:$S$3859, MATCH($F26&" > "&$C$3, IND!$Y$10:$Y$3859, 0), 1), 0))/100, 0)) -> 0.001447021564 | N26: 0.009043884775 | O26: 9 | P26: Decimal | Q26: 0.2 | R26: 0.2 | S26: 0.2
B27: Enabling Framework | C27: 0.4 | D27: Clean Energy Penetration | E27: =E26 -> 0.4 | F27: 1.1 | G27: Growth rate of electricity generation | H27: Both | I27: 0.2 | J27: 0.032 | K27: =IFERROR(INDEX(IND!$P$10:$P$3859, MATCH($F27&" > "&$C$3, IND!$Y$10:$Y$3859, 0), 1)*IF(P27="Percentage (Calculated)", 100, 1), 0) -> -4.575056564 | L27: % | M27: =IF(J27="", "", IFERROR(J27*dbl_ScoreMax*MAX(0, IFERROR(INDEX(IND!$S$10:$S$3859, MATCH($F27&" > "&$C$3, IND!$Y$10:$Y$3859, 0), 1), 0))/100, 0)) -> 0 | O27: 10 | P27: Percentage (Calculated) | Q27: 0.2 | R27: 0.2 | S27: 0.2
B28: Enabling Framework | C28: 0.4 | D28: Clean Energy Penetration | E28: =E27 -> 0.4 | F28: 1.11 | G28: Biofuels production capacity | H28: Both | I28: 0.1 | J28: 0.016 | K28: =IFERROR(INDEX(IND!$P$10:$P$3859, MATCH($F28&" > "&$C$3, IND!$Y$10:$Y$3859, 0), 1)*IF(P28="Percentage (Calculated)", 100, 1), 0) -> 0.1376 | L28: =IF(K28=1, "Billion Litre", "Billion Litres") -> Billion Litres | M28: =IF(J28="", "", IFERROR(J28*dbl_ScoreMax*MAX(0, IFERROR(INDEX(IND!$S$10:$S$3859, MATCH($F28&" > "&$C$3, IND!$Y$10:$Y$3859, 0), 1), 0))/100, 0)) -> 0.0002189775214 | N28: 0.002737219017 | O28: 11 | P28: Decimal | Q28: 0.1 | R28: 0.1 | S28: 0.1
B29: Enabling Framework | C29: 0.4 | D29: Clean Energy Penetration | E29: =E28 -> 0.4 | F29: 1.12 | G29: Growth rate biofuels production capacity | H29: Both | I29: 0.1 | J29: 0.016 | K29: =IFERROR(INDEX(IND!$P$10:$P$3859, MATCH($F29&" > "&$C$3, IND!$Y$10:$Y$3859, 0), 1)*IF(P29="Percentage (Calculated)", 100, 1), 0) -> 0 | L29: % | M29: =IF(J29="", "", IFERROR(J29*dbl_ScoreMax*MAX(0, IFERROR(INDEX(IND!$S$10:$S$3859, MATCH($F29&" > "&$C$3, IND!$Y$10:$Y$3859, 0), 1), 0))/100, 0)) -> 0 | O29: 12 | P29: Percentage (Calculated) | Q29: 0.1 | R29: 0.1 | S29: 0.1
B30: Enabling Framework | C30: 0.4 | D30: Price Attractiveness | E30: 0.1 | F30: 1.13 | G30: Average electricity spot prices | H30: Both | I30: 0 | J30: 0 | K30: =IFERROR(INDEX(IND!$P$10:$P$3859, MATCH($F30&" > "&$C$3, IND!$Y$10:$Y$3859, 0), 1)*IF(P30="Percentage (Calculated)", 100, 1), 0) -> 0 | L30: USD/MWh | M30: =IF(J30="", "", IFERROR(J30*dbl_ScoreMax*MAX(0, IFERROR(INDEX(IND!$S$10:$S$3859, MATCH($F30&" > "&$C$3, IND!$Y$10:$Y$3859, 0), 1), 0))/100, 0)) -> 0 | O30: 13 | P30: Decimal | Q30: None | R30: None | S30: None
B31: Enabling Framework | C31: 0.4 | D31: Price Attractiveness | E31: =E30 -> 0.1 | F31: 1.14 | G31: Average retail electricity prices | H31: Both | I31: 0.6 | J31: 0.024 | K31: =IFERROR(INDEX(IND!$P$10:$P$3859, MATCH($F31&" > "&$C$3, IND!$Y$10:$Y$3859, 0), 1)*IF(P31="Percentage (Calculated)", 100, 1), 0) -> 81.76993561 | L31: USD/MWh | M31: =IF(J31="", "", IFERROR(J31*dbl_ScoreMax*MAX(0, IFERROR(INDEX(IND!$S$10:$S$3859, MATCH($F31&" > "&$C$3, IND!$Y$10:$Y$3859, 0), 1), 0))/100, 0)) -> 0.02002529035 | N31: 0.1668774196 | O31: 14 | P31: Decimal | Q31: None | R31: None | S31: None
B32: Enabling Framework | C32: 0.4 | D32: Price Attractiveness | E32: =E31 -> 0.1 | F32: 1.15 | G32: Average residential electricity prices | H32: Both | I32: 0 | J32: 0 | K32: =IFERROR(INDEX(IND!$P$10:$P$3859, MATCH($F32&" > "&$C$3, IND!$Y$10:$Y$3859, 0), 1)*IF(P32="Percentage (Calculated)", 100, 1), 0) -> 102.7631723 | L32: USD/MWh | M32: =IF(J32="", "", IFERROR(J32*dbl_ScoreMax*MAX(0, IFERROR(INDEX(IND!$S$10:$S$3859, MATCH($F32&" > "&$C$3, IND!$Y$10:$Y$3859, 0), 1), 0))/100, 0)) -> 0 | O32: 15 | P32: Decimal | Q32: 0 | R32: 0 | S32: 0
B33: Enabling Framework | C33: 0.4 | D33: Price Attractiveness | E33: =E32 -> 0.1 | F33: 1.16 | G33: Average commercial electricity prices | H33: Both | I33: 0 | J33: 0 | K33: =IFERROR(INDEX(IND!$P$10:$P$3859, MATCH($F33&" > "&$C$3, IND!$Y$10:$Y$3859, 0), 1)*IF(P33="Percentage (Calculated)", 100, 1), 0) -> 142.5466345 | L33: USD/MWh | M33: =IF(J33="", "", IFERROR(J33*dbl_ScoreMax*MAX(0, IFERROR(INDEX(IND!$S$10:$S$3859, MATCH($F33&" > "&$C$3, IND!$Y$10:$Y$3859, 0), 1), 0))/100, 0)) -> 0 | O33: 16 | P33: Decimal | Q33: 0 | R33: 0 | S33: 0
B34: Enabling Framework | C34: 0.4 | D34: Price Attractiveness | E34: 0.1 | F34: 1.17 | G34: Average industrial electricity prices | H34: Both | I34: 0 | J34: 0 | K34: =IFERROR(INDEX(IND!$P$10:$P$3859, MATCH($F34&" > "&$C$3, IND!$Y$10:$Y$3859, 0), 1)*IF(P34="Percentage (Calculated)", 100, 1), 0) -> 136.5395344 | L34: USD/MWh | M34: =IF(J34="", "", IFERROR(J34*dbl_ScoreMax*MAX(0, IFERROR(INDEX(IND!$S$10:$S$3859, MATCH($F34&" > "&$C$3, IND!$Y$10:$Y$3859, 0), 1), 0))/100, 0)) -> 0 | O34: 17 | P34: Decimal | Q34: 0 | R34: 0 | S34: 0
B35: Enabling Framework | C35: 0.4 | D35: Price Attractiveness | E35: 0.1 | F35: 1.18 | G35: Average kerosene prices | H35: Off-grid | I35: 0.2 | J35: 0.008 | K35: =IFERROR(INDEX(IND!$P$10:$P$3859, MATCH($F35&" > "&$C$3, IND!$Y$10:$Y$3859, 0), 1)*IF(P35="Percentage (Calculated)", 100, 1), 0) -> 1.006750466 | L35: USD/Litre | M35: =IF(J35="", "", IFERROR(J35*dbl_ScoreMax*MAX(0, IFERROR(INDEX(IND!$S$10:$S$3859, MATCH($F35&" > "&$C$3, IND!$Y$10:$Y$3859, 0), 1), 0))/100, 0)) -> 0.007471246498 | N35: 0.1867811624 | O35: 18 | P35: Decimal | Q35: 0.2 | R35: 0 | S35: 0.2
B36: Enabling Framework | C36: 0.4 | D36: Price Attractiveness | E36: 0.1 | F36: 1.19 | G36: Average diesel prices | H36: Off-grid | I36: 0.2 | J36: 0.008 | K36: =IFERROR(INDEX(IND!$P$10:$P$3859, MATCH($F36&" > "&$C$3, IND!$Y$10:$Y$3859, 0), 1)*IF(P36="Percentage (Calculated)", 100, 1), 0) -> 0.6833100559 | L36: USD/Litre | M36: =IF(J36="", "", IFERROR(J36*dbl_ScoreMax*MAX(0, IFERROR(INDEX(IND!$S$10:$S$3859, MATCH($F36&" > "&$C$3, IND!$Y$10:$Y$3859, 0), 1), 0))/100, 0)) -> 0.005380394141 | N36: 0.1345098535 | O36: 19 | P36: Decimal | Q36: 0.2 | R36: 0 | S36: 0.2
B37: Enabling Framework | C37: 0.4 | D37: Market Size Expectations | E37: 0.1 | F37: 1.2 | G37: Growth rate of power demand | H37: Both | I37: 0.3 | J37: 0.012 | K37: =IFERROR(INDEX(IND!$P$10:$P$3859, MATCH($F37&" > "&$C$3, IND!$Y$10:$Y$3859, 0), 1)*IF(P37="Percentage (Calculated)", 100, 1), 0) -> 36.875 | L37: % | M37: =IF(J37="", "", IFERROR(J37*dbl_ScoreMax*MAX(0, IFERROR(INDEX(IND!$S$10:$S$3859, MATCH($F37&" > "&$C$3, IND!$Y$10:$Y$3859, 0), 1), 0))/100, 0)) -> 0.03114261364 | N37: 0.5190435606 | O37: 20 | P37: Percentage (Calculated) | Q37: 0.3 | R37: 0.5 | S37: 0.3
B38: Enabling Framework | C38: 0.4 | D38: Market Size Expectations | E38: 0.1 | F38: 1.21 | G38: Electrification rate | H38: Both | I38: 0.6 | J38: 0.024 | K38: =IFERROR(INDEX(IND!$P$10:$P$3859, MATCH($F38&" > "&$C$3, IND!$Y$10:$Y$3859, 0), 1)*IF(P38="Percentage (Calculated)", 100, 1), 0) -> 57.268 | L38: % | M38: =IF(J38="", "", IFERROR(J38*dbl_ScoreMax*MAX(0, IFERROR(INDEX(IND!$S$10:$S$3859, MATCH($F38&" > "&$C$3, IND!$Y$10:$Y$3859, 0), 1), 0))/100, 0)) -> 0.0687216 | N38: 0.57268 | O38: 21 | P38: Percentage (Hardcoded) | Q38: 0.6 | R38: 0.5 | S38: 0.6
B39: Enabling Framework | C39: 0.4 | D39: Market Size Expectations | E39: 0.1 | F39: 1.22 | G39: Population using solid fuels for cooking | H39: Off-grid | I39: 0.1 | J39: 0.004 | K39: =IFERROR(INDEX(IND!$P$10:$P$3859, MATCH($F39&" > "&$C$3, IND!$Y$10:$Y$3859, 0), 1)*IF(P39="Percentage (Calculated)", 100, 1), 0) -> 75 | L39: % | M39: =IF(J39="", "", IFERROR(J39*dbl_ScoreMax*MAX(0, IFERROR(INDEX(IND!$S$10:$S$3859, MATCH($F39&" > "&$C$3, IND!$Y$10:$Y$3859, 0), 1), 0))/100, 0)) -> 0.01530612245 | N39: 0.7653061224 | O39: 22 | P39: Percentage (Hardcoded) | Q39: 0.1 | R39: 0 | S39: 0.1
B40: Clean Energy Investment | C40: 0.3 | D40: Amount Invested | E40: 0.51 | F40: 2.01 | G40: =HYPERLINK("#" & "str_Hyperlink" & $F40*100, IFERROR(INDEX(DEFN!$E$11:$E$60, MATCH($F40, DEFN!$B$11:$B$60, 0), 1) & " (" & int_InvStartYear & "-" & int_Year & ")", "Cannot Find Indicator")) -> Clean energy investments (2012-2016) | H40: Both | I40: 0.6 | J40: 0.0918 | K40: =IFERROR(INDEX(IND!$P$10:$P$3859, MATCH($F40&" > "&$C$3, IND!$Y$10:$Y$3859, 0), 1)*IF(P40="Percentage (Calculated)", 100, 1), 0) -> 309.0615151 | L40: USDm | M40: =IF(J40="", "", IFERROR(J40*dbl_ScoreMax*MAX(0, IFERROR(INDEX(IND!$S$10:$S$3859, MATCH($F40&" > "&$C$3, IND!$Y$10:$Y$3859, 0), 1), 0))/100, 0)) -> 0.003355676044 | N40: 0.007310841053 | O40: 23 | P40: Decimal | Q40: 0.6 | R40: 0.5 | S40: 0.6
B41: =B40 -> Clean Energy Investment | C41: =C40 -> 0.3 | D41: =D40 -> Amount Invested | E41: =E40 -> 0.51 | F41: 2.02 | G41: Growth rate of clean energy investments | H41: Both | I41: 0.4 | J41: 0.0612 | K41: =IFERROR(INDEX(IND!$P$10:$P$3859, MATCH($F41&" > "&$C$3, IND!$Y$10:$Y$3859, 0), 1)*IF(P41="Percentage (Calculated)", 100, 1), 0) -> 0 | L41: % | M41: =IF(J41="", "", IFERROR(J41*dbl_ScoreMax*MAX(0, IFERROR(INDEX(IND!$S$10:$S$3859, MATCH($F41&" > "&$C$3, IND!$Y$10:$Y$3859, 0), 1), 0))/100, 0)) -> 0 | O41: 24 | P41: Percentage (Calculated) | Q41: 0.4 | R41: 0.5 | S41: 0.4
B42: Clean Energy Investment | C42: 0.3 | D42: Investment Type | E42: 0 | F42: 2.03 | G42: Asset finance investments | H42: Both | I42: 0 | J42: 0 | K42: =IFERROR(INDEX(IND!$P$10:$P$3859, MATCH($F42&" > "&$C$3, IND!$Y$10:$Y$3859, 0), 1)*IF(P42="Percentage (Calculated)", 100, 1), 0) -> 309.0615151 | L42: USDm | M42: =IF(J42="", "", IFERROR(J42*dbl_ScoreMax*MAX(0, IFERROR(INDEX(IND!$S$10:$S$3859, MATCH($F42&" > "&$C$3, IND!$Y$10:$Y$3859, 0), 1), 0))/100, 0)) -> 0 | O42: 25 | P42: Decimal | Q42: 0 | R42: 0 | S42: 0
B43: Clean Energy Investment | C43: 0.3 | D43: Investment Type | E43: =E42 -> 0 | F43: 2.04 | G43: Corporate finance investments | H43: Both | I43: 0 | J43: 0 | K43: =IFERROR(INDEX(IND!$P$10:$P$3859, MATCH($F43&" > "&$C$3, IND!$Y$10:$Y$3859, 0), 1)*IF(P43="Percentage (Calculated)", 100, 1), 0) -> 0 | L43: USDm | M43: =IF(J43="", "", IFERROR(J43*dbl_ScoreMax*MAX(0, IFERROR(INDEX(IND!$S$10:$S$3859, MATCH($F43&" > "&$C$3, IND!$Y$10:$Y$3859, 0), 1), 0))/100, 0)) -> 0 | O43: 26 | P43: Decimal | Q43: 0 | R43: 0 | S43: 0
B44: Clean Energy Investment | C44: 0.3 | D44: Investment Type | E44: =E43 -> 0 | F44: 2.05 | G44: VC/PE investments | H44: Both | I44: 0 | J44: 0 | K44: =IFERROR(INDEX(IND!$P$10:$P$3859, MATCH($F44&" > "&$C$3, IND!$Y$10:$Y$3859, 0), 1)*IF(P44="Percentage (Calculated)", 100, 1), 0) -> 0 | L44: USDm | M44: =IF(J44="", "", IFERROR(J44*dbl_ScoreMax*MAX(0, IFERROR(INDEX(IND!$S$10:$S$3859, MATCH($F44&" > "&$C$3, IND!$Y$10:$Y$3859, 0), 1), 0))/100, 0)) -> 0 | O44: 27 | P44: Decimal | Q44: 0 | R44: 0 | S44: 0
B45: Clean Energy Investment | C45: 0.3 | D45: Fund Sources | E45: 0.26 | F45: 2.06 | G45: Loans, grants, grant programs | H45: Both | I45: 0.5 | J45: 0.039 | K45: =IFERROR(INDEX(IND!$P$10:$P$3859, MATCH($F45&" > "&$C$3, IND!$Y$10:$Y$3859, 0), 1)*IF(P45="Percentage (Calculated)", 100, 1), 0) -> 38.13279175 | L45: USDm | M45: =IF(J45="", "", IFERROR(J45*dbl_ScoreMax*MAX(0, IFERROR(INDEX(IND!$S$10:$S$3859, MATCH($F45&" > "&$C$3, IND!$Y$10:$Y$3859, 0), 1), 0))/100, 0)) -> 0.002593397677 | N45: 0.01329947527 | O45: 28 | P45: Decimal | Q45: 0.5 | R45: 0.5 | S45: 0.5
B46: Clean Energy Investment | C46: 0.3 | D46: =D45 -> Fund Sources | E46: =E45 -> 0.26 | F46: 2.07 | G46: Local investments | H46: Both | I46: 0.5 | J46: 0.039 | K46: =IFERROR(INDEX(IND!$P$10:$P$3859, MATCH($F46&" > "&$C$3, IND!$Y$10:$Y$3859, 0), 1)*IF(P46="Percentage (Calculated)", 100, 1), 0) -> 0 | L46: USDm | M46: =IF(J46="", "", IFERROR(J46*dbl_ScoreMax*MAX(0, IFERROR(INDEX(IND!$S$10:$S$3859, MATCH($F46&" > "&$C$3, IND!$Y$10:$Y$3859, 0), 1), 0))/100, 0)) -> 0 | O46: 29 | P46: Decimal | Q46: 0.5 | R46: 0.5 | S46: 0.5
B47: Clean Energy Investment | C47: 0.3 | D47: Cost of Debt | E47: 0.23 | F47: 2.08 | G47: Average cost of debt | H47: Both | I47: 1 | J47: 0.069 | K47: =IFERROR(INDEX(IND!$P$10:$P$3859, MATCH($F47&" > "&$C$3, IND!$Y$10:$Y$3859, 0), 1)*IF(P47="Percentage (Calculated)", 100, 1), 0) -> 16.86702035 | L47: % | M47: =IF(J47="", "", IFERROR(J47*dbl_ScoreMax*MAX(0, IFERROR(INDEX(IND!$S$10:$S$3859, MATCH($F47&" > "&$C$3, IND!$Y$10:$Y$3859, 0), 1), 0))/100, 0)) -> 0.07000421389 | N47: 0.2029107649 | O47: 30 | P47: Percentage (Hardcoded) | Q47: None | R47: None | S47: None
B48: Clean Energy Investment | C48: 0.3 | D48: =D47 -> Cost of Debt | E48: =E47 -> 0.23 | F48: 2.09 | G48: Swap rate | H48: Both | I48: =IF(ISNUMBER(S48), S48, IF(AND(S48="None", K48<>0), (1-SUMIFS($S$18:$S$67, $D$18:$D$67, D48, $S$18:$S$67, ">0"))/COUNTIFS($D$18:$D$67, D48, $S$18:$S$67, "None", $K$18:$K$67, "<>0"), 0)) -> 0 | J48: 0 | K48: =IFERROR(INDEX(IND!$P$10:$P$3859, MATCH($F48&" > "&$C$3, IND!$Y$10:$Y$3859, 0), 1)*IF(P48="Percentage (Calculated)", 100, 1), 0) -> 0 | L48: % | M48: =IF(J48="", "", IFERROR(J48*dbl_ScoreMax*MAX(0, IFERROR(INDEX(IND!$S$10:$S$3859, MATCH($F48&" > "&$C$3, IND!$Y$10:$Y$3859, 0), 1), 0))/100, 0)) -> 0 | O48: 31 | P48: Percentage (Hardcoded) | Q48: None | R48: None | S48: None
B49: Low-Carbon Business | C49: 0.15 | D49: Value Chain | E49: 1 | F49: 3.01 | G49: =HYPERLINK("#" & "str_Hyperlink" & $F49*100, IFERROR(INDEX(DEFN!$E$11:$E$60, MATCH($F49, DEFN!$B$11:$B$60, 0), 1), "Cannot Find Indicator")) -> Financial institutions in clean energy | H49: Both | I49: 0.2 | J49: 0.03 | K49: =IFERROR(INDEX(IND!$P$10:$P$3859, MATCH($F49&" > "&$C$3, IND!$Y$10:$Y$3859, 0), 1)*IF(P49="Percentage (Calculated)", 100, 1), 0) -> 4 | L49: =IF(K49=1, "Company Type", "Company Types") -> Company Types | M49: =IF(J49="", "", IFERROR(J49*dbl_ScoreMax*MAX(0, IFERROR(INDEX(IND!$S$10:$S$3859, MATCH($F49&" > "&$C$3, IND!$Y$10:$Y$3859, 0), 1), 0))/100, 0)) -> 0.12 | N49: 0.8 | O49: =O48+1 -> 32 | P49: Decimal | Q49: 0.2 | R49: 0.25 | S49: 0.2
B50: =B49 -> Low-Carbon Business | C50: 0.15 | D50: Value Chain | E50: 1 | F50: 3.02 | G50: =HYPERLINK("#" & "str_Hyperlink" & $F50*100, IFERROR(INDEX(DEFN!$E$11:$E$60, MATCH($F50, DEFN!$B$11:$B$60, 0), 1), "Cannot Find Indicator")) -> Value chains by clean energy sector | H50: Both | I50: 0.2 | J50: 0.03 | K50: =IFERROR(INDEX(IND!$P$10:$P$3859, MATCH($F50&" > "&$C$3, IND!$Y$10:$Y$3859, 0), 1)*IF(P50="Percentage (Calculated)", 100, 1), 0) -> 17 | L50: =IF(K50=1, "Value Chain", "Value Chains") -> Value Chains | M50: =IF(J50="", "", IFERROR(J50*dbl_ScoreMax*MAX(0, IFERROR(INDEX(IND!$S$10:$S$3859, MATCH($F50&" > "&$C$3, IND!$Y$10:$Y$3859, 0), 1), 0))/100, 0)) -> 0.06710526316 | N50: =IF(OR(M50="", M50=0), "", IFERROR(M50/(J50*dbl_ScoreMax), 0)) -> 0.4473684211 | O50: 33 | P50: Decimal | Q50: 0.2 | R50: 0.5 | S50: =IF(str_GridStatus="Off-Grid", Q50, R50) -> 0.2
B51: Low-Carbon Business | C51: 0.15 | D51: Value Chain | E51: 1 | F51: 3.03 | G51: =HYPERLINK("#" & "str_Hyperlink" & $F51*100, IFERROR(INDEX(DEFN!$E$11:$E$60, MATCH($F51, DEFN!$B$11:$B$60, 0), 1), "Cannot Find Indicator")) -> Distributed value chains by sector | H51: Off-grid | I51: 0.2 | J51: 0.03 | K51: =IFERROR(INDEX(IND!$P$10:$P$3859, MATCH($F51&" > "&$C$3, IND!$Y$10:$Y$3859, 0), 1)*IF(P51="Percentage (Calculated)", 100, 1), 0) -> 5 | L51: =IF(K51=1, "Value Chain", "Value Chains") -> Value Chains | M51: =IF(J51="", "", IFERROR(J51*dbl_ScoreMax*MAX(0, IFERROR(INDEX(IND!$S$10:$S$3859, MATCH($F51&" > "&$C$3, IND!$Y$10:$Y$3859, 0), 1), 0))/100, 0)) -> 0.09375 | N51: 0.625 | O51: 34 | P51: Decimal | Q51: 0.2 | R51: 0 | S51: 0.2
B52: Low-Carbon Business | C52: 0.15 | D52: Value Chain | E52: 1 | F52: 3.04 | G52: =HYPERLINK("#" & "str_Hyperlink" & $F52*100, IFERROR(INDEX(DEFN!$E$11:$E$60, MATCH($F52, DEFN!$B$11:$B$60, 0), 1), "Cannot Find Indicator")) -> Clean energy service providers | H52: Both | I52: 0.2 | J52: 0.03 | K52: =IFERROR(INDEX(IND!$P$10:$P$3859, MATCH($F52&" > "&$C$3, IND!$Y$10:$Y$3859, 0), 1)*IF(P52="Percentage (Calculated)", 100, 1), 0) -> 17 | L52: =IF(K52=1, "Service Provider", "Sevice Providers") -> Sevice Providers | M52: =IF(J52="", "", IFERROR(J52*dbl_ScoreMax*MAX(0, IFERROR(INDEX(IND!$S$10:$S$3859, MATCH($F52&" > "&$C$3, IND!$Y$10:$Y$3859, 0), 1), 0))/100, 0)) -> 0.1275 | N52: 0.85 | O52: 35 | P52: Decimal | Q52: 0.2 | R52: 0.25 | S52: 0.2
B53: Low-Carbon Business | C53: 0.15 | D53: Value Chain | E53: 1 | F53: 3.05 | G53: =HYPERLINK("#" & "str_Hyperlink" & $F53*100, IFERROR(INDEX(DEFN!$E$11:$E$60, MATCH($F53, DEFN!$B$11:$B$60, 0), 1), "Cannot Find Indicator")) -> Distributed clean energy service providers | H53: Off-grid | I53: 0.2 | J53: 0.03 | K53: =IFERROR(INDEX(IND!$P$10:$P$3859, MATCH($F53&" > "&$C$3, IND!$Y$10:$Y$3859, 0), 1)*IF(P53="Percentage (Calculated)", 100, 1), 0) -> 5 | L53: =IF(K53=1, "Service Provider", "Sevice Providers") -> Sevice Providers | M53: =IF(J53="", "", IFERROR(J53*dbl_ScoreMax*MAX(0, IFERROR(INDEX(IND!$S$10:$S$3859, MATCH($F53&" > "&$C$3, IND!$Y$10:$Y$3859, 0), 1), 0))/100, 0)) -> 0.1071428571 | N53: 0.7142857143 | O53: 36 | P53: Decimal | Q53: 0.2 | R53: 0 | S53: 0.2
B54: GHG Management Activities | C54: 0.15 | D54: NDC | E54: 0.4 | F54: 4.01 | G54: NDC target type | H54: Both | I54: 0.2 | J54: 0.012 | K54: =IFERROR(INDEX(IND!$P$10:$P$3859, MATCH($F54&" > "&$C$3, IND!$Y$10:$Y$3859, 0), 1)*IF(P54="Percentage (Calculated)", 100, 1), 0) -> 0.75 | L54: Target type | M54: =IF(J54="", "", IFERROR(J54*dbl_ScoreMax*MAX(0, IFERROR(INDEX(IND!$S$10:$S$3859, MATCH($F54&" > "&$C$3, IND!$Y$10:$Y$3859, 0), 1), 0))/100, 0)) -> 0.045 | N54: 0.75 | O54: 37 | P54: Decimal | Q54: 0.2 | R54: 0.2 | S54: 0.2
B55: =B54 -> GHG Management Activities | C55: =C54 -> 0.15 | D55: =D54 -> NDC | E55: =E54 -> 0.4 | F55: 4.02 | G55: NDC target coverage | H55: Both | I55: 0.1 | J55: 0.006 | K55: =IFERROR(INDEX(IND!$P$10:$P$3859, MATCH($F55&" > "&$C$3, IND!$Y$10:$Y$3859, 0), 1)*IF(P55="Percentage (Calculated)", 100, 1), 0) -> 1 | L55: % | M55: =IF(J55="", "", IFERROR(J55*dbl_ScoreMax*MAX(0, IFERROR(INDEX(IND!$S$10:$S$3859, MATCH($F55&" > "&$C$3, IND!$Y$10:$Y$3859, 0), 1), 0))/100, 0)) -> 0.03 | N55: 1 | O55: 38 | P55: Decimal | Q55: 0.1 | R55: 0.1 | S55: 0.1
B56: GHG Management Activities | C56: 0.15 | D56: =D55 -> NDC | E56: 0.4 | F56: 4.03 | G56: Long term strategy | H56: Both | I56: 0.2 | J56: 0.012 | K56: =IFERROR(INDEX(IND!$P$10:$P$3859, MATCH($F56&" > "&$C$3, IND!$Y$10:$Y$3859, 0), 1)*IF(P56="Percentage (Calculated)", 100, 1), 0) -> 0 | L56: Policy | M56: =IF(J56="", "", IFERROR(J56*dbl_ScoreMax*MAX(0, IFERROR(INDEX(IND!$S$10:$S$3859, MATCH($F56&" > "&$C$3, IND!$Y$10:$Y$3859, 0), 1), 0))/100, 0)) -> 0 | O56: 39 | P56: Decimal | Q56: 0.2 | R56: 0.2 | S56: 0.2
B57: GHG Management Activities | C57: 0.15 | D57: NDC | E57: 0.4 | F57: 4.04 | G57: Ambition of NDC (intensity) | H57: Both | I57: 0.25 | J57: =IF(I57="", "", C57*E57*I57) -> 0.015 | K57: =IFERROR(INDEX(IND!$P$10:$P$3859, MATCH($F57&" > "&$C$3, IND!$Y$10:$Y$3859, 0), 1)*IF(P57="Percentage (Calculated)", 100, 1), 0) -> 0.2 | L57: Questions | M57: =IF(J57="", "", IFERROR(J57*dbl_ScoreMax*MAX(0, IFERROR(INDEX(IND!$S$10:$S$3859, MATCH($F57&" > "&$C$3, IND!$Y$10:$Y$3859, 0), 1), 0))/100, 0)) -> 0.015 | N57: 0.2 | O57: 40 | P57: Decimal | Q57: 0.25 | R57: 0.25 | S57: 0.25
B58: GHG Management Activities | C58: 0.15 | D58: NDC | E58: 0.4 | F58: 4.05 | G58: Ambition of NDC (absolute emissions) | H58: Both | I58: 0.25 | J58: =IF(I58="", "", C58*E58*I58) -> 0.015 | K58: =IFERROR(INDEX(IND!$P$10:$P$3859, MATCH($F58&" > "&$C$3, IND!$Y$10:$Y$3859, 0), 1)*IF(P58="Percentage (Calculated)", 100, 1), 0) -> 0.6 | L58: Questions | M58: =IF(J58="", "", IFERROR(J58*dbl_ScoreMax*MAX(0, IFERROR(INDEX(IND!$S$10:$S$3859, MATCH($F58&" > "&$C$3, IND!$Y$10:$Y$3859, 0), 1), 0))/100, 0)) -> 0.045 | N58: 0.6 | O58: 41 | P58: Decimal | Q58: 0.25 | R58: 0.25 | S58: 0.25
B59: GHG Management Activities | C59: 0.15 | D59: Domestic policy | E59: 0.3 | F59: 4.06 | G59: Climate change policy | H59: Both | I59: 0.25 | J59: =IF(I59="", "", C59*E59*I59) -> 0.01125 | K59: =IFERROR(INDEX(IND!$P$10:$P$3859, MATCH($F59&" > "&$C$3, IND!$Y$10:$Y$3859, 0), 1)*IF(P59="Percentage (Calculated)", 100, 1), 0) -> 0 | L59: Policy | M59: =IF(J59="", "", IFERROR(J59*dbl_ScoreMax*MAX(0, IFERROR(INDEX(IND!$S$10:$S$3859, MATCH($F59&" > "&$C$3, IND!$Y$10:$Y$3859, 0), 1), 0))/100, 0)) -> 0 | O59: 42 | P59: Decimal | Q59: 0.25 | R59: 0.25 | S59: 0.25
B60: GHG Management Activities | C60: 0.15 | D60: =D59 -> Domestic policy | E60: 0.3 | F60: 4.07 | G60: Scope of domestic policy | H60: Both | I60: 0.25 | J60: 0.01125 | K60: =IFERROR(INDEX(IND!$P$10:$P$3859, MATCH($F60&" > "&$C$3, IND!$Y$10:$Y$3859, 0), 1)*IF(P60="Percentage (Calculated)", 100, 1), 0) -> 0 | L60: % | M60: =IF(J60="", "", IFERROR(J60*dbl_ScoreMax*MAX(0, IFERROR(INDEX(IND!$S$10:$S$3859, MATCH($F60&" > "&$C$3, IND!$Y$10:$Y$3859, 0), 1), 0))/100, 0)) -> 0 | O60: 43 | P60: Decimal | Q60: 0.25 | R60: 0.25 | S60: 0.25
B61: GHG Management Activities | C61: 0.15 | D61: Domestic policy | E61: 0.3 | F61: 4.08 | G61: Climate change regulations | H61: Both | I61: 0.2 | J61: 0.009 | K61: =IFERROR(INDEX(IND!$P$10:$P$3859, MATCH($F61&" > "&$C$3, IND!$Y$10:$Y$3859, 0), 1)*IF(P61="Percentage (Calculated)", 100, 1), 0) -> 0 | L61: Questions | M61: =IF(J61="", "", IFERROR(J61*dbl_ScoreMax*MAX(0, IFERROR(INDEX(IND!$S$10:$S$3859, MATCH($F61&" > "&$C$3, IND!$Y$10:$Y$3859, 0), 1), 0))/100, 0)) -> 0 | O61: 44 | P61: Decimal | Q61: 0.2 | R61: 0.2 | S61: 0.2
B62: GHG Management Activities | C62: 0.15 | D62: Domestic policy | E62: 0.3 | F62: 4.09 | G62: Climate change incentives | H62: Both | I62: 0.2 | J62: 0.009 | K62: =IFERROR(INDEX(IND!$P$10:$P$3859, MATCH($F62&" > "&$C$3, IND!$Y$10:$Y$3859, 0), 1)*IF(P62="Percentage (Calculated)", 100, 1), 0) -> 0 | L62: Questions | M62: =IF(J62="", "", IFERROR(J62*dbl_ScoreMax*MAX(0, IFERROR(INDEX(IND!$S$10:$S$3859, MATCH($F62&" > "&$C$3, IND!$Y$10:$Y$3859, 0), 1), 0))/100, 0)) -> 0 | O62: 45 | P62: Decimal | Q62: 0.2 | R62: 0.2 | S62: 0.2
B63: GHG Management Activities | C63: 0.15 | D63: Domestic policy | E63: 0.3 | F63: 4.1 | G63: Climate change prioritisation | H63: Both | I63: 0.1 | J63: 0.0045 | K63: =IFERROR(INDEX(IND!$P$10:$P$3859, MATCH($F63&" > "&$C$3, IND!$Y$10:$Y$3859, 0), 1)*IF(P63="Percentage (Calculated)", 100, 1), 0) -> 0.5 | L63: Questions | M63: =IF(J63="", "", IFERROR(J63*dbl_ScoreMax*MAX(0, IFERROR(INDEX(IND!$S$10:$S$3859, MATCH($F63&" > "&$C$3, IND!$Y$10:$Y$3859, 0), 1), 0))/100, 0)) -> 0.0028125 | N63: 0.125 | O63: 46 | P63: Decimal | Q63: 0.1 | R63: 0.1 | S63: 0.1
B64: GHG Management Activities | C64: =C63 -> 0.15 | D64: Corporate Awareness | E64: 0.3 | F64: 4.11 | G64: Voluntary GHG reporting by corporates | H64: Both | I64: 0.25 | J64: 0.01125 | K64: =IFERROR(INDEX(IND!$P$10:$P$3859, MATCH($F64&" > "&$C$3, IND!$Y$10:$Y$3859, 0), 1)*IF(P64="Percentage (Calculated)", 100, 1), 0) -> 0.008010680908 | L64: Companies | M64: =IF(J64="", "", IFERROR(J64*dbl_ScoreMax*MAX(0, IFERROR(INDEX(IND!$S$10:$S$3859, MATCH($F64&" > "&$C$3, IND!$Y$10:$Y$3859, 0), 1), 0))/100, 0)) -> 0.0004506008011 | N64: 0.008010680908 | O64: 47 | P64: Decimal | Q64: 0.25 | R64: 0.25 | S64: 0.25
B65: GHG Management Activities | C65: =C64 -> 0.15 | D65: =D64 -> Corporate Awareness | E65: 0.3 | F65: 4.12 | G65: Investor pressure – PRI signatories | H65: Both | I65: 0.25 | J65: 0.01125 | K65: =IFERROR(INDEX(IND!$P$10:$P$3859, MATCH($F65&" > "&$C$3, IND!$Y$10:$Y$3859, 0), 1)*IF(P65="Percentage (Calculated)", 100, 1), 0) -> 0.0708123652 | L65: Companies | M65: =IF(J65="", "", IFERROR(J65*dbl_ScoreMax*MAX(0, IFERROR(INDEX(IND!$S$10:$S$3859, MATCH($F65&" > "&$C$3, IND!$Y$10:$Y$3859, 0), 1), 0))/100, 0)) -> 0.003983195543 | N65: 0.0708123652 | O65: 48 | P65: Decimal | Q65: 0.25 | R65: 0.25 | S65: 0.25
B66: GHG Management Activities | C66: =C65 -> 0.15 | D66: Corporate Awareness | E66: 0.3 | F66: 4.13 | G66: Corporate energy efficiency initiatives | H66: Both | I66: 0.25 | J66: 0.01125 | K66: =IFERROR(INDEX(IND!$P$10:$P$3859, MATCH($F66&" > "&$C$3, IND!$Y$10:$Y$3859, 0), 1)*IF(P66="Percentage (Calculated)", 100, 1), 0) -> 0.141984184 | L66: Companies | M66: =IF(J66="", "", IFERROR(J66*dbl_ScoreMax*MAX(0, IFERROR(INDEX(IND!$S$10:$S$3859, MATCH($F66&" > "&$C$3, IND!$Y$10:$Y$3859, 0), 1), 0))/100, 0)) -> 0.007986610352 | N66: 0.141984184 | O66: 49 | P66: Decimal | Q66: 0.25 | R66: 0.25 | S66: 0.25
B67: GHG Management Activities | C67: =C66 -> 0.15 | D67: Corporate Awareness | E67: 0.3 | F67: 4.14 | G67: Corporate emission reduction policies | H67: Both | I67: 0.25 | J67: 0.01125 | K67: =IFERROR(INDEX(IND!$P$10:$P$3859, MATCH($F67&" > "&$C$3, IND!$Y$10:$Y$3859, 0), 1)*IF(P67="Percentage (Calculated)", 100, 1), 0) -> 0.141984184 | L67: Companies | M67: =IF(J67="", "", IFERROR(J67*dbl_ScoreMax*MAX(0, IFERROR(INDEX(IND!$S$10:$S$3859, MATCH($F67&" > "&$C$3, IND!$Y$10:$Y$3859, 0), 1), 0))/100, 0)) -> 0.007986610352 | N67: 0.141984184 | O67: 50 | P67: Decimal | Q67: 0.25 | R67: 0.25 | S67: 0.25
B69: Further Indicator Details | E69: MAX*
A70: 1.01 | B70: 1.01 - Clean energy policies | D70: =COUNTIF(D71:D78, "Yes") -> 7 | E70: =COUNTA($E$71:$E$78) -> 8
A71: =A70 -> 1.01 | B71: Energy target | D71: =IF(F71=1, "Yes", "No") -> Yes | E71: Yes | F71: =IF(E71="", "", IFERROR(INDEX(SID!X$5:X$14942, MATCH(A71&" > "&B71&" > "&str_Country, SID!$Z$5:$Z$14942, 0), 1), "")) -> 1
A72: =A71 -> 1.01 | B72: Auctions | D72: =IF(F72=1, "Yes", "No") -> Yes | E72: Yes | F72: =IF(E72="", "", IFERROR(INDEX(SID!X$5:X$14942, MATCH(A72&" > "&B72&" > "&str_Country, SID!$Z$5:$Z$14942, 0), 1), "")) -> 1
A73: 1.01 | B73: Feed-in tariff | D73: Yes | E73: Yes | F73: =IF(E73="", "", IFERROR(INDEX(SID!X$5:X$14942, MATCH(A73&" > "&B73&" > "&str_Country, SID!$Z$5:$Z$14942, 0), 1), "")) -> 1
A74: 1.01 | B74: Net metering | D74: No | E74: Yes | F74: =IF(E74="", "", IFERROR(INDEX(SID!X$5:X$14942, MATCH(A74&" > "&B74&" > "&str_Country, SID!$Z$5:$Z$14942, 0), 1), "")) -> 0
A75: 1.01 | B75: Utility regulation | D75: Yes | E75: Yes | F75: =IF(E75="", "", IFERROR(INDEX(SID!X$5:X$14942, MATCH(A75&" > "&B75&" > "&str_Country, SID!$Z$5:$Z$14942, 0), 1), "")) -> 1
A76: 1.01 | B76: Debt/Equity incentives | D76: Yes | E76: Yes | F76: =IF(E76="", "", IFERROR(INDEX(SID!X$5:X$14942, MATCH(A76&" > "&B76&" > "&str_Country, SID!$Z$5:$Z$14942, 0), 1), "")) -> 1
A77: 1.01 | B77: Tax incentives | D77: Yes | E77: Yes | F77: =IF(E77="", "", IFERROR(INDEX(SID!X$5:X$14942, MATCH(A77&" > "&B77&" > "&str_Country, SID!$Z$5:$Z$14942, 0), 1), "")) -> 1
A78: 1.01 | B78: Biofuel blending mandate | D78: Yes | E78: Yes | F78: =IF(E78="", "", IFERROR(INDEX(SID!X$5:X$14942, MATCH(A78&" > "&B78&" > "&str_Country, SID!$Z$5:$Z$14942, 0), 1), "")) -> 1
A79: 1.02 | B79: 1.02 - Power sector structure | D79: =$K$19 -> 9.024089912 | E79: =IND!$R$103 -> 16 | F79: =IF(E79="", "", IFERROR(INDEX(SID!X$5:X$14942, MATCH(A79&" > "&B79&" > "&str_Country, SID!$Z$5:$Z$14942, 0), 1), "")) -> 
A80: =A79 -> 1.02 | B80: Utility privatisation | D80: =IF(F80=1, "Yes", IF(AND(F80>0, F80<1), "Somewhat", "No")) -> Yes | E80: Yes | F80: =IF(E80="", "", IFERROR(INDEX(SID!X$5:X$14942, MATCH(A80&" > "&B80&" > "&str_Country, SID!$Z$5:$Z$14942, 0), 1), "")) -> 1
A81: 1.02 | B81: Utility unbundling | D81: =IF(F81=0, "No", IF(AND(F81>0, F81<1), "Somewhat", "Yes")) -> Somewhat | E81: Yes | F81: =IF(E81="", "", IFERROR(INDEX(SID!X$5:X$14942, MATCH(A81&" > "&B81&" > "&str_Country, SID!$Z$5:$Z$14942, 0), 1), "")) -> 0.5
A82: 1.02 | B82: Independent power transmission | D82: =IF(F82=0, "No", IF(AND(F82>0, F82<1), "Somewhat", "Yes")) -> No | E82: Yes | F82: =IF(E82="", "", IFERROR(INDEX(SID!X$5:X$14942, MATCH(A82&" > "&B82&" > "&str_Country, SID!$Z$5:$Z$14942, 0), 1), "")) -> 0
A83: 1.02 | B83: Price distortions | D83: =IF(F83=0, "Yes", IF(AND(F83>0, F83<1), "Somewhat", "No")) -> Somewhat | E83: No | F83: =IF(E83="", "", IFERROR(INDEX(SID!X$5:X$14942, MATCH(A83&" > "&B83&" > "&str_Country, SID!$Z$5:$Z$14942, 0), 1), "")) -> 0.25
A84: 1.02 | B84: Power outages - frequency | D84: =IF(F84<=0.13, "Very High", IF(AND(F84>0.13, F84<=0.25), "High", IF(AND(F84>0.25, F84<=0.38), "Regular", IF(AND(F84>0.38, F84<=0.5), "Low", "Very Low")))) -> High | E84: Very Low | F84: =IF(E84="", "", IFERROR(INDEX(SID!X$5:X$14942, MATCH(A84&" > "&B84&" > "&str_Country, SID!$Z$5:$Z$14942, 0), 1), "")) -> 0.2180851064
A85: 1.02 | B85: Power outages - duration | D85: =IF(F85<=0.13, "Very Long", IF(AND(F85>0.13, F85<=0.25), "Long", IF(AND(F85>0.25, F85<=0.38), "Regular", IF(AND(F85>0.38, F85<=0.5), "Short", "Very Short")))) -> Regular | E85: Very Short | F85: =IF(E85="", "", IFERROR(INDEX(SID!X$5:X$14942, MATCH(A85&" > "&B85&" > "&str_Country, SID!$Z$5:$Z$14942, 0), 1), "")) -> 0.303030303
A86: 1.02 | B86: Barriers to private sector participation | D86: =IF(F86=1, "None", IF(AND(F86>0, F86<1), "Somewhat", "High")) -> None | E86: No | F86: =IF(E86="", "", IFERROR(INDEX(SID!X$5:X$14942, MATCH(A86&" > "&B86&" > "&str_Country, SID!$Z$5:$Z$14942, 0), 1), "")) -> 1
A87: 1.02 | B87: Retail market liberalisation | D87: =IF(F87=0, "No", IF(AND(F87>0, F87<1), "Somewhat", "Yes")) -> No | E87: Yes | F87: =IF(E87="", "", IFERROR(INDEX(SID!X$5:X$14942, MATCH(A87&" > "&B87&" > "&str_Country, SID!$Z$5:$Z$14942, 0), 1), "")) -> 0
A88: 1.02 | B88: Wholesale power market | D88: =IF(F88=0, "No", IF(AND(F88>0, F88<1), "Somewhat", "Yes")) -> No | E88: Yes | F88: =IF(E88="", "", IFERROR(INDEX(SID!X$5:X$14942, MATCH(A88&" > "&B88&" > "&str_Country, SID!$Z$5:$Z$14942, 0), 1), "")) -> 0
A89: 1.02 | B89: Concentration of generation market | D89: =IF(F89=0, "High", IF(AND(F89>0, F89<1), "Somewhat", "No")) -> Somewhat | E89: No | F89: =IF(E89="", "", IFERROR(INDEX(SID!X$5:X$14942, MATCH(A89&" > "&B89&" > "&str_Country, SID!$Z$5:$Z$14942, 0), 1), "")) -> 0.5
A90: 1.02 | B90: Concentration of supply market | D90: =IF(F90=0, "High", IF(AND(F90>0, F90<0.5), "Somewhat", "No")) -> High | E90: No | F90: =IF(E90="", "", IFERROR(INDEX(SID!X$5:X$14942, MATCH(A90&" > "&B90&" > "&str_Country, SID!$Z$5:$Z$14942, 0), 1), "")) -> 0
A91: 1.02 | B91: Curtailment Risk | D91: =IF(F91=0, "Very High", IF(F91=0.25, "Low", IF(F91=0.5, "Neutral", IF(F91=1*1, "Low Risk", "Very Low")))) -> Low Risk | E91: Very Low | F91: =IF(E91="", "", IFERROR(INDEX(SID!X$5:X$14942, MATCH(A91&" > "&B91&" > "&str_Country, SID!$Z$5:$Z$14942, 0), 1), "")) -> 1
A92: 1.02 | B92: Openess to IPPs | D92: =SUMIFS(SID!X$5:X$3800, SID!$Z$5:$Z$3800, A92&" > "&B92&" > "&str_Country) -> 1 | E92: 1 | F92: =IF(E92="", "", IFERROR(INDEX(SID!X$5:X$14942, MATCH(A92&" > "&B92&" > "&str_Country, SID!$Z$5:$Z$14942, 0), 1), "")) -> 1
A93: 1.02 | B93: Offtaker risk | D93: =IF(F93=0, "Very High", IF(F93=0.25, "Low", IF(F93=0.5, "Neutral", IF(F93=1, "Low Risk", "Very Low")))) -> Low Risk | E93: Very Low | F93: =IF(E93="", "", IFERROR(INDEX(SID!X$5:X$14942, MATCH(A93&" > "&B93&" > "&str_Country, SID!$Z$5:$Z$14942, 0), 1), "")) -> 1
A94: 1.02 | B94: Currency Variation | D94: =IF(F94=0, "No Data", IF(F94<0.1, "Low", IF(AND(F94>0.1, F94<0.4), "Medium", "High"))) -> Medium | E94: Low | F94: =IF(E94="", "", IFERROR(INDEX(SID!X$5:X$14942, MATCH(A94&" > "&B94&" > "&str_Country, SID!$Z$5:$Z$14942, 0), 1), "")) -> 0.2529745025
A95: =A93 -> 1.02 | B95: Availability of finance | D95: =IF(F95=0, "Low", IF(AND(F95>0.5, F95<1), "Medium", "High")) -> High | E95: High | F95: =IF(E95="", "", IFERROR(INDEX(SID!X$5:X$14942, MATCH(A95&" > "&B95&" > "&str_Country, SID!$Z$5:$Z$14942, 0), 1), "")) -> 2
A96: 1.03 | B96: 1.03 - Distributed energy framework | D96: =IF($S$16="Off-grid",$K$20,"Off-grid only") -> 12.5 | E96: =IF($S$16="Off-grid",IND!$R$196,"None") -> 15.5 | F96: =IF(E96="", "", IFERROR(INDEX(SID!X$5:X$14942, MATCH(A96&" > "&B96&" > "&str_Country, SID!$Z$5:$Z$14942, 0), 1), "")) -> 
A97: =A96 -> 1.03 | B97: Mini-grids: licensing | D97: =IF($S$16="Off-grid",IF(F97=0,"No",IF(AND(F97>0,F97<1*1),"Somewhat","Yes")),"") -> Yes | E97: =IF($S$16="Off-grid","Yes","None") -> Yes | F97: =IF(E97="", "", IFERROR(INDEX(SID!X$5:X$14942, MATCH(A97&" > "&B97&" > "&str_Country, SID!$Z$5:$Z$14942, 0), 1), "")) -> 1
A98: 1.03 | B98: Mini-grids: concessions | D98: =IF($S$16="Off-grid",IF(F98=0,"No",IF(AND(F98>0,F98<1*1),"Somewhat","Yes")),"") -> Yes | E98: =IF($S$16="Off-grid","Yes","None") -> Yes | F98: =IF(E98="", "", IFERROR(INDEX(SID!X$5:X$14942, MATCH(A98&" > "&B98&" > "&str_Country, SID!$Z$5:$Z$14942, 0), 1), "")) -> 1
A99: 1.03 | B99: Mini-grids: threshold | D99: =IF($S$16="Off-grid",IF(F99=0,"Yes",IF(AND(F99>0,F99<=0.25),"Somewhat","No")),"") -> Yes | E99: =IF($S$16="Off-grid","No","None") -> No | F99: =IF(E99="", "", IFERROR(INDEX(SID!X$5:X$14942, MATCH(A99&" > "&B99&" > "&str_Country, SID!$Z$5:$Z$14942, 0), 1), "")) -> 0
A100: 1.03 | B100: Dedicated regulator | D100: =IF($S$16="Off-grid",IF(F100=0,"No",IF(AND(F100>0,F100<=0.25),"Somewhat","Yes")),"") -> Yes | E100: =IF($S$16="Off-grid"&"","Yes","None") -> Yes | F100: =IF(E100="", "", IFERROR(INDEX(SID!X$5:X$14942, MATCH(A100&" > "&B100&" > "&str_Country, SID!$Z$5:$Z$14942, 0), 1), "")) -> 0.5
A101: 1.03 | B101: Dedicated team within utility | D101: =IF($S$16="Off-grid",IF(F101=0,"No",IF(AND(F101>0,F101<=0.25),"Somewhat","Yes")),"") -> Yes | E101: =IF($S$16="Off-grid","Yes","None") -> Yes | F101: =IF(E101="", "", IFERROR(INDEX(SID!X$5:X$14942, MATCH(A101&" > "&B101&" > "&str_Country, SID!$Z$5:$Z$14942, 0), 1), "")) -> 0.5
A102: 1.03 | B102: Light-handed regulatory framework | D102: =IF($S$16="Off-grid",IF(F102=0,"No",IF(AND(F102>0,F102<1),"Somewhat","Yes")),"") -> Yes | E102: Yes | F102: =IF(E102="", "", IFERROR(INDEX(SID!X$5:X$14942, MATCH(A102&" > "&B102&" > "&str_Country, SID!$Z$5:$Z$14942, 0), 1), "")) -> 1
A103: 1.03 | B103: Cost reflective tariffs | D103: Yes | E103: Yes | F103: =IF(E103="", "", IFERROR(INDEX(SID!X$5:X$14942, MATCH(A103&" > "&B103&" > "&str_Country, SID!$Z$5:$Z$14942, 0), 1), "")) -> 1
A104: 1.03 | B104: Duration of tariffs | D104: Yes | E104: Yes | F104: =IF(E104="", "", IFERROR(INDEX(SID!X$5:X$14942, MATCH(A104&" > "&B104&" > "&str_Country, SID!$Z$5:$Z$14942, 0), 1), "")) -> 1
A105: 1.03 | B105: Tariff deregulation | D105: Somewhat | E105: Yes | F105: =IF(E105="", "", IFERROR(INDEX(SID!X$5:X$14942, MATCH(A105&" > "&B105&" > "&str_Country, SID!$Z$5:$Z$14942, 0), 1), "")) -> 0.5
A106: 1.03 | B106: Standardised PPAs | D106: No | E106: Yes | F106: =IF(E106="", "", IFERROR(INDEX(SID!X$5:X$14942, MATCH(A106&" > "&B106&" > "&str_Country, SID!$Z$5:$Z$14942, 0), 1), "")) -> 0
A107: 1.03 | B107: PPAs of sufficient duration | D107: Yes | E107: Yes | F107: =IF(E107="", "", IFERROR(INDEX(SID!X$5:X$14942, MATCH(A107&" > "&B107&" > "&str_Country, SID!$Z$5:$Z$14942, 0), 1), "")) -> 1
A108: 1.03 | B108: Purchase obligation | D108: Somewhat | E108: Yes | F108: =IF(E108="", "", IFERROR(INDEX(SID!X$5:X$14942, MATCH(A108&" > "&B108&" > "&str_Country, SID!$Z$5:$Z$14942, 0), 1), "")) -> 0.5
A109: 1.03 | B109: Clear rules on interconnection | D109: Yes | E109: Yes | F109: =IF(E109="", "", IFERROR(INDEX(SID!X$5:X$14942, MATCH(A109&" > "&B109&" > "&str_Country, SID!$Z$5:$Z$14942, 0), 1), "")) -> 1
A110: 1.03 | B110: Clear rules on arrival of the main grid | D110: Yes | E110: Yes | F110: =IF(E110="", "", IFERROR(INDEX(SID!X$5:X$14942, MATCH(A110&" > "&B110&" > "&str_Country, SID!$Z$5:$Z$14942, 0), 1), "")) -> 1
A111: 1.03 | B111: Transparent grid extension plan | D111: Somewhat | E111: Yes | F111: =IF(E111="", "", IFERROR(INDEX(SID!X$5:X$14942, MATCH(A111&" > "&B111&" > "&str_Country, SID!$Z$5:$Z$14942, 0), 1), "")) -> 0.5
A112: 1.03 | B112: Quality of service standards | D112: Yes | E112: Yes | F112: =IF(E112="", "", IFERROR(INDEX(SID!X$5:X$14942, MATCH(A112&" > "&B112&" > "&str_Country, SID!$Z$5:$Z$14942, 0), 1), "")) -> 1
A113: 1.03 | B113: SPPs can deliver financial services | D113: Yes | E113: =IF($S$16="Off-grid"&"","Yes","None") -> Yes | F113: =IF(E113="", "", IFERROR(INDEX(SID!X$5:X$14942, MATCH(A113&" > "&B113&" > "&str_Country, SID!$Z$5:$Z$14942, 0), 1), "")) -> 1
A114: 1.05 | B114: 1.05 - Energy access policies | D114: =IF($S$16="Off-grid",$K$22,"Off-grid only") -> 8.733162908 | E114: =IF($S$16="Off-grid",IND!$R$292,"None") -> 1 | F114: =IF(E114="", "", IFERROR(INDEX(SID!X$5:X$14942, MATCH(A114&" > "&B114&" > "&str_Country, SID!$Z$5:$Z$14942, 0), 1), "")) -> 
A115: =A114 -> 1.05 | B115: Rural electrification program | D115: =IF($S$16="Off-grid",IF(F115=0,"No",IF(AND(F115>0,F115<1*1),"Somewhat","Yes")),"") -> Yes | E115: =IF($S$16="Off-grid","Yes","None") -> Yes | F115: =IF(E115="", "", IFERROR(INDEX(SID!X$5:X$14942, MATCH(A115&" > "&B115&" > "&str_Country, SID!$Z$5:$Z$14942, 0), 1), "")) -> 1
A116: 1.05 | B116: Rural electrification agency | D116: =IF($S$16="Off-grid",IF(F116=0,"No",IF(AND(F116>0,F116<1*1),"Somewhat","Yes")),"") -> Yes | E116: =IF($S$16="Off-grid","Yes","None") -> Yes | F116: =IF(E116="", "", IFERROR(INDEX(SID!X$5:X$14942, MATCH(A116&" > "&B116&" > "&str_Country, SID!$Z$5:$Z$14942, 0), 1), "")) -> 1
A117: 1.05 | B117: Rural electrification budget | D117: =IF($S$16="Off-grid",IF(F117<0.01, "Low", IF(AND(F117>=0.01, F117<0.04), "Average", "High")),"") -> Low | E117: =IF($S$16="Off-grid","High","None") -> High | F117: =IF(E117="", "", IFERROR(INDEX(SID!X$5:X$14942, MATCH(A117&" > "&B117&" > "&str_Country, SID!$Z$5:$Z$14942, 0), 1), "")) -> 0.001101202344
A118: 1.05 | B118: Energy access targets (general) | D118: =IF($S$16="Off-grid",IF(F118=0,"No",IF(AND(F118>0,F118<1),"Somewhat","Yes")),"") -> Yes | E118: =IF($S$16="Off-grid"&"","Yes","None") -> Yes | F118: =IF(E118="", "", IFERROR(INDEX(SID!X$5:X$14942, MATCH(A118&" > "&B118&" > "&str_Country, SID!$Z$5:$Z$14942, 0), 1), "")) -> 1
A119: 1.05 | B119: Offgrid energy access target | D119: =IF($S$16="Off-grid",IF(F119=0,"No",IF(AND(F119>0,F119<1),"Somewhat","Yes")),"") -> Yes | E119: =IF($S$16="Off-grid","Yes","None") -> Yes | F119: =IF(E119="", "", IFERROR(INDEX(SID!X$5:X$14942, MATCH(A119&" > "&B119&" > "&str_Country, SID!$Z$5:$Z$14942, 0), 1), "")) -> 1
A120: 1.05 | B120: Offgrid financing facilities | D120: =IF($S$16="Off-grid",IF(F120=0,"No",IF(AND(F120>0,F120<1*1),"Somewhat","Yes")),"") -> Yes | E120: =IF($S$16="Off-grid","Yes","None") -> Yes | F120: =IF(E120="", "", IFERROR(INDEX(SID!X$5:X$14942, MATCH(A120&" > "&B120&" > "&str_Country, SID!$Z$5:$Z$14942, 0), 1), "")) -> 1
A121: 1.05 | B121: New connection cost | D121: =IF($S$16="Off-grid",IF(F121<0.03, "Low", IF(AND(F121>=0.03, F121<0.3), "Average", "High")),"") -> Average | E121: Low | F121: =IF(E121="", "", IFERROR(INDEX(SID!X$5:X$14942, MATCH(A121&" > "&B121&" > "&str_Country, SID!$Z$5:$Z$14942, 0), 1), "")) -> 0.1681075889
A122: 1.05 | B122: Connection grants | D122: =IF($S$16="Off-grid",IF(F122=0,"No",IF(AND(F122>0,F122<=0.25),"Somewhat","Yes")),"") -> No | E122: =IF($S$16="Off-grid","Yes","None") -> Yes | F122: =IF(E122="", "", IFERROR(INDEX(SID!X$5:X$14942, MATCH(A122&" > "&B122&" > "&str_Country, SID!$Z$5:$Z$14942, 0), 1), "")) -> 0
A123: 1.05 | B123: Other off-grid incentives | D123: =IF($S$16="Off-grid",IF(F123=0,"No",IF(AND(F123>0,F123<=0.25),"Somewhat","Yes")),"") -> No | E123: =IF($S$16="Off-grid","Yes","None") -> Yes | F123: =IF(E123="", "", IFERROR(INDEX(SID!X$5:X$14942, MATCH(A123&" > "&B123&" > "&str_Country, SID!$Z$5:$Z$14942, 0), 1), "")) -> 0
A124: 1.05 | B124: Tax / duty reductions | D124: =IF($S$16="Off-grid",IF(F124=0,"No",IF(AND(F124>0,F124<1),"Somewhat","Yes")),"") -> Somewhat | E124: =IF($S$16="Off-grid","Yes","None") -> Yes | F124: =IF(E124="", "", IFERROR(INDEX(SID!X$5:X$14942, MATCH(A124&" > "&B124&" > "&str_Country, SID!$Z$5:$Z$14942, 0), 1), "")) -> 0.5
A125: 1.05 | B125: Off-grid market building | D125: =IF($S$16="Off-grid",IF(F125=0,"No",IF(AND(F125>0,F125<1*1),"Somewhat","Yes")),"") -> Yes | E125: =IF($S$16="Off-grid","Yes","None") -> Yes | F125: =IF(E125="", "", IFERROR(INDEX(SID!X$5:X$14942, MATCH(A125&" > "&B125&" > "&str_Country, SID!$Z$5:$Z$14942, 0), 1), "")) -> 1
A126: 1.05 | B126: Mobile money penetration | D126: =IF($S$16="Off-grid",IF(F126<0.2, "Low", IF(AND(F126<=0.5, F126<1), "Medium", "High")),"") -> Low | E126: High | F126: =IF(E126="", "", IFERROR(INDEX(SID!X$5:X$14942, MATCH(A126&" > "&B126&" > "&str_Country, SID!$Z$5:$Z$14942, 0), 1), "")) -> 0.06395411671
A127: 1.05 | B127: PAYG availability | D127: =IF($S$16="Off-grid",IF(F127=0,"No",IF(AND(F127>0,F127<1),"Somewhat","Yes")),"") -> Yes | E127: =IF($S$16="Off-grid","Yes","None") -> Yes | F127: =IF(E127="", "", IFERROR(INDEX(SID!X$5:X$14942, MATCH(A127&" > "&B127&" > "&str_Country, SID!$Z$5:$Z$14942, 0), 1), "")) -> 1
A128: 1.05 | B128: Pico-solar quality standards | D128: =IF($S$16="Off-grid",IF(F128=0,"No",IF(AND(F128>=0.25,F128<=0.5),"Somewhat","Yes")),"") -> Yes | E128: =IF($S$16="Off-grid","Yes","None") -> Yes | F128: =IF(E128="", "", IFERROR(INDEX(SID!X$5:X$14942, MATCH(A128&" > "&B128&" > "&str_Country, SID!$Z$5:$Z$14942, 0), 1), "")) -> 1
A129: 1.06 | B129: 1.06 - Barriers | D129: =$K$23 -> 3.624235006 | E129: =IF($S$16="Off-grid",IND!$R$356,1) -> 13 | F129: =IF(E129="", "", IFERROR(INDEX(SID!X$5:X$14942, MATCH(A129&" > "&B129&" > "&str_Country, SID!$Z$5:$Z$14942, 0), 1), "")) -> 
A130: =A129 -> 1.06 | B130: Kerosene and diesel subsidies | D130: =IF($S$16="Off-grid",IF(F130=0,"Yes",IF(AND(F130=0.25,F130=5),"Somewhat","No")),"") -> Yes | E130: No | F130: =IF(E130="", "", IFERROR(INDEX(SID!X$5:X$14942, MATCH(A130&" > "&B130&" > "&str_Country, SID!$Z$5:$Z$14942, 0), 1), "")) -> 0
A131: =A130 -> 1.06 | B131: Off-grid solar VAT rate | D131: =IF($S$16="Off-grid",IF(F131<0.2,"High",IF(AND(F131<0.3,F131<0.5),"Medium","Low")),"") -> Low | E131: Low | F131: =IF(E131="", "", IFERROR(INDEX(SID!X$5:X$14942, MATCH(A131&" > "&B131&" > "&str_Country, SID!$Z$5:$Z$14942, 0), 1), "")) -> 0.3684210526
A132: 1.06 | B132: VAT reductions | D132: =IF($S$16="Off-grid",IF(F132=0,"No",IF(F132<=0.5,"Somewhat","Yes")),"") -> Somewhat | E132: Yes | F132: =IF(E132="", "", IFERROR(INDEX(SID!X$5:X$14942, MATCH(A132&" > "&B132&" > "&str_Country, SID!$Z$5:$Z$14942, 0), 1), "")) -> 0.5
A133: 1.06 | B133: Import duty reductions | D133: =IF($S$16="Off-grid",IF(F133=0,"No",IF(F133<=0.5,"Somewhat","Yes")),"") -> Somewhat | E133: Yes | F133: =IF(E133="", "", IFERROR(INDEX(SID!X$5:X$14942, MATCH(A133&" > "&B133&" > "&str_Country, SID!$Z$5:$Z$14942, 0), 1), "")) -> 0.5
A134: 1.06 | B134: Other import barriers | D134: =IF($S$16="Off-grid",IF(F134=0,"Yes",IF(AND(F134>0,F134<1),"Somewhat","No")),"") -> Somewhat | E134: No | F134: =IF(E134="", "", IFERROR(INDEX(SID!X$5:X$14942, MATCH(A134&" > "&B134&" > "&str_Country, SID!$Z$5:$Z$14942, 0), 1), "")) -> 0.5
A135: 1.06 | B135: Other retail barriers | D135: =IF($S$16="Off-grid",IF(F135=0,"Yes",IF(AND(F135>0,F135<1),"Somewhat","No")),"") -> No | E135: No | F135: =IF(E135="", "", IFERROR(INDEX(SID!X$5:X$14942, MATCH(A135&" > "&B135&" > "&str_Country, SID!$Z$5:$Z$14942, 0), 1), "")) -> 1
A136: 1.06 | B136: Import duties | D136: =IF(F136=0, "High", IF(AND(F136>0, F136<0.5), "Somewhat", "Low")) -> Low | E136: Low | F136: =IF(E136="", "", IFERROR(INDEX(SID!X$5:X$14942, MATCH(A136&" > "&B136&" > "&str_Country, SID!$Z$5:$Z$14942, 0), 1), "")) -> 0.7558139535
A137: 1.07 | B137: 1.07 - Clean energy capacity (MW) | D137: =SUM(C138:C142) -> 62 | E137: …with Chart | F137: =IF(E137="", "", IFERROR(INDEX(SID!X$5:X$14942, MATCH(A137&" > "&B137&" > "&str_Country, SID!$Z$5:$Z$14942, 0), 1), "")) -> 
A138: =A137 -> 1.07 | B138: Biomass & Waste | C138: =IFERROR(INDEX(CHRT!$X$95:$X$103, MATCH(B138, CHRT!$M$95:$M$103,0), 1), 0) -> 0 | D138: =IF($D$137=0,0,C138/SUM($C$138:$C$143)) -> 0 | F138: =IF(E138="", "", IFERROR(INDEX(SID!X$5:X$14942, MATCH(A138&" > "&B138&" > "&str_Country, SID!$Z$5:$Z$14942, 0), 1), "")) -> 
A139: 1.07 | B139: Geothermal | C139: =IFERROR(INDEX(CHRT!$X$95:$X$103, MATCH(B139, CHRT!$M$95:$M$103,0), 1), 0) -> 0 | D139: 0 | F139: =IF(E139="", "", IFERROR(INDEX(SID!X$5:X$14942, MATCH(A139&" > "&B139&" > "&str_Country, SID!$Z$5:$Z$14942, 0), 1), "")) -> 
A140: 1.07 | B140: Small Hydro | C140: =IFERROR(INDEX(CHRT!$X$95:$X$103, MATCH(B140, CHRT!$M$95:$M$103,0), 1), 0) -> 62 | D140: 0.004647815527 | F140: =IF(E140="", "", IFERROR(INDEX(SID!X$5:X$14942, MATCH(A140&" > "&B140&" > "&str_Country, SID!$Z$5:$Z$14942, 0), 1), "")) -> 
A141: 1.07 | B141: Solar | C141: =IFERROR(INDEX(CHRT!$X$95:$X$103, MATCH(B141, CHRT!$M$95:$M$103,0), 1), 0) -> 0 | D141: 0 | F141: =IF(E141="", "", IFERROR(INDEX(SID!X$5:X$14942, MATCH(A141&" > "&B141&" > "&str_Country, SID!$Z$5:$Z$14942, 0), 1), "")) -> 
A142: 1.07 | B142: Wind | C142: =IFERROR(INDEX(CHRT!$X$95:$X$103, MATCH(B142, CHRT!$M$95:$M$103,0), 1), 0) -> 0 | D142: 0 | F142: =IF(E142="", "", IFERROR(INDEX(SID!X$5:X$14942, MATCH(A142&" > "&B142&" > "&str_Country, SID!$Z$5:$Z$14942, 0), 1), "")) -> 
A143: 1.07 | B143: Other Energy | C143: =IFERROR(INDEX(CHRT!$X$95:$X$103, MATCH(B143, CHRT!$M$95:$M$103,0), 1), 0) -> 13277.6 | D143: 0.9953521845 | F143: =IF(E143="", "", IFERROR(INDEX(SID!X$5:X$14942, MATCH(A143&" > "&B143&" > "&str_Country, SID!$Z$5:$Z$14942, 0), 1), "")) -> 
A144: 1.07 | F144: =IF(E144="", "", IFERROR(INDEX(SID!X$5:X$14942, MATCH(A144&" > "&B144&" > "&str_Country, SID!$Z$5:$Z$14942, 0), 1), "")) -> 
A145: 1.07 | B145: =IF(SUM(C138:C142)=0, "NO CAPACITY DATA FOR CHART.", "") ->  | F145: =IF(E145="", "", IFERROR(INDEX(SID!X$5:X$14942, MATCH(A145&" > "&B145&" > "&str_Country, SID!$Z$5:$Z$14942, 0), 1), "")) -> 
A146: 1.07 | F146: =IF(E146="", "", IFERROR(INDEX(SID!X$5:X$14942, MATCH(A146&" > "&B146&" > "&str_Country, SID!$Z$5:$Z$14942, 0), 1), "")) -> 
A147: 1.07 | F147: =IF(E147="", "", IFERROR(INDEX(SID!X$5:X$14942, MATCH(A147&" > "&B147&" > "&str_Country, SID!$Z$5:$Z$14942, 0), 1), "")) -> 
A148: 1.07 | F148: =IF(E148="", "", IFERROR(INDEX(SID!X$5:X$14942, MATCH(A148&" > "&B148&" > "&str_Country, SID!$Z$5:$Z$14942, 0), 1), "")) -> 
A149: 1.07 | F149: =IF(E149="", "", IFERROR(INDEX(SID!X$5:X$14942, MATCH(A149&" > "&B149&" > "&str_Country, SID!$Z$5:$Z$14942, 0), 1), "")) -> 
A150: 1.07 | F150: =IF(E150="", "", IFERROR(INDEX(SID!X$5:X$14942, MATCH(A150&" > "&B150&" > "&str_Country, SID!$Z$5:$Z$14942, 0), 1), "")) -> 
A151: 1.07 | F151: =IF(E151="", "", IFERROR(INDEX(SID!X$5:X$14942, MATCH(A151&" > "&B151&" > "&str_Country, SID!$Z$5:$Z$14942, 0), 1), "")) -> 
A152: 1.07 | F152: =IF(E152="", "", IFERROR(INDEX(SID!X$5:X$14942, MATCH(A152&" > "&B152&" > "&str_Country, SID!$Z$5:$Z$14942, 0), 1), "")) -> 
A153: 1.07 | F153: =IF(E153="", "", IFERROR(INDEX(SID!X$5:X$14942, MATCH(A153&" > "&B153&" > "&str_Country, SID!$Z$5:$Z$14942, 0), 1), "")) -> 
A154: 1.07 | F154: =IF(E154="", "", IFERROR(INDEX(SID!X$5:X$14942, MATCH(A154&" > "&B154&" > "&str_Country, SID!$Z$5:$Z$14942, 0), 1), "")) -> 
A155: 1.07 | F155: =IF(E155="", "", IFERROR(INDEX(SID!X$5:X$14942, MATCH(A155&" > "&B155&" > "&str_Country, SID!$Z$5:$Z$14942, 0), 1), "")) -> 
A156: 1.07 | F156: =IF(E156="", "", IFERROR(INDEX(SID!X$5:X$14942, MATCH(A156&" > "&B156&" > "&str_Country, SID!$Z$5:$Z$14942, 0), 1), "")) -> 
A157: 1.07 | F157: =IF(E157="", "", IFERROR(INDEX(SID!X$5:X$14942, MATCH(A157&" > "&B157&" > "&str_Country, SID!$Z$5:$Z$14942, 0), 1), "")) -> 
A158: 1.07 | F158: =IF(E158="", "", IFERROR(INDEX(SID!X$5:X$14942, MATCH(A158&" > "&B158&" > "&str_Country, SID!$Z$5:$Z$14942, 0), 1), "")) -> 
A159: 1.07 | F159: =IF(E159="", "", IFERROR(INDEX(SID!X$5:X$14942, MATCH(A159&" > "&B159&" > "&str_Country, SID!$Z$5:$Z$14942, 0), 1), "")) -> 
A160: 1.07 | F160: =IF(E160="", "", IFERROR(INDEX(SID!X$5:X$14942, MATCH(A160&" > "&B160&" > "&str_Country, SID!$Z$5:$Z$14942, 0), 1), "")) -> 
A161: 1.07 | F161: =IF(E161="", "", IFERROR(INDEX(SID!X$5:X$14942, MATCH(A161&" > "&B161&" > "&str_Country, SID!$Z$5:$Z$14942, 0), 1), "")) -> 
A162: 1.07 | F162: =IF(E162="", "", IFERROR(INDEX(SID!X$5:X$14942, MATCH(A162&" > "&B162&" > "&str_Country, SID!$Z$5:$Z$14942, 0), 1), "")) -> 
A163: 1.09 | B163: 1.09 - Clean energy generation (GWh) | D163: =SUM(C164:C168) -> 248.1399568 | E163: …with Chart | F163: =IF(E163="", "", IFERROR(INDEX(SID!X$5:X$14942, MATCH(A163&" > "&B163&" > "&str_Country, SID!$Z$5:$Z$14942, 0), 1), "")) -> 
A164: =A163 -> 1.09 | B164: Biomass & Waste | C164: =IFERROR(INDEX(CHRT!$X$105:$X$113, MATCH(B164, CHRT!$M$105:$M$113,0), 1), 0) -> 0 | D164: =IFERROR(IF($D$137=0,0,C164/SUM($C$164:$C$169)), 0) -> 0 | F164: =IF(E164="", "", IFERROR(INDEX(SID!X$5:X$14942, MATCH(A164&" > "&B164&" > "&str_Country, SID!$Z$5:$Z$14942, 0), 1), "")) -> 
A165: 1.09 | B165: Geothermal | C165: =IFERROR(INDEX(CHRT!$X$105:$X$113, MATCH(B165, CHRT!$M$105:$M$113,0), 1), 0) -> 0 | D165: 0 | F165: =IF(E165="", "", IFERROR(INDEX(SID!X$5:X$14942, MATCH(A165&" > "&B165&" > "&str_Country, SID!$Z$5:$Z$14942, 0), 1), "")) -> 
A166: 1.09 | B166: Small Hydro | C166: =IFERROR(INDEX(CHRT!$X$105:$X$113, MATCH(B166, CHRT!$M$105:$M$113,0), 1), 0) -> 248.1399568 | D166: 0.008266489865 | F166: =IF(E166="", "", IFERROR(INDEX(SID!X$5:X$14942, MATCH(A166&" > "&B166&" > "&str_Country, SID!$Z$5:$Z$14942, 0), 1), "")) -> 
A167: 1.09 | B167: Solar | C167: =IFERROR(INDEX(CHRT!$X$105:$X$113, MATCH(B167, CHRT!$M$105:$M$113,0), 1), 0) -> 0 | D167: 0 | F167: =IF(E167="", "", IFERROR(INDEX(SID!X$5:X$14942, MATCH(A167&" > "&B167&" > "&str_Country, SID!$Z$5:$Z$14942, 0), 1), "")) -> 
A168: 1.09 | B168: Wind | C168: =IFERROR(INDEX(CHRT!$X$105:$X$113, MATCH(B168, CHRT!$M$105:$M$113,0), 1), 0) -> 0 | D168: 0 | F168: =IF(E168="", "", IFERROR(INDEX(SID!X$5:X$14942, MATCH(A168&" > "&B168&" > "&str_Country, SID!$Z$5:$Z$14942, 0), 1), "")) -> 
A169: 1.09 | B169: Other Energy | C169: =IFERROR(INDEX(CHRT!$X$105:$X$113, MATCH(B169, CHRT!$M$105:$M$113,0), 1), 0) -> 29769.43229 | D169: 0.9917335101 | F169: =IF(E169="", "", IFERROR(INDEX(SID!X$5:X$14942, MATCH(A169&" > "&B169&" > "&str_Country, SID!$Z$5:$Z$14942, 0), 1), "")) -> 
A170: 1.09 | F170: =IF(E170="", "", IFERROR(INDEX(SID!X$5:X$14942, MATCH(A170&" > "&B170&" > "&str_Country, SID!$Z$5:$Z$14942, 0), 1), "")) -> 
A171: 1.09 | B171: =IF(SUM(C164:C168)=0, "NO GENERATION DATA FOR CHART.", "") ->  | F171: =IF(E171="", "", IFERROR(INDEX(SID!X$5:X$14942, MATCH(A171&" > "&B171&" > "&str_Country, SID!$Z$5:$Z$14942, 0), 1), "")) -> 
A172: 1.09 | F172: =IF(E172="", "", IFERROR(INDEX(SID!X$5:X$14942, MATCH(A172&" > "&B172&" > "&str_Country, SID!$Z$5:$Z$14942, 0), 1), "")) -> 
A173: 1.09 | F173: =IF(E173="", "", IFERROR(INDEX(SID!X$5:X$14942, MATCH(A173&" > "&B173&" > "&str_Country, SID!$Z$5:$Z$14942, 0), 1), "")) -> 
A174: 1.09 | F174: =IF(E174="", "", IFERROR(INDEX(SID!X$5:X$14942, MATCH(A174&" > "&B174&" > "&str_Country, SID!$Z$5:$Z$14942, 0), 1), "")) -> 
A175: 1.09 | F175: =IF(E175="", "", IFERROR(INDEX(SID!X$5:X$14942, MATCH(A175&" > "&B175&" > "&str_Country, SID!$Z$5:$Z$14942, 0), 1), "")) -> 
A176: 1.09 | F176: =IF(E176="", "", IFERROR(INDEX(SID!X$5:X$14942, MATCH(A176&" > "&B176&" > "&str_Country, SID!$Z$5:$Z$14942, 0), 1), "")) -> 
A177: 1.09 | F177: =IF(E177="", "", IFERROR(INDEX(SID!X$5:X$14942, MATCH(A177&" > "&B177&" > "&str_Country, SID!$Z$5:$Z$14942, 0), 1), "")) -> 
A178: 1.09 | F178: =IF(E178="", "", IFERROR(INDEX(SID!X$5:X$14942, MATCH(A178&" > "&B178&" > "&str_Country, SID!$Z$5:$Z$14942, 0), 1), "")) -> 
A179: 1.09 | F179: =IF(E179="", "", IFERROR(INDEX(SID!X$5:X$14942, MATCH(A179&" > "&B179&" > "&str_Country, SID!$Z$5:$Z$14942, 0), 1), "")) -> 
A180: 1.09 | F180: =IF(E180="", "", IFERROR(INDEX(SID!X$5:X$14942, MATCH(A180&" > "&B180&" > "&str_Country, SID!$Z$5:$Z$14942, 0), 1), "")) -> 
A181: 1.09 | F181: =IF(E181="", "", IFERROR(INDEX(SID!X$5:X$14942, MATCH(A181&" > "&B181&" > "&str_Country, SID!$Z$5:$Z$14942, 0), 1), "")) -> 
A182: 1.09 | F182: =IF(E182="", "", IFERROR(INDEX(SID!X$5:X$14942, MATCH(A182&" > "&B182&" > "&str_Country, SID!$Z$5:$Z$14942, 0), 1), "")) -> 
A183: 1.09 | F183: =IF(E183="", "", IFERROR(INDEX(SID!X$5:X$14942, MATCH(A183&" > "&B183&" > "&str_Country, SID!$Z$5:$Z$14942, 0), 1), "")) -> 
A184: 1.09 | F184: =IF(E184="", "", IFERROR(INDEX(SID!X$5:X$14942, MATCH(A184&" > "&B184&" > "&str_Country, SID!$Z$5:$Z$14942, 0), 1), "")) -> 
A185: 1.09 | F185: =IF(E185="", "", IFERROR(INDEX(SID!X$5:X$14942, MATCH(A185&" > "&B185&" > "&str_Country, SID!$Z$5:$Z$14942, 0), 1), "")) -> 
A186: 1.09 | F186: =IF(E186="", "", IFERROR(INDEX(SID!X$5:X$14942, MATCH(A186&" > "&B186&" > "&str_Country, SID!$Z$5:$Z$14942, 0), 1), "")) -> 
A187: 1.09 | F187: =IF(E187="", "", IFERROR(INDEX(SID!X$5:X$14942, MATCH(A187&" > "&B187&" > "&str_Country, SID!$Z$5:$Z$14942, 0), 1), "")) -> 
A188: 1.09 | F188: =IF(E188="", "", IFERROR(INDEX(SID!X$5:X$14942, MATCH(A188&" > "&B188&" > "&str_Country, SID!$Z$5:$Z$14942, 0), 1), "")) -> 
A189: 1.09 | B189: Clean Energy Capacity Factors (%) | D189: =IFERROR(AVERAGEIF(D190:D194, "<>0"), 0) -> 0.4568786949 | F189: =IF(E189="", "", IFERROR(INDEX(SID!X$5:X$14942, MATCH(A189&" > "&B189&" > "&str_Country, SID!$Z$5:$Z$14942, 0), 1), "")) -> 
A190: 1.09 | B190: Biomass & Waste | D190: =IF(C138=0,0,(C164*1000)/(8760*C138)) -> 0 | F190: =IF(E190="", "", IFERROR(INDEX(SID!X$5:X$14942, MATCH(A190&" > "&B190&" > "&str_Country, SID!$Z$5:$Z$14942, 0), 1), "")) -> 
A191: 1.09 | B191: Geothermal | D191: 0 | F191: =IF(E191="", "", IFERROR(INDEX(SID!X$5:X$14942, MATCH(A191&" > "&B191&" > "&str_Country, SID!$Z$5:$Z$14942, 0), 1), "")) -> 
A192: 1.09 | B192: Small Hydro | D192: 0.4568786949 | F192: =IF(E192="", "", IFERROR(INDEX(SID!X$5:X$14942, MATCH(A192&" > "&B192&" > "&str_Country, SID!$Z$5:$Z$14942, 0), 1), "")) -> 
A193: 1.09 | B193: Solar | D193: =IF(C141=0,0,(C167*1000)/(8760*C141)) -> 0 | F193: =IF(E193="", "", IFERROR(INDEX(SID!X$5:X$14942, MATCH(A193&" > "&B193&" > "&str_Country, SID!$Z$5:$Z$14942, 0), 1), "")) -> 
A194: 1.09 | B194: Wind | D194: =IF(C142=0,0,(C168*1000)/(8760*C142)) -> 0 | F194: =IF(E194="", "", IFERROR(INDEX(SID!X$5:X$14942, MATCH(A194&" > "&B194&" > "&str_Country, SID!$Z$5:$Z$14942, 0), 1), "")) -> 
A195: 1.09 | B195: Other Energy | D195: 0.2559451271 | F195: =IF(E195="", "", IFERROR(INDEX(SID!X$5:X$14942, MATCH(A195&" > "&B195&" > "&str_Country, SID!$Z$5:$Z$14942, 0), 1), "")) -> 
A196: 2.01 | B196: 2.01 - Clean energy investments (USDm) | D196: =SUM(C198:C204) -> 0 | E196: …with Chart | F196: =IF(E196="", "", IFERROR(INDEX(SID!X$5:X$14942, MATCH(A196&" > "&B196&" > "&str_Country, SID!$Z$5:$Z$14942, 0), 1), "")) -> 
A197: =A196 -> 2.01 | B197: Investment Type | C197: All | F197: =IF(E197="", "", IFERROR(INDEX(SID!X$5:X$14942, MATCH(A197&" > "&B197&" > "&str_Country, SID!$Z$5:$Z$14942, 0), 1), "")) -> 
A198: 2.01 | B198: Biofuels | C198: =IFERROR(INDEX(CHRT!$X$115:$X$123, MATCH(B198, CHRT!$M$115:$M$123,0), 1), 0) -> 0 | D198: =IF($D$196=0, 0, C198/$D$196) -> 0 | F198: =IF(E198="", "", IFERROR(INDEX(SID!X$5:X$14942, MATCH(A198&" > "&B198&" > "&str_Country, SID!$Z$5:$Z$14942, 0), 1), "")) -> 
A199: 2.01 | B199: Biomass & Waste | C199: =IFERROR(INDEX(CHRT!$X$115:$X$123, MATCH(B199, CHRT!$M$115:$M$123,0), 1), 0) -> 0 | D199: 0 | F199: =IF(E199="", "", IFERROR(INDEX(SID!X$5:X$14942, MATCH(A199&" > "&B199&" > "&str_Country, SID!$Z$5:$Z$14942, 0), 1), "")) -> 
A200: 2.01 | B200: Geothermal | C200: =IFERROR(INDEX(CHRT!$X$115:$X$123, MATCH(B200, CHRT!$M$115:$M$123,0), 1), 0) -> 0 | D200: 0 | F200: =IF(E200="", "", IFERROR(INDEX(SID!X$5:X$14942, MATCH(A200&" > "&B200&" > "&str_Country, SID!$Z$5:$Z$14942, 0), 1), "")) -> 
A201: 2.01 | B201: Small Hydro | C201: =IFERROR(INDEX(CHRT!$X$115:$X$123, MATCH(B201, CHRT!$M$115:$M$123,0), 1), 0) -> 0 | D201: 0 | F201: =IF(E201="", "", IFERROR(INDEX(SID!X$5:X$14942, MATCH(A201&" > "&B201&" > "&str_Country, SID!$Z$5:$Z$14942, 0), 1), "")) -> 
A202: 2.01 | B202: Solar | C202: =IFERROR(INDEX(CHRT!$X$115:$X$123, MATCH(B202, CHRT!$M$115:$M$123,0), 1), 0) -> 0 | D202: 0 | F202: =IF(E202="", "", IFERROR(INDEX(SID!X$5:X$14942, MATCH(A202&" > "&B202&" > "&str_Country, SID!$Z$5:$Z$14942, 0), 1), "")) -> 
A203: 2.01 | B203: Wind | C203: =IFERROR(INDEX(CHRT!$X$115:$X$123, MATCH(B203, CHRT!$M$115:$M$123,0), 1), 0) -> 0 | D203: 0 | F203: =IF(E203="", "", IFERROR(INDEX(SID!X$5:X$14942, MATCH(A203&" > "&B203&" > "&str_Country, SID!$Z$5:$Z$14942, 0), 1), "")) -> 
A204: 2.01 | B204: Clean Energy (Other) | C204: =IFERROR(INDEX(CHRT!$X$115:$X$123, MATCH(B204, CHRT!$M$115:$M$123,0), 1), 0) -> 0 | D204: 0 | F204: =IF(E204="", "", IFERROR(INDEX(SID!X$5:X$14942, MATCH(A204&" > "&B204&" > "&str_Country, SID!$Z$5:$Z$14942, 0), 1), "")) -> 
... 102 more rows

Sheet IND (hidden)
F2: Model Base Year* | G2: 2016
F3: Growth Rate Cap (%) | G3: 1.5
F4: Maximum Score | G4: 5
F5: Benchmark Max | G5: 100
F6: Investment Year (Start) | G6: 2012
A8: Indicator Fields | F8: Indicator Data | AC8: INDICATOR
A9: Indicator | B9: Country | C9: Indicator ID | D9: Parameter | E9: Category | F9: Indicator | G9: On/off-grid | H9: Levelisation | I9: Growth | J9: Units | K9: Region | L9: Countries & States | M9: Best Case | N9: User Defined | O9: Levelisation | P9: ="Data ("&int_Year&")" -> Data (2016) | Q9: Data (Levelised) | R9: Benchmark | S9: Score | T9: Hardcoded Scores | U9: Growth Rate | V9: ="Investment ("&int_InvStartYear& " to " &int_Year&")" -> Investment (2012 to 2016) | W9: ="Investment ("&int_InvStartYear& " to " &int_Year-1&")" -> Investment (2012 to 2015) | X9: ="Investment ("&int_InvStartYear& " to " &1*int_Year&")" -> Investment (2012 to 2016) | Y9: Row ID | Z9: Country Type | AA9: Paramter Weight | AB9: Category Weight | AC9: Weight (BNEF) | AD9: Weight (Adjusted)* | AE9: Net Weight* | AF9: Net Score*
A10: 1 | B10: 1 | C10: =INDEX(DEFN!$A$11:$K$60, MATCH($A10, DEFN!$A$11:$A$60, 0), MATCH(C$9, DEFN!$A$10:$K$10, 0)) -> 1.01 | D10: =INDEX(DEFN!$A$11:$K$60, MATCH($A10, DEFN!$A$11:$A$60, 0), MATCH(D$9, DEFN!$A$10:$K$10, 0)) -> Enabling Framework | E10: =INDEX(DEFN!$A$11:$K$60, MATCH($A10, DEFN!$A$11:$A$60, 0), MATCH(E$9, DEFN!$A$10:$K$10, 0)) -> Policy & Regulation | F10: =INDEX(DEFN!$A$11:$K$60, MATCH($A10, DEFN!$A$11:$A$60, 0), MATCH(F$9, DEFN!$A$10:$K$10, 0)) -> Clean energy policies | G10: =INDEX(DEFN!$A$11:$K$60, MATCH($A10, DEFN!$A$11:$A$60, 0), MATCH(G$9, DEFN!$A$10:$K$10, 0)) -> Both | H10: =INDEX(DEFN!$A$11:$K$60, MATCH($A10, DEFN!$A$11:$A$60, 0), MATCH(H$9, DEFN!$A$10:$K$10, 0)) -> None | I10: =INDEX(DEFN!$A$11:$K$60, MATCH($A10, DEFN!$A$11:$A$60, 0), MATCH(I$9, DEFN!$A$10:$K$10, 0)) -> None | J10: =INDEX(DEFN!$A$11:$K$60, MATCH($A10, DEFN!$A$11:$A$60, 0), MATCH(J$9, DEFN!$A$10:$K$10, 0)) -> Policy Types | K10: =INDEX(DEFN!B$263:B$339, MATCH($B10, DEFN!$A$263:$A$339, 0), 1) -> Africa | L10: =INDEX(DEFN!C$263:C$339, MATCH($B10, DEFN!$A$263:$A$339, 0), 1) -> Botswana | M10: =INDEX(DEFN!$A$11:$K$60, MATCH($A10, DEFN!$A$11:$A$60, 0), MATCH(M$9, DEFN!$A$10:$K$10, 0)) -> User Defined | N10: =INDEX(DEFN!$A$11:$K$60, MATCH($A10, DEFN!$A$11:$A$60, 0), MATCH(N$9, DEFN!$A$10:$K$10, 0)) -> 5 | O10: =IFERROR(IF($H10="None", 1, IF($H10="All Capacity", SUMIFS(SID!X$5:X$14942, SID!$G$5:$G$14942, "<>Power demand", SID!$K$5:$K$14942, $L10, SID!$I$5:$I$14942, $J10), IF($H10="All Generation", SUMIFS(SID!X$5:X$14942, SID!$K$5:$K$14942, $L10, SID!$I$5:$I$14942, $J10), SUMIFS(SID!X$5:X$14942, SID!$F$5:$F$14942, $H10, SID!$K$5:$K$14942, $L10)))), 1) -> 1 | P10: =IF(ISNUMBER(FIND("Growth", F10)), U10, IF(V10<>0,V10, SUMIFS(SID!X$5:X$14942, SID!$C$5:$C$14942, $C10, SID!$K$5:$K$14942, $L10, SID!$Y$5:$Y$14942, 0))) -> 3 | Q10: =IFERROR(IF(ISNUMBER(T10), MAX(T10/O10, 0), MAX(IF(LEFT(F10, 11)="Growth rate", MIN(P10, dbl_GrowthCap), P10)/O10, 0)), 0) -> 1.208711889 | R10: =IF(F10<>F9, IFERROR(IF(M10="User Defined", $N10, IF(M10="Min", SMALL(Q10:Q86, COUNTIF(Q10:Q86, 0)+1), IF(M10="Max", MAX(Q10:Q86), IF(M10="Average", AVERAGEIF(Q10:Q86, "<>0"), IF(M10="Total", SUM(Q10:Q86), 0))))), 0),R9) -> 5 | S10: =IFERROR(dbl_BenchmarkMax*IF(M10="Min", R10/Q10, Q10/R10), 0) -> 24.17423777 | T10: 1.208711889 | U10: =IF(I10="Clean energy investments", IF(OR(W10=0, X10=0), 0, X10/W10-1), IF(OR(I10="None", SUMIFS(SID!X$5:X$14942, SID!$F$5:$F$14942, I10, SID!$K$5:$K$14942, L10, SID!$Y$5:$Y$14942, 0)=0), 0, IFERROR(SUMIFS(SID!X$5:X$14942, SID!$F$5:$F$14942, I10, SID!$K$5:$K$14942, L10, SID!$Y$5:$Y$14942, 0)/SUMIFS(SID!W$5:W$14942, SID!$F$5:$F$14942, I10, SID!$K$5:$K$14942, L10, SID!$Y$5:$Y$14942, 0) - 1, 0))) -> 0 | V10: =IF(J10<>"USDm", 0, IF(F10="Clean energy investments", IF(ISNUMBER(FIND("-", $L10)), SUMIFS(INV!$J$3:$J$20000, INV!$E$3:$E$20000, $L10, INV!$A$3:$A$20000, "<=" & int_Year, INV!$A$3:$A$20000, ">=" & $G$6), SUMIFS(INV!$J$3:$J$20000, INV!$F$3:$F$20000, $L10, INV!$A$3:$A$20000, "<=" & int_Year, INV!$A$3:$A$20000, ">=" & $G$6)), IF(ISNUMBER(FIND("-", $L10)), SUMIFS(INV!$J$3:$J$20000, INV!$E$3:$E$20000, $L10, INV!$I$3:$I$20000, $F10, INV!$A$3:$A$20000, "<=" & int_Year, INV!$A$3:$A$20000, ">=" & $G$6), SUMIFS(INV!$J$3:$J$20000, INV!$F$3:$F$20000, $L10, INV!$I$3:$I$20000, $F10, INV!$A$3:$A$20000, "<=" & int_Year, INV!$A$3:$A$20000, ">=" & $G$6)))) -> 0 | W10: =IF(I10<>"Clean energy investments", 0, IF(ISNUMBER(FIND("-", $L10)), SUMIFS(INV!$J$3:$J$20000, INV!$E$3:$E$20000, $L10, INV!$A$3:$A$20000, ">="& int_InvStartYear, INV!$A$3:$A$20000, "<="& int_Year-1), SUMIFS(INV!$J$3:$J$20000, INV!$F$3:$F$20000, $L10, INV!$A$3:$A$20000, ">="& int_InvStartYear, INV!$A$3:$A$20000, "<="& int_Year-1))) -> 0 | X10: =IF(I10<>"Clean energy investments", 0, IF(ISNUMBER(FIND("-", $L10)), SUMIFS(INV!$J$3:$J$20000, INV!$E$3:$E$20000, $L10, INV!$A$3:$A$20000, ">="& int_InvStartYear, INV!$A$3:$A$20000, "<="& int_Year), SUMIFS(INV!$J$3:$J$20000, INV!$F$3:$F$20000, $L10, INV!$A$3:$A$20000, ">="& int_InvStartYear, INV!$A$3:$A$20000, "<="& int_Year))) -> 0 | Y10: =C10&" > " &L10 -> 1.01 > Botswana | Z10: =IF(ISNUMBER(MATCH(L10, list_RegionOnGrid, 0)), "On-Grid", "Off-Grid") -> Off-Grid | AA10: =IFERROR(INDEX(COUNTRY!$C$18:$C$67, MATCH(C10, COUNTRY!$F$18:$F$67, 0), 1), 0) -> 0.4 | AB10: =IFERROR(INDEX(COUNTRY!$E$18:$E$67, MATCH(C10, COUNTRY!$F$18:$F$67, 0), 1), 0) -> 0.4 | AC10: =IFERROR(IF(Z10="Off-Grid", INDEX(range_WeightsOffGrid, MATCH(C10, range_WeightsIDs, 0), 1), INDEX(range_WeightsOnGrid, MATCH(C10, range_WeightsIDs, 0), 1)), 0) -> 0.4 | AD10: =IF(ISNUMBER(AC10), AC10, IF(P10=0, 0, (1-SUMIFS($AC$9:$AC$3860, $AC$9:$AC$3860, ">0", $E$9:$E$3860, E10, $L$9:$L$3860, L10))/COUNTIFS($AC$9:$AC$3860, "None", $P$9:$P$3860, "<>0", $E$9:$E$3860, E10, $L$9:$L$3860, L10))) -> 0.4 | AE10: =AA10*AB10*IF(Z10="Off-Grid", AC10, AD10) -> 0.064 | AF10: =AE10*(S10/100)*dbl_ScoreMax -> 0.07735756087
A11: 1 | B11: =B10+1 -> 2 | C11: =INDEX(DEFN!$A$11:$K$60, MATCH($A11, DEFN!$A$11:$A$60, 0), MATCH(C$9, DEFN!$A$10:$K$10, 0)) -> 1.01 | D11: =INDEX(DEFN!$A$11:$K$60, MATCH($A11, DEFN!$A$11:$A$60, 0), MATCH(D$9, DEFN!$A$10:$K$10, 0)) -> Enabling Framework | E11: =INDEX(DEFN!$A$11:$K$60, MATCH($A11, DEFN!$A$11:$A$60, 0), MATCH(E$9, DEFN!$A$10:$K$10, 0)) -> Policy & Regulation | F11: =INDEX(DEFN!$A$11:$K$60, MATCH($A11, DEFN!$A$11:$A$60, 0), MATCH(F$9, DEFN!$A$10:$K$10, 0)) -> Clean energy policies | G11: =INDEX(DEFN!$A$11:$K$60, MATCH($A11, DEFN!$A$11:$A$60, 0), MATCH(G$9, DEFN!$A$10:$K$10, 0)) -> Both | H11: =INDEX(DEFN!$A$11:$K$60, MATCH($A11, DEFN!$A$11:$A$60, 0), MATCH(H$9, DEFN!$A$10:$K$10, 0)) -> None | I11: =INDEX(DEFN!$A$11:$K$60, MATCH($A11, DEFN!$A$11:$A$60, 0), MATCH(I$9, DEFN!$A$10:$K$10, 0)) -> None | J11: =INDEX(DEFN!$A$11:$K$60, MATCH($A11, DEFN!$A$11:$A$60, 0), MATCH(J$9, DEFN!$A$10:$K$10, 0)) -> Policy Types | K11: =INDEX(DEFN!B$263:B$339, MATCH($B11, DEFN!$A$263:$A$339, 0), 1) -> Africa | L11: =INDEX(DEFN!C$263:C$339, MATCH($B11, DEFN!$A$263:$A$339, 0), 1) -> Cameroon | M11: =INDEX(DEFN!$A$11:$K$60, MATCH($A11, DEFN!$A$11:$A$60, 0), MATCH(M$9, DEFN!$A$10:$K$10, 0)) -> User Defined | N11: =INDEX(DEFN!$A$11:$K$60, MATCH($A11, DEFN!$A$11:$A$60, 0), MATCH(N$9, DEFN!$A$10:$K$10, 0)) -> 5 | O11: =IFERROR(IF($H11="None", 1, IF($H11="All Capacity", SUMIFS(SID!X$5:X$14942, SID!$G$5:$G$14942, "<>Power demand", SID!$K$5:$K$14942, $L11, SID!$I$5:$I$14942, $J11), IF($H11="All Generation", SUMIFS(SID!X$5:X$14942, SID!$K$5:$K$14942, $L11, SID!$I$5:$I$14942, $J11), SUMIFS(SID!X$5:X$14942, SID!$F$5:$F$14942, $H11, SID!$K$5:$K$14942, $L11)))), 1) -> 1 | P11: =IF(ISNUMBER(FIND("Growth", F11)), U11, IF(V11<>0,V11, SUMIFS(SID!X$5:X$14942, SID!$C$5:$C$14942, $C11, SID!$K$5:$K$14942, $L11, SID!$Y$5:$Y$14942, 0))) -> 3 | Q11: 0.8866926049 | R11: 5 | S11: 17.7338521 | T11: 0.8866926049 | U11: =IF(I11="Clean energy investments", IF(OR(W11=0, X11=0), 0, X11/W11-1), IF(OR(I11="None", SUMIFS(SID!X$5:X$14942, SID!$F$5:$F$14942, I11, SID!$K$5:$K$14942, L11, SID!$Y$5:$Y$14942, 0)=0), 0, IFERROR(SUMIFS(SID!X$5:X$14942, SID!$F$5:$F$14942, I11, SID!$K$5:$K$14942, L11, SID!$Y$5:$Y$14942, 0)/SUMIFS(SID!W$5:W$14942, SID!$F$5:$F$14942, I11, SID!$K$5:$K$14942, L11, SID!$Y$5:$Y$14942, 0) - 1, 0))) -> 0 | V11: =IF(J11<>"USDm", 0, IF(F11="Clean energy investments", IF(ISNUMBER(FIND("-", $L11)), SUMIFS(INV!$J$3:$J$20000, INV!$E$3:$E$20000, $L11, INV!$A$3:$A$20000, "<=" & int_Year, INV!$A$3:$A$20000, ">=" & $G$6), SUMIFS(INV!$J$3:$J$20000, INV!$F$3:$F$20000, $L11, INV!$A$3:$A$20000, "<=" & int_Year, INV!$A$3:$A$20000, ">=" & $G$6)), IF(ISNUMBER(FIND("-", $L11)), SUMIFS(INV!$J$3:$J$20000, INV!$E$3:$E$20000, $L11, INV!$I$3:$I$20000, $F11, INV!$A$3:$A$20000, "<=" & int_Year, INV!$A$3:$A$20000, ">=" & $G$6), SUMIFS(INV!$J$3:$J$20000, INV!$F$3:$F$20000, $L11, INV!$I$3:$I$20000, $F11, INV!$A$3:$A$20000, "<=" & int_Year, INV!$A$3:$A$20000, ">=" & $G$6)))) -> 0 | W11: =IF(I11<>"Clean energy investments", 0, IF(ISNUMBER(FIND("-", $L11)), SUMIFS(INV!$J$3:$J$20000, INV!$E$3:$E$20000, $L11, INV!$A$3:$A$20000, ">="& int_InvStartYear, INV!$A$3:$A$20000, "<="& int_Year-1), SUMIFS(INV!$J$3:$J$20000, INV!$F$3:$F$20000, $L11, INV!$A$3:$A$20000, ">="& int_InvStartYear, INV!$A$3:$A$20000, "<="& int_Year-1))) -> 0 | X11: =IF(I11<>"Clean energy investments", 0, IF(ISNUMBER(FIND("-", $L11)), SUMIFS(INV!$J$3:$J$20000, INV!$E$3:$E$20000, $L11, INV!$A$3:$A$20000, ">="& int_InvStartYear, INV!$A$3:$A$20000, "<="& int_Year), SUMIFS(INV!$J$3:$J$20000, INV!$F$3:$F$20000, $L11, INV!$A$3:$A$20000, ">="& int_InvStartYear, INV!$A$3:$A$20000, "<="& int_Year))) -> 0 | Y11: 1.01 > Cameroon | Z11: Off-Grid | AA11: =IFERROR(INDEX(COUNTRY!$C$18:$C$67, MATCH(C11, COUNTRY!$F$18:$F$67, 0), 1), 0) -> 0.4 | AB11: =IFERROR(INDEX(COUNTRY!$E$18:$E$67, MATCH(C11, COUNTRY!$F$18:$F$67, 0), 1), 0) -> 0.4 | AC11: 0.4 | AD11: 0.4 | AE11: 0.064 | AF11: 0.05674832671
A12: 1 | B12: =B11+1 -> 3 | C12: =INDEX(DEFN!$A$11:$K$60, MATCH($A12, DEFN!$A$11:$A$60, 0), MATCH(C$9, DEFN!$A$10:$K$10, 0)) -> 1.01 | D12: =INDEX(DEFN!$A$11:$K$60, MATCH($A12, DEFN!$A$11:$A$60, 0), MATCH(D$9, DEFN!$A$10:$K$10, 0)) -> Enabling Framework | E12: =INDEX(DEFN!$A$11:$K$60, MATCH($A12, DEFN!$A$11:$A$60, 0), MATCH(E$9, DEFN!$A$10:$K$10, 0)) -> Policy & Regulation | F12: =INDEX(DEFN!$A$11:$K$60, MATCH($A12, DEFN!$A$11:$A$60, 0), MATCH(F$9, DEFN!$A$10:$K$10, 0)) -> Clean energy policies | G12: =INDEX(DEFN!$A$11:$K$60, MATCH($A12, DEFN!$A$11:$A$60, 0), MATCH(G$9, DEFN!$A$10:$K$10, 0)) -> Both | H12: =INDEX(DEFN!$A$11:$K$60, MATCH($A12, DEFN!$A$11:$A$60, 0), MATCH(H$9, DEFN!$A$10:$K$10, 0)) -> None | I12: =INDEX(DEFN!$A$11:$K$60, MATCH($A12, DEFN!$A$11:$A$60, 0), MATCH(I$9, DEFN!$A$10:$K$10, 0)) -> None | J12: =INDEX(DEFN!$A$11:$K$60, MATCH($A12, DEFN!$A$11:$A$60, 0), MATCH(J$9, DEFN!$A$10:$K$10, 0)) -> Policy Types | K12: =INDEX(DEFN!B$263:B$339, MATCH($B12, DEFN!$A$263:$A$339, 0), 1) -> Africa | L12: =INDEX(DEFN!C$263:C$339, MATCH($B12, DEFN!$A$263:$A$339, 0), 1) -> Congo (Dem. Rep.) | M12: =INDEX(DEFN!$A$11:$K$60, MATCH($A12, DEFN!$A$11:$A$60, 0), MATCH(M$9, DEFN!$A$10:$K$10, 0)) -> User Defined | N12: =INDEX(DEFN!$A$11:$K$60, MATCH($A12, DEFN!$A$11:$A$60, 0), MATCH(N$9, DEFN!$A$10:$K$10, 0)) -> 5 | O12: =IFERROR(IF($H12="None", 1, IF($H12="All Capacity", SUMIFS(SID!X$5:X$14942, SID!$G$5:$G$14942, "<>Power demand", SID!$K$5:$K$14942, $L12, SID!$I$5:$I$14942, $J12), IF($H12="All Generation", SUMIFS(SID!X$5:X$14942, SID!$K$5:$K$14942, $L12, SID!$I$5:$I$14942, $J12), SUMIFS(SID!X$5:X$14942, SID!$F$5:$F$14942, $H12, SID!$K$5:$K$14942, $L12)))), 1) -> 1 | P12: =IF(ISNUMBER(FIND("Growth", F12)), U12, IF(V12<>0,V12, SUMIFS(SID!X$5:X$14942, SID!$C$5:$C$14942, $C12, SID!$K$5:$K$14942, $L12, SID!$Y$5:$Y$14942, 0))) -> 2 | Q12: 0.43 | R12: 5 | S12: 8.6 | T12: 0.43 | U12: =IF(I12="Clean energy investments", IF(OR(W12=0, X12=0), 0, X12/W12-1), IF(OR(I12="None", SUMIFS(SID!X$5:X$14942, SID!$F$5:$F$14942, I12, SID!$K$5:$K$14942, L12, SID!$Y$5:$Y$14942, 0)=0), 0, IFERROR(SUMIFS(SID!X$5:X$14942, SID!$F$5:$F$14942, I12, SID!$K$5:$K$14942, L12, SID!$Y$5:$Y$14942, 0)/SUMIFS(SID!W$5:W$14942, SID!$F$5:$F$14942, I12, SID!$K$5:$K$14942, L12, SID!$Y$5:$Y$14942, 0) - 1, 0))) -> 0 | V12: =IF(J12<>"USDm", 0, IF(F12="Clean energy investments", IF(ISNUMBER(FIND("-", $L12)), SUMIFS(INV!$J$3:$J$20000, INV!$E$3:$E$20000, $L12, INV!$A$3:$A$20000, "<=" & int_Year, INV!$A$3:$A$20000, ">=" & $G$6), SUMIFS(INV!$J$3:$J$20000, INV!$F$3:$F$20000, $L12, INV!$A$3:$A$20000, "<=" & int_Year, INV!$A$3:$A$20000, ">=" & $G$6)), IF(ISNUMBER(FIND("-", $L12)), SUMIFS(INV!$J$3:$J$20000, INV!$E$3:$E$20000, $L12, INV!$I$3:$I$20000, $F12, INV!$A$3:$A$20000, "<=" & int_Year, INV!$A$3:$A$20000, ">=" & $G$6), SUMIFS(INV!$J$3:$J$20000, INV!$F$3:$F$20000, $L12, INV!$I$3:$I$20000, $F12, INV!$A$3:$A$20000, "<=" & int_Year, INV!$A$3:$A$20000, ">=" & $G$6)))) -> 0 | W12: =IF(I12<>"Clean energy investments", 0, IF(ISNUMBER(FIND("-", $L12)), SUMIFS(INV!$J$3:$J$20000, INV!$E$3:$E$20000, $L12, INV!$A$3:$A$20000, ">="& int_InvStartYear, INV!$A$3:$A$20000, "<="& int_Year-1), SUMIFS(INV!$J$3:$J$20000, INV!$F$3:$F$20000, $L12, INV!$A$3:$A$20000, ">="& int_InvStartYear, INV!$A$3:$A$20000, "<="& int_Year-1))) -> 0 | X12: =IF(I12<>"Clean energy investments", 0, IF(ISNUMBER(FIND("-", $L12)), SUMIFS(INV!$J$3:$J$20000, INV!$E$3:$E$20000, $L12, INV!$A$3:$A$20000, ">="& int_InvStartYear, INV!$A$3:$A$20000, "<="& int_Year), SUMIFS(INV!$J$3:$J$20000, INV!$F$3:$F$20000, $L12, INV!$A$3:$A$20000, ">="& int_InvStartYear, INV!$A$3:$A$20000, "<="& int_Year))) -> 0 | Y12: 1.01 > Congo (Dem. Rep.) | Z12: Off-Grid | AA12: =IFERROR(INDEX(COUNTRY!$C$18:$C$67, MATCH(C12, COUNTRY!$F$18:$F$67, 0), 1), 0) -> 0.4 | AB12: =IFERROR(INDEX(COUNTRY!$E$18:$E$67, MATCH(C12, COUNTRY!$F$18:$F$67, 0), 1), 0) -> 0.4 | AC12: 0.4 | AD12: 0.4 | AE12: 0.064 | AF12: 0.02752
A13: 1 | B13: 4 | C13: =INDEX(DEFN!$A$11:$K$60, MATCH($A13, DEFN!$A$11:$A$60, 0), MATCH(C$9, DEFN!$A$10:$K$10, 0)) -> 1.01 | D13: =INDEX(DEFN!$A$11:$K$60, MATCH($A13, DEFN!$A$11:$A$60, 0), MATCH(D$9, DEFN!$A$10:$K$10, 0)) -> Enabling Framework | E13: =INDEX(DEFN!$A$11:$K$60, MATCH($A13, DEFN!$A$11:$A$60, 0), MATCH(E$9, DEFN!$A$10:$K$10, 0)) -> Policy & Regulation | F13: =INDEX(DEFN!$A$11:$K$60, MATCH($A13, DEFN!$A$11:$A$60, 0), MATCH(F$9, DEFN!$A$10:$K$10, 0)) -> Clean energy policies | G13: =INDEX(DEFN!$A$11:$K$60, MATCH($A13, DEFN!$A$11:$A$60, 0), MATCH(G$9, DEFN!$A$10:$K$10, 0)) -> Both | H13: =INDEX(DEFN!$A$11:$K$60, MATCH($A13, DEFN!$A$11:$A$60, 0), MATCH(H$9, DEFN!$A$10:$K$10, 0)) -> None | I13: =INDEX(DEFN!$A$11:$K$60, MATCH($A13, DEFN!$A$11:$A$60, 0), MATCH(I$9, DEFN!$A$10:$K$10, 0)) -> None | J13: =INDEX(DEFN!$A$11:$K$60, MATCH($A13, DEFN!$A$11:$A$60, 0), MATCH(J$9, DEFN!$A$10:$K$10, 0)) -> Policy Types | K13: =INDEX(DEFN!B$263:B$339, MATCH($B13, DEFN!$A$263:$A$339, 0), 1) -> Africa | L13: =INDEX(DEFN!C$263:C$339, MATCH($B13, DEFN!$A$263:$A$339, 0), 1) -> Cote d'Ivoire | M13: =INDEX(DEFN!$A$11:$K$60, MATCH($A13, DEFN!$A$11:$A$60, 0), MATCH(M$9, DEFN!$A$10:$K$10, 0)) -> User Defined | N13: =INDEX(DEFN!$A$11:$K$60, MATCH($A13, DEFN!$A$11:$A$60, 0), MATCH(N$9, DEFN!$A$10:$K$10, 0)) -> 5 | O13: =IFERROR(IF($H13="None", 1, IF($H13="All Capacity", SUMIFS(SID!X$5:X$14942, SID!$G$5:$G$14942, "<>Power demand", SID!$K$5:$K$14942, $L13, SID!$I$5:$I$14942, $J13), IF($H13="All Generation", SUMIFS(SID!X$5:X$14942, SID!$K$5:$K$14942, $L13, SID!$I$5:$I$14942, $J13), SUMIFS(SID!X$5:X$14942, SID!$F$5:$F$14942, $H13, SID!$K$5:$K$14942, $L13)))), 1) -> 1 | P13: =IF(ISNUMBER(FIND("Growth", F13)), U13, IF(V13<>0,V13, SUMIFS(SID!X$5:X$14942, SID!$C$5:$C$14942, $C13, SID!$K$5:$K$14942, $L13, SID!$Y$5:$Y$14942, 0))) -> 2 | Q13: 0.51 | R13: 5 | S13: 10.2 | T13: 0.51 | U13: =IF(I13="Clean energy investments", IF(OR(W13=0, X13=0), 0, X13/W13-1), IF(OR(I13="None", SUMIFS(SID!X$5:X$14942, SID!$F$5:$F$14942, I13, SID!$K$5:$K$14942, L13, SID!$Y$5:$Y$14942, 0)=0), 0, IFERROR(SUMIFS(SID!X$5:X$14942, SID!$F$5:$F$14942, I13, SID!$K$5:$K$14942, L13, SID!$Y$5:$Y$14942, 0)/SUMIFS(SID!W$5:W$14942, SID!$F$5:$F$14942, I13, SID!$K$5:$K$14942, L13, SID!$Y$5:$Y$14942, 0) - 1, 0))) -> 0 | V13: =IF(J13<>"USDm", 0, IF(F13="Clean energy investments", IF(ISNUMBER(FIND("-", $L13)), SUMIFS(INV!$J$3:$J$20000, INV!$E$3:$E$20000, $L13, INV!$A$3:$A$20000, "<=" & int_Year, INV!$A$3:$A$20000, ">=" & $G$6), SUMIFS(INV!$J$3:$J$20000, INV!$F$3:$F$20000, $L13, INV!$A$3:$A$20000, "<=" & int_Year, INV!$A$3:$A$20000, ">=" & $G$6)), IF(ISNUMBER(FIND("-", $L13)), SUMIFS(INV!$J$3:$J$20000, INV!$E$3:$E$20000, $L13, INV!$I$3:$I$20000, $F13, INV!$A$3:$A$20000, "<=" & int_Year, INV!$A$3:$A$20000, ">=" & $G$6), SUMIFS(INV!$J$3:$J$20000, INV!$F$3:$F$20000, $L13, INV!$I$3:$I$20000, $F13, INV!$A$3:$A$20000, "<=" & int_Year, INV!$A$3:$A$20000, ">=" & $G$6)))) -> 0 | W13: =IF(I13<>"Clean energy investments", 0, IF(ISNUMBER(FIND("-", $L13)), SUMIFS(INV!$J$3:$J$20000, INV!$E$3:$E$20000, $L13, INV!$A$3:$A$20000, ">="& int_InvStartYear, INV!$A$3:$A$20000, "<="& int_Year-1), SUMIFS(INV!$J$3:$J$20000, INV!$F$3:$F$20000, $L13, INV!$A$3:$A$20000, ">="& int_InvStartYear, INV!$A$3:$A$20000, "<="& int_Year-1))) -> 0 | X13: =IF(I13<>"Clean energy investments", 0, IF(ISNUMBER(FIND("-", $L13)), SUMIFS(INV!$J$3:$J$20000, INV!$E$3:$E$20000, $L13, INV!$A$3:$A$20000, ">="& int_InvStartYear, INV!$A$3:$A$20000, "<="& int_Year), SUMIFS(INV!$J$3:$J$20000, INV!$F$3:$F$20000, $L13, INV!$A$3:$A$20000, ">="& int_InvStartYear, INV!$A$3:$A$20000, "<="& int_Year))) -> 0 | Y13: 1.01 > Cote d'Ivoire | Z13: Off-Grid | AA13: =IFERROR(INDEX(COUNTRY!$C$18:$C$67, MATCH(C13, COUNTRY!$F$18:$F$67, 0), 1), 0) -> 0.4 | AB13: =IFERROR(INDEX(COUNTRY!$E$18:$E$67, MATCH(C13, COUNTRY!$F$18:$F$67, 0), 1), 0) -> 0.4 | AC13: 0.4 | AD13: 0.4 | AE13: 0.064 | AF13: 0.03264
A14: 1 | B14: 5 | C14: =INDEX(DEFN!$A$11:$K$60, MATCH($A14, DEFN!$A$11:$A$60, 0), MATCH(C$9, DEFN!$A$10:$K$10, 0)) -> 1.01 | D14: =INDEX(DEFN!$A$11:$K$60, MATCH($A14, DEFN!$A$11:$A$60, 0), MATCH(D$9, DEFN!$A$10:$K$10, 0)) -> Enabling Framework | E14: =INDEX(DEFN!$A$11:$K$60, MATCH($A14, DEFN!$A$11:$A$60, 0), MATCH(E$9, DEFN!$A$10:$K$10, 0)) -> Policy & Regulation | F14: =INDEX(DEFN!$A$11:$K$60, MATCH($A14, DEFN!$A$11:$A$60, 0), MATCH(F$9, DEFN!$A$10:$K$10, 0)) -> Clean energy policies | G14: =INDEX(DEFN!$A$11:$K$60, MATCH($A14, DEFN!$A$11:$A$60, 0), MATCH(G$9, DEFN!$A$10:$K$10, 0)) -> Both | H14: =INDEX(DEFN!$A$11:$K$60, MATCH($A14, DEFN!$A$11:$A$60, 0), MATCH(H$9, DEFN!$A$10:$K$10, 0)) -> None | I14: =INDEX(DEFN!$A$11:$K$60, MATCH($A14, DEFN!$A$11:$A$60, 0), MATCH(I$9, DEFN!$A$10:$K$10, 0)) -> None | J14: =INDEX(DEFN!$A$11:$K$60, MATCH($A14, DEFN!$A$11:$A$60, 0), MATCH(J$9, DEFN!$A$10:$K$10, 0)) -> Policy Types | K14: =INDEX(DEFN!B$263:B$339, MATCH($B14, DEFN!$A$263:$A$339, 0), 1) -> Africa | L14: =INDEX(DEFN!C$263:C$339, MATCH($B14, DEFN!$A$263:$A$339, 0), 1) -> Ethiopia | M14: =INDEX(DEFN!$A$11:$K$60, MATCH($A14, DEFN!$A$11:$A$60, 0), MATCH(M$9, DEFN!$A$10:$K$10, 0)) -> User Defined | N14: =INDEX(DEFN!$A$11:$K$60, MATCH($A14, DEFN!$A$11:$A$60, 0), MATCH(N$9, DEFN!$A$10:$K$10, 0)) -> 5 | O14: =IFERROR(IF($H14="None", 1, IF($H14="All Capacity", SUMIFS(SID!X$5:X$14942, SID!$G$5:$G$14942, "<>Power demand", SID!$K$5:$K$14942, $L14, SID!$I$5:$I$14942, $J14), IF($H14="All Generation", SUMIFS(SID!X$5:X$14942, SID!$K$5:$K$14942, $L14, SID!$I$5:$I$14942, $J14), SUMIFS(SID!X$5:X$14942, SID!$F$5:$F$14942, $H14, SID!$K$5:$K$14942, $L14)))), 1) -> 1 | P14: =IF(ISNUMBER(FIND("Growth", F14)), U14, IF(V14<>0,V14, SUMIFS(SID!X$5:X$14942, SID!$C$5:$C$14942, $C14, SID!$K$5:$K$14942, $L14, SID!$Y$5:$Y$14942, 0))) -> 5 | Q14: 1.775732972 | R14: 5 | S14: 35.51465944 | T14: 1.775732972 | U14: =IF(I14="Clean energy investments", IF(OR(W14=0, X14=0), 0, X14/W14-1), IF(OR(I14="None", SUMIFS(SID!X$5:X$14942, SID!$F$5:$F$14942, I14, SID!$K$5:$K$14942, L14, SID!$Y$5:$Y$14942, 0)=0), 0, IFERROR(SUMIFS(SID!X$5:X$14942, SID!$F$5:$F$14942, I14, SID!$K$5:$K$14942, L14, SID!$Y$5:$Y$14942, 0)/SUMIFS(SID!W$5:W$14942, SID!$F$5:$F$14942, I14, SID!$K$5:$K$14942, L14, SID!$Y$5:$Y$14942, 0) - 1, 0))) -> 0 | V14: =IF(J14<>"USDm", 0, IF(F14="Clean energy investments", IF(ISNUMBER(FIND("-", $L14)), SUMIFS(INV!$J$3:$J$20000, INV!$E$3:$E$20000, $L14, INV!$A$3:$A$20000, "<=" & int_Year, INV!$A$3:$A$20000, ">=" & $G$6), SUMIFS(INV!$J$3:$J$20000, INV!$F$3:$F$20000, $L14, INV!$A$3:$A$20000, "<=" & int_Year, INV!$A$3:$A$20000, ">=" & $G$6)), IF(ISNUMBER(FIND("-", $L14)), SUMIFS(INV!$J$3:$J$20000, INV!$E$3:$E$20000, $L14, INV!$I$3:$I$20000, $F14, INV!$A$3:$A$20000, "<=" & int_Year, INV!$A$3:$A$20000, ">=" & $G$6), SUMIFS(INV!$J$3:$J$20000, INV!$F$3:$F$20000, $L14, INV!$I$3:$I$20000, $F14, INV!$A$3:$A$20000, "<=" & int_Year, INV!$A$3:$A$20000, ">=" & $G$6)))) -> 0 | W14: =IF(I14<>"Clean energy investments", 0, IF(ISNUMBER(FIND("-", $L14)), SUMIFS(INV!$J$3:$J$20000, INV!$E$3:$E$20000, $L14, INV!$A$3:$A$20000, ">="& int_InvStartYear, INV!$A$3:$A$20000, "<="& int_Year-1), SUMIFS(INV!$J$3:$J$20000, INV!$F$3:$F$20000, $L14, INV!$A$3:$A$20000, ">="& int_InvStartYear, INV!$A$3:$A$20000, "<="& int_Year-1))) -> 0 | X14: =IF(I14<>"Clean energy investments", 0, IF(ISNUMBER(FIND("-", $L14)), SUMIFS(INV!$J$3:$J$20000, INV!$E$3:$E$20000, $L14, INV!$A$3:$A$20000, ">="& int_InvStartYear, INV!$A$3:$A$20000, "<="& int_Year), SUMIFS(INV!$J$3:$J$20000, INV!$F$3:$F$20000, $L14, INV!$A$3:$A$20000, ">="& int_InvStartYear, INV!$A$3:$A$20000, "<="& int_Year))) -> 0 | Y14: 1.01 > Ethiopia | Z14: Off-Grid | AA14: =IFERROR(INDEX(COUNTRY!$C$18:$C$67, MATCH(C14, COUNTRY!$F$18:$F$67, 0), 1), 0) -> 0.4 | AB14: =IFERROR(INDEX(COUNTRY!$E$18:$E$67, MATCH(C14, COUNTRY!$F$18:$F$67, 0), 1), 0) -> 0.4 | AC14: 0.4 | AD14: 0.4 | AE14: 0.064 | AF14: 0.1136469102
A15: 1 | B15: 6 | C15: =INDEX(DEFN!$A$11:$K$60, MATCH($A15, DEFN!$A$11:$A$60, 0), MATCH(C$9, DEFN!$A$10:$K$10, 0)) -> 1.01 | D15: =INDEX(DEFN!$A$11:$K$60, MATCH($A15, DEFN!$A$11:$A$60, 0), MATCH(D$9, DEFN!$A$10:$K$10, 0)) -> Enabling Framework | E15: =INDEX(DEFN!$A$11:$K$60, MATCH($A15, DEFN!$A$11:$A$60, 0), MATCH(E$9, DEFN!$A$10:$K$10, 0)) -> Policy & Regulation | F15: =INDEX(DEFN!$A$11:$K$60, MATCH($A15, DEFN!$A$11:$A$60, 0), MATCH(F$9, DEFN!$A$10:$K$10, 0)) -> Clean energy policies | G15: =INDEX(DEFN!$A$11:$K$60, MATCH($A15, DEFN!$A$11:$A$60, 0), MATCH(G$9, DEFN!$A$10:$K$10, 0)) -> Both | H15: =INDEX(DEFN!$A$11:$K$60, MATCH($A15, DEFN!$A$11:$A$60, 0), MATCH(H$9, DEFN!$A$10:$K$10, 0)) -> None | I15: =INDEX(DEFN!$A$11:$K$60, MATCH($A15, DEFN!$A$11:$A$60, 0), MATCH(I$9, DEFN!$A$10:$K$10, 0)) -> None | J15: =INDEX(DEFN!$A$11:$K$60, MATCH($A15, DEFN!$A$11:$A$60, 0), MATCH(J$9, DEFN!$A$10:$K$10, 0)) -> Policy Types | K15: =INDEX(DEFN!B$263:B$339, MATCH($B15, DEFN!$A$263:$A$339, 0), 1) -> Africa | L15: =INDEX(DEFN!C$263:C$339, MATCH($B15, DEFN!$A$263:$A$339, 0), 1) -> Ghana | M15: =INDEX(DEFN!$A$11:$K$60, MATCH($A15, DEFN!$A$11:$A$60, 0), MATCH(M$9, DEFN!$A$10:$K$10, 0)) -> User Defined | N15: =INDEX(DEFN!$A$11:$K$60, MATCH($A15, DEFN!$A$11:$A$60, 0), MATCH(N$9, DEFN!$A$10:$K$10, 0)) -> 5 | O15: =IFERROR(IF($H15="None", 1, IF($H15="All Capacity", SUMIFS(SID!X$5:X$14942, SID!$G$5:$G$14942, "<>Power demand", SID!$K$5:$K$14942, $L15, SID!$I$5:$I$14942, $J15), IF($H15="All Generation", SUMIFS(SID!X$5:X$14942, SID!$K$5:$K$14942, $L15, SID!$I$5:$I$14942, $J15), SUMIFS(SID!X$5:X$14942, SID!$F$5:$F$14942, $H15, SID!$K$5:$K$14942, $L15)))), 1) -> 1 | P15: =IF(ISNUMBER(FIND("Growth", F15)), U15, IF(V15<>0,V15, SUMIFS(SID!X$5:X$14942, SID!$C$5:$C$14942, $C15, SID!$K$5:$K$14942, $L15, SID!$Y$5:$Y$14942, 0))) -> 4 | Q15: 1.387834994 | R15: 5 | S15: 27.75669989 | T15: 1.387834994 | U15: =IF(I15="Clean energy investments", IF(OR(W15=0, X15=0), 0, X15/W15-1), IF(OR(I15="None", SUMIFS(SID!X$5:X$14942, SID!$F$5:$F$14942, I15, SID!$K$5:$K$14942, L15, SID!$Y$5:$Y$14942, 0)=0), 0, IFERROR(SUMIFS(SID!X$5:X$14942, SID!$F$5:$F$14942, I15, SID!$K$5:$K$14942, L15, SID!$Y$5:$Y$14942, 0)/SUMIFS(SID!W$5:W$14942, SID!$F$5:$F$14942, I15, SID!$K$5:$K$14942, L15, SID!$Y$5:$Y$14942, 0) - 1, 0))) -> 0 | V15: =IF(J15<>"USDm", 0, IF(F15="Clean energy investments", IF(ISNUMBER(FIND("-", $L15)), SUMIFS(INV!$J$3:$J$20000, INV!$E$3:$E$20000, $L15, INV!$A$3:$A$20000, "<=" & int_Year, INV!$A$3:$A$20000, ">=" & $G$6), SUMIFS(INV!$J$3:$J$20000, INV!$F$3:$F$20000, $L15, INV!$A$3:$A$20000, "<=" & int_Year, INV!$A$3:$A$20000, ">=" & $G$6)), IF(ISNUMBER(FIND("-", $L15)), SUMIFS(INV!$J$3:$J$20000, INV!$E$3:$E$20000, $L15, INV!$I$3:$I$20000, $F15, INV!$A$3:$A$20000, "<=" & int_Year, INV!$A$3:$A$20000, ">=" & $G$6), SUMIFS(INV!$J$3:$J$20000, INV!$F$3:$F$20000, $L15, INV!$I$3:$I$20000, $F15, INV!$A$3:$A$20000, "<=" & int_Year, INV!$A$3:$A$20000, ">=" & $G$6)))) -> 0 | W15: =IF(I15<>"Clean energy investments", 0, IF(ISNUMBER(FIND("-", $L15)), SUMIFS(INV!$J$3:$J$20000, INV!$E$3:$E$20000, $L15, INV!$A$3:$A$20000, ">="& int_InvStartYear, INV!$A$3:$A$20000, "<="& int_Year-1), SUMIFS(INV!$J$3:$J$20000, INV!$F$3:$F$20000, $L15, INV!$A$3:$A$20000, ">="& int_InvStartYear, INV!$A$3:$A$20000, "<="& int_Year-1))) -> 0 | X15: =IF(I15<>"Clean energy investments", 0, IF(ISNUMBER(FIND("-", $L15)), SUMIFS(INV!$J$3:$J$20000, INV!$E$3:$E$20000, $L15, INV!$A$3:$A$20000, ">="& int_InvStartYear, INV!$A$3:$A$20000, "<="& int_Year), SUMIFS(INV!$J$3:$J$20000, INV!$F$3:$F$20000, $L15, INV!$A$3:$A$20000, ">="& int_InvStartYear, INV!$A$3:$A$20000, "<="& int_Year))) -> 0 | Y15: 1.01 > Ghana | Z15: Off-Grid | AA15: =IFERROR(INDEX(COUNTRY!$C$18:$C$67, MATCH(C15, COUNTRY!$F$18:$F$67, 0), 1), 0) -> 0.4 | AB15: =IFERROR(INDEX(COUNTRY!$E$18:$E$67, MATCH(C15, COUNTRY!$F$18:$F$67, 0), 1), 0) -> 0.4 | AC15: 0.4 | AD15: 0.4 | AE15: 0.064 | AF15: 0.08882143964
A16: 1 | B16: 7 | C16: =INDEX(DEFN!$A$11:$K$60, MATCH($A16, DEFN!$A$11:$A$60, 0), MATCH(C$9, DEFN!$A$10:$K$10, 0)) -> 1.01 | D16: =INDEX(DEFN!$A$11:$K$60, MATCH($A16, DEFN!$A$11:$A$60, 0), MATCH(D$9, DEFN!$A$10:$K$10, 0)) -> Enabling Framework | E16: =INDEX(DEFN!$A$11:$K$60, MATCH($A16, DEFN!$A$11:$A$60, 0), MATCH(E$9, DEFN!$A$10:$K$10, 0)) -> Policy & Regulation | F16: =INDEX(DEFN!$A$11:$K$60, MATCH($A16, DEFN!$A$11:$A$60, 0), MATCH(F$9, DEFN!$A$10:$K$10, 0)) -> Clean energy policies | G16: =INDEX(DEFN!$A$11:$K$60, MATCH($A16, DEFN!$A$11:$A$60, 0), MATCH(G$9, DEFN!$A$10:$K$10, 0)) -> Both | H16: =INDEX(DEFN!$A$11:$K$60, MATCH($A16, DEFN!$A$11:$A$60, 0), MATCH(H$9, DEFN!$A$10:$K$10, 0)) -> None | I16: =INDEX(DEFN!$A$11:$K$60, MATCH($A16, DEFN!$A$11:$A$60, 0), MATCH(I$9, DEFN!$A$10:$K$10, 0)) -> None | J16: =INDEX(DEFN!$A$11:$K$60, MATCH($A16, DEFN!$A$11:$A$60, 0), MATCH(J$9, DEFN!$A$10:$K$10, 0)) -> Policy Types | K16: =INDEX(DEFN!B$263:B$339, MATCH($B16, DEFN!$A$263:$A$339, 0), 1) -> Africa | L16: =INDEX(DEFN!C$263:C$339, MATCH($B16, DEFN!$A$263:$A$339, 0), 1) -> Kenya | M16: =INDEX(DEFN!$A$11:$K$60, MATCH($A16, DEFN!$A$11:$A$60, 0), MATCH(M$9, DEFN!$A$10:$K$10, 0)) -> User Defined | N16: =INDEX(DEFN!$A$11:$K$60, MATCH($A16, DEFN!$A$11:$A$60, 0), MATCH(N$9, DEFN!$A$10:$K$10, 0)) -> 5 | O16: =IFERROR(IF($H16="None", 1, IF($H16="All Capacity", SUMIFS(SID!X$5:X$14942, SID!$G$5:$G$14942, "<>Power demand", SID!$K$5:$K$14942, $L16, SID!$I$5:$I$14942, $J16), IF($H16="All Generation", SUMIFS(SID!X$5:X$14942, SID!$K$5:$K$14942, $L16, SID!$I$5:$I$14942, $J16), SUMIFS(SID!X$5:X$14942, SID!$F$5:$F$14942, $H16, SID!$K$5:$K$14942, $L16)))), 1) -> 1 | P16: =IF(ISNUMBER(FIND("Growth", F16)), U16, IF(V16<>0,V16, SUMIFS(SID!X$5:X$14942, SID!$C$5:$C$14942, $C16, SID!$K$5:$K$14942, $L16, SID!$Y$5:$Y$14942, 0))) -> 4 | Q16: 1.378211311 | R16: 5 | S16: 27.56422623 | T16: 1.378211311 | U16: =IF(I16="Clean energy investments", IF(OR(W16=0, X16=0), 0, X16/W16-1), IF(OR(I16="None", SUMIFS(SID!X$5:X$14942, SID!$F$5:$F$14942, I16, SID!$K$5:$K$14942, L16, SID!$Y$5:$Y$14942, 0)=0), 0, IFERROR(SUMIFS(SID!X$5:X$14942, SID!$F$5:$F$14942, I16, SID!$K$5:$K$14942, L16, SID!$Y$5:$Y$14942, 0)/SUMIFS(SID!W$5:W$14942, SID!$F$5:$F$14942, I16, SID!$K$5:$K$14942, L16, SID!$Y$5:$Y$14942, 0) - 1, 0))) -> 0 | V16: =IF(J16<>"USDm", 0, IF(F16="Clean energy investments", IF(ISNUMBER(FIND("-", $L16)), SUMIFS(INV!$J$3:$J$20000, INV!$E$3:$E$20000, $L16, INV!$A$3:$A$20000, "<=" & int_Year, INV!$A$3:$A$20000, ">=" & $G$6), SUMIFS(INV!$J$3:$J$20000, INV!$F$3:$F$20000, $L16, INV!$A$3:$A$20000, "<=" & int_Year, INV!$A$3:$A$20000, ">=" & $G$6)), IF(ISNUMBER(FIND("-", $L16)), SUMIFS(INV!$J$3:$J$20000, INV!$E$3:$E$20000, $L16, INV!$I$3:$I$20000, $F16, INV!$A$3:$A$20000, "<=" & int_Year, INV!$A$3:$A$20000, ">=" & $G$6), SUMIFS(INV!$J$3:$J$20000, INV!$F$3:$F$20000, $L16, INV!$I$3:$I$20000, $F16, INV!$A$3:$A$20000, "<=" & int_Year, INV!$A$3:$A$20000, ">=" & $G$6)))) -> 0 | W16: =IF(I16<>"Clean energy investments", 0, IF(ISNUMBER(FIND("-", $L16)), SUMIFS(INV!$J$3:$J$20000, INV!$E$3:$E$20000, $L16, INV!$A$3:$A$20000, ">="& int_InvStartYear, INV!$A$3:$A$20000, "<="& int_Year-1), SUMIFS(INV!$J$3:$J$20000, INV!$F$3:$F$20000, $L16, INV!$A$3:$A$20000, ">="& int_InvStartYear, INV!$A$3:$A$20000, "<="& int_Year-1))) -> 0 | X16: =IF(I16<>"Clean energy investments", 0, IF(ISNUMBER(FIND("-", $L16)), SUMIFS(INV!$J$3:$J$20000, INV!$E$3:$E$20000, $L16, INV!$A$3:$A$20000, ">="& int_InvStartYear, INV!$A$3:$A$20000, "<="& int_Year), SUMIFS(INV!$J$3:$J$20000, INV!$F$3:$F$20000, $L16, INV!$A$3:$A$20000, ">="& int_InvStartYear, INV!$A$3:$A$20000, "<="& int_Year))) -> 0 | Y16: 1.01 > Kenya | Z16: Off-Grid | AA16: =IFERROR(INDEX(COUNTRY!$C$18:$C$67, MATCH(C16, COUNTRY!$F$18:$F$67, 0), 1), 0) -> 0.4 | AB16: =IFERROR(INDEX(COUNTRY!$E$18:$E$67, MATCH(C16, COUNTRY!$F$18:$F$67, 0), 1), 0) -> 0.4 | AC16: 0.4 | AD16: 0.4 | AE16: 0.064 | AF16: 0.08820552393
A17: 1 | B17: 8 | C17: =INDEX(DEFN!$A$11:$K$60, MATCH($A17, DEFN!$A$11:$A$60, 0), MATCH(C$9, DEFN!$A$10:$K$10, 0)) -> 1.01 | D17: =INDEX(DEFN!$A$11:$K$60, MATCH($A17, DEFN!$A$11:$A$60, 0), MATCH(D$9, DEFN!$A$10:$K$10, 0)) -> Enabling Framework | E17: =INDEX(DEFN!$A$11:$K$60, MATCH($A17, DEFN!$A$11:$A$60, 0), MATCH(E$9, DEFN!$A$10:$K$10, 0)) -> Policy & Regulation | F17: =INDEX(DEFN!$A$11:$K$60, MATCH($A17, DEFN!$A$11:$A$60, 0), MATCH(F$9, DEFN!$A$10:$K$10, 0)) -> Clean energy policies | G17: =INDEX(DEFN!$A$11:$K$60, MATCH($A17, DEFN!$A$11:$A$60, 0), MATCH(G$9, DEFN!$A$10:$K$10, 0)) -> Both | H17: =INDEX(DEFN!$A$11:$K$60, MATCH($A17, DEFN!$A$11:$A$60, 0), MATCH(H$9, DEFN!$A$10:$K$10, 0)) -> None | I17: =INDEX(DEFN!$A$11:$K$60, MATCH($A17, DEFN!$A$11:$A$60, 0), MATCH(I$9, DEFN!$A$10:$K$10, 0)) -> None | J17: =INDEX(DEFN!$A$11:$K$60, MATCH($A17, DEFN!$A$11:$A$60, 0), MATCH(J$9, DEFN!$A$10:$K$10, 0)) -> Policy Types | K17: =INDEX(DEFN!B$263:B$339, MATCH($B17, DEFN!$A$263:$A$339, 0), 1) -> Africa | L17: =INDEX(DEFN!C$263:C$339, MATCH($B17, DEFN!$A$263:$A$339, 0), 1) -> Liberia | M17: =INDEX(DEFN!$A$11:$K$60, MATCH($A17, DEFN!$A$11:$A$60, 0), MATCH(M$9, DEFN!$A$10:$K$10, 0)) -> User Defined | N17: =INDEX(DEFN!$A$11:$K$60, MATCH($A17, DEFN!$A$11:$A$60, 0), MATCH(N$9, DEFN!$A$10:$K$10, 0)) -> 5 | O17: =IFERROR(IF($H17="None", 1, IF($H17="All Capacity", SUMIFS(SID!X$5:X$14942, SID!$G$5:$G$14942, "<>Power demand", SID!$K$5:$K$14942, $L17, SID!$I$5:$I$14942, $J17), IF($H17="All Generation", SUMIFS(SID!X$5:X$14942, SID!$K$5:$K$14942, $L17, SID!$I$5:$I$14942, $J17), SUMIFS(SID!X$5:X$14942, SID!$F$5:$F$14942, $H17, SID!$K$5:$K$14942, $L17)))), 1) -> 1 | P17: =IF(ISNUMBER(FIND("Growth", F17)), U17, IF(V17<>0,V17, SUMIFS(SID!X$5:X$14942, SID!$C$5:$C$14942, $C17, SID!$K$5:$K$14942, $L17, SID!$Y$5:$Y$14942, 0))) -> 3 | Q17: 1.021095183 | R17: 5 | S17: 20.42190367 | T17: 1.021095183 | U17: =IF(I17="Clean energy investments", IF(OR(W17=0, X17=0), 0, X17/W17-1), IF(OR(I17="None", SUMIFS(SID!X$5:X$14942, SID!$F$5:$F$14942, I17, SID!$K$5:$K$14942, L17, SID!$Y$5:$Y$14942, 0)=0), 0, IFERROR(SUMIFS(SID!X$5:X$14942, SID!$F$5:$F$14942, I17, SID!$K$5:$K$14942, L17, SID!$Y$5:$Y$14942, 0)/SUMIFS(SID!W$5:W$14942, SID!$F$5:$F$14942, I17, SID!$K$5:$K$14942, L17, SID!$Y$5:$Y$14942, 0) - 1, 0))) -> 0 | V17: =IF(J17<>"USDm", 0, IF(F17="Clean energy investments", IF(ISNUMBER(FIND("-", $L17)), SUMIFS(INV!$J$3:$J$20000, INV!$E$3:$E$20000, $L17, INV!$A$3:$A$20000, "<=" & int_Year, INV!$A$3:$A$20000, ">=" & $G$6), SUMIFS(INV!$J$3:$J$20000, INV!$F$3:$F$20000, $L17, INV!$A$3:$A$20000, "<=" & int_Year, INV!$A$3:$A$20000, ">=" & $G$6)), IF(ISNUMBER(FIND("-", $L17)), SUMIFS(INV!$J$3:$J$20000, INV!$E$3:$E$20000, $L17, INV!$I$3:$I$20000, $F17, INV!$A$3:$A$20000, "<=" & int_Year, INV!$A$3:$A$20000, ">=" & $G$6), SUMIFS(INV!$J$3:$J$20000, INV!$F$3:$F$20000, $L17, INV!$I$3:$I$20000, $F17, INV!$A$3:$A$20000, "<=" & int_Year, INV!$A$3:$A$20000, ">=" & $G$6)))) -> 0 | W17: =IF(I17<>"Clean energy investments", 0, IF(ISNUMBER(FIND("-", $L17)), SUMIFS(INV!$J$3:$J$20000, INV!$E$3:$E$20000, $L17, INV!$A$3:$A$20000, ">="& int_InvStartYear, INV!$A$3:$A$20000, "<="& int_Year-1), SUMIFS(INV!$J$3:$J$20000, INV!$F$3:$F$20000, $L17, INV!$A$3:$A$20000, ">="& int_InvStartYear, INV!$A$3:$A$20000, "<="& int_Year-1))) -> 0 | X17: =IF(I17<>"Clean energy investments", 0, IF(ISNUMBER(FIND("-", $L17)), SUMIFS(INV!$J$3:$J$20000, INV!$E$3:$E$20000, $L17, INV!$A$3:$A$20000, ">="& int_InvStartYear, INV!$A$3:$A$20000, "<="& int_Year), SUMIFS(INV!$J$3:$J$20000, INV!$F$3:$F$20000, $L17, INV!$A$3:$A$20000, ">="& int_InvStartYear, INV!$A$3:$A$20000, "<="& int_Year))) -> 0 | Y17: 1.01 > Liberia | Z17: Off-Grid | AA17: =IFERROR(INDEX(COUNTRY!$C$18:$C$67, MATCH(C17, COUNTRY!$F$18:$F$67, 0), 1), 0) -> 0.4 | AB17: =IFERROR(INDEX(COUNTRY!$E$18:$E$67, MATCH(C17, COUNTRY!$F$18:$F$67, 0), 1), 0) -> 0.4 | AC17: 0.4 | AD17: 0.4 | AE17: 0.064 | AF17: 0.06535009173
A18: 1 | B18: 9 | C18: =INDEX(DEFN!$A$11:$K$60, MATCH($A18, DEFN!$A$11:$A$60, 0), MATCH(C$9, DEFN!$A$10:$K$10, 0)) -> 1.01 | D18: =INDEX(DEFN!$A$11:$K$60, MATCH($A18, DEFN!$A$11:$A$60, 0), MATCH(D$9, DEFN!$A$10:$K$10, 0)) -> Enabling Framework | E18: =INDEX(DEFN!$A$11:$K$60, MATCH($A18, DEFN!$A$11:$A$60, 0), MATCH(E$9, DEFN!$A$10:$K$10, 0)) -> Policy & Regulation | F18: =INDEX(DEFN!$A$11:$K$60, MATCH($A18, DEFN!$A$11:$A$60, 0), MATCH(F$9, DEFN!$A$10:$K$10, 0)) -> Clean energy policies | G18: =INDEX(DEFN!$A$11:$K$60, MATCH($A18, DEFN!$A$11:$A$60, 0), MATCH(G$9, DEFN!$A$10:$K$10, 0)) -> Both | H18: =INDEX(DEFN!$A$11:$K$60, MATCH($A18, DEFN!$A$11:$A$60, 0), MATCH(H$9, DEFN!$A$10:$K$10, 0)) -> None | I18: =INDEX(DEFN!$A$11:$K$60, MATCH($A18, DEFN!$A$11:$A$60, 0), MATCH(I$9, DEFN!$A$10:$K$10, 0)) -> None | J18: =INDEX(DEFN!$A$11:$K$60, MATCH($A18, DEFN!$A$11:$A$60, 0), MATCH(J$9, DEFN!$A$10:$K$10, 0)) -> Policy Types | K18: =INDEX(DEFN!B$263:B$339, MATCH($B18, DEFN!$A$263:$A$339, 0), 1) -> Africa | L18: =INDEX(DEFN!C$263:C$339, MATCH($B18, DEFN!$A$263:$A$339, 0), 1) -> Malawi | M18: =INDEX(DEFN!$A$11:$K$60, MATCH($A18, DEFN!$A$11:$A$60, 0), MATCH(M$9, DEFN!$A$10:$K$10, 0)) -> User Defined | N18: =INDEX(DEFN!$A$11:$K$60, MATCH($A18, DEFN!$A$11:$A$60, 0), MATCH(N$9, DEFN!$A$10:$K$10, 0)) -> 5 | O18: =IFERROR(IF($H18="None", 1, IF($H18="All Capacity", SUMIFS(SID!X$5:X$14942, SID!$G$5:$G$14942, "<>Power demand", SID!$K$5:$K$14942, $L18, SID!$I$5:$I$14942, $J18), IF($H18="All Generation", SUMIFS(SID!X$5:X$14942, SID!$K$5:$K$14942, $L18, SID!$I$5:$I$14942, $J18), SUMIFS(SID!X$5:X$14942, SID!$F$5:$F$14942, $H18, SID!$K$5:$K$14942, $L18)))), 1) -> 1 | P18: =IF(ISNUMBER(FIND("Growth", F18)), U18, IF(V18<>0,V18, SUMIFS(SID!X$5:X$14942, SID!$C$5:$C$14942, $C18, SID!$K$5:$K$14942, $L18, SID!$Y$5:$Y$14942, 0))) -> 6 | Q18: 1.989440211 | R18: 5 | S18: 39.78880422 | T18: 1.989440211 | U18: =IF(I18="Clean energy investments", IF(OR(W18=0, X18=0), 0, X18/W18-1), IF(OR(I18="None", SUMIFS(SID!X$5:X$14942, SID!$F$5:$F$14942, I18, SID!$K$5:$K$14942, L18, SID!$Y$5:$Y$14942, 0)=0), 0, IFERROR(SUMIFS(SID!X$5:X$14942, SID!$F$5:$F$14942, I18, SID!$K$5:$K$14942, L18, SID!$Y$5:$Y$14942, 0)/SUMIFS(SID!W$5:W$14942, SID!$F$5:$F$14942, I18, SID!$K$5:$K$14942, L18, SID!$Y$5:$Y$14942, 0) - 1, 0))) -> 0 | V18: =IF(J18<>"USDm", 0, IF(F18="Clean energy investments", IF(ISNUMBER(FIND("-", $L18)), SUMIFS(INV!$J$3:$J$20000, INV!$E$3:$E$20000, $L18, INV!$A$3:$A$20000, "<=" & int_Year, INV!$A$3:$A$20000, ">=" & $G$6), SUMIFS(INV!$J$3:$J$20000, INV!$F$3:$F$20000, $L18, INV!$A$3:$A$20000, "<=" & int_Year, INV!$A$3:$A$20000, ">=" & $G$6)), IF(ISNUMBER(FIND("-", $L18)), SUMIFS(INV!$J$3:$J$20000, INV!$E$3:$E$20000, $L18, INV!$I$3:$I$20000, $F18, INV!$A$3:$A$20000, "<=" & int_Year, INV!$A$3:$A$20000, ">=" & $G$6), SUMIFS(INV!$J$3:$J$20000, INV!$F$3:$F$20000, $L18, INV!$I$3:$I$20000, $F18, INV!$A$3:$A$20000, "<=" & int_Year, INV!$A$3:$A$20000, ">=" & $G$6)))) -> 0 | W18: =IF(I18<>"Clean energy investments", 0, IF(ISNUMBER(FIND("-", $L18)), SUMIFS(INV!$J$3:$J$20000, INV!$E$3:$E$20000, $L18, INV!$A$3:$A$20000, ">="& int_InvStartYear, INV!$A$3:$A$20000, "<="& int_Year-1), SUMIFS(INV!$J$3:$J$20000, INV!$F$3:$F$20000, $L18, INV!$A$3:$A$20000, ">="& int_InvStartYear, INV!$A$3:$A$20000, "<="& int_Year-1))) -> 0 | X18: =IF(I18<>"Clean energy investments", 0, IF(ISNUMBER(FIND("-", $L18)), SUMIFS(INV!$J$3:$J$20000, INV!$E$3:$E$20000, $L18, INV!$A$3:$A$20000, ">="& int_InvStartYear, INV!$A$3:$A$20000, "<="& int_Year), SUMIFS(INV!$J$3:$J$20000, INV!$F$3:$F$20000, $L18, INV!$A$3:$A$20000, ">="& int_InvStartYear, INV!$A$3:$A$20000, "<="& int_Year))) -> 0 | Y18: 1.01 > Malawi | Z18: Off-Grid | AA18: =IFERROR(INDEX(COUNTRY!$C$18:$C$67, MATCH(C18, COUNTRY!$F$18:$F$67, 0), 1), 0) -> 0.4 | AB18: =IFERROR(INDEX(COUNTRY!$E$18:$E$67, MATCH(C18, COUNTRY!$F$18:$F$67, 0), 1), 0) -> 0.4 | AC18: 0.4 | AD18: 0.4 | AE18: 0.064 | AF18: 0.1273241735
A19: 1 | B19: 10 | C19: =INDEX(DEFN!$A$11:$K$60, MATCH($A19, DEFN!$A$11:$A$60, 0), MATCH(C$9, DEFN!$A$10:$K$10, 0)) -> 1.01 | D19: =INDEX(DEFN!$A$11:$K$60, MATCH($A19, DEFN!$A$11:$A$60, 0), MATCH(D$9, DEFN!$A$10:$K$10, 0)) -> Enabling Framework | E19: =INDEX(DEFN!$A$11:$K$60, MATCH($A19, DEFN!$A$11:$A$60, 0), MATCH(E$9, DEFN!$A$10:$K$10, 0)) -> Policy & Regulation | F19: =INDEX(DEFN!$A$11:$K$60, MATCH($A19, DEFN!$A$11:$A$60, 0), MATCH(F$9, DEFN!$A$10:$K$10, 0)) -> Clean energy policies | G19: =INDEX(DEFN!$A$11:$K$60, MATCH($A19, DEFN!$A$11:$A$60, 0), MATCH(G$9, DEFN!$A$10:$K$10, 0)) -> Both | H19: =INDEX(DEFN!$A$11:$K$60, MATCH($A19, DEFN!$A$11:$A$60, 0), MATCH(H$9, DEFN!$A$10:$K$10, 0)) -> None | I19: =INDEX(DEFN!$A$11:$K$60, MATCH($A19, DEFN!$A$11:$A$60, 0), MATCH(I$9, DEFN!$A$10:$K$10, 0)) -> None | J19: =INDEX(DEFN!$A$11:$K$60, MATCH($A19, DEFN!$A$11:$A$60, 0), MATCH(J$9, DEFN!$A$10:$K$10, 0)) -> Policy Types | K19: =INDEX(DEFN!B$263:B$339, MATCH($B19, DEFN!$A$263:$A$339, 0), 1) -> Africa | L19: =INDEX(DEFN!C$263:C$339, MATCH($B19, DEFN!$A$263:$A$339, 0), 1) -> Mozambique | M19: =INDEX(DEFN!$A$11:$K$60, MATCH($A19, DEFN!$A$11:$A$60, 0), MATCH(M$9, DEFN!$A$10:$K$10, 0)) -> User Defined | N19: =INDEX(DEFN!$A$11:$K$60, MATCH($A19, DEFN!$A$11:$A$60, 0), MATCH(N$9, DEFN!$A$10:$K$10, 0)) -> 5 | O19: =IFERROR(IF($H19="None", 1, IF($H19="All Capacity", SUMIFS(SID!X$5:X$14942, SID!$G$5:$G$14942, "<>Power demand", SID!$K$5:$K$14942, $L19, SID!$I$5:$I$14942, $J19), IF($H19="All Generation", SUMIFS(SID!X$5:X$14942, SID!$K$5:$K$14942, $L19, SID!$I$5:$I$14942, $J19), SUMIFS(SID!X$5:X$14942, SID!$F$5:$F$14942, $H19, SID!$K$5:$K$14942, $L19)))), 1) -> 1 | P19: =IF(ISNUMBER(FIND("Growth", F19)), U19, IF(V19<>0,V19, SUMIFS(SID!X$5:X$14942, SID!$C$5:$C$14942, $C19, SID!$K$5:$K$14942, $L19, SID!$Y$5:$Y$14942, 0))) -> 4 | Q19: 1.237583542 | R19: 5 | S19: 24.75167084 | T19: 1.237583542 | U19: =IF(I19="Clean energy investments", IF(OR(W19=0, X19=0), 0, X19/W19-1), IF(OR(I19="None", SUMIFS(SID!X$5:X$14942, SID!$F$5:$F$14942, I19, SID!$K$5:$K$14942, L19, SID!$Y$5:$Y$14942, 0)=0), 0, IFERROR(SUMIFS(SID!X$5:X$14942, SID!$F$5:$F$14942, I19, SID!$K$5:$K$14942, L19, SID!$Y$5:$Y$14942, 0)/SUMIFS(SID!W$5:W$14942, SID!$F$5:$F$14942, I19, SID!$K$5:$K$14942, L19, SID!$Y$5:$Y$14942, 0) - 1, 0))) -> 0 | V19: =IF(J19<>"USDm", 0, IF(F19="Clean energy investments", IF(ISNUMBER(FIND("-", $L19)), SUMIFS(INV!$J$3:$J$20000, INV!$E$3:$E$20000, $L19, INV!$A$3:$A$20000, "<=" & int_Year, INV!$A$3:$A$20000, ">=" & $G$6), SUMIFS(INV!$J$3:$J$20000, INV!$F$3:$F$20000, $L19, INV!$A$3:$A$20000, "<=" & int_Year, INV!$A$3:$A$20000, ">=" & $G$6)), IF(ISNUMBER(FIND("-", $L19)), SUMIFS(INV!$J$3:$J$20000, INV!$E$3:$E$20000, $L19, INV!$I$3:$I$20000, $F19, INV!$A$3:$A$20000, "<=" & int_Year, INV!$A$3:$A$20000, ">=" & $G$6), SUMIFS(INV!$J$3:$J$20000, INV!$F$3:$F$20000, $L19, INV!$I$3:$I$20000, $F19, INV!$A$3:$A$20000, "<=" & int_Year, INV!$A$3:$A$20000, ">=" & $G$6)))) -> 0 | W19: =IF(I19<>"Clean energy investments", 0, IF(ISNUMBER(FIND("-", $L19)), SUMIFS(INV!$J$3:$J$20000, INV!$E$3:$E$20000, $L19, INV!$A$3:$A$20000, ">="& int_InvStartYear, INV!$A$3:$A$20000, "<="& int_Year-1), SUMIFS(INV!$J$3:$J$20000, INV!$F$3:$F$20000, $L19, INV!$A$3:$A$20000, ">="& int_InvStartYear, INV!$A$3:$A$20000, "<="& int_Year-1))) -> 0 | X19: =IF(I19<>"Clean energy investments", 0, IF(ISNUMBER(FIND("-", $L19)), SUMIFS(INV!$J$3:$J$20000, INV!$E$3:$E$20000, $L19, INV!$A$3:$A$20000, ">="& int_InvStartYear, INV!$A$3:$A$20000, "<="& int_Year), SUMIFS(INV!$J$3:$J$20000, INV!$F$3:$F$20000, $L19, INV!$A$3:$A$20000, ">="& int_InvStartYear, INV!$A$3:$A$20000, "<="& int_Year))) -> 0 | Y19: 1.01 > Mozambique | Z19: Off-Grid | AA19: =IFERROR(INDEX(COUNTRY!$C$18:$C$67, MATCH(C19, COUNTRY!$F$18:$F$67, 0), 1), 0) -> 0.4 | AB19: =IFERROR(INDEX(COUNTRY!$E$18:$E$67, MATCH(C19, COUNTRY!$F$18:$F$67, 0), 1), 0) -> 0.4 | AC19: 0.4 | AD19: 0.4 | AE19: 0.064 | AF19: 0.07920534669
A20: 1 | B20: 11 | C20: =INDEX(DEFN!$A$11:$K$60, MATCH($A20, DEFN!$A$11:$A$60, 0), MATCH(C$9, DEFN!$A$10:$K$10, 0)) -> 1.01 | D20: =INDEX(DEFN!$A$11:$K$60, MATCH($A20, DEFN!$A$11:$A$60, 0), MATCH(D$9, DEFN!$A$10:$K$10, 0)) -> Enabling Framework | E20: =INDEX(DEFN!$A$11:$K$60, MATCH($A20, DEFN!$A$11:$A$60, 0), MATCH(E$9, DEFN!$A$10:$K$10, 0)) -> Policy & Regulation | F20: =INDEX(DEFN!$A$11:$K$60, MATCH($A20, DEFN!$A$11:$A$60, 0), MATCH(F$9, DEFN!$A$10:$K$10, 0)) -> Clean energy policies | G20: =INDEX(DEFN!$A$11:$K$60, MATCH($A20, DEFN!$A$11:$A$60, 0), MATCH(G$9, DEFN!$A$10:$K$10, 0)) -> Both | H20: =INDEX(DEFN!$A$11:$K$60, MATCH($A20, DEFN!$A$11:$A$60, 0), MATCH(H$9, DEFN!$A$10:$K$10, 0)) -> None | I20: =INDEX(DEFN!$A$11:$K$60, MATCH($A20, DEFN!$A$11:$A$60, 0), MATCH(I$9, DEFN!$A$10:$K$10, 0)) -> None | J20: =INDEX(DEFN!$A$11:$K$60, MATCH($A20, DEFN!$A$11:$A$60, 0), MATCH(J$9, DEFN!$A$10:$K$10, 0)) -> Policy Types | K20: =INDEX(DEFN!B$263:B$339, MATCH($B20, DEFN!$A$263:$A$339, 0), 1) -> Africa | L20: =INDEX(DEFN!C$263:C$339, MATCH($B20, DEFN!$A$263:$A$339, 0), 1) -> Nigeria | M20: =INDEX(DEFN!$A$11:$K$60, MATCH($A20, DEFN!$A$11:$A$60, 0), MATCH(M$9, DEFN!$A$10:$K$10, 0)) -> User Defined | N20: =INDEX(DEFN!$A$11:$K$60, MATCH($A20, DEFN!$A$11:$A$60, 0), MATCH(N$9, DEFN!$A$10:$K$10, 0)) -> 5 | O20: =IFERROR(IF($H20="None", 1, IF($H20="All Capacity", SUMIFS(SID!X$5:X$14942, SID!$G$5:$G$14942, "<>Power demand", SID!$K$5:$K$14942, $L20, SID!$I$5:$I$14942, $J20), IF($H20="All Generation", SUMIFS(SID!X$5:X$14942, SID!$K$5:$K$14942, $L20, SID!$I$5:$I$14942, $J20), SUMIFS(SID!X$5:X$14942, SID!$F$5:$F$14942, $H20, SID!$K$5:$K$14942, $L20)))), 1) -> 1 | P20: =IF(ISNUMBER(FIND("Growth", F20)), U20, IF(V20<>0,V20, SUMIFS(SID!X$5:X$14942, SID!$C$5:$C$14942, $C20, SID!$K$5:$K$14942, $L20, SID!$Y$5:$Y$14942, 0))) -> 7 | Q20: 1.905252091 | R20: 5 | S20: 38.10504183 | T20: 1.905252091 | U20: =IF(I20="Clean energy investments", IF(OR(W20=0, X20=0), 0, X20/W20-1), IF(OR(I20="None", SUMIFS(SID!X$5:X$14942, SID!$F$5:$F$14942, I20, SID!$K$5:$K$14942, L20, SID!$Y$5:$Y$14942, 0)=0), 0, IFERROR(SUMIFS(SID!X$5:X$14942, SID!$F$5:$F$14942, I20, SID!$K$5:$K$14942, L20, SID!$Y$5:$Y$14942, 0)/SUMIFS(SID!W$5:W$14942, SID!$F$5:$F$14942, I20, SID!$K$5:$K$14942, L20, SID!$Y$5:$Y$14942, 0) - 1, 0))) -> 0 | V20: =IF(J20<>"USDm", 0, IF(F20="Clean energy investments", IF(ISNUMBER(FIND("-", $L20)), SUMIFS(INV!$J$3:$J$20000, INV!$E$3:$E$20000, $L20, INV!$A$3:$A$20000, "<=" & int_Year, INV!$A$3:$A$20000, ">=" & $G$6), SUMIFS(INV!$J$3:$J$20000, INV!$F$3:$F$20000, $L20, INV!$A$3:$A$20000, "<=" & int_Year, INV!$A$3:$A$20000, ">=" & $G$6)), IF(ISNUMBER(FIND("-", $L20)), SUMIFS(INV!$J$3:$J$20000, INV!$E$3:$E$20000, $L20, INV!$I$3:$I$20000, $F20, INV!$A$3:$A$20000, "<=" & int_Year, INV!$A$3:$A$20000, ">=" & $G$6), SUMIFS(INV!$J$3:$J$20000, INV!$F$3:$F$20000, $L20, INV!$I$3:$I$20000, $F20, INV!$A$3:$A$20000, "<=" & int_Year, INV!$A$3:$A$20000, ">=" & $G$6)))) -> 0 | W20: =IF(I20<>"Clean energy investments", 0, IF(ISNUMBER(FIND("-", $L20)), SUMIFS(INV!$J$3:$J$20000, INV!$E$3:$E$20000, $L20, INV!$A$3:$A$20000, ">="& int_InvStartYear, INV!$A$3:$A$20000, "<="& int_Year-1), SUMIFS(INV!$J$3:$J$20000, INV!$F$3:$F$20000, $L20, INV!$A$3:$A$20000, ">="& int_InvStartYear, INV!$A$3:$A$20000, "<="& int_Year-1))) -> 0 | X20: =IF(I20<>"Clean energy investments", 0, IF(ISNUMBER(FIND("-", $L20)), SUMIFS(INV!$J$3:$J$20000, INV!$E$3:$E$20000, $L20, INV!$A$3:$A$20000, ">="& int_InvStartYear, INV!$A$3:$A$20000, "<="& int_Year), SUMIFS(INV!$J$3:$J$20000, INV!$F$3:$F$20000, $L20, INV!$A$3:$A$20000, ">="& int_InvStartYear, INV!$A$3:$A$20000, "<="& int_Year))) -> 0 | Y20: 1.01 > Nigeria | Z20: Off-Grid | AA20: =IFERROR(INDEX(COUNTRY!$C$18:$C$67, MATCH(C20, COUNTRY!$F$18:$F$67, 0), 1), 0) -> 0.4 | AB20: =IFERROR(INDEX(COUNTRY!$E$18:$E$67, MATCH(C20, COUNTRY!$F$18:$F$67, 0), 1), 0) -> 0.4 | AC20: 0.4 | AD20: 0.4 | AE20: =AA20*AB20*AD20 -> 0.064 | AF20: 0.1219361339
A21: 1 | B21: 12 | C21: =INDEX(DEFN!$A$11:$K$60, MATCH($A21, DEFN!$A$11:$A$60, 0), MATCH(C$9, DEFN!$A$10:$K$10, 0)) -> 1.01 | D21: =INDEX(DEFN!$A$11:$K$60, MATCH($A21, DEFN!$A$11:$A$60, 0), MATCH(D$9, DEFN!$A$10:$K$10, 0)) -> Enabling Framework | E21: =INDEX(DEFN!$A$11:$K$60, MATCH($A21, DEFN!$A$11:$A$60, 0), MATCH(E$9, DEFN!$A$10:$K$10, 0)) -> Policy & Regulation | F21: =INDEX(DEFN!$A$11:$K$60, MATCH($A21, DEFN!$A$11:$A$60, 0), MATCH(F$9, DEFN!$A$10:$K$10, 0)) -> Clean energy policies | G21: =INDEX(DEFN!$A$11:$K$60, MATCH($A21, DEFN!$A$11:$A$60, 0), MATCH(G$9, DEFN!$A$10:$K$10, 0)) -> Both | H21: =INDEX(DEFN!$A$11:$K$60, MATCH($A21, DEFN!$A$11:$A$60, 0), MATCH(H$9, DEFN!$A$10:$K$10, 0)) -> None | I21: =INDEX(DEFN!$A$11:$K$60, MATCH($A21, DEFN!$A$11:$A$60, 0), MATCH(I$9, DEFN!$A$10:$K$10, 0)) -> None | J21: =INDEX(DEFN!$A$11:$K$60, MATCH($A21, DEFN!$A$11:$A$60, 0), MATCH(J$9, DEFN!$A$10:$K$10, 0)) -> Policy Types | K21: =INDEX(DEFN!B$263:B$339, MATCH($B21, DEFN!$A$263:$A$339, 0), 1) -> Africa | L21: =INDEX(DEFN!C$263:C$339, MATCH($B21, DEFN!$A$263:$A$339, 0), 1) -> Rwanda | M21: =INDEX(DEFN!$A$11:$K$60, MATCH($A21, DEFN!$A$11:$A$60, 0), MATCH(M$9, DEFN!$A$10:$K$10, 0)) -> User Defined | N21: =INDEX(DEFN!$A$11:$K$60, MATCH($A21, DEFN!$A$11:$A$60, 0), MATCH(N$9, DEFN!$A$10:$K$10, 0)) -> 5 | O21: =IFERROR(IF($H21="None", 1, IF($H21="All Capacity", SUMIFS(SID!X$5:X$14942, SID!$G$5:$G$14942, "<>Power demand", SID!$K$5:$K$14942, $L21, SID!$I$5:$I$14942, $J21), IF($H21="All Generation", SUMIFS(SID!X$5:X$14942, SID!$K$5:$K$14942, $L21, SID!$I$5:$I$14942, $J21), SUMIFS(SID!X$5:X$14942, SID!$F$5:$F$14942, $H21, SID!$K$5:$K$14942, $L21)))), 1) -> 1 | P21: =IF(ISNUMBER(FIND("Growth", F21)), U21, IF(V21<>0,V21, SUMIFS(SID!X$5:X$14942, SID!$C$5:$C$14942, $C21, SID!$K$5:$K$14942, $L21, SID!$Y$5:$Y$14942, 0))) -> 5 | Q21: 2.269515878 | R21: 5 | S21: 45.39031755 | T21: 2.269515878 | U21: =IF(I21="Clean energy investments", IF(OR(W21=0, X21=0), 0, X21/W21-1), IF(OR(I21="None", SUMIFS(SID!X$5:X$14942, SID!$F$5:$F$14942, I21, SID!$K$5:$K$14942, L21, SID!$Y$5:$Y$14942, 0)=0), 0, IFERROR(SUMIFS(SID!X$5:X$14942, SID!$F$5:$F$14942, I21, SID!$K$5:$K$14942, L21, SID!$Y$5:$Y$14942, 0)/SUMIFS(SID!W$5:W$14942, SID!$F$5:$F$14942, I21, SID!$K$5:$K$14942, L21, SID!$Y$5:$Y$14942, 0) - 1, 0))) -> 0 | V21: =IF(J21<>"USDm", 0, IF(F21="Clean energy investments", IF(ISNUMBER(FIND("-", $L21)), SUMIFS(INV!$J$3:$J$20000, INV!$E$3:$E$20000, $L21, INV!$A$3:$A$20000, "<=" & int_Year, INV!$A$3:$A$20000, ">=" & $G$6), SUMIFS(INV!$J$3:$J$20000, INV!$F$3:$F$20000, $L21, INV!$A$3:$A$20000, "<=" & int_Year, INV!$A$3:$A$20000, ">=" & $G$6)), IF(ISNUMBER(FIND("-", $L21)), SUMIFS(INV!$J$3:$J$20000, INV!$E$3:$E$20000, $L21, INV!$I$3:$I$20000, $F21, INV!$A$3:$A$20000, "<=" & int_Year, INV!$A$3:$A$20000, ">=" & $G$6), SUMIFS(INV!$J$3:$J$20000, INV!$F$3:$F$20000, $L21, INV!$I$3:$I$20000, $F21, INV!$A$3:$A$20000, "<=" & int_Year, INV!$A$3:$A$20000, ">=" & $G$6)))) -> 0 | W21: =IF(I21<>"Clean energy investments", 0, IF(ISNUMBER(FIND("-", $L21)), SUMIFS(INV!$J$3:$J$20000, INV!$E$3:$E$20000, $L21, INV!$A$3:$A$20000, ">="& int_InvStartYear, INV!$A$3:$A$20000, "<="& int_Year-1), SUMIFS(INV!$J$3:$J$20000, INV!$F$3:$F$20000, $L21, INV!$A$3:$A$20000, ">="& int_InvStartYear, INV!$A$3:$A$20000, "<="& int_Year-1))) -> 0 | X21: =IF(I21<>"Clean energy investments", 0, IF(ISNUMBER(FIND("-", $L21)), SUMIFS(INV!$J$3:$J$20000, INV!$E$3:$E$20000, $L21, INV!$A$3:$A$20000, ">="& int_InvStartYear, INV!$A$3:$A$20000, "<="& int_Year), SUMIFS(INV!$J$3:$J$20000, INV!$F$3:$F$20000, $L21, INV!$A$3:$A$20000, ">="& int_InvStartYear, INV!$A$3:$A$20000, "<="& int_Year))) -> 0 | Y21: 1.01 > Rwanda | Z21: Off-Grid | AA21: =IFERROR(INDEX(COUNTRY!$C$18:$C$67, MATCH(C21, COUNTRY!$F$18:$F$67, 0), 1), 0) -> 0.4 | AB21: =IFERROR(INDEX(COUNTRY!$E$18:$E$67, MATCH(C21, COUNTRY!$F$18:$F$67, 0), 1), 0) -> 0.4 | AC21: 0.4 | AD21: 0.4 | AE21: =AA21*AB21*AD21 -> 0.064 | AF21: 0.1452490162
A22: 1 | B22: 13 | C22: =INDEX(DEFN!$A$11:$K$60, MATCH($A22, DEFN!$A$11:$A$60, 0), MATCH(C$9, DEFN!$A$10:$K$10, 0)) -> 1.01 | D22: =INDEX(DEFN!$A$11:$K$60, MATCH($A22, DEFN!$A$11:$A$60, 0), MATCH(D$9, DEFN!$A$10:$K$10, 0)) -> Enabling Framework | E22: =INDEX(DEFN!$A$11:$K$60, MATCH($A22, DEFN!$A$11:$A$60, 0), MATCH(E$9, DEFN!$A$10:$K$10, 0)) -> Policy & Regulation | F22: =INDEX(DEFN!$A$11:$K$60, MATCH($A22, DEFN!$A$11:$A$60, 0), MATCH(F$9, DEFN!$A$10:$K$10, 0)) -> Clean energy policies | G22: =INDEX(DEFN!$A$11:$K$60, MATCH($A22, DEFN!$A$11:$A$60, 0), MATCH(G$9, DEFN!$A$10:$K$10, 0)) -> Both | H22: =INDEX(DEFN!$A$11:$K$60, MATCH($A22, DEFN!$A$11:$A$60, 0), MATCH(H$9, DEFN!$A$10:$K$10, 0)) -> None | I22: =INDEX(DEFN!$A$11:$K$60, MATCH($A22, DEFN!$A$11:$A$60, 0), MATCH(I$9, DEFN!$A$10:$K$10, 0)) -> None | J22: =INDEX(DEFN!$A$11:$K$60, MATCH($A22, DEFN!$A$11:$A$60, 0), MATCH(J$9, DEFN!$A$10:$K$10, 0)) -> Policy Types | K22: =INDEX(DEFN!B$263:B$339, MATCH($B22, DEFN!$A$263:$A$339, 0), 1) -> Africa | L22: =INDEX(DEFN!C$263:C$339, MATCH($B22, DEFN!$A$263:$A$339, 0), 1) -> Senegal | M22: =INDEX(DEFN!$A$11:$K$60, MATCH($A22, DEFN!$A$11:$A$60, 0), MATCH(M$9, DEFN!$A$10:$K$10, 0)) -> User Defined | N22: =INDEX(DEFN!$A$11:$K$60, MATCH($A22, DEFN!$A$11:$A$60, 0), MATCH(N$9, DEFN!$A$10:$K$10, 0)) -> 5 | O22: =IFERROR(IF($H22="None", 1, IF($H22="All Capacity", SUMIFS(SID!X$5:X$14942, SID!$G$5:$G$14942, "<>Power demand", SID!$K$5:$K$14942, $L22, SID!$I$5:$I$14942, $J22), IF($H22="All Generation", SUMIFS(SID!X$5:X$14942, SID!$K$5:$K$14942, $L22, SID!$I$5:$I$14942, $J22), SUMIFS(SID!X$5:X$14942, SID!$F$5:$F$14942, $H22, SID!$K$5:$K$14942, $L22)))), 1) -> 1 | P22: =IF(ISNUMBER(FIND("Growth", F22)), U22, IF(V22<>0,V22, SUMIFS(SID!X$5:X$14942, SID!$C$5:$C$14942, $C22, SID!$K$5:$K$14942, $L22, SID!$Y$5:$Y$14942, 0))) -> 3 | Q22: 1.293179552 | R22: 5 | S22: 25.86359105 | T22: 1.293179552 | U22: =IF(I22="Clean energy investments", IF(OR(W22=0, X22=0), 0, X22/W22-1), IF(OR(I22="None", SUMIFS(SID!X$5:X$14942, SID!$F$5:$F$14942, I22, SID!$K$5:$K$14942, L22, SID!$Y$5:$Y$14942, 0)=0), 0, IFERROR(SUMIFS(SID!X$5:X$14942, SID!$F$5:$F$14942, I22, SID!$K$5:$K$14942, L22, SID!$Y$5:$Y$14942, 0)/SUMIFS(SID!W$5:W$14942, SID!$F$5:$F$14942, I22, SID!$K$5:$K$14942, L22, SID!$Y$5:$Y$14942, 0) - 1, 0))) -> 0 | V22: =IF(J22<>"USDm", 0, IF(F22="Clean energy investments", IF(ISNUMBER(FIND("-", $L22)), SUMIFS(INV!$J$3:$J$20000, INV!$E$3:$E$20000, $L22, INV!$A$3:$A$20000, "<=" & int_Year, INV!$A$3:$A$20000, ">=" & $G$6), SUMIFS(INV!$J$3:$J$20000, INV!$F$3:$F$20000, $L22, INV!$A$3:$A$20000, "<=" & int_Year, INV!$A$3:$A$20000, ">=" & $G$6)), IF(ISNUMBER(FIND("-", $L22)), SUMIFS(INV!$J$3:$J$20000, INV!$E$3:$E$20000, $L22, INV!$I$3:$I$20000, $F22, INV!$A$3:$A$20000, "<=" & int_Year, INV!$A$3:$A$20000, ">=" & $G$6), SUMIFS(INV!$J$3:$J$20000, INV!$F$3:$F$20000, $L22, INV!$I$3:$I$20000, $F22, INV!$A$3:$A$20000, "<=" & int_Year, INV!$A$3:$A$20000, ">=" & $G$6)))) -> 0 | W22: =IF(I22<>"Clean energy investments", 0, IF(ISNUMBER(FIND("-", $L22)), SUMIFS(INV!$J$3:$J$20000, INV!$E$3:$E$20000, $L22, INV!$A$3:$A$20000, ">="& int_InvStartYear, INV!$A$3:$A$20000, "<="& int_Year-1), SUMIFS(INV!$J$3:$J$20000, INV!$F$3:$F$20000, $L22, INV!$A$3:$A$20000, ">="& int_InvStartYear, INV!$A$3:$A$20000, "<="& int_Year-1))) -> 0 | X22: =IF(I22<>"Clean energy investments", 0, IF(ISNUMBER(FIND("-", $L22)), SUMIFS(INV!$J$3:$J$20000, INV!$E$3:$E$20000, $L22, INV!$A$3:$A$20000, ">="& int_InvStartYear, INV!$A$3:$A$20000, "<="& int_Year), SUMIFS(INV!$J$3:$J$20000, INV!$F$3:$F$20000, $L22, INV!$A$3:$A$20000, ">="& int_InvStartYear, INV!$A$3:$A$20000, "<="& int_Year))) -> 0 | Y22: 1.01 > Senegal | Z22: Off-Grid | AA22: =IFERROR(INDEX(COUNTRY!$C$18:$C$67, MATCH(C22, COUNTRY!$F$18:$F$67, 0), 1), 0) -> 0.4 | AB22: =IFERROR(INDEX(COUNTRY!$E$18:$E$67, MATCH(C22, COUNTRY!$F$18:$F$67, 0), 1), 0) -> 0.4 | AC22: 0.4 | AD22: 0.4 | AE22: 0.064 | AF22: 0.08276349135
A23: 1 | B23: 14 | C23: =INDEX(DEFN!$A$11:$K$60, MATCH($A23, DEFN!$A$11:$A$60, 0), MATCH(C$9, DEFN!$A$10:$K$10, 0)) -> 1.01 | D23: =INDEX(DEFN!$A$11:$K$60, MATCH($A23, DEFN!$A$11:$A$60, 0), MATCH(D$9, DEFN!$A$10:$K$10, 0)) -> Enabling Framework | E23: =INDEX(DEFN!$A$11:$K$60, MATCH($A23, DEFN!$A$11:$A$60, 0), MATCH(E$9, DEFN!$A$10:$K$10, 0)) -> Policy & Regulation | F23: =INDEX(DEFN!$A$11:$K$60, MATCH($A23, DEFN!$A$11:$A$60, 0), MATCH(F$9, DEFN!$A$10:$K$10, 0)) -> Clean energy policies | G23: =INDEX(DEFN!$A$11:$K$60, MATCH($A23, DEFN!$A$11:$A$60, 0), MATCH(G$9, DEFN!$A$10:$K$10, 0)) -> Both | H23: =INDEX(DEFN!$A$11:$K$60, MATCH($A23, DEFN!$A$11:$A$60, 0), MATCH(H$9, DEFN!$A$10:$K$10, 0)) -> None | I23: =INDEX(DEFN!$A$11:$K$60, MATCH($A23, DEFN!$A$11:$A$60, 0), MATCH(I$9, DEFN!$A$10:$K$10, 0)) -> None | J23: =INDEX(DEFN!$A$11:$K$60, MATCH($A23, DEFN!$A$11:$A$60, 0), MATCH(J$9, DEFN!$A$10:$K$10, 0)) -> Policy Types | K23: =INDEX(DEFN!B$263:B$339, MATCH($B23, DEFN!$A$263:$A$339, 0), 1) -> Africa | L23: =INDEX(DEFN!C$263:C$339, MATCH($B23, DEFN!$A$263:$A$339, 0), 1) -> Sierra Leone | M23: =INDEX(DEFN!$A$11:$K$60, MATCH($A23, DEFN!$A$11:$A$60, 0), MATCH(M$9, DEFN!$A$10:$K$10, 0)) -> User Defined | N23: =INDEX(DEFN!$A$11:$K$60, MATCH($A23, DEFN!$A$11:$A$60, 0), MATCH(N$9, DEFN!$A$10:$K$10, 0)) -> 5 | O23: =IFERROR(IF($H23="None", 1, IF($H23="All Capacity", SUMIFS(SID!X$5:X$14942, SID!$G$5:$G$14942, "<>Power demand", SID!$K$5:$K$14942, $L23, SID!$I$5:$I$14942, $J23), IF($H23="All Generation", SUMIFS(SID!X$5:X$14942, SID!$K$5:$K$14942, $L23, SID!$I$5:$I$14942, $J23), SUMIFS(SID!X$5:X$14942, SID!$F$5:$F$14942, $H23, SID!$K$5:$K$14942, $L23)))), 1) -> 1 | P23: =IF(ISNUMBER(FIND("Growth", F23)), U23, IF(V23<>0,V23, SUMIFS(SID!X$5:X$14942, SID!$C$5:$C$14942, $C23, SID!$K$5:$K$14942, $L23, SID!$Y$5:$Y$14942, 0))) -> 2 | Q23: =IFERROR(IF(ISNUMBER(T23), MAX(T23/O23, 0), MAX(IF(LEFT(F23, 11)="Growth rate", MIN(P23, dbl_GrowthCap), P23)/O23, 0)), 0) -> 0.6127780379 | R23: =IF(F23<>F22, IFERROR(IF(M23="User Defined", $N23, IF(M23="Min", SMALL(Q23:Q99, COUNTIF(Q23:Q99, 0)+1), IF(M23="Max", MAX(Q23:Q99), IF(M23="Average", AVERAGEIF(Q23:Q99, "<>0"), IF(M23="Total", SUM(Q23:Q99), 0))))), 0),R22) -> 5 | S23: =IFERROR(dbl_BenchmarkMax*IF(M23="Min", R23/Q23, Q23/R23), 0) -> 12.25556076 | T23: 0.6127780379 | U23: =IF(I23="Clean energy investments", IF(OR(W23=0, X23=0), 0, X23/W23-1), IF(OR(I23="None", SUMIFS(SID!X$5:X$14942, SID!$F$5:$F$14942, I23, SID!$K$5:$K$14942, L23, SID!$Y$5:$Y$14942, 0)=0), 0, IFERROR(SUMIFS(SID!X$5:X$14942, SID!$F$5:$F$14942, I23, SID!$K$5:$K$14942, L23, SID!$Y$5:$Y$14942, 0)/SUMIFS(SID!W$5:W$14942, SID!$F$5:$F$14942, I23, SID!$K$5:$K$14942, L23, SID!$Y$5:$Y$14942, 0) - 1, 0))) -> 0 | V23: =IF(J23<>"USDm", 0, IF(F23="Clean energy investments", IF(ISNUMBER(FIND("-", $L23)), SUMIFS(INV!$J$3:$J$20000, INV!$E$3:$E$20000, $L23, INV!$A$3:$A$20000, "<=" & int_Year, INV!$A$3:$A$20000, ">=" & $G$6), SUMIFS(INV!$J$3:$J$20000, INV!$F$3:$F$20000, $L23, INV!$A$3:$A$20000, "<=" & int_Year, INV!$A$3:$A$20000, ">=" & $G$6)), IF(ISNUMBER(FIND("-", $L23)), SUMIFS(INV!$J$3:$J$20000, INV!$E$3:$E$20000, $L23, INV!$I$3:$I$20000, $F23, INV!$A$3:$A$20000, "<=" & int_Year, INV!$A$3:$A$20000, ">=" & $G$6), SUMIFS(INV!$J$3:$J$20000, INV!$F$3:$F$20000, $L23, INV!$I$3:$I$20000, $F23, INV!$A$3:$A$20000, "<=" & int_Year, INV!$A$3:$A$20000, ">=" & $G$6)))) -> 0 | W23: =IF(I23<>"Clean energy investments", 0, IF(ISNUMBER(FIND("-", $L23)), SUMIFS(INV!$J$3:$J$20000, INV!$E$3:$E$20000, $L23, INV!$A$3:$A$20000, ">="& int_InvStartYear, INV!$A$3:$A$20000, "<="& int_Year-1), SUMIFS(INV!$J$3:$J$20000, INV!$F$3:$F$20000, $L23, INV!$A$3:$A$20000, ">="& int_InvStartYear, INV!$A$3:$A$20000, "<="& int_Year-1))) -> 0 | X23: =IF(I23<>"Clean energy investments", 0, IF(ISNUMBER(FIND("-", $L23)), SUMIFS(INV!$J$3:$J$20000, INV!$E$3:$E$20000, $L23, INV!$A$3:$A$20000, ">="& int_InvStartYear, INV!$A$3:$A$20000, "<="& int_Year), SUMIFS(INV!$J$3:$J$20000, INV!$F$3:$F$20000, $L23, INV!$A$3:$A$20000, ">="& int_InvStartYear, INV!$A$3:$A$20000, "<="& int_Year))) -> 0 | Y23: 1.01 > Sierra Leone | Z23: Off-Grid | AA23: =IFERROR(INDEX(COUNTRY!$C$18:$C$67, MATCH(C23, COUNTRY!$F$18:$F$67, 0), 1), 0) -> 0.4 | AB23: =IFERROR(INDEX(COUNTRY!$E$18:$E$67, MATCH(C23, COUNTRY!$F$18:$F$67, 0), 1), 0) -> 0.4 | AC23: 0.4 | AD23: 0.4 | AE23: 0.064 | AF23: 0.03921779443
A24: 1 | B24: 15 | C24: =INDEX(DEFN!$A$11:$K$60, MATCH($A24, DEFN!$A$11:$A$60, 0), MATCH(C$9, DEFN!$A$10:$K$10, 0)) -> 1.01 | D24: =INDEX(DEFN!$A$11:$K$60, MATCH($A24, DEFN!$A$11:$A$60, 0), MATCH(D$9, DEFN!$A$10:$K$10, 0)) -> Enabling Framework | E24: =INDEX(DEFN!$A$11:$K$60, MATCH($A24, DEFN!$A$11:$A$60, 0), MATCH(E$9, DEFN!$A$10:$K$10, 0)) -> Policy & Regulation | F24: =INDEX(DEFN!$A$11:$K$60, MATCH($A24, DEFN!$A$11:$A$60, 0), MATCH(F$9, DEFN!$A$10:$K$10, 0)) -> Clean energy policies | G24: =INDEX(DEFN!$A$11:$K$60, MATCH($A24, DEFN!$A$11:$A$60, 0), MATCH(G$9, DEFN!$A$10:$K$10, 0)) -> Both | H24: =INDEX(DEFN!$A$11:$K$60, MATCH($A24, DEFN!$A$11:$A$60, 0), MATCH(H$9, DEFN!$A$10:$K$10, 0)) -> None | I24: =INDEX(DEFN!$A$11:$K$60, MATCH($A24, DEFN!$A$11:$A$60, 0), MATCH(I$9, DEFN!$A$10:$K$10, 0)) -> None | J24: =INDEX(DEFN!$A$11:$K$60, MATCH($A24, DEFN!$A$11:$A$60, 0), MATCH(J$9, DEFN!$A$10:$K$10, 0)) -> Policy Types | K24: =INDEX(DEFN!B$263:B$339, MATCH($B24, DEFN!$A$263:$A$339, 0), 1) -> Africa | L24: =INDEX(DEFN!C$263:C$339, MATCH($B24, DEFN!$A$263:$A$339, 0), 1) -> South Africa | M24: =INDEX(DEFN!$A$11:$K$60, MATCH($A24, DEFN!$A$11:$A$60, 0), MATCH(M$9, DEFN!$A$10:$K$10, 0)) -> User Defined | N24: =INDEX(DEFN!$A$11:$K$60, MATCH($A24, DEFN!$A$11:$A$60, 0), MATCH(N$9, DEFN!$A$10:$K$10, 0)) -> 5 | O24: =IFERROR(IF($H24="None", 1, IF($H24="All Capacity", SUMIFS(SID!X$5:X$14942, SID!$G$5:$G$14942, "<>Power demand", SID!$K$5:$K$14942, $L24, SID!$I$5:$I$14942, $J24), IF($H24="All Generation", SUMIFS(SID!X$5:X$14942, SID!$K$5:$K$14942, $L24, SID!$I$5:$I$14942, $J24), SUMIFS(SID!X$5:X$14942, SID!$F$5:$F$14942, $H24, SID!$K$5:$K$14942, $L24)))), 1) -> 1 | P24: =IF(ISNUMBER(FIND("Growth", F24)), U24, IF(V24<>0,V24, SUMIFS(SID!X$5:X$14942, SID!$C$5:$C$14942, $C24, SID!$K$5:$K$14942, $L24, SID!$Y$5:$Y$14942, 0))) -> 4 | Q24: 1.533812205 | R24: 5 | S24: 30.67624409 | T24: 1.533812205 | U24: =IF(I24="Clean energy investments", IF(OR(W24=0, X24=0), 0, X24/W24-1), IF(OR(I24="None", SUMIFS(SID!X$5:X$14942, SID!$F$5:$F$14942, I24, SID!$K$5:$K$14942, L24, SID!$Y$5:$Y$14942, 0)=0), 0, IFERROR(SUMIFS(SID!X$5:X$14942, SID!$F$5:$F$14942, I24, SID!$K$5:$K$14942, L24, SID!$Y$5:$Y$14942, 0)/SUMIFS(SID!W$5:W$14942, SID!$F$5:$F$14942, I24, SID!$K$5:$K$14942, L24, SID!$Y$5:$Y$14942, 0) - 1, 0))) -> 0 | V24: =IF(J24<>"USDm", 0, IF(F24="Clean energy investments", IF(ISNUMBER(FIND("-", $L24)), SUMIFS(INV!$J$3:$J$20000, INV!$E$3:$E$20000, $L24, INV!$A$3:$A$20000, "<=" & int_Year, INV!$A$3:$A$20000, ">=" & $G$6), SUMIFS(INV!$J$3:$J$20000, INV!$F$3:$F$20000, $L24, INV!$A$3:$A$20000, "<=" & int_Year, INV!$A$3:$A$20000, ">=" & $G$6)), IF(ISNUMBER(FIND("-", $L24)), SUMIFS(INV!$J$3:$J$20000, INV!$E$3:$E$20000, $L24, INV!$I$3:$I$20000, $F24, INV!$A$3:$A$20000, "<=" & int_Year, INV!$A$3:$A$20000, ">=" & $G$6), SUMIFS(INV!$J$3:$J$20000, INV!$F$3:$F$20000, $L24, INV!$I$3:$I$20000, $F24, INV!$A$3:$A$20000, "<=" & int_Year, INV!$A$3:$A$20000, ">=" & $G$6)))) -> 0 | W24: =IF(I24<>"Clean energy investments", 0, IF(ISNUMBER(FIND("-", $L24)), SUMIFS(INV!$J$3:$J$20000, INV!$E$3:$E$20000, $L24, INV!$A$3:$A$20000, ">="& int_InvStartYear, INV!$A$3:$A$20000, "<="& int_Year-1), SUMIFS(INV!$J$3:$J$20000, INV!$F$3:$F$20000, $L24, INV!$A$3:$A$20000, ">="& int_InvStartYear, INV!$A$3:$A$20000, "<="& int_Year-1))) -> 0 | X24: =IF(I24<>"Clean energy investments", 0, IF(ISNUMBER(FIND("-", $L24)), SUMIFS(INV!$J$3:$J$20000, INV!$E$3:$E$20000, $L24, INV!$A$3:$A$20000, ">="& int_InvStartYear, INV!$A$3:$A$20000, "<="& int_Year), SUMIFS(INV!$J$3:$J$20000, INV!$F$3:$F$20000, $L24, INV!$A$3:$A$20000, ">="& int_InvStartYear, INV!$A$3:$A$20000, "<="& int_Year))) -> 0 | Y24: =C24&" > " &L24 -> 1.01 > South Africa | Z24: On-Grid | AA24: =IFERROR(INDEX(COUNTRY!$C$18:$C$67, MATCH(C24, COUNTRY!$F$18:$F$67, 0), 1), 0) -> 0.4 | AB24: =IFERROR(INDEX(COUNTRY!$E$18:$E$67, MATCH(C24, COUNTRY!$F$18:$F$67, 0), 1), 0) -> 0.4 | AC24: 0.6 | AD24: 0.6 | AE24: 0.096 | AF24: 0.1472459716
A25: 1 | B25: 16 | C25: =INDEX(DEFN!$A$11:$K$60, MATCH($A25, DEFN!$A$11:$A$60, 0), MATCH(C$9, DEFN!$A$10:$K$10, 0)) -> 1.01 | D25: =INDEX(DEFN!$A$11:$K$60, MATCH($A25, DEFN!$A$11:$A$60, 0), MATCH(D$9, DEFN!$A$10:$K$10, 0)) -> Enabling Framework | E25: =INDEX(DEFN!$A$11:$K$60, MATCH($A25, DEFN!$A$11:$A$60, 0), MATCH(E$9, DEFN!$A$10:$K$10, 0)) -> Policy & Regulation | F25: =INDEX(DEFN!$A$11:$K$60, MATCH($A25, DEFN!$A$11:$A$60, 0), MATCH(F$9, DEFN!$A$10:$K$10, 0)) -> Clean energy policies | G25: =INDEX(DEFN!$A$11:$K$60, MATCH($A25, DEFN!$A$11:$A$60, 0), MATCH(G$9, DEFN!$A$10:$K$10, 0)) -> Both | H25: =INDEX(DEFN!$A$11:$K$60, MATCH($A25, DEFN!$A$11:$A$60, 0), MATCH(H$9, DEFN!$A$10:$K$10, 0)) -> None | I25: =INDEX(DEFN!$A$11:$K$60, MATCH($A25, DEFN!$A$11:$A$60, 0), MATCH(I$9, DEFN!$A$10:$K$10, 0)) -> None | J25: =INDEX(DEFN!$A$11:$K$60, MATCH($A25, DEFN!$A$11:$A$60, 0), MATCH(J$9, DEFN!$A$10:$K$10, 0)) -> Policy Types | K25: =INDEX(DEFN!B$263:B$339, MATCH($B25, DEFN!$A$263:$A$339, 0), 1) -> Africa | L25: =INDEX(DEFN!C$263:C$339, MATCH($B25, DEFN!$A$263:$A$339, 0), 1) -> Tanzania | M25: =INDEX(DEFN!$A$11:$K$60, MATCH($A25, DEFN!$A$11:$A$60, 0), MATCH(M$9, DEFN!$A$10:$K$10, 0)) -> User Defined | N25: =INDEX(DEFN!$A$11:$K$60, MATCH($A25, DEFN!$A$11:$A$60, 0), MATCH(N$9, DEFN!$A$10:$K$10, 0)) -> 5 | O25: =IFERROR(IF($H25="None", 1, IF($H25="All Capacity", SUMIFS(SID!X$5:X$14942, SID!$G$5:$G$14942, "<>Power demand", SID!$K$5:$K$14942, $L25, SID!$I$5:$I$14942, $J25), IF($H25="All Generation", SUMIFS(SID!X$5:X$14942, SID!$K$5:$K$14942, $L25, SID!$I$5:$I$14942, $J25), SUMIFS(SID!X$5:X$14942, SID!$F$5:$F$14942, $H25, SID!$K$5:$K$14942, $L25)))), 1) -> 1 | P25: =IF(ISNUMBER(FIND("Growth", F25)), U25, IF(V25<>0,V25, SUMIFS(SID!X$5:X$14942, SID!$C$5:$C$14942, $C25, SID!$K$5:$K$14942, $L25, SID!$Y$5:$Y$14942, 0))) -> 4 | Q25: 1.263400362 | R25: 5 | S25: 25.26800723 | T25: 1.263400362 | U25: =IF(I25="Clean energy investments", IF(OR(W25=0, X25=0), 0, X25/W25-1), IF(OR(I25="None", SUMIFS(SID!X$5:X$14942, SID!$F$5:$F$14942, I25, SID!$K$5:$K$14942, L25, SID!$Y$5:$Y$14942, 0)=0), 0, IFERROR(SUMIFS(SID!X$5:X$14942, SID!$F$5:$F$14942, I25, SID!$K$5:$K$14942, L25, SID!$Y$5:$Y$14942, 0)/SUMIFS(SID!W$5:W$14942, SID!$F$5:$F$14942, I25, SID!$K$5:$K$14942, L25, SID!$Y$5:$Y$14942, 0) - 1, 0))) -> 0 | V25: =IF(J25<>"USDm", 0, IF(F25="Clean energy investments", IF(ISNUMBER(FIND("-", $L25)), SUMIFS(INV!$J$3:$J$20000, INV!$E$3:$E$20000, $L25, INV!$A$3:$A$20000, "<=" & int_Year, INV!$A$3:$A$20000, ">=" & $G$6), SUMIFS(INV!$J$3:$J$20000, INV!$F$3:$F$20000, $L25, INV!$A$3:$A$20000, "<=" & int_Year, INV!$A$3:$A$20000, ">=" & $G$6)), IF(ISNUMBER(FIND("-", $L25)), SUMIFS(INV!$J$3:$J$20000, INV!$E$3:$E$20000, $L25, INV!$I$3:$I$20000, $F25, INV!$A$3:$A$20000, "<=" & int_Year, INV!$A$3:$A$20000, ">=" & $G$6), SUMIFS(INV!$J$3:$J$20000, INV!$F$3:$F$20000, $L25, INV!$I$3:$I$20000, $F25, INV!$A$3:$A$20000, "<=" & int_Year, INV!$A$3:$A$20000, ">=" & $G$6)))) -> 0 | W25: =IF(I25<>"Clean energy investments", 0, IF(ISNUMBER(FIND("-", $L25)), SUMIFS(INV!$J$3:$J$20000, INV!$E$3:$E$20000, $L25, INV!$A$3:$A$20000, ">="& int_InvStartYear, INV!$A$3:$A$20000, "<="& int_Year-1), SUMIFS(INV!$J$3:$J$20000, INV!$F$3:$F$20000, $L25, INV!$A$3:$A$20000, ">="& int_InvStartYear, INV!$A$3:$A$20000, "<="& int_Year-1))) -> 0 | X25: =IF(I25<>"Clean energy investments", 0, IF(ISNUMBER(FIND("-", $L25)), SUMIFS(INV!$J$3:$J$20000, INV!$E$3:$E$20000, $L25, INV!$A$3:$A$20000, ">="& int_InvStartYear, INV!$A$3:$A$20000, "<="& int_Year), SUMIFS(INV!$J$3:$J$20000, INV!$F$3:$F$20000, $L25, INV!$A$3:$A$20000, ">="& int_InvStartYear, INV!$A$3:$A$20000, "<="& int_Year))) -> 0 | Y25: 1.01 > Tanzania | Z25: Off-Grid | AA25: =IFERROR(INDEX(COUNTRY!$C$18:$C$67, MATCH(C25, COUNTRY!$F$18:$F$67, 0), 1), 0) -> 0.4 | AB25: =IFERROR(INDEX(COUNTRY!$E$18:$E$67, MATCH(C25, COUNTRY!$F$18:$F$67, 0), 1), 0) -> 0.4 | AC25: 0.4 | AD25: 0.4 | AE25: 0.064 | AF25: 0.08085762314
A26: 1 | B26: 17 | C26: =INDEX(DEFN!$A$11:$K$60, MATCH($A26, DEFN!$A$11:$A$60, 0), MATCH(C$9, DEFN!$A$10:$K$10, 0)) -> 1.01 | D26: =INDEX(DEFN!$A$11:$K$60, MATCH($A26, DEFN!$A$11:$A$60, 0), MATCH(D$9, DEFN!$A$10:$K$10, 0)) -> Enabling Framework | E26: =INDEX(DEFN!$A$11:$K$60, MATCH($A26, DEFN!$A$11:$A$60, 0), MATCH(E$9, DEFN!$A$10:$K$10, 0)) -> Policy & Regulation | F26: =INDEX(DEFN!$A$11:$K$60, MATCH($A26, DEFN!$A$11:$A$60, 0), MATCH(F$9, DEFN!$A$10:$K$10, 0)) -> Clean energy policies | G26: =INDEX(DEFN!$A$11:$K$60, MATCH($A26, DEFN!$A$11:$A$60, 0), MATCH(G$9, DEFN!$A$10:$K$10, 0)) -> Both | H26: =INDEX(DEFN!$A$11:$K$60, MATCH($A26, DEFN!$A$11:$A$60, 0), MATCH(H$9, DEFN!$A$10:$K$10, 0)) -> None | I26: =INDEX(DEFN!$A$11:$K$60, MATCH($A26, DEFN!$A$11:$A$60, 0), MATCH(I$9, DEFN!$A$10:$K$10, 0)) -> None | J26: =INDEX(DEFN!$A$11:$K$60, MATCH($A26, DEFN!$A$11:$A$60, 0), MATCH(J$9, DEFN!$A$10:$K$10, 0)) -> Policy Types | K26: =INDEX(DEFN!B$263:B$339, MATCH($B26, DEFN!$A$263:$A$339, 0), 1) -> Africa | L26: =INDEX(DEFN!C$263:C$339, MATCH($B26, DEFN!$A$263:$A$339, 0), 1) -> Uganda | M26: =INDEX(DEFN!$A$11:$K$60, MATCH($A26, DEFN!$A$11:$A$60, 0), MATCH(M$9, DEFN!$A$10:$K$10, 0)) -> User Defined | N26: =INDEX(DEFN!$A$11:$K$60, MATCH($A26, DEFN!$A$11:$A$60, 0), MATCH(N$9, DEFN!$A$10:$K$10, 0)) -> 5 | O26: =IFERROR(IF($H26="None", 1, IF($H26="All Capacity", SUMIFS(SID!X$5:X$14942, SID!$G$5:$G$14942, "<>Power demand", SID!$K$5:$K$14942, $L26, SID!$I$5:$I$14942, $J26), IF($H26="All Generation", SUMIFS(SID!X$5:X$14942, SID!$K$5:$K$14942, $L26, SID!$I$5:$I$14942, $J26), SUMIFS(SID!X$5:X$14942, SID!$F$5:$F$14942, $H26, SID!$K$5:$K$14942, $L26)))), 1) -> 1 | P26: =IF(ISNUMBER(FIND("Growth", F26)), U26, IF(V26<>0,V26, SUMIFS(SID!X$5:X$14942, SID!$C$5:$C$14942, $C26, SID!$K$5:$K$14942, $L26, SID!$Y$5:$Y$14942, 0))) -> 5 | Q26: 1.949673009 | R26: 5 | S26: 38.99346018 | T26: 1.949673009 | U26: =IF(I26="Clean energy investments", IF(OR(W26=0, X26=0), 0, X26/W26-1), IF(OR(I26="None", SUMIFS(SID!X$5:X$14942, SID!$F$5:$F$14942, I26, SID!$K$5:$K$14942, L26, SID!$Y$5:$Y$14942, 0)=0), 0, IFERROR(SUMIFS(SID!X$5:X$14942, SID!$F$5:$F$14942, I26, SID!$K$5:$K$14942, L26, SID!$Y$5:$Y$14942, 0)/SUMIFS(SID!W$5:W$14942, SID!$F$5:$F$14942, I26, SID!$K$5:$K$14942, L26, SID!$Y$5:$Y$14942, 0) - 1, 0))) -> 0 | V26: =IF(J26<>"USDm", 0, IF(F26="Clean energy investments", IF(ISNUMBER(FIND("-", $L26)), SUMIFS(INV!$J$3:$J$20000, INV!$E$3:$E$20000, $L26, INV!$A$3:$A$20000, "<=" & int_Year, INV!$A$3:$A$20000, ">=" & $G$6), SUMIFS(INV!$J$3:$J$20000, INV!$F$3:$F$20000, $L26, INV!$A$3:$A$20000, "<=" & int_Year, INV!$A$3:$A$20000, ">=" & $G$6)), IF(ISNUMBER(FIND("-", $L26)), SUMIFS(INV!$J$3:$J$20000, INV!$E$3:$E$20000, $L26, INV!$I$3:$I$20000, $F26, INV!$A$3:$A$20000, "<=" & int_Year, INV!$A$3:$A$20000, ">=" & $G$6), SUMIFS(INV!$J$3:$J$20000, INV!$F$3:$F$20000, $L26, INV!$I$3:$I$20000, $F26, INV!$A$3:$A$20000, "<=" & int_Year, INV!$A$3:$A$20000, ">=" & $G$6)))) -> 0 | W26: =IF(I26<>"Clean energy investments", 0, IF(ISNUMBER(FIND("-", $L26)), SUMIFS(INV!$J$3:$J$20000, INV!$E$3:$E$20000, $L26, INV!$A$3:$A$20000, ">="& int_InvStartYear, INV!$A$3:$A$20000, "<="& int_Year-1), SUMIFS(INV!$J$3:$J$20000, INV!$F$3:$F$20000, $L26, INV!$A$3:$A$20000, ">="& int_InvStartYear, INV!$A$3:$A$20000, "<="& int_Year-1))) -> 0 | X26: =IF(I26<>"Clean energy investments", 0, IF(ISNUMBER(FIND("-", $L26)), SUMIFS(INV!$J$3:$J$20000, INV!$E$3:$E$20000, $L26, INV!$A$3:$A$20000, ">="& int_InvStartYear, INV!$A$3:$A$20000, "<="& int_Year), SUMIFS(INV!$J$3:$J$20000, INV!$F$3:$F$20000, $L26, INV!$A$3:$A$20000, ">="& int_InvStartYear, INV!$A$3:$A$20000, "<="& int_Year))) -> 0 | Y26: 1.01 > Uganda | Z26: Off-Grid | AA26: =IFERROR(INDEX(COUNTRY!$C$18:$C$67, MATCH(C26, COUNTRY!$F$18:$F$67, 0), 1), 0) -> 0.4 | AB26: =IFERROR(INDEX(COUNTRY!$E$18:$E$67, MATCH(C26, COUNTRY!$F$18:$F$67, 0), 1), 0) -> 0.4 | AC26: 0.4 | AD26: 0.4 | AE26: 0.064 | AF26: 0.1247790726
A27: 1 | B27: 18 | C27: =INDEX(DEFN!$A$11:$K$60, MATCH($A27, DEFN!$A$11:$A$60, 0), MATCH(C$9, DEFN!$A$10:$K$10, 0)) -> 1.01 | D27: =INDEX(DEFN!$A$11:$K$60, MATCH($A27, DEFN!$A$11:$A$60, 0), MATCH(D$9, DEFN!$A$10:$K$10, 0)) -> Enabling Framework | E27: =INDEX(DEFN!$A$11:$K$60, MATCH($A27, DEFN!$A$11:$A$60, 0), MATCH(E$9, DEFN!$A$10:$K$10, 0)) -> Policy & Regulation | F27: =INDEX(DEFN!$A$11:$K$60, MATCH($A27, DEFN!$A$11:$A$60, 0), MATCH(F$9, DEFN!$A$10:$K$10, 0)) -> Clean energy policies | G27: =INDEX(DEFN!$A$11:$K$60, MATCH($A27, DEFN!$A$11:$A$60, 0), MATCH(G$9, DEFN!$A$10:$K$10, 0)) -> Both | H27: =INDEX(DEFN!$A$11:$K$60, MATCH($A27, DEFN!$A$11:$A$60, 0), MATCH(H$9, DEFN!$A$10:$K$10, 0)) -> None | I27: =INDEX(DEFN!$A$11:$K$60, MATCH($A27, DEFN!$A$11:$A$60, 0), MATCH(I$9, DEFN!$A$10:$K$10, 0)) -> None | J27: =INDEX(DEFN!$A$11:$K$60, MATCH($A27, DEFN!$A$11:$A$60, 0), MATCH(J$9, DEFN!$A$10:$K$10, 0)) -> Policy Types | K27: =INDEX(DEFN!B$263:B$339, MATCH($B27, DEFN!$A$263:$A$339, 0), 1) -> Africa | L27: =INDEX(DEFN!C$263:C$339, MATCH($B27, DEFN!$A$263:$A$339, 0), 1) -> Zambia | M27: =INDEX(DEFN!$A$11:$K$60, MATCH($A27, DEFN!$A$11:$A$60, 0), MATCH(M$9, DEFN!$A$10:$K$10, 0)) -> User Defined | N27: =INDEX(DEFN!$A$11:$K$60, MATCH($A27, DEFN!$A$11:$A$60, 0), MATCH(N$9, DEFN!$A$10:$K$10, 0)) -> 5 | O27: =IFERROR(IF($H27="None", 1, IF($H27="All Capacity", SUMIFS(SID!X$5:X$14942, SID!$G$5:$G$14942, "<>Power demand", SID!$K$5:$K$14942, $L27, SID!$I$5:$I$14942, $J27), IF($H27="All Generation", SUMIFS(SID!X$5:X$14942, SID!$K$5:$K$14942, $L27, SID!$I$5:$I$14942, $J27), SUMIFS(SID!X$5:X$14942, SID!$F$5:$F$14942, $H27, SID!$K$5:$K$14942, $L27)))), 1) -> 1 | P27: =IF(ISNUMBER(FIND("Growth", F27)), U27, IF(V27<>0,V27, SUMIFS(SID!X$5:X$14942, SID!$C$5:$C$14942, $C27, SID!$K$5:$K$14942, $L27, SID!$Y$5:$Y$14942, 0))) -> 3 | Q27: 1.199003226 | R27: 5 | S27: 23.98006452 | T27: 1.199003226 | U27: =IF(I27="Clean energy investments", IF(OR(W27=0, X27=0), 0, X27/W27-1), IF(OR(I27="None", SUMIFS(SID!X$5:X$14942, SID!$F$5:$F$14942, I27, SID!$K$5:$K$14942, L27, SID!$Y$5:$Y$14942, 0)=0), 0, IFERROR(SUMIFS(SID!X$5:X$14942, SID!$F$5:$F$14942, I27, SID!$K$5:$K$14942, L27, SID!$Y$5:$Y$14942, 0)/SUMIFS(SID!W$5:W$14942, SID!$F$5:$F$14942, I27, SID!$K$5:$K$14942, L27, SID!$Y$5:$Y$14942, 0) - 1, 0))) -> 0 | V27: =IF(J27<>"USDm", 0, IF(F27="Clean energy investments", IF(ISNUMBER(FIND("-", $L27)), SUMIFS(INV!$J$3:$J$20000, INV!$E$3:$E$20000, $L27, INV!$A$3:$A$20000, "<=" & int_Year, INV!$A$3:$A$20000, ">=" & $G$6), SUMIFS(INV!$J$3:$J$20000, INV!$F$3:$F$20000, $L27, INV!$A$3:$A$20000, "<=" & int_Year, INV!$A$3:$A$20000, ">=" & $G$6)), IF(ISNUMBER(FIND("-", $L27)), SUMIFS(INV!$J$3:$J$20000, INV!$E$3:$E$20000, $L27, INV!$I$3:$I$20000, $F27, INV!$A$3:$A$20000, "<=" & int_Year, INV!$A$3:$A$20000, ">=" & $G$6), SUMIFS(INV!$J$3:$J$20000, INV!$F$3:$F$20000, $L27, INV!$I$3:$I$20000, $F27, INV!$A$3:$A$20000, "<=" & int_Year, INV!$A$3:$A$20000, ">=" & $G$6)))) -> 0 | W27: =IF(I27<>"Clean energy investments", 0, IF(ISNUMBER(FIND("-", $L27)), SUMIFS(INV!$J$3:$J$20000, INV!$E$3:$E$20000, $L27, INV!$A$3:$A$20000, ">="& int_InvStartYear, INV!$A$3:$A$20000, "<="& int_Year-1), SUMIFS(INV!$J$3:$J$20000, INV!$F$3:$F$20000, $L27, INV!$A$3:$A$20000, ">="& int_InvStartYear, INV!$A$3:$A$20000, "<="& int_Year-1))) -> 0 | X27: =IF(I27<>"Clean energy investments", 0, IF(ISNUMBER(FIND("-", $L27)), SUMIFS(INV!$J$3:$J$20000, INV!$E$3:$E$20000, $L27, INV!$A$3:$A$20000, ">="& int_InvStartYear, INV!$A$3:$A$20000, "<="& int_Year), SUMIFS(INV!$J$3:$J$20000, INV!$F$3:$F$20000, $L27, INV!$A$3:$A$20000, ">="& int_InvStartYear, INV!$A$3:$A$20000, "<="& int_Year))) -> 0 | Y27: 1.01 > Zambia | Z27: Off-Grid | AA27: =IFERROR(INDEX(COUNTRY!$C$18:$C$67, MATCH(C27, COUNTRY!$F$18:$F$67, 0), 1), 0) -> 0.4 | AB27: =IFERROR(INDEX(COUNTRY!$E$18:$E$67, MATCH(C27, COUNTRY!$F$18:$F$67, 0), 1), 0) -> 0.4 | AC27: 0.4 | AD27: 0.4 | AE27: 0.064 | AF27: 0.07673620647
A28: 1 | B28: 19 | C28: =INDEX(DEFN!$A$11:$K$60, MATCH($A28, DEFN!$A$11:$A$60, 0), MATCH(C$9, DEFN!$A$10:$K$10, 0)) -> 1.01 | D28: =INDEX(DEFN!$A$11:$K$60, MATCH($A28, DEFN!$A$11:$A$60, 0), MATCH(D$9, DEFN!$A$10:$K$10, 0)) -> Enabling Framework | E28: =INDEX(DEFN!$A$11:$K$60, MATCH($A28, DEFN!$A$11:$A$60, 0), MATCH(E$9, DEFN!$A$10:$K$10, 0)) -> Policy & Regulation | F28: =INDEX(DEFN!$A$11:$K$60, MATCH($A28, DEFN!$A$11:$A$60, 0), MATCH(F$9, DEFN!$A$10:$K$10, 0)) -> Clean energy policies | G28: =INDEX(DEFN!$A$11:$K$60, MATCH($A28, DEFN!$A$11:$A$60, 0), MATCH(G$9, DEFN!$A$10:$K$10, 0)) -> Both | H28: =INDEX(DEFN!$A$11:$K$60, MATCH($A28, DEFN!$A$11:$A$60, 0), MATCH(H$9, DEFN!$A$10:$K$10, 0)) -> None | I28: =INDEX(DEFN!$A$11:$K$60, MATCH($A28, DEFN!$A$11:$A$60, 0), MATCH(I$9, DEFN!$A$10:$K$10, 0)) -> None | J28: =INDEX(DEFN!$A$11:$K$60, MATCH($A28, DEFN!$A$11:$A$60, 0), MATCH(J$9, DEFN!$A$10:$K$10, 0)) -> Policy Types | K28: =INDEX(DEFN!B$263:B$339, MATCH($B28, DEFN!$A$263:$A$339, 0), 1) -> Africa | L28: =INDEX(DEFN!C$263:C$339, MATCH($B28, DEFN!$A$263:$A$339, 0), 1) -> Zimbabwe | M28: =INDEX(DEFN!$A$11:$K$60, MATCH($A28, DEFN!$A$11:$A$60, 0), MATCH(M$9, DEFN!$A$10:$K$10, 0)) -> User Defined | N28: =INDEX(DEFN!$A$11:$K$60, MATCH($A28, DEFN!$A$11:$A$60, 0), MATCH(N$9, DEFN!$A$10:$K$10, 0)) -> 5 | O28: =IFERROR(IF($H28="None", 1, IF($H28="All Capacity", SUMIFS(SID!X$5:X$14942, SID!$G$5:$G$14942, "<>Power demand", SID!$K$5:$K$14942, $L28, SID!$I$5:$I$14942, $J28), IF($H28="All Generation", SUMIFS(SID!X$5:X$14942, SID!$K$5:$K$14942, $L28, SID!$I$5:$I$14942, $J28), SUMIFS(SID!X$5:X$14942, SID!$F$5:$F$14942, $H28, SID!$K$5:$K$14942, $L28)))), 1) -> 1 | P28: =IF(ISNUMBER(FIND("Growth", F28)), U28, IF(V28<>0,V28, SUMIFS(SID!X$5:X$14942, SID!$C$5:$C$14942, $C28, SID!$K$5:$K$14942, $L28, SID!$Y$5:$Y$14942, 0))) -> 4 | Q28: 0.8841186551 | R28: 5 | S28: 17.6823731 | T28: 0.8841186551 | U28: =IF(I28="Clean energy investments", IF(OR(W28=0, X28=0), 0, X28/W28-1), IF(OR(I28="None", SUMIFS(SID!X$5:X$14942, SID!$F$5:$F$14942, I28, SID!$K$5:$K$14942, L28, SID!$Y$5:$Y$14942, 0)=0), 0, IFERROR(SUMIFS(SID!X$5:X$14942, SID!$F$5:$F$14942, I28, SID!$K$5:$K$14942, L28, SID!$Y$5:$Y$14942, 0)/SUMIFS(SID!W$5:W$14942, SID!$F$5:$F$14942, I28, SID!$K$5:$K$14942, L28, SID!$Y$5:$Y$14942, 0) - 1, 0))) -> 0 | V28: =IF(J28<>"USDm", 0, IF(F28="Clean energy investments", IF(ISNUMBER(FIND("-", $L28)), SUMIFS(INV!$J$3:$J$20000, INV!$E$3:$E$20000, $L28, INV!$A$3:$A$20000, "<=" & int_Year, INV!$A$3:$A$20000, ">=" & $G$6), SUMIFS(INV!$J$3:$J$20000, INV!$F$3:$F$20000, $L28, INV!$A$3:$A$20000, "<=" & int_Year, INV!$A$3:$A$20000, ">=" & $G$6)), IF(ISNUMBER(FIND("-", $L28)), SUMIFS(INV!$J$3:$J$20000, INV!$E$3:$E$20000, $L28, INV!$I$3:$I$20000, $F28, INV!$A$3:$A$20000, "<=" & int_Year, INV!$A$3:$A$20000, ">=" & $G$6), SUMIFS(INV!$J$3:$J$20000, INV!$F$3:$F$20000, $L28, INV!$I$3:$I$20000, $F28, INV!$A$3:$A$20000, "<=" & int_Year, INV!$A$3:$A$20000, ">=" & $G$6)))) -> 0 | W28: =IF(I28<>"Clean energy investments", 0, IF(ISNUMBER(FIND("-", $L28)), SUMIFS(INV!$J$3:$J$20000, INV!$E$3:$E$20000, $L28, INV!$A$3:$A$20000, ">="& int_InvStartYear, INV!$A$3:$A$20000, "<="& int_Year-1), SUMIFS(INV!$J$3:$J$20000, INV!$F$3:$F$20000, $L28, INV!$A$3:$A$20000, ">="& int_InvStartYear, INV!$A$3:$A$20000, "<="& int_Year-1))) -> 0 | X28: =IF(I28<>"Clean energy investments", 0, IF(ISNUMBER(FIND("-", $L28)), SUMIFS(INV!$J$3:$J$20000, INV!$E$3:$E$20000, $L28, INV!$A$3:$A$20000, ">="& int_InvStartYear, INV!$A$3:$A$20000, "<="& int_Year), SUMIFS(INV!$J$3:$J$20000, INV!$F$3:$F$20000, $L28, INV!$A$3:$A$20000, ">="& int_InvStartYear, INV!$A$3:$A$20000, "<="& int_Year))) -> 0 | Y28: 1.01 > Zimbabwe | Z28: Off-Grid | AA28: =IFERROR(INDEX(COUNTRY!$C$18:$C$67, MATCH(C28, COUNTRY!$F$18:$F$67, 0), 1), 0) -> 0.4 | AB28: =IFERROR(INDEX(COUNTRY!$E$18:$E$67, MATCH(C28, COUNTRY!$F$18:$F$67, 0), 1), 0) -> 0.4 | AC28: 0.4 | AD28: 0.4 | AE28: 0.064 | AF28: 0.05658359393
A29: 1 | B29: 20 | C29: =INDEX(DEFN!$A$11:$K$60, MATCH($A29, DEFN!$A$11:$A$60, 0), MATCH(C$9, DEFN!$A$10:$K$10, 0)) -> 1.01 | D29: =INDEX(DEFN!$A$11:$K$60, MATCH($A29, DEFN!$A$11:$A$60, 0), MATCH(D$9, DEFN!$A$10:$K$10, 0)) -> Enabling Framework | E29: =INDEX(DEFN!$A$11:$K$60, MATCH($A29, DEFN!$A$11:$A$60, 0), MATCH(E$9, DEFN!$A$10:$K$10, 0)) -> Policy & Regulation | F29: =INDEX(DEFN!$A$11:$K$60, MATCH($A29, DEFN!$A$11:$A$60, 0), MATCH(F$9, DEFN!$A$10:$K$10, 0)) -> Clean energy policies | G29: =INDEX(DEFN!$A$11:$K$60, MATCH($A29, DEFN!$A$11:$A$60, 0), MATCH(G$9, DEFN!$A$10:$K$10, 0)) -> Both | H29: =INDEX(DEFN!$A$11:$K$60, MATCH($A29, DEFN!$A$11:$A$60, 0), MATCH(H$9, DEFN!$A$10:$K$10, 0)) -> None | I29: =INDEX(DEFN!$A$11:$K$60, MATCH($A29, DEFN!$A$11:$A$60, 0), MATCH(I$9, DEFN!$A$10:$K$10, 0)) -> None | J29: =INDEX(DEFN!$A$11:$K$60, MATCH($A29, DEFN!$A$11:$A$60, 0), MATCH(J$9, DEFN!$A$10:$K$10, 0)) -> Policy Types | K29: =INDEX(DEFN!B$263:B$339, MATCH($B29, DEFN!$A$263:$A$339, 0), 1) -> Asia | L29: =INDEX(DEFN!C$263:C$339, MATCH($B29, DEFN!$A$263:$A$339, 0), 1) -> Armenia | M29: =INDEX(DEFN!$A$11:$K$60, MATCH($A29, DEFN!$A$11:$A$60, 0), MATCH(M$9, DEFN!$A$10:$K$10, 0)) -> User Defined | N29: =INDEX(DEFN!$A$11:$K$60, MATCH($A29, DEFN!$A$11:$A$60, 0), MATCH(N$9, DEFN!$A$10:$K$10, 0)) -> 5 | O29: =IFERROR(IF($H29="None", 1, IF($H29="All Capacity", SUMIFS(SID!X$5:X$14942, SID!$G$5:$G$14942, "<>Power demand", SID!$K$5:$K$14942, $L29, SID!$I$5:$I$14942, $J29), IF($H29="All Generation", SUMIFS(SID!X$5:X$14942, SID!$K$5:$K$14942, $L29, SID!$I$5:$I$14942, $J29), SUMIFS(SID!X$5:X$14942, SID!$F$5:$F$14942, $H29, SID!$K$5:$K$14942, $L29)))), 1) -> 1 | P29: =IF(ISNUMBER(FIND("Growth", F29)), U29, IF(V29<>0,V29, SUMIFS(SID!X$5:X$14942, SID!$C$5:$C$14942, $C29, SID!$K$5:$K$14942, $L29, SID!$Y$5:$Y$14942, 0))) -> 4 | Q29: 1.6 | R29: 5 | S29: 32 | T29: 1.6 | U29: =IF(I29="Clean energy investments", IF(OR(W29=0, X29=0), 0, X29/W29-1), IF(OR(I29="None", SUMIFS(SID!X$5:X$14942, SID!$F$5:$F$14942, I29, SID!$K$5:$K$14942, L29, SID!$Y$5:$Y$14942, 0)=0), 0, IFERROR(SUMIFS(SID!X$5:X$14942, SID!$F$5:$F$14942, I29, SID!$K$5:$K$14942, L29, SID!$Y$5:$Y$14942, 0)/SUMIFS(SID!W$5:W$14942, SID!$F$5:$F$14942, I29, SID!$K$5:$K$14942, L29, SID!$Y$5:$Y$14942, 0) - 1, 0))) -> 0 | V29: =IF(J29<>"USDm", 0, IF(F29="Clean energy investments", IF(ISNUMBER(FIND("-", $L29)), SUMIFS(INV!$J$3:$J$20000, INV!$E$3:$E$20000, $L29, INV!$A$3:$A$20000, "<=" & int_Year, INV!$A$3:$A$20000, ">=" & $G$6), SUMIFS(INV!$J$3:$J$20000, INV!$F$3:$F$20000, $L29, INV!$A$3:$A$20000, "<=" & int_Year, INV!$A$3:$A$20000, ">=" & $G$6)), IF(ISNUMBER(FIND("-", $L29)), SUMIFS(INV!$J$3:$J$20000, INV!$E$3:$E$20000, $L29, INV!$I$3:$I$20000, $F29, INV!$A$3:$A$20000, "<=" & int_Year, INV!$A$3:$A$20000, ">=" & $G$6), SUMIFS(INV!$J$3:$J$20000, INV!$F$3:$F$20000, $L29, INV!$I$3:$I$20000, $F29, INV!$A$3:$A$20000, "<=" & int_Year, INV!$A$3:$A$20000, ">=" & $G$6)))) -> 0 | W29: =IF(I29<>"Clean energy investments", 0, IF(ISNUMBER(FIND("-", $L29)), SUMIFS(INV!$J$3:$J$20000, INV!$E$3:$E$20000, $L29, INV!$A$3:$A$20000, ">="& int_InvStartYear, INV!$A$3:$A$20000, "<="& int_Year-1), SUMIFS(INV!$J$3:$J$20000, INV!$F$3:$F$20000, $L29, INV!$A$3:$A$20000, ">="& int_InvStartYear, INV!$A$3:$A$20000, "<="& int_Year-1))) -> 0 | X29: =IF(I29<>"Clean energy investments", 0, IF(ISNUMBER(FIND("-", $L29)), SUMIFS(INV!$J$3:$J$20000, INV!$E$3:$E$20000, $L29, INV!$A$3:$A$20000, ">="& int_InvStartYear, INV!$A$3:$A$20000, "<="& int_Year), SUMIFS(INV!$J$3:$J$20000, INV!$F$3:$F$20000, $L29, INV!$A$3:$A$20000, ">="& int_InvStartYear, INV!$A$3:$A$20000, "<="& int_Year))) -> 0 | Y29: 1.01 > Armenia | Z29: On-Grid | AA29: =IFERROR(INDEX(COUNTRY!$C$18:$C$67, MATCH(C29, COUNTRY!$F$18:$F$67, 0), 1), 0) -> 0.4 | AB29: =IFERROR(INDEX(COUNTRY!$E$18:$E$67, MATCH(C29, COUNTRY!$F$18:$F$67, 0), 1), 0) -> 0.4 | AC29: 0.6 | AD29: 0.6 | AE29: 0.096 | AF29: 0.1536
A30: 1 | B30: 21 | C30: =INDEX(DEFN!$A$11:$K$60, MATCH($A30, DEFN!$A$11:$A$60, 0), MATCH(C$9, DEFN!$A$10:$K$10, 0)) -> 1.01 | D30: =INDEX(DEFN!$A$11:$K$60, MATCH($A30, DEFN!$A$11:$A$60, 0), MATCH(D$9, DEFN!$A$10:$K$10, 0)) -> Enabling Framework | E30: =INDEX(DEFN!$A$11:$K$60, MATCH($A30, DEFN!$A$11:$A$60, 0), MATCH(E$9, DEFN!$A$10:$K$10, 0)) -> Policy & Regulation | F30: =INDEX(DEFN!$A$11:$K$60, MATCH($A30, DEFN!$A$11:$A$60, 0), MATCH(F$9, DEFN!$A$10:$K$10, 0)) -> Clean energy policies | G30: =INDEX(DEFN!$A$11:$K$60, MATCH($A30, DEFN!$A$11:$A$60, 0), MATCH(G$9, DEFN!$A$10:$K$10, 0)) -> Both | H30: =INDEX(DEFN!$A$11:$K$60, MATCH($A30, DEFN!$A$11:$A$60, 0), MATCH(H$9, DEFN!$A$10:$K$10, 0)) -> None | I30: =INDEX(DEFN!$A$11:$K$60, MATCH($A30, DEFN!$A$11:$A$60, 0), MATCH(I$9, DEFN!$A$10:$K$10, 0)) -> None | J30: =INDEX(DEFN!$A$11:$K$60, MATCH($A30, DEFN!$A$11:$A$60, 0), MATCH(J$9, DEFN!$A$10:$K$10, 0)) -> Policy Types | K30: =INDEX(DEFN!B$263:B$339, MATCH($B30, DEFN!$A$263:$A$339, 0), 1) -> Asia | L30: =INDEX(DEFN!C$263:C$339, MATCH($B30, DEFN!$A$263:$A$339, 0), 1) -> Azerbaijan | M30: =INDEX(DEFN!$A$11:$K$60, MATCH($A30, DEFN!$A$11:$A$60, 0), MATCH(M$9, DEFN!$A$10:$K$10, 0)) -> User Defined | N30: =INDEX(DEFN!$A$11:$K$60, MATCH($A30, DEFN!$A$11:$A$60, 0), MATCH(N$9, DEFN!$A$10:$K$10, 0)) -> 5 | O30: =IFERROR(IF($H30="None", 1, IF($H30="All Capacity", SUMIFS(SID!X$5:X$14942, SID!$G$5:$G$14942, "<>Power demand", SID!$K$5:$K$14942, $L30, SID!$I$5:$I$14942, $J30), IF($H30="All Generation", SUMIFS(SID!X$5:X$14942, SID!$K$5:$K$14942, $L30, SID!$I$5:$I$14942, $J30), SUMIFS(SID!X$5:X$14942, SID!$F$5:$F$14942, $H30, SID!$K$5:$K$14942, $L30)))), 1) -> 1 | P30: =IF(ISNUMBER(FIND("Growth", F30)), U30, IF(V30<>0,V30, SUMIFS(SID!X$5:X$14942, SID!$C$5:$C$14942, $C30, SID!$K$5:$K$14942, $L30, SID!$Y$5:$Y$14942, 0))) -> 1 | Q30: 0 | R30: 5 | S30: 0 | T30: 0 | U30: =IF(I30="Clean energy investments", IF(OR(W30=0, X30=0), 0, X30/W30-1), IF(OR(I30="None", SUMIFS(SID!X$5:X$14942, SID!$F$5:$F$14942, I30, SID!$K$5:$K$14942, L30, SID!$Y$5:$Y$14942, 0)=0), 0, IFERROR(SUMIFS(SID!X$5:X$14942, SID!$F$5:$F$14942, I30, SID!$K$5:$K$14942, L30, SID!$Y$5:$Y$14942, 0)/SUMIFS(SID!W$5:W$14942, SID!$F$5:$F$14942, I30, SID!$K$5:$K$14942, L30, SID!$Y$5:$Y$14942, 0) - 1, 0))) -> 0 | V30: =IF(J30<>"USDm", 0, IF(F30="Clean energy investments", IF(ISNUMBER(FIND("-", $L30)), SUMIFS(INV!$J$3:$J$20000, INV!$E$3:$E$20000, $L30, INV!$A$3:$A$20000, "<=" & int_Year, INV!$A$3:$A$20000, ">=" & $G$6), SUMIFS(INV!$J$3:$J$20000, INV!$F$3:$F$20000, $L30, INV!$A$3:$A$20000, "<=" & int_Year, INV!$A$3:$A$20000, ">=" & $G$6)), IF(ISNUMBER(FIND("-", $L30)), SUMIFS(INV!$J$3:$J$20000, INV!$E$3:$E$20000, $L30, INV!$I$3:$I$20000, $F30, INV!$A$3:$A$20000, "<=" & int_Year, INV!$A$3:$A$20000, ">=" & $G$6), SUMIFS(INV!$J$3:$J$20000, INV!$F$3:$F$20000, $L30, INV!$I$3:$I$20000, $F30, INV!$A$3:$A$20000, "<=" & int_Year, INV!$A$3:$A$20000, ">=" & $G$6)))) -> 0 | W30: =IF(I30<>"Clean energy investments", 0, IF(ISNUMBER(FIND("-", $L30)), SUMIFS(INV!$J$3:$J$20000, INV!$E$3:$E$20000, $L30, INV!$A$3:$A$20000, ">="& int_InvStartYear, INV!$A$3:$A$20000, "<="& int_Year-1), SUMIFS(INV!$J$3:$J$20000, INV!$F$3:$F$20000, $L30, INV!$A$3:$A$20000, ">="& int_InvStartYear, INV!$A$3:$A$20000, "<="& int_Year-1))) -> 0 | X30: =IF(I30<>"Clean energy investments", 0, IF(ISNUMBER(FIND("-", $L30)), SUMIFS(INV!$J$3:$J$20000, INV!$E$3:$E$20000, $L30, INV!$A$3:$A$20000, ">="& int_InvStartYear, INV!$A$3:$A$20000, "<="& int_Year), SUMIFS(INV!$J$3:$J$20000, INV!$F$3:$F$20000, $L30, INV!$A$3:$A$20000, ">="& int_InvStartYear, INV!$A$3:$A$20000, "<="& int_Year))) -> 0 | Y30: 1.01 > Azerbaijan | Z30: On-Grid | AA30: =IFERROR(INDEX(COUNTRY!$C$18:$C$67, MATCH(C30, COUNTRY!$F$18:$F$67, 0), 1), 0) -> 0.4 | AB30: =IFERROR(INDEX(COUNTRY!$E$18:$E$67, MATCH(C30, COUNTRY!$F$18:$F$67, 0), 1), 0) -> 0.4 | AC30: 0.6 | AD30: 0.6 | AE30: 0.096 | AF30: 0
A31: 1 | B31: 22 | C31: =INDEX(DEFN!$A$11:$K$60, MATCH($A31, DEFN!$A$11:$A$60, 0), MATCH(C$9, DEFN!$A$10:$K$10, 0)) -> 1.01 | D31: =INDEX(DEFN!$A$11:$K$60, MATCH($A31, DEFN!$A$11:$A$60, 0), MATCH(D$9, DEFN!$A$10:$K$10, 0)) -> Enabling Framework | E31: =INDEX(DEFN!$A$11:$K$60, MATCH($A31, DEFN!$A$11:$A$60, 0), MATCH(E$9, DEFN!$A$10:$K$10, 0)) -> Policy & Regulation | F31: =INDEX(DEFN!$A$11:$K$60, MATCH($A31, DEFN!$A$11:$A$60, 0), MATCH(F$9, DEFN!$A$10:$K$10, 0)) -> Clean energy policies | G31: =INDEX(DEFN!$A$11:$K$60, MATCH($A31, DEFN!$A$11:$A$60, 0), MATCH(G$9, DEFN!$A$10:$K$10, 0)) -> Both | H31: =INDEX(DEFN!$A$11:$K$60, MATCH($A31, DEFN!$A$11:$A$60, 0), MATCH(H$9, DEFN!$A$10:$K$10, 0)) -> None | I31: =INDEX(DEFN!$A$11:$K$60, MATCH($A31, DEFN!$A$11:$A$60, 0), MATCH(I$9, DEFN!$A$10:$K$10, 0)) -> None | J31: =INDEX(DEFN!$A$11:$K$60, MATCH($A31, DEFN!$A$11:$A$60, 0), MATCH(J$9, DEFN!$A$10:$K$10, 0)) -> Policy Types | K31: =INDEX(DEFN!B$263:B$339, MATCH($B31, DEFN!$A$263:$A$339, 0), 1) -> Asia | L31: =INDEX(DEFN!C$263:C$339, MATCH($B31, DEFN!$A$263:$A$339, 0), 1) -> Bangladesh | M31: =INDEX(DEFN!$A$11:$K$60, MATCH($A31, DEFN!$A$11:$A$60, 0), MATCH(M$9, DEFN!$A$10:$K$10, 0)) -> User Defined | N31: =INDEX(DEFN!$A$11:$K$60, MATCH($A31, DEFN!$A$11:$A$60, 0), MATCH(N$9, DEFN!$A$10:$K$10, 0)) -> 5 | O31: =IFERROR(IF($H31="None", 1, IF($H31="All Capacity", SUMIFS(SID!X$5:X$14942, SID!$G$5:$G$14942, "<>Power demand", SID!$K$5:$K$14942, $L31, SID!$I$5:$I$14942, $J31), IF($H31="All Generation", SUMIFS(SID!X$5:X$14942, SID!$K$5:$K$14942, $L31, SID!$I$5:$I$14942, $J31), SUMIFS(SID!X$5:X$14942, SID!$F$5:$F$14942, $H31, SID!$K$5:$K$14942, $L31)))), 1) -> 1 | P31: =IF(ISNUMBER(FIND("Growth", F31)), U31, IF(V31<>0,V31, SUMIFS(SID!X$5:X$14942, SID!$C$5:$C$14942, $C31, SID!$K$5:$K$14942, $L31, SID!$Y$5:$Y$14942, 0))) -> 2 | Q31: 0.96 | R31: 5 | S31: 19.2 | T31: 0.96 | U31: =IF(I31="Clean energy investments", IF(OR(W31=0, X31=0), 0, X31/W31-1), IF(OR(I31="None", SUMIFS(SID!X$5:X$14942, SID!$F$5:$F$14942, I31, SID!$K$5:$K$14942, L31, SID!$Y$5:$Y$14942, 0)=0), 0, IFERROR(SUMIFS(SID!X$5:X$14942, SID!$F$5:$F$14942, I31, SID!$K$5:$K$14942, L31, SID!$Y$5:$Y$14942, 0)/SUMIFS(SID!W$5:W$14942, SID!$F$5:$F$14942, I31, SID!$K$5:$K$14942, L31, SID!$Y$5:$Y$14942, 0) - 1, 0))) -> 0 | V31: =IF(J31<>"USDm", 0, IF(F31="Clean energy investments", IF(ISNUMBER(FIND("-", $L31)), SUMIFS(INV!$J$3:$J$20000, INV!$E$3:$E$20000, $L31, INV!$A$3:$A$20000, "<=" & int_Year, INV!$A$3:$A$20000, ">=" & $G$6), SUMIFS(INV!$J$3:$J$20000, INV!$F$3:$F$20000, $L31, INV!$A$3:$A$20000, "<=" & int_Year, INV!$A$3:$A$20000, ">=" & $G$6)), IF(ISNUMBER(FIND("-", $L31)), SUMIFS(INV!$J$3:$J$20000, INV!$E$3:$E$20000, $L31, INV!$I$3:$I$20000, $F31, INV!$A$3:$A$20000, "<=" & int_Year, INV!$A$3:$A$20000, ">=" & $G$6), SUMIFS(INV!$J$3:$J$20000, INV!$F$3:$F$20000, $L31, INV!$I$3:$I$20000, $F31, INV!$A$3:$A$20000, "<=" & int_Year, INV!$A$3:$A$20000, ">=" & $G$6)))) -> 0 | W31: =IF(I31<>"Clean energy investments", 0, IF(ISNUMBER(FIND("-", $L31)), SUMIFS(INV!$J$3:$J$20000, INV!$E$3:$E$20000, $L31, INV!$A$3:$A$20000, ">="& int_InvStartYear, INV!$A$3:$A$20000, "<="& int_Year-1), SUMIFS(INV!$J$3:$J$20000, INV!$F$3:$F$20000, $L31, INV!$A$3:$A$20000, ">="& int_InvStartYear, INV!$A$3:$A$20000, "<="& int_Year-1))) -> 0 | X31: =IF(I31<>"Clean energy investments", 0, IF(ISNUMBER(FIND("-", $L31)), SUMIFS(INV!$J$3:$J$20000, INV!$E$3:$E$20000, $L31, INV!$A$3:$A$20000, ">="& int_InvStartYear, INV!$A$3:$A$20000, "<="& int_Year), SUMIFS(INV!$J$3:$J$20000, INV!$F$3:$F$20000, $L31, INV!$A$3:$A$20000, ">="& int_InvStartYear, INV!$A$3:$A$20000, "<="& int_Year))) -> 0 | Y31: 1.01 > Bangladesh | Z31: Off-Grid | AA31: =IFERROR(INDEX(COUNTRY!$C$18:$C$67, MATCH(C31, COUNTRY!$F$18:$F$67, 0), 1), 0) -> 0.4 | AB31: =IFERROR(INDEX(COUNTRY!$E$18:$E$67, MATCH(C31, COUNTRY!$F$18:$F$67, 0), 1), 0) -> 0.4 | AC31: 0.4 | AD31: 0.4 | AE31: 0.064 | AF31: 0.06144
A32: 1 | B32: 23 | C32: =INDEX(DEFN!$A$11:$K$60, MATCH($A32, DEFN!$A$11:$A$60, 0), MATCH(C$9, DEFN!$A$10:$K$10, 0)) -> 1.01 | D32: =INDEX(DEFN!$A$11:$K$60, MATCH($A32, DEFN!$A$11:$A$60, 0), MATCH(D$9, DEFN!$A$10:$K$10, 0)) -> Enabling Framework | E32: =INDEX(DEFN!$A$11:$K$60, MATCH($A32, DEFN!$A$11:$A$60, 0), MATCH(E$9, DEFN!$A$10:$K$10, 0)) -> Policy & Regulation | F32: =INDEX(DEFN!$A$11:$K$60, MATCH($A32, DEFN!$A$11:$A$60, 0), MATCH(F$9, DEFN!$A$10:$K$10, 0)) -> Clean energy policies | G32: =INDEX(DEFN!$A$11:$K$60, MATCH($A32, DEFN!$A$11:$A$60, 0), MATCH(G$9, DEFN!$A$10:$K$10, 0)) -> Both | H32: =INDEX(DEFN!$A$11:$K$60, MATCH($A32, DEFN!$A$11:$A$60, 0), MATCH(H$9, DEFN!$A$10:$K$10, 0)) -> None | I32: =INDEX(DEFN!$A$11:$K$60, MATCH($A32, DEFN!$A$11:$A$60, 0), MATCH(I$9, DEFN!$A$10:$K$10, 0)) -> None | J32: =INDEX(DEFN!$A$11:$K$60, MATCH($A32, DEFN!$A$11:$A$60, 0), MATCH(J$9, DEFN!$A$10:$K$10, 0)) -> Policy Types | K32: =INDEX(DEFN!B$263:B$339, MATCH($B32, DEFN!$A$263:$A$339, 0), 1) -> Asia | L32: =INDEX(DEFN!C$263:C$339, MATCH($B32, DEFN!$A$263:$A$339, 0), 1) -> China | M32: =INDEX(DEFN!$A$11:$K$60, MATCH($A32, DEFN!$A$11:$A$60, 0), MATCH(M$9, DEFN!$A$10:$K$10, 0)) -> User Defined | N32: =INDEX(DEFN!$A$11:$K$60, MATCH($A32, DEFN!$A$11:$A$60, 0), MATCH(N$9, DEFN!$A$10:$K$10, 0)) -> 5 | O32: =IFERROR(IF($H32="None", 1, IF($H32="All Capacity", SUMIFS(SID!X$5:X$14942, SID!$G$5:$G$14942, "<>Power demand", SID!$K$5:$K$14942, $L32, SID!$I$5:$I$14942, $J32), IF($H32="All Generation", SUMIFS(SID!X$5:X$14942, SID!$K$5:$K$14942, $L32, SID!$I$5:$I$14942, $J32), SUMIFS(SID!X$5:X$14942, SID!$F$5:$F$14942, $H32, SID!$K$5:$K$14942, $L32)))), 1) -> 1 | P32: =IF(ISNUMBER(FIND("Growth", F32)), U32, IF(V32<>0,V32, SUMIFS(SID!X$5:X$14942, SID!$C$5:$C$14942, $C32, SID!$K$5:$K$14942, $L32, SID!$Y$5:$Y$14942, 0))) -> 7 | Q32: 2.64 | R32: 5 | S32: 52.8 | T32: 2.64 | U32: =IF(I32="Clean energy investments", IF(OR(W32=0, X32=0), 0, X32/W32-1), IF(OR(I32="None", SUMIFS(SID!X$5:X$14942, SID!$F$5:$F$14942, I32, SID!$K$5:$K$14942, L32, SID!$Y$5:$Y$14942, 0)=0), 0, IFERROR(SUMIFS(SID!X$5:X$14942, SID!$F$5:$F$14942, I32, SID!$K$5:$K$14942, L32, SID!$Y$5:$Y$14942, 0)/SUMIFS(SID!W$5:W$14942, SID!$F$5:$F$14942, I32, SID!$K$5:$K$14942, L32, SID!$Y$5:$Y$14942, 0) - 1, 0))) -> 0 | V32: =IF(J32<>"USDm", 0, IF(F32="Clean energy investments", IF(ISNUMBER(FIND("-", $L32)), SUMIFS(INV!$J$3:$J$20000, INV!$E$3:$E$20000, $L32, INV!$A$3:$A$20000, "<=" & int_Year, INV!$A$3:$A$20000, ">=" & $G$6), SUMIFS(INV!$J$3:$J$20000, INV!$F$3:$F$20000, $L32, INV!$A$3:$A$20000, "<=" & int_Year, INV!$A$3:$A$20000, ">=" & $G$6)), IF(ISNUMBER(FIND("-", $L32)), SUMIFS(INV!$J$3:$J$20000, INV!$E$3:$E$20000, $L32, INV!$I$3:$I$20000, $F32, INV!$A$3:$A$20000, "<=" & int_Year, INV!$A$3:$A$20000, ">=" & $G$6), SUMIFS(INV!$J$3:$J$20000, INV!$F$3:$F$20000, $L32, INV!$I$3:$I$20000, $F32, INV!$A$3:$A$20000, "<=" & int_Year, INV!$A$3:$A$20000, ">=" & $G$6)))) -> 0 | W32: =IF(I32<>"Clean energy investments", 0, IF(ISNUMBER(FIND("-", $L32)), SUMIFS(INV!$J$3:$J$20000, INV!$E$3:$E$20000, $L32, INV!$A$3:$A$20000, ">="& int_InvStartYear, INV!$A$3:$A$20000, "<="& int_Year-1), SUMIFS(INV!$J$3:$J$20000, INV!$F$3:$F$20000, $L32, INV!$A$3:$A$20000, ">="& int_InvStartYear, INV!$A$3:$A$20000, "<="& int_Year-1))) -> 0 | X32: =IF(I32<>"Clean energy investments", 0, IF(ISNUMBER(FIND("-", $L32)), SUMIFS(INV!$J$3:$J$20000, INV!$E$3:$E$20000, $L32, INV!$A$3:$A$20000, ">="& int_InvStartYear, INV!$A$3:$A$20000, "<="& int_Year), SUMIFS(INV!$J$3:$J$20000, INV!$F$3:$F$20000, $L32, INV!$A$3:$A$20000, ">="& int_InvStartYear, INV!$A$3:$A$20000, "<="& int_Year))) -> 0 | Y32: 1.01 > China | Z32: On-Grid | AA32: =IFERROR(INDEX(COUNTRY!$C$18:$C$67, MATCH(C32, COUNTRY!$F$18:$F$67, 0), 1), 0) -> 0.4 | AB32: =IFERROR(INDEX(COUNTRY!$E$18:$E$67, MATCH(C32, COUNTRY!$F$18:$F$67, 0), 1), 0) -> 0.4 | AC32: 0.6 | AD32: 0.6 | AE32: 0.096 | AF32: 0.25344
A33: 1 | B33: 24 | C33: =INDEX(DEFN!$A$11:$K$60, MATCH($A33, DEFN!$A$11:$A$60, 0), MATCH(C$9, DEFN!$A$10:$K$10, 0)) -> 1.01 | D33: =INDEX(DEFN!$A$11:$K$60, MATCH($A33, DEFN!$A$11:$A$60, 0), MATCH(D$9, DEFN!$A$10:$K$10, 0)) -> Enabling Framework | E33: =INDEX(DEFN!$A$11:$K$60, MATCH($A33, DEFN!$A$11:$A$60, 0), MATCH(E$9, DEFN!$A$10:$K$10, 0)) -> Policy & Regulation | F33: =INDEX(DEFN!$A$11:$K$60, MATCH($A33, DEFN!$A$11:$A$60, 0), MATCH(F$9, DEFN!$A$10:$K$10, 0)) -> Clean energy policies | G33: =INDEX(DEFN!$A$11:$K$60, MATCH($A33, DEFN!$A$11:$A$60, 0), MATCH(G$9, DEFN!$A$10:$K$10, 0)) -> Both | H33: =INDEX(DEFN!$A$11:$K$60, MATCH($A33, DEFN!$A$11:$A$60, 0), MATCH(H$9, DEFN!$A$10:$K$10, 0)) -> None | I33: =INDEX(DEFN!$A$11:$K$60, MATCH($A33, DEFN!$A$11:$A$60, 0), MATCH(I$9, DEFN!$A$10:$K$10, 0)) -> None | J33: =INDEX(DEFN!$A$11:$K$60, MATCH($A33, DEFN!$A$11:$A$60, 0), MATCH(J$9, DEFN!$A$10:$K$10, 0)) -> Policy Types | K33: =INDEX(DEFN!B$263:B$339, MATCH($B33, DEFN!$A$263:$A$339, 0), 1) -> Asia | L33: =INDEX(DEFN!C$263:C$339, MATCH($B33, DEFN!$A$263:$A$339, 0), 1) -> India | M33: =INDEX(DEFN!$A$11:$K$60, MATCH($A33, DEFN!$A$11:$A$60, 0), MATCH(M$9, DEFN!$A$10:$K$10, 0)) -> User Defined | N33: =INDEX(DEFN!$A$11:$K$60, MATCH($A33, DEFN!$A$11:$A$60, 0), MATCH(N$9, DEFN!$A$10:$K$10, 0)) -> 5 | O33: =IFERROR(IF($H33="None", 1, IF($H33="All Capacity", SUMIFS(SID!X$5:X$14942, SID!$G$5:$G$14942, "<>Power demand", SID!$K$5:$K$14942, $L33, SID!$I$5:$I$14942, $J33), IF($H33="All Generation", SUMIFS(SID!X$5:X$14942, SID!$K$5:$K$14942, $L33, SID!$I$5:$I$14942, $J33), SUMIFS(SID!X$5:X$14942, SID!$F$5:$F$14942, $H33, SID!$K$5:$K$14942, $L33)))), 1) -> 1 | P33: =IF(ISNUMBER(FIND("Growth", F33)), U33, IF(V33<>0,V33, SUMIFS(SID!X$5:X$14942, SID!$C$5:$C$14942, $C33, SID!$K$5:$K$14942, $L33, SID!$Y$5:$Y$14942, 0))) -> 8 | Q33: 2.79 | R33: 5 | S33: 55.8 | T33: 2.79 | U33: =IF(I33="Clean energy investments", IF(OR(W33=0, X33=0), 0, X33/W33-1), IF(OR(I33="None", SUMIFS(SID!X$5:X$14942, SID!$F$5:$F$14942, I33, SID!$K$5:$K$14942, L33, SID!$Y$5:$Y$14942, 0)=0), 0, IFERROR(SUMIFS(SID!X$5:X$14942, SID!$F$5:$F$14942, I33, SID!$K$5:$K$14942, L33, SID!$Y$5:$Y$14942, 0)/SUMIFS(SID!W$5:W$14942, SID!$F$5:$F$14942, I33, SID!$K$5:$K$14942, L33, SID!$Y$5:$Y$14942, 0) - 1, 0))) -> 0 | V33: =IF(J33<>"USDm", 0, IF(F33="Clean energy investments", IF(ISNUMBER(FIND("-", $L33)), SUMIFS(INV!$J$3:$J$20000, INV!$E$3:$E$20000, $L33, INV!$A$3:$A$20000, "<=" & int_Year, INV!$A$3:$A$20000, ">=" & $G$6), SUMIFS(INV!$J$3:$J$20000, INV!$F$3:$F$20000, $L33, INV!$A$3:$A$20000, "<=" & int_Year, INV!$A$3:$A$20000, ">=" & $G$6)), IF(ISNUMBER(FIND("-", $L33)), SUMIFS(INV!$J$3:$J$20000, INV!$E$3:$E$20000, $L33, INV!$I$3:$I$20000, $F33, INV!$A$3:$A$20000, "<=" & int_Year, INV!$A$3:$A$20000, ">=" & $G$6), SUMIFS(INV!$J$3:$J$20000, INV!$F$3:$F$20000, $L33, INV!$I$3:$I$20000, $F33, INV!$A$3:$A$20000, "<=" & int_Year, INV!$A$3:$A$20000, ">=" & $G$6)))) -> 0 | W33: =IF(I33<>"Clean energy investments", 0, IF(ISNUMBER(FIND("-", $L33)), SUMIFS(INV!$J$3:$J$20000, INV!$E$3:$E$20000, $L33, INV!$A$3:$A$20000, ">="& int_InvStartYear, INV!$A$3:$A$20000, "<="& int_Year-1), SUMIFS(INV!$J$3:$J$20000, INV!$F$3:$F$20000, $L33, INV!$A$3:$A$20000, ">="& int_InvStartYear, INV!$A$3:$A$20000, "<="& int_Year-1))) -> 0 | X33: =IF(I33<>"Clean energy investments", 0, IF(ISNUMBER(FIND("-", $L33)), SUMIFS(INV!$J$3:$J$20000, INV!$E$3:$E$20000, $L33, INV!$A$3:$A$20000, ">="& int_InvStartYear, INV!$A$3:$A$20000, "<="& int_Year), SUMIFS(INV!$J$3:$J$20000, INV!$F$3:$F$20000, $L33, INV!$A$3:$A$20000, ">="& int_InvStartYear, INV!$A$3:$A$20000, "<="& int_Year))) -> 0 | Y33: 1.01 > India | Z33: On-Grid | AA33: =IFERROR(INDEX(COUNTRY!$C$18:$C$67, MATCH(C33, COUNTRY!$F$18:$F$67, 0), 1), 0) -> 0.4 | AB33: =IFERROR(INDEX(COUNTRY!$E$18:$E$67, MATCH(C33, COUNTRY!$F$18:$F$67, 0), 1), 0) -> 0.4 | AC33: 0.6 | AD33: 0.6 | AE33: 0.096 | AF33: 0.26784
A34: 1 | B34: 25 | C34: =INDEX(DEFN!$A$11:$K$60, MATCH($A34, DEFN!$A$11:$A$60, 0), MATCH(C$9, DEFN!$A$10:$K$10, 0)) -> 1.01 | D34: =INDEX(DEFN!$A$11:$K$60, MATCH($A34, DEFN!$A$11:$A$60, 0), MATCH(D$9, DEFN!$A$10:$K$10, 0)) -> Enabling Framework | E34: =INDEX(DEFN!$A$11:$K$60, MATCH($A34, DEFN!$A$11:$A$60, 0), MATCH(E$9, DEFN!$A$10:$K$10, 0)) -> Policy & Regulation | F34: =INDEX(DEFN!$A$11:$K$60, MATCH($A34, DEFN!$A$11:$A$60, 0), MATCH(F$9, DEFN!$A$10:$K$10, 0)) -> Clean energy policies | G34: =INDEX(DEFN!$A$11:$K$60, MATCH($A34, DEFN!$A$11:$A$60, 0), MATCH(G$9, DEFN!$A$10:$K$10, 0)) -> Both | H34: =INDEX(DEFN!$A$11:$K$60, MATCH($A34, DEFN!$A$11:$A$60, 0), MATCH(H$9, DEFN!$A$10:$K$10, 0)) -> None | I34: =INDEX(DEFN!$A$11:$K$60, MATCH($A34, DEFN!$A$11:$A$60, 0), MATCH(I$9, DEFN!$A$10:$K$10, 0)) -> None | J34: =INDEX(DEFN!$A$11:$K$60, MATCH($A34, DEFN!$A$11:$A$60, 0), MATCH(J$9, DEFN!$A$10:$K$10, 0)) -> Policy Types | K34: =INDEX(DEFN!B$263:B$339, MATCH($B34, DEFN!$A$263:$A$339, 0), 1) -> Asia | L34: =INDEX(DEFN!C$263:C$339, MATCH($B34, DEFN!$A$263:$A$339, 0), 1) -> India - Andhra Pradesh | M34: =INDEX(DEFN!$A$11:$K$60, MATCH($A34, DEFN!$A$11:$A$60, 0), MATCH(M$9, DEFN!$A$10:$K$10, 0)) -> User Defined | N34: =INDEX(DEFN!$A$11:$K$60, MATCH($A34, DEFN!$A$11:$A$60, 0), MATCH(N$9, DEFN!$A$10:$K$10, 0)) -> 5 | O34: =IFERROR(IF($H34="None", 1, IF($H34="All Capacity", SUMIFS(SID!X$5:X$14942, SID!$G$5:$G$14942, "<>Power demand", SID!$K$5:$K$14942, $L34, SID!$I$5:$I$14942, $J34), IF($H34="All Generation", SUMIFS(SID!X$5:X$14942, SID!$K$5:$K$14942, $L34, SID!$I$5:$I$14942, $J34), SUMIFS(SID!X$5:X$14942, SID!$F$5:$F$14942, $H34, SID!$K$5:$K$14942, $L34)))), 1) -> 1 | P34: =IF(ISNUMBER(FIND("Growth", F34)), U34, IF(V34<>0,V34, SUMIFS(SID!X$5:X$14942, SID!$C$5:$C$14942, $C34, SID!$K$5:$K$14942, $L34, SID!$Y$5:$Y$14942, 0))) -> 8 | Q34: 2.79 | R34: 5 | S34: 55.8 | T34: 2.79 | U34: =IF(I34="Clean energy investments", IF(OR(W34=0, X34=0), 0, X34/W34-1), IF(OR(I34="None", SUMIFS(SID!X$5:X$14942, SID!$F$5:$F$14942, I34, SID!$K$5:$K$14942, L34, SID!$Y$5:$Y$14942, 0)=0), 0, IFERROR(SUMIFS(SID!X$5:X$14942, SID!$F$5:$F$14942, I34, SID!$K$5:$K$14942, L34, SID!$Y$5:$Y$14942, 0)/SUMIFS(SID!W$5:W$14942, SID!$F$5:$F$14942, I34, SID!$K$5:$K$14942, L34, SID!$Y$5:$Y$14942, 0) - 1, 0))) -> 0 | V34: =IF(J34<>"USDm", 0, IF(F34="Clean energy investments", IF(ISNUMBER(FIND("-", $L34)), SUMIFS(INV!$J$3:$J$20000, INV!$E$3:$E$20000, $L34, INV!$A$3:$A$20000, "<=" & int_Year, INV!$A$3:$A$20000, ">=" & $G$6), SUMIFS(INV!$J$3:$J$20000, INV!$F$3:$F$20000, $L34, INV!$A$3:$A$20000, "<=" & int_Year, INV!$A$3:$A$20000, ">=" & $G$6)), IF(ISNUMBER(FIND("-", $L34)), SUMIFS(INV!$J$3:$J$20000, INV!$E$3:$E$20000, $L34, INV!$I$3:$I$20000, $F34, INV!$A$3:$A$20000, "<=" & int_Year, INV!$A$3:$A$20000, ">=" & $G$6), SUMIFS(INV!$J$3:$J$20000, INV!$F$3:$F$20000, $L34, INV!$I$3:$I$20000, $F34, INV!$A$3:$A$20000, "<=" & int_Year, INV!$A$3:$A$20000, ">=" & $G$6)))) -> 0 | W34: =IF(I34<>"Clean energy investments", 0, IF(ISNUMBER(FIND("-", $L34)), SUMIFS(INV!$J$3:$J$20000, INV!$E$3:$E$20000, $L34, INV!$A$3:$A$20000, ">="& int_InvStartYear, INV!$A$3:$A$20000, "<="& int_Year-1), SUMIFS(INV!$J$3:$J$20000, INV!$F$3:$F$20000, $L34, INV!$A$3:$A$20000, ">="& int_InvStartYear, INV!$A$3:$A$20000, "<="& int_Year-1))) -> 0 | X34: =IF(I34<>"Clean energy investments", 0, IF(ISNUMBER(FIND("-", $L34)), SUMIFS(INV!$J$3:$J$20000, INV!$E$3:$E$20000, $L34, INV!$A$3:$A$20000, ">="& int_InvStartYear, INV!$A$3:$A$20000, "<="& int_Year), SUMIFS(INV!$J$3:$J$20000, INV!$F$3:$F$20000, $L34, INV!$A$3:$A$20000, ">="& int_InvStartYear, INV!$A$3:$A$20000, "<="& int_Year))) -> 0 | Y34: 1.01 > India - Andhra Pradesh | Z34: On-Grid | AA34: =IFERROR(INDEX(COUNTRY!$C$18:$C$67, MATCH(C34, COUNTRY!$F$18:$F$67, 0), 1), 0) -> 0.4 | AB34: =IFERROR(INDEX(COUNTRY!$E$18:$E$67, MATCH(C34, COUNTRY!$F$18:$F$67, 0), 1), 0) -> 0.4 | AC34: 0.6 | AD34: 0.6 | AE34: 0.096 | AF34: 0.26784
A35: 1 | B35: 26 | C35: =INDEX(DEFN!$A$11:$K$60, MATCH($A35, DEFN!$A$11:$A$60, 0), MATCH(C$9, DEFN!$A$10:$K$10, 0)) -> 1.01 | D35: =INDEX(DEFN!$A$11:$K$60, MATCH($A35, DEFN!$A$11:$A$60, 0), MATCH(D$9, DEFN!$A$10:$K$10, 0)) -> Enabling Framework | E35: =INDEX(DEFN!$A$11:$K$60, MATCH($A35, DEFN!$A$11:$A$60, 0), MATCH(E$9, DEFN!$A$10:$K$10, 0)) -> Policy & Regulation | F35: =INDEX(DEFN!$A$11:$K$60, MATCH($A35, DEFN!$A$11:$A$60, 0), MATCH(F$9, DEFN!$A$10:$K$10, 0)) -> Clean energy policies | G35: =INDEX(DEFN!$A$11:$K$60, MATCH($A35, DEFN!$A$11:$A$60, 0), MATCH(G$9, DEFN!$A$10:$K$10, 0)) -> Both | H35: =INDEX(DEFN!$A$11:$K$60, MATCH($A35, DEFN!$A$11:$A$60, 0), MATCH(H$9, DEFN!$A$10:$K$10, 0)) -> None | I35: =INDEX(DEFN!$A$11:$K$60, MATCH($A35, DEFN!$A$11:$A$60, 0), MATCH(I$9, DEFN!$A$10:$K$10, 0)) -> None | J35: =INDEX(DEFN!$A$11:$K$60, MATCH($A35, DEFN!$A$11:$A$60, 0), MATCH(J$9, DEFN!$A$10:$K$10, 0)) -> Policy Types | K35: =INDEX(DEFN!B$263:B$339, MATCH($B35, DEFN!$A$263:$A$339, 0), 1) -> Asia | L35: =INDEX(DEFN!C$263:C$339, MATCH($B35, DEFN!$A$263:$A$339, 0), 1) -> India - Bihar | M35: =INDEX(DEFN!$A$11:$K$60, MATCH($A35, DEFN!$A$11:$A$60, 0), MATCH(M$9, DEFN!$A$10:$K$10, 0)) -> User Defined | N35: =INDEX(DEFN!$A$11:$K$60, MATCH($A35, DEFN!$A$11:$A$60, 0), MATCH(N$9, DEFN!$A$10:$K$10, 0)) -> 5 | O35: =IFERROR(IF($H35="None", 1, IF($H35="All Capacity", SUMIFS(SID!X$5:X$14942, SID!$G$5:$G$14942, "<>Power demand", SID!$K$5:$K$14942, $L35, SID!$I$5:$I$14942, $J35), IF($H35="All Generation", SUMIFS(SID!X$5:X$14942, SID!$K$5:$K$14942, $L35, SID!$I$5:$I$14942, $J35), SUMIFS(SID!X$5:X$14942, SID!$F$5:$F$14942, $H35, SID!$K$5:$K$14942, $L35)))), 1) -> 1 | P35: =IF(ISNUMBER(FIND("Growth", F35)), U35, IF(V35<>0,V35, SUMIFS(SID!X$5:X$14942, SID!$C$5:$C$14942, $C35, SID!$K$5:$K$14942, $L35, SID!$Y$5:$Y$14942, 0))) -> 7 | Q35: 2.79 | R35: 5 | S35: 55.8 | T35: 2.79 | U35: =IF(I35="Clean energy investments", IF(OR(W35=0, X35=0), 0, X35/W35-1), IF(OR(I35="None", SUMIFS(SID!X$5:X$14942, SID!$F$5:$F$14942, I35, SID!$K$5:$K$14942, L35, SID!$Y$5:$Y$14942, 0)=0), 0, IFERROR(SUMIFS(SID!X$5:X$14942, SID!$F$5:$F$14942, I35, SID!$K$5:$K$14942, L35, SID!$Y$5:$Y$14942, 0)/SUMIFS(SID!W$5:W$14942, SID!$F$5:$F$14942, I35, SID!$K$5:$K$14942, L35, SID!$Y$5:$Y$14942, 0) - 1, 0))) -> 0 | V35: =IF(J35<>"USDm", 0, IF(F35="Clean energy investments", IF(ISNUMBER(FIND("-", $L35)), SUMIFS(INV!$J$3:$J$20000, INV!$E$3:$E$20000, $L35, INV!$A$3:$A$20000, "<=" & int_Year, INV!$A$3:$A$20000, ">=" & $G$6), SUMIFS(INV!$J$3:$J$20000, INV!$F$3:$F$20000, $L35, INV!$A$3:$A$20000, "<=" & int_Year, INV!$A$3:$A$20000, ">=" & $G$6)), IF(ISNUMBER(FIND("-", $L35)), SUMIFS(INV!$J$3:$J$20000, INV!$E$3:$E$20000, $L35, INV!$I$3:$I$20000, $F35, INV!$A$3:$A$20000, "<=" & int_Year, INV!$A$3:$A$20000, ">=" & $G$6), SUMIFS(INV!$J$3:$J$20000, INV!$F$3:$F$20000, $L35, INV!$I$3:$I$20000, $F35, INV!$A$3:$A$20000, "<=" & int_Year, INV!$A$3:$A$20000, ">=" & $G$6)))) -> 0 | W35: =IF(I35<>"Clean energy investments", 0, IF(ISNUMBER(FIND("-", $L35)), SUMIFS(INV!$J$3:$J$20000, INV!$E$3:$E$20000, $L35, INV!$A$3:$A$20000, ">="& int_InvStartYear, INV!$A$3:$A$20000, "<="& int_Year-1), SUMIFS(INV!$J$3:$J$20000, INV!$F$3:$F$20000, $L35, INV!$A$3:$A$20000, ">="& int_InvStartYear, INV!$A$3:$A$20000, "<="& int_Year-1))) -> 0 | X35: =IF(I35<>"Clean energy investments", 0, IF(ISNUMBER(FIND("-", $L35)), SUMIFS(INV!$J$3:$J$20000, INV!$E$3:$E$20000, $L35, INV!$A$3:$A$20000, ">="& int_InvStartYear, INV!$A$3:$A$20000, "<="& int_Year), SUMIFS(INV!$J$3:$J$20000, INV!$F$3:$F$20000, $L35, INV!$A$3:$A$20000, ">="& int_InvStartYear, INV!$A$3:$A$20000, "<="& int_Year))) -> 0 | Y35: 1.01 > India - Bihar | Z35: On-Grid | AA35: =IFERROR(INDEX(COUNTRY!$C$18:$C$67, MATCH(C35, COUNTRY!$F$18:$F$67, 0), 1), 0) -> 0.4 | AB35: =IFERROR(INDEX(COUNTRY!$E$18:$E$67, MATCH(C35, COUNTRY!$F$18:$F$67, 0), 1), 0) -> 0.4 | AC35: 0.6 | AD35: 0.6 | AE35: 0.096 | AF35: 0.26784
A36: 1 | B36: 27 | C36: =INDEX(DEFN!$A$11:$K$60, MATCH($A36, DEFN!$A$11:$A$60, 0), MATCH(C$9, DEFN!$A$10:$K$10, 0)) -> 1.01 | D36: =INDEX(DEFN!$A$11:$K$60, MATCH($A36, DEFN!$A$11:$A$60, 0), MATCH(D$9, DEFN!$A$10:$K$10, 0)) -> Enabling Framework | E36: =INDEX(DEFN!$A$11:$K$60, MATCH($A36, DEFN!$A$11:$A$60, 0), MATCH(E$9, DEFN!$A$10:$K$10, 0)) -> Policy & Regulation | F36: =INDEX(DEFN!$A$11:$K$60, MATCH($A36, DEFN!$A$11:$A$60, 0), MATCH(F$9, DEFN!$A$10:$K$10, 0)) -> Clean energy policies | G36: =INDEX(DEFN!$A$11:$K$60, MATCH($A36, DEFN!$A$11:$A$60, 0), MATCH(G$9, DEFN!$A$10:$K$10, 0)) -> Both | H36: =INDEX(DEFN!$A$11:$K$60, MATCH($A36, DEFN!$A$11:$A$60, 0), MATCH(H$9, DEFN!$A$10:$K$10, 0)) -> None | I36: =INDEX(DEFN!$A$11:$K$60, MATCH($A36, DEFN!$A$11:$A$60, 0), MATCH(I$9, DEFN!$A$10:$K$10, 0)) -> None | J36: =INDEX(DEFN!$A$11:$K$60, MATCH($A36, DEFN!$A$11:$A$60, 0), MATCH(J$9, DEFN!$A$10:$K$10, 0)) -> Policy Types | K36: =INDEX(DEFN!B$263:B$339, MATCH($B36, DEFN!$A$263:$A$339, 0), 1) -> Asia | L36: =INDEX(DEFN!C$263:C$339, MATCH($B36, DEFN!$A$263:$A$339, 0), 1) -> India - Madhya Pradesh | M36: =INDEX(DEFN!$A$11:$K$60, MATCH($A36, DEFN!$A$11:$A$60, 0), MATCH(M$9, DEFN!$A$10:$K$10, 0)) -> User Defined | N36: =INDEX(DEFN!$A$11:$K$60, MATCH($A36, DEFN!$A$11:$A$60, 0), MATCH(N$9, DEFN!$A$10:$K$10, 0)) -> 5 | O36: =IFERROR(IF($H36="None", 1, IF($H36="All Capacity", SUMIFS(SID!X$5:X$14942, SID!$G$5:$G$14942, "<>Power demand", SID!$K$5:$K$14942, $L36, SID!$I$5:$I$14942, $J36), IF($H36="All Generation", SUMIFS(SID!X$5:X$14942, SID!$K$5:$K$14942, $L36, SID!$I$5:$I$14942, $J36), SUMIFS(SID!X$5:X$14942, SID!$F$5:$F$14942, $H36, SID!$K$5:$K$14942, $L36)))), 1) -> 1 | P36: =IF(ISNUMBER(FIND("Growth", F36)), U36, IF(V36<>0,V36, SUMIFS(SID!X$5:X$14942, SID!$C$5:$C$14942, $C36, SID!$K$5:$K$14942, $L36, SID!$Y$5:$Y$14942, 0))) -> 8 | Q36: 2.79 | R36: 5 | S36: 55.8 | T36: 2.79 | U36: =IF(I36="Clean energy investments", IF(OR(W36=0, X36=0), 0, X36/W36-1), IF(OR(I36="None", SUMIFS(SID!X$5:X$14942, SID!$F$5:$F$14942, I36, SID!$K$5:$K$14942, L36, SID!$Y$5:$Y$14942, 0)=0), 0, IFERROR(SUMIFS(SID!X$5:X$14942, SID!$F$5:$F$14942, I36, SID!$K$5:$K$14942, L36, SID!$Y$5:$Y$14942, 0)/SUMIFS(SID!W$5:W$14942, SID!$F$5:$F$14942, I36, SID!$K$5:$K$14942, L36, SID!$Y$5:$Y$14942, 0) - 1, 0))) -> 0 | V36: =IF(J36<>"USDm", 0, IF(F36="Clean energy investments", IF(ISNUMBER(FIND("-", $L36)), SUMIFS(INV!$J$3:$J$20000, INV!$E$3:$E$20000, $L36, INV!$A$3:$A$20000, "<=" & int_Year, INV!$A$3:$A$20000, ">=" & $G$6), SUMIFS(INV!$J$3:$J$20000, INV!$F$3:$F$20000, $L36, INV!$A$3:$A$20000, "<=" & int_Year, INV!$A$3:$A$20000, ">=" & $G$6)), IF(ISNUMBER(FIND("-", $L36)), SUMIFS(INV!$J$3:$J$20000, INV!$E$3:$E$20000, $L36, INV!$I$3:$I$20000, $F36, INV!$A$3:$A$20000, "<=" & int_Year, INV!$A$3:$A$20000, ">=" & $G$6), SUMIFS(INV!$J$3:$J$20000, INV!$F$3:$F$20000, $L36, INV!$I$3:$I$20000, $F36, INV!$A$3:$A$20000, "<=" & int_Year, INV!$A$3:$A$20000, ">=" & $G$6)))) -> 0 | W36: =IF(I36<>"Clean energy investments", 0, IF(ISNUMBER(FIND("-", $L36)), SUMIFS(INV!$J$3:$J$20000, INV!$E$3:$E$20000, $L36, INV!$A$3:$A$20000, ">="& int_InvStartYear, INV!$A$3:$A$20000, "<="& int_Year-1), SUMIFS(INV!$J$3:$J$20000, INV!$F$3:$F$20000, $L36, INV!$A$3:$A$20000, ">="& int_InvStartYear, INV!$A$3:$A$20000, "<="& int_Year-1))) -> 0 | X36: =IF(I36<>"Clean energy investments", 0, IF(ISNUMBER(FIND("-", $L36)), SUMIFS(INV!$J$3:$J$20000, INV!$E$3:$E$20000, $L36, INV!$A$3:$A$20000, ">="& int_InvStartYear, INV!$A$3:$A$20000, "<="& int_Year), SUMIFS(INV!$J$3:$J$20000, INV!$F$3:$F$20000, $L36, INV!$A$3:$A$20000, ">="& int_InvStartYear, INV!$A$3:$A$20000, "<="& int_Year))) -> 0 | Y36: 1.01 > India - Madhya Pradesh | Z36: On-Grid | AA36: =IFERROR(INDEX(COUNTRY!$C$18:$C$67, MATCH(C36, COUNTRY!$F$18:$F$67, 0), 1), 0) -> 0.4 | AB36: =IFERROR(INDEX(COUNTRY!$E$18:$E$67, MATCH(C36, COUNTRY!$F$18:$F$67, 0), 1), 0) -> 0.4 | AC36: 0.6 | AD36: 0.6 | AE36: 0.096 | AF36: 0.26784
A37: 1 | B37: 28 | C37: =INDEX(DEFN!$A$11:$K$60, MATCH($A37, DEFN!$A$11:$A$60, 0), MATCH(C$9, DEFN!$A$10:$K$10, 0)) -> 1.01 | D37: =INDEX(DEFN!$A$11:$K$60, MATCH($A37, DEFN!$A$11:$A$60, 0), MATCH(D$9, DEFN!$A$10:$K$10, 0)) -> Enabling Framework | E37: =INDEX(DEFN!$A$11:$K$60, MATCH($A37, DEFN!$A$11:$A$60, 0), MATCH(E$9, DEFN!$A$10:$K$10, 0)) -> Policy & Regulation | F37: =INDEX(DEFN!$A$11:$K$60, MATCH($A37, DEFN!$A$11:$A$60, 0), MATCH(F$9, DEFN!$A$10:$K$10, 0)) -> Clean energy policies | G37: =INDEX(DEFN!$A$11:$K$60, MATCH($A37, DEFN!$A$11:$A$60, 0), MATCH(G$9, DEFN!$A$10:$K$10, 0)) -> Both | H37: =INDEX(DEFN!$A$11:$K$60, MATCH($A37, DEFN!$A$11:$A$60, 0), MATCH(H$9, DEFN!$A$10:$K$10, 0)) -> None | I37: =INDEX(DEFN!$A$11:$K$60, MATCH($A37, DEFN!$A$11:$A$60, 0), MATCH(I$9, DEFN!$A$10:$K$10, 0)) -> None | J37: =INDEX(DEFN!$A$11:$K$60, MATCH($A37, DEFN!$A$11:$A$60, 0), MATCH(J$9, DEFN!$A$10:$K$10, 0)) -> Policy Types | K37: =INDEX(DEFN!B$263:B$339, MATCH($B37, DEFN!$A$263:$A$339, 0), 1) -> Asia | L37: =INDEX(DEFN!C$263:C$339, MATCH($B37, DEFN!$A$263:$A$339, 0), 1) -> India - Odisha | M37: =INDEX(DEFN!$A$11:$K$60, MATCH($A37, DEFN!$A$11:$A$60, 0), MATCH(M$9, DEFN!$A$10:$K$10, 0)) -> User Defined | N37: =INDEX(DEFN!$A$11:$K$60, MATCH($A37, DEFN!$A$11:$A$60, 0), MATCH(N$9, DEFN!$A$10:$K$10, 0)) -> 5 | O37: =IFERROR(IF($H37="None", 1, IF($H37="All Capacity", SUMIFS(SID!X$5:X$14942, SID!$G$5:$G$14942, "<>Power demand", SID!$K$5:$K$14942, $L37, SID!$I$5:$I$14942, $J37), IF($H37="All Generation", SUMIFS(SID!X$5:X$14942, SID!$K$5:$K$14942, $L37, SID!$I$5:$I$14942, $J37), SUMIFS(SID!X$5:X$14942, SID!$F$5:$F$14942, $H37, SID!$K$5:$K$14942, $L37)))), 1) -> 1 | P37: =IF(ISNUMBER(FIND("Growth", F37)), U37, IF(V37<>0,V37, SUMIFS(SID!X$5:X$14942, SID!$C$5:$C$14942, $C37, SID!$K$5:$K$14942, $L37, SID!$Y$5:$Y$14942, 0))) -> 8 | Q37: 2.79 | R37: 5 | S37: 55.8 | T37: 2.79 | U37: =IF(I37="Clean energy investments", IF(OR(W37=0, X37=0), 0, X37/W37-1), IF(OR(I37="None", SUMIFS(SID!X$5:X$14942, SID!$F$5:$F$14942, I37, SID!$K$5:$K$14942, L37, SID!$Y$5:$Y$14942, 0)=0), 0, IFERROR(SUMIFS(SID!X$5:X$14942, SID!$F$5:$F$14942, I37, SID!$K$5:$K$14942, L37, SID!$Y$5:$Y$14942, 0)/SUMIFS(SID!W$5:W$14942, SID!$F$5:$F$14942, I37, SID!$K$5:$K$14942, L37, SID!$Y$5:$Y$14942, 0) - 1, 0))) -> 0 | V37: =IF(J37<>"USDm", 0, IF(F37="Clean energy investments", IF(ISNUMBER(FIND("-", $L37)), SUMIFS(INV!$J$3:$J$20000, INV!$E$3:$E$20000, $L37, INV!$A$3:$A$20000, "<=" & int_Year, INV!$A$3:$A$20000, ">=" & $G$6), SUMIFS(INV!$J$3:$J$20000, INV!$F$3:$F$20000, $L37, INV!$A$3:$A$20000, "<=" & int_Year, INV!$A$3:$A$20000, ">=" & $G$6)), IF(ISNUMBER(FIND("-", $L37)), SUMIFS(INV!$J$3:$J$20000, INV!$E$3:$E$20000, $L37, INV!$I$3:$I$20000, $F37, INV!$A$3:$A$20000, "<=" & int_Year, INV!$A$3:$A$20000, ">=" & $G$6), SUMIFS(INV!$J$3:$J$20000, INV!$F$3:$F$20000, $L37, INV!$I$3:$I$20000, $F37, INV!$A$3:$A$20000, "<=" & int_Year, INV!$A$3:$A$20000, ">=" & $G$6)))) -> 0 | W37: =IF(I37<>"Clean energy investments", 0, IF(ISNUMBER(FIND("-", $L37)), SUMIFS(INV!$J$3:$J$20000, INV!$E$3:$E$20000, $L37, INV!$A$3:$A$20000, ">="& int_InvStartYear, INV!$A$3:$A$20000, "<="& int_Year-1), SUMIFS(INV!$J$3:$J$20000, INV!$F$3:$F$20000, $L37, INV!$A$3:$A$20000, ">="& int_InvStartYear, INV!$A$3:$A$20000, "<="& int_Year-1))) -> 0 | X37: =IF(I37<>"Clean energy investments", 0, IF(ISNUMBER(FIND("-", $L37)), SUMIFS(INV!$J$3:$J$20000, INV!$E$3:$E$20000, $L37, INV!$A$3:$A$20000, ">="& int_InvStartYear, INV!$A$3:$A$20000, "<="& int_Year), SUMIFS(INV!$J$3:$J$20000, INV!$F$3:$F$20000, $L37, INV!$A$3:$A$20000, ">="& int_InvStartYear, INV!$A$3:$A$20000, "<="& int_Year))) -> 0 | Y37: 1.01 > India - Odisha | Z37: On-Grid | AA37: =IFERROR(INDEX(COUNTRY!$C$18:$C$67, MATCH(C37, COUNTRY!$F$18:$F$67, 0), 1), 0) -> 0.4 | AB37: =IFERROR(INDEX(COUNTRY!$E$18:$E$67, MATCH(C37, COUNTRY!$F$18:$F$67, 0), 1), 0) -> 0.4 | AC37: 0.6 | AD37: 0.6 | AE37: 0.096 | AF37: 0.26784
A38: 1 | B38: 29 | C38: =INDEX(DEFN!$A$11:$K$60, MATCH($A38, DEFN!$A$11:$A$60, 0), MATCH(C$9, DEFN!$A$10:$K$10, 0)) -> 1.01 | D38: =INDEX(DEFN!$A$11:$K$60, MATCH($A38, DEFN!$A$11:$A$60, 0), MATCH(D$9, DEFN!$A$10:$K$10, 0)) -> Enabling Framework | E38: =INDEX(DEFN!$A$11:$K$60, MATCH($A38, DEFN!$A$11:$A$60, 0), MATCH(E$9, DEFN!$A$10:$K$10, 0)) -> Policy & Regulation | F38: =INDEX(DEFN!$A$11:$K$60, MATCH($A38, DEFN!$A$11:$A$60, 0), MATCH(F$9, DEFN!$A$10:$K$10, 0)) -> Clean energy policies | G38: =INDEX(DEFN!$A$11:$K$60, MATCH($A38, DEFN!$A$11:$A$60, 0), MATCH(G$9, DEFN!$A$10:$K$10, 0)) -> Both | H38: =INDEX(DEFN!$A$11:$K$60, MATCH($A38, DEFN!$A$11:$A$60, 0), MATCH(H$9, DEFN!$A$10:$K$10, 0)) -> None | I38: =INDEX(DEFN!$A$11:$K$60, MATCH($A38, DEFN!$A$11:$A$60, 0), MATCH(I$9, DEFN!$A$10:$K$10, 0)) -> None | J38: =INDEX(DEFN!$A$11:$K$60, MATCH($A38, DEFN!$A$11:$A$60, 0), MATCH(J$9, DEFN!$A$10:$K$10, 0)) -> Policy Types | K38: =INDEX(DEFN!B$263:B$339, MATCH($B38, DEFN!$A$263:$A$339, 0), 1) -> Asia | L38: =INDEX(DEFN!C$263:C$339, MATCH($B38, DEFN!$A$263:$A$339, 0), 1) -> India - Uttar Pradesh | M38: =INDEX(DEFN!$A$11:$K$60, MATCH($A38, DEFN!$A$11:$A$60, 0), MATCH(M$9, DEFN!$A$10:$K$10, 0)) -> User Defined | N38: =INDEX(DEFN!$A$11:$K$60, MATCH($A38, DEFN!$A$11:$A$60, 0), MATCH(N$9, DEFN!$A$10:$K$10, 0)) -> 5 | O38: =IFERROR(IF($H38="None", 1, IF($H38="All Capacity", SUMIFS(SID!X$5:X$14942, SID!$G$5:$G$14942, "<>Power demand", SID!$K$5:$K$14942, $L38, SID!$I$5:$I$14942, $J38), IF($H38="All Generation", SUMIFS(SID!X$5:X$14942, SID!$K$5:$K$14942, $L38, SID!$I$5:$I$14942, $J38), SUMIFS(SID!X$5:X$14942, SID!$F$5:$F$14942, $H38, SID!$K$5:$K$14942, $L38)))), 1) -> 1 | P38: =IF(ISNUMBER(FIND("Growth", F38)), U38, IF(V38<>0,V38, SUMIFS(SID!X$5:X$14942, SID!$C$5:$C$14942, $C38, SID!$K$5:$K$14942, $L38, SID!$Y$5:$Y$14942, 0))) -> 8 | Q38: 2.79 | R38: 5 | S38: 55.8 | T38: 2.79 | U38: =IF(I38="Clean energy investments", IF(OR(W38=0, X38=0), 0, X38/W38-1), IF(OR(I38="None", SUMIFS(SID!X$5:X$14942, SID!$F$5:$F$14942, I38, SID!$K$5:$K$14942, L38, SID!$Y$5:$Y$14942, 0)=0), 0, IFERROR(SUMIFS(SID!X$5:X$14942, SID!$F$5:$F$14942, I38, SID!$K$5:$K$14942, L38, SID!$Y$5:$Y$14942, 0)/SUMIFS(SID!W$5:W$14942, SID!$F$5:$F$14942, I38, SID!$K$5:$K$14942, L38, SID!$Y$5:$Y$14942, 0) - 1, 0))) -> 0 | V38: =IF(J38<>"USDm", 0, IF(F38="Clean energy investments", IF(ISNUMBER(FIND("-", $L38)), SUMIFS(INV!$J$3:$J$20000, INV!$E$3:$E$20000, $L38, INV!$A$3:$A$20000, "<=" & int_Year, INV!$A$3:$A$20000, ">=" & $G$6), SUMIFS(INV!$J$3:$J$20000, INV!$F$3:$F$20000, $L38, INV!$A$3:$A$20000, "<=" & int_Year, INV!$A$3:$A$20000, ">=" & $G$6)), IF(ISNUMBER(FIND("-", $L38)), SUMIFS(INV!$J$3:$J$20000, INV!$E$3:$E$20000, $L38, INV!$I$3:$I$20000, $F38, INV!$A$3:$A$20000, "<=" & int_Year, INV!$A$3:$A$20000, ">=" & $G$6), SUMIFS(INV!$J$3:$J$20000, INV!$F$3:$F$20000, $L38, INV!$I$3:$I$20000, $F38, INV!$A$3:$A$20000, "<=" & int_Year, INV!$A$3:$A$20000, ">=" & $G$6)))) -> 0 | W38: =IF(I38<>"Clean energy investments", 0, IF(ISNUMBER(FIND("-", $L38)), SUMIFS(INV!$J$3:$J$20000, INV!$E$3:$E$20000, $L38, INV!$A$3:$A$20000, ">="& int_InvStartYear, INV!$A$3:$A$20000, "<="& int_Year-1), SUMIFS(INV!$J$3:$J$20000, INV!$F$3:$F$20000, $L38, INV!$A$3:$A$20000, ">="& int_InvStartYear, INV!$A$3:$A$20000, "<="& int_Year-1))) -> 0 | X38: =IF(I38<>"Clean energy investments", 0, IF(ISNUMBER(FIND("-", $L38)), SUMIFS(INV!$J$3:$J$20000, INV!$E$3:$E$20000, $L38, INV!$A$3:$A$20000, ">="& int_InvStartYear, INV!$A$3:$A$20000, "<="& int_Year), SUMIFS(INV!$J$3:$J$20000, INV!$F$3:$F$20000, $L38, INV!$A$3:$A$20000, ">="& int_InvStartYear, INV!$A$3:$A$20000, "<="& int_Year))) -> 0 | Y38: 1.01 > India - Uttar Pradesh | Z38: On-Grid | AA38: =IFERROR(INDEX(COUNTRY!$C$18:$C$67, MATCH(C38, COUNTRY!$F$18:$F$67, 0), 1), 0) -> 0.4 | AB38: =IFERROR(INDEX(COUNTRY!$E$18:$E$67, MATCH(C38, COUNTRY!$F$18:$F$67, 0), 1), 0) -> 0.4 | AC38: 0.6 | AD38: 0.6 | AE38: 0.096 | AF38: 0.26784
A39: 1 | B39: 30 | C39: =INDEX(DEFN!$A$11:$K$60, MATCH($A39, DEFN!$A$11:$A$60, 0), MATCH(C$9, DEFN!$A$10:$K$10, 0)) -> 1.01 | D39: =INDEX(DEFN!$A$11:$K$60, MATCH($A39, DEFN!$A$11:$A$60, 0), MATCH(D$9, DEFN!$A$10:$K$10, 0)) -> Enabling Framework | E39: =INDEX(DEFN!$A$11:$K$60, MATCH($A39, DEFN!$A$11:$A$60, 0), MATCH(E$9, DEFN!$A$10:$K$10, 0)) -> Policy & Regulation | F39: =INDEX(DEFN!$A$11:$K$60, MATCH($A39, DEFN!$A$11:$A$60, 0), MATCH(F$9, DEFN!$A$10:$K$10, 0)) -> Clean energy policies | G39: =INDEX(DEFN!$A$11:$K$60, MATCH($A39, DEFN!$A$11:$A$60, 0), MATCH(G$9, DEFN!$A$10:$K$10, 0)) -> Both | H39: =INDEX(DEFN!$A$11:$K$60, MATCH($A39, DEFN!$A$11:$A$60, 0), MATCH(H$9, DEFN!$A$10:$K$10, 0)) -> None | I39: =INDEX(DEFN!$A$11:$K$60, MATCH($A39, DEFN!$A$11:$A$60, 0), MATCH(I$9, DEFN!$A$10:$K$10, 0)) -> None | J39: =INDEX(DEFN!$A$11:$K$60, MATCH($A39, DEFN!$A$11:$A$60, 0), MATCH(J$9, DEFN!$A$10:$K$10, 0)) -> Policy Types | K39: =INDEX(DEFN!B$263:B$339, MATCH($B39, DEFN!$A$263:$A$339, 0), 1) -> Asia | L39: =INDEX(DEFN!C$263:C$339, MATCH($B39, DEFN!$A$263:$A$339, 0), 1) -> India - West Bengal | M39: =INDEX(DEFN!$A$11:$K$60, MATCH($A39, DEFN!$A$11:$A$60, 0), MATCH(M$9, DEFN!$A$10:$K$10, 0)) -> User Defined | N39: =INDEX(DEFN!$A$11:$K$60, MATCH($A39, DEFN!$A$11:$A$60, 0), MATCH(N$9, DEFN!$A$10:$K$10, 0)) -> 5 | O39: =IFERROR(IF($H39="None", 1, IF($H39="All Capacity", SUMIFS(SID!X$5:X$14942, SID!$G$5:$G$14942, "<>Power demand", SID!$K$5:$K$14942, $L39, SID!$I$5:$I$14942, $J39), IF($H39="All Generation", SUMIFS(SID!X$5:X$14942, SID!$K$5:$K$14942, $L39, SID!$I$5:$I$14942, $J39), SUMIFS(SID!X$5:X$14942, SID!$F$5:$F$14942, $H39, SID!$K$5:$K$14942, $L39)))), 1) -> 1 | P39: =IF(ISNUMBER(FIND("Growth", F39)), U39, IF(V39<>0,V39, SUMIFS(SID!X$5:X$14942, SID!$C$5:$C$14942, $C39, SID!$K$5:$K$14942, $L39, SID!$Y$5:$Y$14942, 0))) -> 5 | Q39: 2.79 | R39: 5 | S39: 55.8 | T39: 2.79 | U39: =IF(I39="Clean energy investments", IF(OR(W39=0, X39=0), 0, X39/W39-1), IF(OR(I39="None", SUMIFS(SID!X$5:X$14942, SID!$F$5:$F$14942, I39, SID!$K$5:$K$14942, L39, SID!$Y$5:$Y$14942, 0)=0), 0, IFERROR(SUMIFS(SID!X$5:X$14942, SID!$F$5:$F$14942, I39, SID!$K$5:$K$14942, L39, SID!$Y$5:$Y$14942, 0)/SUMIFS(SID!W$5:W$14942, SID!$F$5:$F$14942, I39, SID!$K$5:$K$14942, L39, SID!$Y$5:$Y$14942, 0) - 1, 0))) -> 0 | V39: =IF(J39<>"USDm", 0, IF(F39="Clean energy investments", IF(ISNUMBER(FIND("-", $L39)), SUMIFS(INV!$J$3:$J$20000, INV!$E$3:$E$20000, $L39, INV!$A$3:$A$20000, "<=" & int_Year, INV!$A$3:$A$20000, ">=" & $G$6), SUMIFS(INV!$J$3:$J$20000, INV!$F$3:$F$20000, $L39, INV!$A$3:$A$20000, "<=" & int_Year, INV!$A$3:$A$20000, ">=" & $G$6)), IF(ISNUMBER(FIND("-", $L39)), SUMIFS(INV!$J$3:$J$20000, INV!$E$3:$E$20000, $L39, INV!$I$3:$I$20000, $F39, INV!$A$3:$A$20000, "<=" & int_Year, INV!$A$3:$A$20000, ">=" & $G$6), SUMIFS(INV!$J$3:$J$20000, INV!$F$3:$F$20000, $L39, INV!$I$3:$I$20000, $F39, INV!$A$3:$A$20000, "<=" & int_Year, INV!$A$3:$A$20000, ">=" & $G$6)))) -> 0 | W39: =IF(I39<>"Clean energy investments", 0, IF(ISNUMBER(FIND("-", $L39)), SUMIFS(INV!$J$3:$J$20000, INV!$E$3:$E$20000, $L39, INV!$A$3:$A$20000, ">="& int_InvStartYear, INV!$A$3:$A$20000, "<="& int_Year-1), SUMIFS(INV!$J$3:$J$20000, INV!$F$3:$F$20000, $L39, INV!$A$3:$A$20000, ">="& int_InvStartYear, INV!$A$3:$A$20000, "<="& int_Year-1))) -> 0 | X39: =IF(I39<>"Clean energy investments", 0, IF(ISNUMBER(FIND("-", $L39)), SUMIFS(INV!$J$3:$J$20000, INV!$E$3:$E$20000, $L39, INV!$A$3:$A$20000, ">="& int_InvStartYear, INV!$A$3:$A$20000, "<="& int_Year), SUMIFS(INV!$J$3:$J$20000, INV!$F$3:$F$20000, $L39, INV!$A$3:$A$20000, ">="& int_InvStartYear, INV!$A$3:$A$20000, "<="& int_Year))) -> 0 | Y39: 1.01 > India - West Bengal | Z39: On-Grid | AA39: =IFERROR(INDEX(COUNTRY!$C$18:$C$67, MATCH(C39, COUNTRY!$F$18:$F$67, 0), 1), 0) -> 0.4 | AB39: =IFERROR(INDEX(COUNTRY!$E$18:$E$67, MATCH(C39, COUNTRY!$F$18:$F$67, 0), 1), 0) -> 0.4 | AC39: 0.6 | AD39: 0.6 | AE39: 0.096 | AF39: 0.26784
A40: 1 | B40: 31 | C40: =INDEX(DEFN!$A$11:$K$60, MATCH($A40, DEFN!$A$11:$A$60, 0), MATCH(C$9, DEFN!$A$10:$K$10, 0)) -> 1.01 | D40: =INDEX(DEFN!$A$11:$K$60, MATCH($A40, DEFN!$A$11:$A$60, 0), MATCH(D$9, DEFN!$A$10:$K$10, 0)) -> Enabling Framework | E40: =INDEX(DEFN!$A$11:$K$60, MATCH($A40, DEFN!$A$11:$A$60, 0), MATCH(E$9, DEFN!$A$10:$K$10, 0)) -> Policy & Regulation | F40: =INDEX(DEFN!$A$11:$K$60, MATCH($A40, DEFN!$A$11:$A$60, 0), MATCH(F$9, DEFN!$A$10:$K$10, 0)) -> Clean energy policies | G40: =INDEX(DEFN!$A$11:$K$60, MATCH($A40, DEFN!$A$11:$A$60, 0), MATCH(G$9, DEFN!$A$10:$K$10, 0)) -> Both | H40: =INDEX(DEFN!$A$11:$K$60, MATCH($A40, DEFN!$A$11:$A$60, 0), MATCH(H$9, DEFN!$A$10:$K$10, 0)) -> None | I40: =INDEX(DEFN!$A$11:$K$60, MATCH($A40, DEFN!$A$11:$A$60, 0), MATCH(I$9, DEFN!$A$10:$K$10, 0)) -> None | J40: =INDEX(DEFN!$A$11:$K$60, MATCH($A40, DEFN!$A$11:$A$60, 0), MATCH(J$9, DEFN!$A$10:$K$10, 0)) -> Policy Types | K40: =INDEX(DEFN!B$263:B$339, MATCH($B40, DEFN!$A$263:$A$339, 0), 1) -> Asia | L40: =INDEX(DEFN!C$263:C$339, MATCH($B40, DEFN!$A$263:$A$339, 0), 1) -> Indonesia | M40: =INDEX(DEFN!$A$11:$K$60, MATCH($A40, DEFN!$A$11:$A$60, 0), MATCH(M$9, DEFN!$A$10:$K$10, 0)) -> User Defined | N40: =INDEX(DEFN!$A$11:$K$60, MATCH($A40, DEFN!$A$11:$A$60, 0), MATCH(N$9, DEFN!$A$10:$K$10, 0)) -> 5 | O40: =IFERROR(IF($H40="None", 1, IF($H40="All Capacity", SUMIFS(SID!X$5:X$14942, SID!$G$5:$G$14942, "<>Power demand", SID!$K$5:$K$14942, $L40, SID!$I$5:$I$14942, $J40), IF($H40="All Generation", SUMIFS(SID!X$5:X$14942, SID!$K$5:$K$14942, $L40, SID!$I$5:$I$14942, $J40), SUMIFS(SID!X$5:X$14942, SID!$F$5:$F$14942, $H40, SID!$K$5:$K$14942, $L40)))), 1) -> 1 | P40: =IF(ISNUMBER(FIND("Growth", F40)), U40, IF(V40<>0,V40, SUMIFS(SID!X$5:X$14942, SID!$C$5:$C$14942, $C40, SID!$K$5:$K$14942, $L40, SID!$Y$5:$Y$14942, 0))) -> 5 | Q40: 1.48 | R40: 5 | S40: 29.6 | T40: 1.48 | U40: =IF(I40="Clean energy investments", IF(OR(W40=0, X40=0), 0, X40/W40-1), IF(OR(I40="None", SUMIFS(SID!X$5:X$14942, SID!$F$5:$F$14942, I40, SID!$K$5:$K$14942, L40, SID!$Y$5:$Y$14942, 0)=0), 0, IFERROR(SUMIFS(SID!X$5:X$14942, SID!$F$5:$F$14942, I40, SID!$K$5:$K$14942, L40, SID!$Y$5:$Y$14942, 0)/SUMIFS(SID!W$5:W$14942, SID!$F$5:$F$14942, I40, SID!$K$5:$K$14942, L40, SID!$Y$5:$Y$14942, 0) - 1, 0))) -> 0 | V40: =IF(J40<>"USDm", 0, IF(F40="Clean energy investments", IF(ISNUMBER(FIND("-", $L40)), SUMIFS(INV!$J$3:$J$20000, INV!$E$3:$E$20000, $L40, INV!$A$3:$A$20000, "<=" & int_Year, INV!$A$3:$A$20000, ">=" & $G$6), SUMIFS(INV!$J$3:$J$20000, INV!$F$3:$F$20000, $L40, INV!$A$3:$A$20000, "<=" & int_Year, INV!$A$3:$A$20000, ">=" & $G$6)), IF(ISNUMBER(FIND("-", $L40)), SUMIFS(INV!$J$3:$J$20000, INV!$E$3:$E$20000, $L40, INV!$I$3:$I$20000, $F40, INV!$A$3:$A$20000, "<=" & int_Year, INV!$A$3:$A$20000, ">=" & $G$6), SUMIFS(INV!$J$3:$J$20000, INV!$F$3:$F$20000, $L40, INV!$I$3:$I$20000, $F40, INV!$A$3:$A$20000, "<=" & int_Year, INV!$A$3:$A$20000, ">=" & $G$6)))) -> 0 | W40: =IF(I40<>"Clean energy investments", 0, IF(ISNUMBER(FIND("-", $L40)), SUMIFS(INV!$J$3:$J$20000, INV!$E$3:$E$20000, $L40, INV!$A$3:$A$20000, ">="& int_InvStartYear, INV!$A$3:$A$20000, "<="& int_Year-1), SUMIFS(INV!$J$3:$J$20000, INV!$F$3:$F$20000, $L40, INV!$A$3:$A$20000, ">="& int_InvStartYear, INV!$A$3:$A$20000, "<="& int_Year-1))) -> 0 | X40: =IF(I40<>"Clean energy investments", 0, IF(ISNUMBER(FIND("-", $L40)), SUMIFS(INV!$J$3:$J$20000, INV!$E$3:$E$20000, $L40, INV!$A$3:$A$20000, ">="& int_InvStartYear, INV!$A$3:$A$20000, "<="& int_Year), SUMIFS(INV!$J$3:$J$20000, INV!$F$3:$F$20000, $L40, INV!$A$3:$A$20000, ">="& int_InvStartYear, INV!$A$3:$A$20000, "<="& int_Year))) -> 0 | Y40: 1.01 > Indonesia | Z40: On-Grid | AA40: =IFERROR(INDEX(COUNTRY!$C$18:$C$67, MATCH(C40, COUNTRY!$F$18:$F$67, 0), 1), 0) -> 0.4 | AB40: =IFERROR(INDEX(COUNTRY!$E$18:$E$67, MATCH(C40, COUNTRY!$F$18:$F$67, 0), 1), 0) -> 0.4 | AC40: 0.6 | AD40: 0.6 | AE40: 0.096 | AF40: 0.14208
A41: 1 | B41: 32 | C41: =INDEX(DEFN!$A$11:$K$60, MATCH($A41, DEFN!$A$11:$A$60, 0), MATCH(C$9, DEFN!$A$10:$K$10, 0)) -> 1.01 | D41: =INDEX(DEFN!$A$11:$K$60, MATCH($A41, DEFN!$A$11:$A$60, 0), MATCH(D$9, DEFN!$A$10:$K$10, 0)) -> Enabling Framework | E41: =INDEX(DEFN!$A$11:$K$60, MATCH($A41, DEFN!$A$11:$A$60, 0), MATCH(E$9, DEFN!$A$10:$K$10, 0)) -> Policy & Regulation | F41: =INDEX(DEFN!$A$11:$K$60, MATCH($A41, DEFN!$A$11:$A$60, 0), MATCH(F$9, DEFN!$A$10:$K$10, 0)) -> Clean energy policies | G41: =INDEX(DEFN!$A$11:$K$60, MATCH($A41, DEFN!$A$11:$A$60, 0), MATCH(G$9, DEFN!$A$10:$K$10, 0)) -> Both | H41: =INDEX(DEFN!$A$11:$K$60, MATCH($A41, DEFN!$A$11:$A$60, 0), MATCH(H$9, DEFN!$A$10:$K$10, 0)) -> None | I41: =INDEX(DEFN!$A$11:$K$60, MATCH($A41, DEFN!$A$11:$A$60, 0), MATCH(I$9, DEFN!$A$10:$K$10, 0)) -> None | J41: =INDEX(DEFN!$A$11:$K$60, MATCH($A41, DEFN!$A$11:$A$60, 0), MATCH(J$9, DEFN!$A$10:$K$10, 0)) -> Policy Types | K41: =INDEX(DEFN!B$263:B$339, MATCH($B41, DEFN!$A$263:$A$339, 0), 1) -> Asia | L41: =INDEX(DEFN!C$263:C$339, MATCH($B41, DEFN!$A$263:$A$339, 0), 1) -> Kazakhstan | M41: =INDEX(DEFN!$A$11:$K$60, MATCH($A41, DEFN!$A$11:$A$60, 0), MATCH(M$9, DEFN!$A$10:$K$10, 0)) -> User Defined | N41: =INDEX(DEFN!$A$11:$K$60, MATCH($A41, DEFN!$A$11:$A$60, 0), MATCH(N$9, DEFN!$A$10:$K$10, 0)) -> 5 | O41: =IFERROR(IF($H41="None", 1, IF($H41="All Capacity", SUMIFS(SID!X$5:X$14942, SID!$G$5:$G$14942, "<>Power demand", SID!$K$5:$K$14942, $L41, SID!$I$5:$I$14942, $J41), IF($H41="All Generation", SUMIFS(SID!X$5:X$14942, SID!$K$5:$K$14942, $L41, SID!$I$5:$I$14942, $J41), SUMIFS(SID!X$5:X$14942, SID!$F$5:$F$14942, $H41, SID!$K$5:$K$14942, $L41)))), 1) -> 1 | P41: =IF(ISNUMBER(FIND("Growth", F41)), U41, IF(V41<>0,V41, SUMIFS(SID!X$5:X$14942, SID!$C$5:$C$14942, $C41, SID!$K$5:$K$14942, $L41, SID!$Y$5:$Y$14942, 0))) -> 3 | Q41: 1.1 | R41: 5 | S41: 22 | T41: 1.1 | U41: =IF(I41="Clean energy investments", IF(OR(W41=0, X41=0), 0, X41/W41-1), IF(OR(I41="None", SUMIFS(SID!X$5:X$14942, SID!$F$5:$F$14942, I41, SID!$K$5:$K$14942, L41, SID!$Y$5:$Y$14942, 0)=0), 0, IFERROR(SUMIFS(SID!X$5:X$14942, SID!$F$5:$F$14942, I41, SID!$K$5:$K$14942, L41, SID!$Y$5:$Y$14942, 0)/SUMIFS(SID!W$5:W$14942, SID!$F$5:$F$14942, I41, SID!$K$5:$K$14942, L41, SID!$Y$5:$Y$14942, 0) - 1, 0))) -> 0 | V41: =IF(J41<>"USDm", 0, IF(F41="Clean energy investments", IF(ISNUMBER(FIND("-", $L41)), SUMIFS(INV!$J$3:$J$20000, INV!$E$3:$E$20000, $L41, INV!$A$3:$A$20000, "<=" & int_Year, INV!$A$3:$A$20000, ">=" & $G$6), SUMIFS(INV!$J$3:$J$20000, INV!$F$3:$F$20000, $L41, INV!$A$3:$A$20000, "<=" & int_Year, INV!$A$3:$A$20000, ">=" & $G$6)), IF(ISNUMBER(FIND("-", $L41)), SUMIFS(INV!$J$3:$J$20000, INV!$E$3:$E$20000, $L41, INV!$I$3:$I$20000, $F41, INV!$A$3:$A$20000, "<=" & int_Year, INV!$A$3:$A$20000, ">=" & $G$6), SUMIFS(INV!$J$3:$J$20000, INV!$F$3:$F$20000, $L41, INV!$I$3:$I$20000, $F41, INV!$A$3:$A$20000, "<=" & int_Year, INV!$A$3:$A$20000, ">=" & $G$6)))) -> 0 | W41: =IF(I41<>"Clean energy investments", 0, IF(ISNUMBER(FIND("-", $L41)), SUMIFS(INV!$J$3:$J$20000, INV!$E$3:$E$20000, $L41, INV!$A$3:$A$20000, ">="& int_InvStartYear, INV!$A$3:$A$20000, "<="& int_Year-1), SUMIFS(INV!$J$3:$J$20000, INV!$F$3:$F$20000, $L41, INV!$A$3:$A$20000, ">="& int_InvStartYear, INV!$A$3:$A$20000, "<="& int_Year-1))) -> 0 | X41: =IF(I41<>"Clean energy investments", 0, IF(ISNUMBER(FIND("-", $L41)), SUMIFS(INV!$J$3:$J$20000, INV!$E$3:$E$20000, $L41, INV!$A$3:$A$20000, ">="& int_InvStartYear, INV!$A$3:$A$20000, "<="& int_Year), SUMIFS(INV!$J$3:$J$20000, INV!$F$3:$F$20000, $L41, INV!$A$3:$A$20000, ">="& int_InvStartYear, INV!$A$3:$A$20000, "<="& int_Year))) -> 0 | Y41: 1.01 > Kazakhstan | Z41: On-Grid | AA41: =IFERROR(INDEX(COUNTRY!$C$18:$C$67, MATCH(C41, COUNTRY!$F$18:$F$67, 0), 1), 0) -> 0.4 | AB41: =IFERROR(INDEX(COUNTRY!$E$18:$E$67, MATCH(C41, COUNTRY!$F$18:$F$67, 0), 1), 0) -> 0.4 | AC41: 0.6 | AD41: 0.6 | AE41: 0.096 | AF41: 0.1056
A42: 1 | B42: 33 | C42: =INDEX(DEFN!$A$11:$K$60, MATCH($A42, DEFN!$A$11:$A$60, 0), MATCH(C$9, DEFN!$A$10:$K$10, 0)) -> 1.01 | D42: =INDEX(DEFN!$A$11:$K$60, MATCH($A42, DEFN!$A$11:$A$60, 0), MATCH(D$9, DEFN!$A$10:$K$10, 0)) -> Enabling Framework | E42: =INDEX(DEFN!$A$11:$K$60, MATCH($A42, DEFN!$A$11:$A$60, 0), MATCH(E$9, DEFN!$A$10:$K$10, 0)) -> Policy & Regulation | F42: =INDEX(DEFN!$A$11:$K$60, MATCH($A42, DEFN!$A$11:$A$60, 0), MATCH(F$9, DEFN!$A$10:$K$10, 0)) -> Clean energy policies | G42: =INDEX(DEFN!$A$11:$K$60, MATCH($A42, DEFN!$A$11:$A$60, 0), MATCH(G$9, DEFN!$A$10:$K$10, 0)) -> Both | H42: =INDEX(DEFN!$A$11:$K$60, MATCH($A42, DEFN!$A$11:$A$60, 0), MATCH(H$9, DEFN!$A$10:$K$10, 0)) -> None | I42: =INDEX(DEFN!$A$11:$K$60, MATCH($A42, DEFN!$A$11:$A$60, 0), MATCH(I$9, DEFN!$A$10:$K$10, 0)) -> None | J42: =INDEX(DEFN!$A$11:$K$60, MATCH($A42, DEFN!$A$11:$A$60, 0), MATCH(J$9, DEFN!$A$10:$K$10, 0)) -> Policy Types | K42: =INDEX(DEFN!B$263:B$339, MATCH($B42, DEFN!$A$263:$A$339, 0), 1) -> Asia | L42: =INDEX(DEFN!C$263:C$339, MATCH($B42, DEFN!$A$263:$A$339, 0), 1) -> Kyrgyzstan | M42: =INDEX(DEFN!$A$11:$K$60, MATCH($A42, DEFN!$A$11:$A$60, 0), MATCH(M$9, DEFN!$A$10:$K$10, 0)) -> User Defined | N42: =INDEX(DEFN!$A$11:$K$60, MATCH($A42, DEFN!$A$11:$A$60, 0), MATCH(N$9, DEFN!$A$10:$K$10, 0)) -> 5 | O42: =IFERROR(IF($H42="None", 1, IF($H42="All Capacity", SUMIFS(SID!X$5:X$14942, SID!$G$5:$G$14942, "<>Power demand", SID!$K$5:$K$14942, $L42, SID!$I$5:$I$14942, $J42), IF($H42="All Generation", SUMIFS(SID!X$5:X$14942, SID!$K$5:$K$14942, $L42, SID!$I$5:$I$14942, $J42), SUMIFS(SID!X$5:X$14942, SID!$F$5:$F$14942, $H42, SID!$K$5:$K$14942, $L42)))), 1) -> 1 | P42: =IF(ISNUMBER(FIND("Growth", F42)), U42, IF(V42<>0,V42, SUMIFS(SID!X$5:X$14942, SID!$C$5:$C$14942, $C42, SID!$K$5:$K$14942, $L42, SID!$Y$5:$Y$14942, 0))) -> 2 | Q42: 0.33 | R42: 5 | S42: 6.6 | T42: 0.33 | U42: =IF(I42="Clean energy investments", IF(OR(W42=0, X42=0), 0, X42/W42-1), IF(OR(I42="None", SUMIFS(SID!X$5:X$14942, SID!$F$5:$F$14942, I42, SID!$K$5:$K$14942, L42, SID!$Y$5:$Y$14942, 0)=0), 0, IFERROR(SUMIFS(SID!X$5:X$14942, SID!$F$5:$F$14942, I42, SID!$K$5:$K$14942, L42, SID!$Y$5:$Y$14942, 0)/SUMIFS(SID!W$5:W$14942, SID!$F$5:$F$14942, I42, SID!$K$5:$K$14942, L42, SID!$Y$5:$Y$14942, 0) - 1, 0))) -> 0 | V42: =IF(J42<>"USDm", 0, IF(F42="Clean energy investments", IF(ISNUMBER(FIND("-", $L42)), SUMIFS(INV!$J$3:$J$20000, INV!$E$3:$E$20000, $L42, INV!$A$3:$A$20000, "<=" & int_Year, INV!$A$3:$A$20000, ">=" & $G$6), SUMIFS(INV!$J$3:$J$20000, INV!$F$3:$F$20000, $L42, INV!$A$3:$A$20000, "<=" & int_Year, INV!$A$3:$A$20000, ">=" & $G$6)), IF(ISNUMBER(FIND("-", $L42)), SUMIFS(INV!$J$3:$J$20000, INV!$E$3:$E$20000, $L42, INV!$I$3:$I$20000, $F42, INV!$A$3:$A$20000, "<=" & int_Year, INV!$A$3:$A$20000, ">=" & $G$6), SUMIFS(INV!$J$3:$J$20000, INV!$F$3:$F$20000, $L42, INV!$I$3:$I$20000, $F42, INV!$A$3:$A$20000, "<=" & int_Year, INV!$A$3:$A$20000, ">=" & $G$6)))) -> 0 | W42: =IF(I42<>"Clean energy investments", 0, IF(ISNUMBER(FIND("-", $L42)), SUMIFS(INV!$J$3:$J$20000, INV!$E$3:$E$20000, $L42, INV!$A$3:$A$20000, ">="& int_InvStartYear, INV!$A$3:$A$20000, "<="& int_Year-1), SUMIFS(INV!$J$3:$J$20000, INV!$F$3:$F$20000, $L42, INV!$A$3:$A$20000, ">="& int_InvStartYear, INV!$A$3:$A$20000, "<="& int_Year-1))) -> 0 | X42: =IF(I42<>"Clean energy investments", 0, IF(ISNUMBER(FIND("-", $L42)), SUMIFS(INV!$J$3:$J$20000, INV!$E$3:$E$20000, $L42, INV!$A$3:$A$20000, ">="& int_InvStartYear, INV!$A$3:$A$20000, "<="& int_Year), SUMIFS(INV!$J$3:$J$20000, INV!$F$3:$F$20000, $L42, INV!$A$3:$A$20000, ">="& int_InvStartYear, INV!$A$3:$A$20000, "<="& int_Year))) -> 0 | Y42: 1.01 > Kyrgyzstan | Z42: On-Grid | AA42: =IFERROR(INDEX(COUNTRY!$C$18:$C$67, MATCH(C42, COUNTRY!$F$18:$F$67, 0), 1), 0) -> 0.4 | AB42: =IFERROR(INDEX(COUNTRY!$E$18:$E$67, MATCH(C42, COUNTRY!$F$18:$F$67, 0), 1), 0) -> 0.4 | AC42: 0.6 | AD42: 0.6 | AE42: 0.096 | AF42: 0.03168
A43: 1 | B43: 34 | C43: =INDEX(DEFN!$A$11:$K$60, MATCH($A43, DEFN!$A$11:$A$60, 0), MATCH(C$9, DEFN!$A$10:$K$10, 0)) -> 1.01 | D43: =INDEX(DEFN!$A$11:$K$60, MATCH($A43, DEFN!$A$11:$A$60, 0), MATCH(D$9, DEFN!$A$10:$K$10, 0)) -> Enabling Framework | E43: =INDEX(DEFN!$A$11:$K$60, MATCH($A43, DEFN!$A$11:$A$60, 0), MATCH(E$9, DEFN!$A$10:$K$10, 0)) -> Policy & Regulation | F43: =INDEX(DEFN!$A$11:$K$60, MATCH($A43, DEFN!$A$11:$A$60, 0), MATCH(F$9, DEFN!$A$10:$K$10, 0)) -> Clean energy policies | G43: =INDEX(DEFN!$A$11:$K$60, MATCH($A43, DEFN!$A$11:$A$60, 0), MATCH(G$9, DEFN!$A$10:$K$10, 0)) -> Both | H43: =INDEX(DEFN!$A$11:$K$60, MATCH($A43, DEFN!$A$11:$A$60, 0), MATCH(H$9, DEFN!$A$10:$K$10, 0)) -> None | I43: =INDEX(DEFN!$A$11:$K$60, MATCH($A43, DEFN!$A$11:$A$60, 0), MATCH(I$9, DEFN!$A$10:$K$10, 0)) -> None | J43: =INDEX(DEFN!$A$11:$K$60, MATCH($A43, DEFN!$A$11:$A$60, 0), MATCH(J$9, DEFN!$A$10:$K$10, 0)) -> Policy Types | K43: =INDEX(DEFN!B$263:B$339, MATCH($B43, DEFN!$A$263:$A$339, 0), 1) -> Asia | L43: =INDEX(DEFN!C$263:C$339, MATCH($B43, DEFN!$A$263:$A$339, 0), 1) -> Mongolia | M43: =INDEX(DEFN!$A$11:$K$60, MATCH($A43, DEFN!$A$11:$A$60, 0), MATCH(M$9, DEFN!$A$10:$K$10, 0)) -> User Defined | N43: =INDEX(DEFN!$A$11:$K$60, MATCH($A43, DEFN!$A$11:$A$60, 0), MATCH(N$9, DEFN!$A$10:$K$10, 0)) -> 5 | O43: =IFERROR(IF($H43="None", 1, IF($H43="All Capacity", SUMIFS(SID!X$5:X$14942, SID!$G$5:$G$14942, "<>Power demand", SID!$K$5:$K$14942, $L43, SID!$I$5:$I$14942, $J43), IF($H43="All Generation", SUMIFS(SID!X$5:X$14942, SID!$K$5:$K$14942, $L43, SID!$I$5:$I$14942, $J43), SUMIFS(SID!X$5:X$14942, SID!$F$5:$F$14942, $H43, SID!$K$5:$K$14942, $L43)))), 1) -> 1 | P43: =IF(ISNUMBER(FIND("Growth", F43)), U43, IF(V43<>0,V43, SUMIFS(SID!X$5:X$14942, SID!$C$5:$C$14942, $C43, SID!$K$5:$K$14942, $L43, SID!$Y$5:$Y$14942, 0))) -> 2 | Q43: 0.64 | R43: 5 | S43: 12.8 | T43: 0.64 | U43: =IF(I43="Clean energy investments", IF(OR(W43=0, X43=0), 0, X43/W43-1), IF(OR(I43="None", SUMIFS(SID!X$5:X$14942, SID!$F$5:$F$14942, I43, SID!$K$5:$K$14942, L43, SID!$Y$5:$Y$14942, 0)=0), 0, IFERROR(SUMIFS(SID!X$5:X$14942, SID!$F$5:$F$14942, I43, SID!$K$5:$K$14942, L43, SID!$Y$5:$Y$14942, 0)/SUMIFS(SID!W$5:W$14942, SID!$F$5:$F$14942, I43, SID!$K$5:$K$14942, L43, SID!$Y$5:$Y$14942, 0) - 1, 0))) -> 0 | V43: =IF(J43<>"USDm", 0, IF(F43="Clean energy investments", IF(ISNUMBER(FIND("-", $L43)), SUMIFS(INV!$J$3:$J$20000, INV!$E$3:$E$20000, $L43, INV!$A$3:$A$20000, "<=" & int_Year, INV!$A$3:$A$20000, ">=" & $G$6), SUMIFS(INV!$J$3:$J$20000, INV!$F$3:$F$20000, $L43, INV!$A$3:$A$20000, "<=" & int_Year, INV!$A$3:$A$20000, ">=" & $G$6)), IF(ISNUMBER(FIND("-", $L43)), SUMIFS(INV!$J$3:$J$20000, INV!$E$3:$E$20000, $L43, INV!$I$3:$I$20000, $F43, INV!$A$3:$A$20000, "<=" & int_Year, INV!$A$3:$A$20000, ">=" & $G$6), SUMIFS(INV!$J$3:$J$20000, INV!$F$3:$F$20000, $L43, INV!$I$3:$I$20000, $F43, INV!$A$3:$A$20000, "<=" & int_Year, INV!$A$3:$A$20000, ">=" & $G$6)))) -> 0 | W43: =IF(I43<>"Clean energy investments", 0, IF(ISNUMBER(FIND("-", $L43)), SUMIFS(INV!$J$3:$J$20000, INV!$E$3:$E$20000, $L43, INV!$A$3:$A$20000, ">="& int_InvStartYear, INV!$A$3:$A$20000, "<="& int_Year-1), SUMIFS(INV!$J$3:$J$20000, INV!$F$3:$F$20000, $L43, INV!$A$3:$A$20000, ">="& int_InvStartYear, INV!$A$3:$A$20000, "<="& int_Year-1))) -> 0 | X43: =IF(I43<>"Clean energy investments", 0, IF(ISNUMBER(FIND("-", $L43)), SUMIFS(INV!$J$3:$J$20000, INV!$E$3:$E$20000, $L43, INV!$A$3:$A$20000, ">="& int_InvStartYear, INV!$A$3:$A$20000, "<="& int_Year), SUMIFS(INV!$J$3:$J$20000, INV!$F$3:$F$20000, $L43, INV!$A$3:$A$20000, ">="& int_InvStartYear, INV!$A$3:$A$20000, "<="& int_Year))) -> 0 | Y43: 1.01 > Mongolia | Z43: On-Grid | AA43: =IFERROR(INDEX(COUNTRY!$C$18:$C$67, MATCH(C43, COUNTRY!$F$18:$F$67, 0), 1), 0) -> 0.4 | AB43: =IFERROR(INDEX(COUNTRY!$E$18:$E$67, MATCH(C43, COUNTRY!$F$18:$F$67, 0), 1), 0) -> 0.4 | AC43: 0.6 | AD43: 0.6 | AE43: 0.096 | AF43: 0.06144
A44: 1 | B44: 35 | C44: =INDEX(DEFN!$A$11:$K$60, MATCH($A44, DEFN!$A$11:$A$60, 0), MATCH(C$9, DEFN!$A$10:$K$10, 0)) -> 1.01 | D44: =INDEX(DEFN!$A$11:$K$60, MATCH($A44, DEFN!$A$11:$A$60, 0), MATCH(D$9, DEFN!$A$10:$K$10, 0)) -> Enabling Framework | E44: =INDEX(DEFN!$A$11:$K$60, MATCH($A44, DEFN!$A$11:$A$60, 0), MATCH(E$9, DEFN!$A$10:$K$10, 0)) -> Policy & Regulation | F44: =INDEX(DEFN!$A$11:$K$60, MATCH($A44, DEFN!$A$11:$A$60, 0), MATCH(F$9, DEFN!$A$10:$K$10, 0)) -> Clean energy policies | G44: =INDEX(DEFN!$A$11:$K$60, MATCH($A44, DEFN!$A$11:$A$60, 0), MATCH(G$9, DEFN!$A$10:$K$10, 0)) -> Both | H44: =INDEX(DEFN!$A$11:$K$60, MATCH($A44, DEFN!$A$11:$A$60, 0), MATCH(H$9, DEFN!$A$10:$K$10, 0)) -> None | I44: =INDEX(DEFN!$A$11:$K$60, MATCH($A44, DEFN!$A$11:$A$60, 0), MATCH(I$9, DEFN!$A$10:$K$10, 0)) -> None | J44: =INDEX(DEFN!$A$11:$K$60, MATCH($A44, DEFN!$A$11:$A$60, 0), MATCH(J$9, DEFN!$A$10:$K$10, 0)) -> Policy Types | K44: =INDEX(DEFN!B$263:B$339, MATCH($B44, DEFN!$A$263:$A$339, 0), 1) -> Asia | L44: =INDEX(DEFN!C$263:C$339, MATCH($B44, DEFN!$A$263:$A$339, 0), 1) -> Myanmar | M44: =INDEX(DEFN!$A$11:$K$60, MATCH($A44, DEFN!$A$11:$A$60, 0), MATCH(M$9, DEFN!$A$10:$K$10, 0)) -> User Defined | N44: =INDEX(DEFN!$A$11:$K$60, MATCH($A44, DEFN!$A$11:$A$60, 0), MATCH(N$9, DEFN!$A$10:$K$10, 0)) -> 5 | O44: =IFERROR(IF($H44="None", 1, IF($H44="All Capacity", SUMIFS(SID!X$5:X$14942, SID!$G$5:$G$14942, "<>Power demand", SID!$K$5:$K$14942, $L44, SID!$I$5:$I$14942, $J44), IF($H44="All Generation", SUMIFS(SID!X$5:X$14942, SID!$K$5:$K$14942, $L44, SID!$I$5:$I$14942, $J44), SUMIFS(SID!X$5:X$14942, SID!$F$5:$F$14942, $H44, SID!$K$5:$K$14942, $L44)))), 1) -> 1 | P44: =IF(ISNUMBER(FIND("Growth", F44)), U44, IF(V44<>0,V44, SUMIFS(SID!X$5:X$14942, SID!$C$5:$C$14942, $C44, SID!$K$5:$K$14942, $L44, SID!$Y$5:$Y$14942, 0))) -> 2 | Q44: 0.46 | R44: 5 | S44: 9.2 | T44: 0.46 | U44: =IF(I44="Clean energy investments", IF(OR(W44=0, X44=0), 0, X44/W44-1), IF(OR(I44="None", SUMIFS(SID!X$5:X$14942, SID!$F$5:$F$14942, I44, SID!$K$5:$K$14942, L44, SID!$Y$5:$Y$14942, 0)=0), 0, IFERROR(SUMIFS(SID!X$5:X$14942, SID!$F$5:$F$14942, I44, SID!$K$5:$K$14942, L44, SID!$Y$5:$Y$14942, 0)/SUMIFS(SID!W$5:W$14942, SID!$F$5:$F$14942, I44, SID!$K$5:$K$14942, L44, SID!$Y$5:$Y$14942, 0) - 1, 0))) -> 0 | V44: =IF(J44<>"USDm", 0, IF(F44="Clean energy investments", IF(ISNUMBER(FIND("-", $L44)), SUMIFS(INV!$J$3:$J$20000, INV!$E$3:$E$20000, $L44, INV!$A$3:$A$20000, "<=" & int_Year, INV!$A$3:$A$20000, ">=" & $G$6), SUMIFS(INV!$J$3:$J$20000, INV!$F$3:$F$20000, $L44, INV!$A$3:$A$20000, "<=" & int_Year, INV!$A$3:$A$20000, ">=" & $G$6)), IF(ISNUMBER(FIND("-", $L44)), SUMIFS(INV!$J$3:$J$20000, INV!$E$3:$E$20000, $L44, INV!$I$3:$I$20000, $F44, INV!$A$3:$A$20000, "<=" & int_Year, INV!$A$3:$A$20000, ">=" & $G$6), SUMIFS(INV!$J$3:$J$20000, INV!$F$3:$F$20000, $L44, INV!$I$3:$I$20000, $F44, INV!$A$3:$A$20000, "<=" & int_Year, INV!$A$3:$A$20000, ">=" & $G$6)))) -> 0 | W44: =IF(I44<>"Clean energy investments", 0, IF(ISNUMBER(FIND("-", $L44)), SUMIFS(INV!$J$3:$J$20000, INV!$E$3:$E$20000, $L44, INV!$A$3:$A$20000, ">="& int_InvStartYear, INV!$A$3:$A$20000, "<="& int_Year-1), SUMIFS(INV!$J$3:$J$20000, INV!$F$3:$F$20000, $L44, INV!$A$3:$A$20000, ">="& int_InvStartYear, INV!$A$3:$A$20000, "<="& int_Year-1))) -> 0 | X44: =IF(I44<>"Clean energy investments", 0, IF(ISNUMBER(FIND("-", $L44)), SUMIFS(INV!$J$3:$J$20000, INV!$E$3:$E$20000, $L44, INV!$A$3:$A$20000, ">="& int_InvStartYear, INV!$A$3:$A$20000, "<="& int_Year), SUMIFS(INV!$J$3:$J$20000, INV!$F$3:$F$20000, $L44, INV!$A$3:$A$20000, ">="& int_InvStartYear, INV!$A$3:$A$20000, "<="& int_Year))) -> 0 | Y44: 1.01 > Myanmar | Z44: Off-Grid | AA44: =IFERROR(INDEX(COUNTRY!$C$18:$C$67, MATCH(C44, COUNTRY!$F$18:$F$67, 0), 1), 0) -> 0.4 | AB44: =IFERROR(INDEX(COUNTRY!$E$18:$E$67, MATCH(C44, COUNTRY!$F$18:$F$67, 0), 1), 0) -> 0.4 | AC44: 0.4 | AD44: 0.4 | AE44: 0.064 | AF44: 0.02944
A45: 1 | B45: 36 | C45: =INDEX(DEFN!$A$11:$K$60, MATCH($A45, DEFN!$A$11:$A$60, 0), MATCH(C$9, DEFN!$A$10:$K$10, 0)) -> 1.01 | D45: =INDEX(DEFN!$A$11:$K$60, MATCH($A45, DEFN!$A$11:$A$60, 0), MATCH(D$9, DEFN!$A$10:$K$10, 0)) -> Enabling Framework | E45: =INDEX(DEFN!$A$11:$K$60, MATCH($A45, DEFN!$A$11:$A$60, 0), MATCH(E$9, DEFN!$A$10:$K$10, 0)) -> Policy & Regulation | F45: =INDEX(DEFN!$A$11:$K$60, MATCH($A45, DEFN!$A$11:$A$60, 0), MATCH(F$9, DEFN!$A$10:$K$10, 0)) -> Clean energy policies | G45: =INDEX(DEFN!$A$11:$K$60, MATCH($A45, DEFN!$A$11:$A$60, 0), MATCH(G$9, DEFN!$A$10:$K$10, 0)) -> Both | H45: =INDEX(DEFN!$A$11:$K$60, MATCH($A45, DEFN!$A$11:$A$60, 0), MATCH(H$9, DEFN!$A$10:$K$10, 0)) -> None | I45: =INDEX(DEFN!$A$11:$K$60, MATCH($A45, DEFN!$A$11:$A$60, 0), MATCH(I$9, DEFN!$A$10:$K$10, 0)) -> None | J45: =INDEX(DEFN!$A$11:$K$60, MATCH($A45, DEFN!$A$11:$A$60, 0), MATCH(J$9, DEFN!$A$10:$K$10, 0)) -> Policy Types | K45: =INDEX(DEFN!B$263:B$339, MATCH($B45, DEFN!$A$263:$A$339, 0), 1) -> Asia | L45: =INDEX(DEFN!C$263:C$339, MATCH($B45, DEFN!$A$263:$A$339, 0), 1) -> Nepal | M45: =INDEX(DEFN!$A$11:$K$60, MATCH($A45, DEFN!$A$11:$A$60, 0), MATCH(M$9, DEFN!$A$10:$K$10, 0)) -> User Defined | N45: =INDEX(DEFN!$A$11:$K$60, MATCH($A45, DEFN!$A$11:$A$60, 0), MATCH(N$9, DEFN!$A$10:$K$10, 0)) -> 5 | O45: =IFERROR(IF($H45="None", 1, IF($H45="All Capacity", SUMIFS(SID!X$5:X$14942, SID!$G$5:$G$14942, "<>Power demand", SID!$K$5:$K$14942, $L45, SID!$I$5:$I$14942, $J45), IF($H45="All Generation", SUMIFS(SID!X$5:X$14942, SID!$K$5:$K$14942, $L45, SID!$I$5:$I$14942, $J45), SUMIFS(SID!X$5:X$14942, SID!$F$5:$F$14942, $H45, SID!$K$5:$K$14942, $L45)))), 1) -> 1 | P45: =IF(ISNUMBER(FIND("Growth", F45)), U45, IF(V45<>0,V45, SUMIFS(SID!X$5:X$14942, SID!$C$5:$C$14942, $C45, SID!$K$5:$K$14942, $L45, SID!$Y$5:$Y$14942, 0))) -> 4 | Q45: 1.33 | R45: 5 | S45: 26.6 | T45: 1.33 | U45: =IF(I45="Clean energy investments", IF(OR(W45=0, X45=0), 0, X45/W45-1), IF(OR(I45="None", SUMIFS(SID!X$5:X$14942, SID!$F$5:$F$14942, I45, SID!$K$5:$K$14942, L45, SID!$Y$5:$Y$14942, 0)=0), 0, IFERROR(SUMIFS(SID!X$5:X$14942, SID!$F$5:$F$14942, I45, SID!$K$5:$K$14942, L45, SID!$Y$5:$Y$14942, 0)/SUMIFS(SID!W$5:W$14942, SID!$F$5:$F$14942, I45, SID!$K$5:$K$14942, L45, SID!$Y$5:$Y$14942, 0) - 1, 0))) -> 0 | V45: =IF(J45<>"USDm", 0, IF(F45="Clean energy investments", IF(ISNUMBER(FIND("-", $L45)), SUMIFS(INV!$J$3:$J$20000, INV!$E$3:$E$20000, $L45, INV!$A$3:$A$20000, "<=" & int_Year, INV!$A$3:$A$20000, ">=" & $G$6), SUMIFS(INV!$J$3:$J$20000, INV!$F$3:$F$20000, $L45, INV!$A$3:$A$20000, "<=" & int_Year, INV!$A$3:$A$20000, ">=" & $G$6)), IF(ISNUMBER(FIND("-", $L45)), SUMIFS(INV!$J$3:$J$20000, INV!$E$3:$E$20000, $L45, INV!$I$3:$I$20000, $F45, INV!$A$3:$A$20000, "<=" & int_Year, INV!$A$3:$A$20000, ">=" & $G$6), SUMIFS(INV!$J$3:$J$20000, INV!$F$3:$F$20000, $L45, INV!$I$3:$I$20000, $F45, INV!$A$3:$A$20000, "<=" & int_Year, INV!$A$3:$A$20000, ">=" & $G$6)))) -> 0 | W45: =IF(I45<>"Clean energy investments", 0, IF(ISNUMBER(FIND("-", $L45)), SUMIFS(INV!$J$3:$J$20000, INV!$E$3:$E$20000, $L45, INV!$A$3:$A$20000, ">="& int_InvStartYear, INV!$A$3:$A$20000, "<="& int_Year-1), SUMIFS(INV!$J$3:$J$20000, INV!$F$3:$F$20000, $L45, INV!$A$3:$A$20000, ">="& int_InvStartYear, INV!$A$3:$A$20000, "<="& int_Year-1))) -> 0 | X45: =IF(I45<>"Clean energy investments", 0, IF(ISNUMBER(FIND("-", $L45)), SUMIFS(INV!$J$3:$J$20000, INV!$E$3:$E$20000, $L45, INV!$A$3:$A$20000, ">="& int_InvStartYear, INV!$A$3:$A$20000, "<="& int_Year), SUMIFS(INV!$J$3:$J$20000, INV!$F$3:$F$20000, $L45, INV!$A$3:$A$20000, ">="& int_InvStartYear, INV!$A$3:$A$20000, "<="& int_Year))) -> 0 | Y45: 1.01 > Nepal | Z45: Off-Grid | AA45: =IFERROR(INDEX(COUNTRY!$C$18:$C$67, MATCH(C45, COUNTRY!$F$18:$F$67, 0), 1), 0) -> 0.4 | AB45: =IFERROR(INDEX(COUNTRY!$E$18:$E$67, MATCH(C45, COUNTRY!$F$18:$F$67, 0), 1), 0) -> 0.4 | AC45: 0.4 | AD45: 0.4 | AE45: 0.064 | AF45: 0.08512
A46: 1 | B46: 37 | C46: =INDEX(DEFN!$A$11:$K$60, MATCH($A46, DEFN!$A$11:$A$60, 0), MATCH(C$9, DEFN!$A$10:$K$10, 0)) -> 1.01 | D46: =INDEX(DEFN!$A$11:$K$60, MATCH($A46, DEFN!$A$11:$A$60, 0), MATCH(D$9, DEFN!$A$10:$K$10, 0)) -> Enabling Framework | E46: =INDEX(DEFN!$A$11:$K$60, MATCH($A46, DEFN!$A$11:$A$60, 0), MATCH(E$9, DEFN!$A$10:$K$10, 0)) -> Policy & Regulation | F46: =INDEX(DEFN!$A$11:$K$60, MATCH($A46, DEFN!$A$11:$A$60, 0), MATCH(F$9, DEFN!$A$10:$K$10, 0)) -> Clean energy policies | G46: =INDEX(DEFN!$A$11:$K$60, MATCH($A46, DEFN!$A$11:$A$60, 0), MATCH(G$9, DEFN!$A$10:$K$10, 0)) -> Both | H46: =INDEX(DEFN!$A$11:$K$60, MATCH($A46, DEFN!$A$11:$A$60, 0), MATCH(H$9, DEFN!$A$10:$K$10, 0)) -> None | I46: =INDEX(DEFN!$A$11:$K$60, MATCH($A46, DEFN!$A$11:$A$60, 0), MATCH(I$9, DEFN!$A$10:$K$10, 0)) -> None | J46: =INDEX(DEFN!$A$11:$K$60, MATCH($A46, DEFN!$A$11:$A$60, 0), MATCH(J$9, DEFN!$A$10:$K$10, 0)) -> Policy Types | K46: =INDEX(DEFN!B$263:B$339, MATCH($B46, DEFN!$A$263:$A$339, 0), 1) -> Asia | L46: =INDEX(DEFN!C$263:C$339, MATCH($B46, DEFN!$A$263:$A$339, 0), 1) -> Pakistan | M46: =INDEX(DEFN!$A$11:$K$60, MATCH($A46, DEFN!$A$11:$A$60, 0), MATCH(M$9, DEFN!$A$10:$K$10, 0)) -> User Defined | N46: =INDEX(DEFN!$A$11:$K$60, MATCH($A46, DEFN!$A$11:$A$60, 0), MATCH(N$9, DEFN!$A$10:$K$10, 0)) -> 5 | O46: =IFERROR(IF($H46="None", 1, IF($H46="All Capacity", SUMIFS(SID!X$5:X$14942, SID!$G$5:$G$14942, "<>Power demand", SID!$K$5:$K$14942, $L46, SID!$I$5:$I$14942, $J46), IF($H46="All Generation", SUMIFS(SID!X$5:X$14942, SID!$K$5:$K$14942, $L46, SID!$I$5:$I$14942, $J46), SUMIFS(SID!X$5:X$14942, SID!$F$5:$F$14942, $H46, SID!$K$5:$K$14942, $L46)))), 1) -> 1 | P46: =IF(ISNUMBER(FIND("Growth", F46)), U46, IF(V46<>0,V46, SUMIFS(SID!X$5:X$14942, SID!$C$5:$C$14942, $C46, SID!$K$5:$K$14942, $L46, SID!$Y$5:$Y$14942, 0))) -> 6 | Q46: 1.76 | R46: 5 | S46: 35.2 | T46: 1.76 | U46: =IF(I46="Clean energy investments", IF(OR(W46=0, X46=0), 0, X46/W46-1), IF(OR(I46="None", SUMIFS(SID!X$5:X$14942, SID!$F$5:$F$14942, I46, SID!$K$5:$K$14942, L46, SID!$Y$5:$Y$14942, 0)=0), 0, IFERROR(SUMIFS(SID!X$5:X$14942, SID!$F$5:$F$14942, I46, SID!$K$5:$K$14942, L46, SID!$Y$5:$Y$14942, 0)/SUMIFS(SID!W$5:W$14942, SID!$F$5:$F$14942, I46, SID!$K$5:$K$14942, L46, SID!$Y$5:$Y$14942, 0) - 1, 0))) -> 0 | V46: =IF(J46<>"USDm", 0, IF(F46="Clean energy investments", IF(ISNUMBER(FIND("-", $L46)), SUMIFS(INV!$J$3:$J$20000, INV!$E$3:$E$20000, $L46, INV!$A$3:$A$20000, "<=" & int_Year, INV!$A$3:$A$20000, ">=" & $G$6), SUMIFS(INV!$J$3:$J$20000, INV!$F$3:$F$20000, $L46, INV!$A$3:$A$20000, "<=" & int_Year, INV!$A$3:$A$20000, ">=" & $G$6)), IF(ISNUMBER(FIND("-", $L46)), SUMIFS(INV!$J$3:$J$20000, INV!$E$3:$E$20000, $L46, INV!$I$3:$I$20000, $F46, INV!$A$3:$A$20000, "<=" & int_Year, INV!$A$3:$A$20000, ">=" & $G$6), SUMIFS(INV!$J$3:$J$20000, INV!$F$3:$F$20000, $L46, INV!$I$3:$I$20000, $F46, INV!$A$3:$A$20000, "<=" & int_Year, INV!$A$3:$A$20000, ">=" & $G$6)))) -> 0 | W46: =IF(I46<>"Clean energy investments", 0, IF(ISNUMBER(FIND("-", $L46)), SUMIFS(INV!$J$3:$J$20000, INV!$E$3:$E$20000, $L46, INV!$A$3:$A$20000, ">="& int_InvStartYear, INV!$A$3:$A$20000, "<="& int_Year-1), SUMIFS(INV!$J$3:$J$20000, INV!$F$3:$F$20000, $L46, INV!$A$3:$A$20000, ">="& int_InvStartYear, INV!$A$3:$A$20000, "<="& int_Year-1))) -> 0 | X46: =IF(I46<>"Clean energy investments", 0, IF(ISNUMBER(FIND("-", $L46)), SUMIFS(INV!$J$3:$J$20000, INV!$E$3:$E$20000, $L46, INV!$A$3:$A$20000, ">="& int_InvStartYear, INV!$A$3:$A$20000, "<="& int_Year), SUMIFS(INV!$J$3:$J$20000, INV!$F$3:$F$20000, $L46, INV!$A$3:$A$20000, ">="& int_InvStartYear, INV!$A$3:$A$20000, "<="& int_Year))) -> 0 | Y46: 1.01 > Pakistan | Z46: Off-Grid | AA46: =IFERROR(INDEX(COUNTRY!$C$18:$C$67, MATCH(C46, COUNTRY!$F$18:$F$67, 0), 1), 0) -> 0.4 | AB46: =IFERROR(INDEX(COUNTRY!$E$18:$E$67, MATCH(C46, COUNTRY!$F$18:$F$67, 0), 1), 0) -> 0.4 | AC46: 0.4 | AD46: 0.4 | AE46: 0.064 | AF46: 0.11264
A47: 1 | B47: 38 | C47: =INDEX(DEFN!$A$11:$K$60, MATCH($A47, DEFN!$A$11:$A$60, 0), MATCH(C$9, DEFN!$A$10:$K$10, 0)) -> 1.01 | D47: =INDEX(DEFN!$A$11:$K$60, MATCH($A47, DEFN!$A$11:$A$60, 0), MATCH(D$9, DEFN!$A$10:$K$10, 0)) -> Enabling Framework | E47: =INDEX(DEFN!$A$11:$K$60, MATCH($A47, DEFN!$A$11:$A$60, 0), MATCH(E$9, DEFN!$A$10:$K$10, 0)) -> Policy & Regulation | F47: =INDEX(DEFN!$A$11:$K$60, MATCH($A47, DEFN!$A$11:$A$60, 0), MATCH(F$9, DEFN!$A$10:$K$10, 0)) -> Clean energy policies | G47: =INDEX(DEFN!$A$11:$K$60, MATCH($A47, DEFN!$A$11:$A$60, 0), MATCH(G$9, DEFN!$A$10:$K$10, 0)) -> Both | H47: =INDEX(DEFN!$A$11:$K$60, MATCH($A47, DEFN!$A$11:$A$60, 0), MATCH(H$9, DEFN!$A$10:$K$10, 0)) -> None | I47: =INDEX(DEFN!$A$11:$K$60, MATCH($A47, DEFN!$A$11:$A$60, 0), MATCH(I$9, DEFN!$A$10:$K$10, 0)) -> None | J47: =INDEX(DEFN!$A$11:$K$60, MATCH($A47, DEFN!$A$11:$A$60, 0), MATCH(J$9, DEFN!$A$10:$K$10, 0)) -> Policy Types | K47: =INDEX(DEFN!B$263:B$339, MATCH($B47, DEFN!$A$263:$A$339, 0), 1) -> Asia | L47: =INDEX(DEFN!C$263:C$339, MATCH($B47, DEFN!$A$263:$A$339, 0), 1) -> Sri Lanka | M47: =INDEX(DEFN!$A$11:$K$60, MATCH($A47, DEFN!$A$11:$A$60, 0), MATCH(M$9, DEFN!$A$10:$K$10, 0)) -> User Defined | N47: =INDEX(DEFN!$A$11:$K$60, MATCH($A47, DEFN!$A$11:$A$60, 0), MATCH(N$9, DEFN!$A$10:$K$10, 0)) -> 5 | O47: =IFERROR(IF($H47="None", 1, IF($H47="All Capacity", SUMIFS(SID!X$5:X$14942, SID!$G$5:$G$14942, "<>Power demand", SID!$K$5:$K$14942, $L47, SID!$I$5:$I$14942, $J47), IF($H47="All Generation", SUMIFS(SID!X$5:X$14942, SID!$K$5:$K$14942, $L47, SID!$I$5:$I$14942, $J47), SUMIFS(SID!X$5:X$14942, SID!$F$5:$F$14942, $H47, SID!$K$5:$K$14942, $L47)))), 1) -> 1 | P47: =IF(ISNUMBER(FIND("Growth", F47)), U47, IF(V47<>0,V47, SUMIFS(SID!X$5:X$14942, SID!$C$5:$C$14942, $C47, SID!$K$5:$K$14942, $L47, SID!$Y$5:$Y$14942, 0))) -> 5 | Q47: 2.04 | R47: 5 | S47: 40.8 | T47: 2.04 | U47: =IF(I47="Clean energy investments", IF(OR(W47=0, X47=0), 0, X47/W47-1), IF(OR(I47="None", SUMIFS(SID!X$5:X$14942, SID!$F$5:$F$14942, I47, SID!$K$5:$K$14942, L47, SID!$Y$5:$Y$14942, 0)=0), 0, IFERROR(SUMIFS(SID!X$5:X$14942, SID!$F$5:$F$14942, I47, SID!$K$5:$K$14942, L47, SID!$Y$5:$Y$14942, 0)/SUMIFS(SID!W$5:W$14942, SID!$F$5:$F$14942, I47, SID!$K$5:$K$14942, L47, SID!$Y$5:$Y$14942, 0) - 1, 0))) -> 0 | V47: =IF(J47<>"USDm", 0, IF(F47="Clean energy investments", IF(ISNUMBER(FIND("-", $L47)), SUMIFS(INV!$J$3:$J$20000, INV!$E$3:$E$20000, $L47, INV!$A$3:$A$20000, "<=" & int_Year, INV!$A$3:$A$20000, ">=" & $G$6), SUMIFS(INV!$J$3:$J$20000, INV!$F$3:$F$20000, $L47, INV!$A$3:$A$20000, "<=" & int_Year, INV!$A$3:$A$20000, ">=" & $G$6)), IF(ISNUMBER(FIND("-", $L47)), SUMIFS(INV!$J$3:$J$20000, INV!$E$3:$E$20000, $L47, INV!$I$3:$I$20000, $F47, INV!$A$3:$A$20000, "<=" & int_Year, INV!$A$3:$A$20000, ">=" & $G$6), SUMIFS(INV!$J$3:$J$20000, INV!$F$3:$F$20000, $L47, INV!$I$3:$I$20000, $F47, INV!$A$3:$A$20000, "<=" & int_Year, INV!$A$3:$A$20000, ">=" & $G$6)))) -> 0 | W47: =IF(I47<>"Clean energy investments", 0, IF(ISNUMBER(FIND("-", $L47)), SUMIFS(INV!$J$3:$J$20000, INV!$E$3:$E$20000, $L47, INV!$A$3:$A$20000, ">="& int_InvStartYear, INV!$A$3:$A$20000, "<="& int_Year-1), SUMIFS(INV!$J$3:$J$20000, INV!$F$3:$F$20000, $L47, INV!$A$3:$A$20000, ">="& int_InvStartYear, INV!$A$3:$A$20000, "<="& int_Year-1))) -> 0 | X47: =IF(I47<>"Clean energy investments", 0, IF(ISNUMBER(FIND("-", $L47)), SUMIFS(INV!$J$3:$J$20000, INV!$E$3:$E$20000, $L47, INV!$A$3:$A$20000, ">="& int_InvStartYear, INV!$A$3:$A$20000, "<="& int_Year), SUMIFS(INV!$J$3:$J$20000, INV!$F$3:$F$20000, $L47, INV!$A$3:$A$20000, ">="& int_InvStartYear, INV!$A$3:$A$20000, "<="& int_Year))) -> 0 | Y47: 1.01 > Sri Lanka | Z47: On-Grid | AA47: =IFERROR(INDEX(COUNTRY!$C$18:$C$67, MATCH(C47, COUNTRY!$F$18:$F$67, 0), 1), 0) -> 0.4 | AB47: =IFERROR(INDEX(COUNTRY!$E$18:$E$67, MATCH(C47, COUNTRY!$F$18:$F$67, 0), 1), 0) -> 0.4 | AC47: 0.6 | AD47: 0.6 | AE47: 0.096 | AF47: 0.19584
A48: 1 | B48: 39 | C48: =INDEX(DEFN!$A$11:$K$60, MATCH($A48, DEFN!$A$11:$A$60, 0), MATCH(C$9, DEFN!$A$10:$K$10, 0)) -> 1.01 | D48: =INDEX(DEFN!$A$11:$K$60, MATCH($A48, DEFN!$A$11:$A$60, 0), MATCH(D$9, DEFN!$A$10:$K$10, 0)) -> Enabling Framework | E48: =INDEX(DEFN!$A$11:$K$60, MATCH($A48, DEFN!$A$11:$A$60, 0), MATCH(E$9, DEFN!$A$10:$K$10, 0)) -> Policy & Regulation | F48: =INDEX(DEFN!$A$11:$K$60, MATCH($A48, DEFN!$A$11:$A$60, 0), MATCH(F$9, DEFN!$A$10:$K$10, 0)) -> Clean energy policies | G48: =INDEX(DEFN!$A$11:$K$60, MATCH($A48, DEFN!$A$11:$A$60, 0), MATCH(G$9, DEFN!$A$10:$K$10, 0)) -> Both | H48: =INDEX(DEFN!$A$11:$K$60, MATCH($A48, DEFN!$A$11:$A$60, 0), MATCH(H$9, DEFN!$A$10:$K$10, 0)) -> None | I48: =INDEX(DEFN!$A$11:$K$60, MATCH($A48, DEFN!$A$11:$A$60, 0), MATCH(I$9, DEFN!$A$10:$K$10, 0)) -> None | J48: =INDEX(DEFN!$A$11:$K$60, MATCH($A48, DEFN!$A$11:$A$60, 0), MATCH(J$9, DEFN!$A$10:$K$10, 0)) -> Policy Types | K48: =INDEX(DEFN!B$263:B$339, MATCH($B48, DEFN!$A$263:$A$339, 0), 1) -> Asia | L48: =INDEX(DEFN!C$263:C$339, MATCH($B48, DEFN!$A$263:$A$339, 0), 1) -> Tajikistan | M48: =INDEX(DEFN!$A$11:$K$60, MATCH($A48, DEFN!$A$11:$A$60, 0), MATCH(M$9, DEFN!$A$10:$K$10, 0)) -> User Defined | N48: =INDEX(DEFN!$A$11:$K$60, MATCH($A48, DEFN!$A$11:$A$60, 0), MATCH(N$9, DEFN!$A$10:$K$10, 0)) -> 5 | O48: =IFERROR(IF($H48="None", 1, IF($H48="All Capacity", SUMIFS(SID!X$5:X$14942, SID!$G$5:$G$14942, "<>Power demand", SID!$K$5:$K$14942, $L48, SID!$I$5:$I$14942, $J48), IF($H48="All Generation", SUMIFS(SID!X$5:X$14942, SID!$K$5:$K$14942, $L48, SID!$I$5:$I$14942, $J48), SUMIFS(SID!X$5:X$14942, SID!$F$5:$F$14942, $H48, SID!$K$5:$K$14942, $L48)))), 1) -> 1 | P48: =IF(ISNUMBER(FIND("Growth", F48)), U48, IF(V48<>0,V48, SUMIFS(SID!X$5:X$14942, SID!$C$5:$C$14942, $C48, SID!$K$5:$K$14942, $L48, SID!$Y$5:$Y$14942, 0))) -> 3 | Q48: 1 | R48: 5 | S48: 20 | T48: 1 | U48: =IF(I48="Clean energy investments", IF(OR(W48=0, X48=0), 0, X48/W48-1), IF(OR(I48="None", SUMIFS(SID!X$5:X$14942, SID!$F$5:$F$14942, I48, SID!$K$5:$K$14942, L48, SID!$Y$5:$Y$14942, 0)=0), 0, IFERROR(SUMIFS(SID!X$5:X$14942, SID!$F$5:$F$14942, I48, SID!$K$5:$K$14942, L48, SID!$Y$5:$Y$14942, 0)/SUMIFS(SID!W$5:W$14942, SID!$F$5:$F$14942, I48, SID!$K$5:$K$14942, L48, SID!$Y$5:$Y$14942, 0) - 1, 0))) -> 0 | V48: =IF(J48<>"USDm", 0, IF(F48="Clean energy investments", IF(ISNUMBER(FIND("-", $L48)), SUMIFS(INV!$J$3:$J$20000, INV!$E$3:$E$20000, $L48, INV!$A$3:$A$20000, "<=" & int_Year, INV!$A$3:$A$20000, ">=" & $G$6), SUMIFS(INV!$J$3:$J$20000, INV!$F$3:$F$20000, $L48, INV!$A$3:$A$20000, "<=" & int_Year, INV!$A$3:$A$20000, ">=" & $G$6)), IF(ISNUMBER(FIND("-", $L48)), SUMIFS(INV!$J$3:$J$20000, INV!$E$3:$E$20000, $L48, INV!$I$3:$I$20000, $F48, INV!$A$3:$A$20000, "<=" & int_Year, INV!$A$3:$A$20000, ">=" & $G$6), SUMIFS(INV!$J$3:$J$20000, INV!$F$3:$F$20000, $L48, INV!$I$3:$I$20000, $F48, INV!$A$3:$A$20000, "<=" & int_Year, INV!$A$3:$A$20000, ">=" & $G$6)))) -> 0 | W48: =IF(I48<>"Clean energy investments", 0, IF(ISNUMBER(FIND("-", $L48)), SUMIFS(INV!$J$3:$J$20000, INV!$E$3:$E$20000, $L48, INV!$A$3:$A$20000, ">="& int_InvStartYear, INV!$A$3:$A$20000, "<="& int_Year-1), SUMIFS(INV!$J$3:$J$20000, INV!$F$3:$F$20000, $L48, INV!$A$3:$A$20000, ">="& int_InvStartYear, INV!$A$3:$A$20000, "<="& int_Year-1))) -> 0 | X48: =IF(I48<>"Clean energy investments", 0, IF(ISNUMBER(FIND("-", $L48)), SUMIFS(INV!$J$3:$J$20000, INV!$E$3:$E$20000, $L48, INV!$A$3:$A$20000, ">="& int_InvStartYear, INV!$A$3:$A$20000, "<="& int_Year), SUMIFS(INV!$J$3:$J$20000, INV!$F$3:$F$20000, $L48, INV!$A$3:$A$20000, ">="& int_InvStartYear, INV!$A$3:$A$20000, "<="& int_Year))) -> 0 | Y48: 1.01 > Tajikistan | Z48: On-Grid | AA48: =IFERROR(INDEX(COUNTRY!$C$18:$C$67, MATCH(C48, COUNTRY!$F$18:$F$67, 0), 1), 0) -> 0.4 | AB48: =IFERROR(INDEX(COUNTRY!$E$18:$E$67, MATCH(C48, COUNTRY!$F$18:$F$67, 0), 1), 0) -> 0.4 | AC48: 0.6 | AD48: 0.6 | AE48: 0.096 | AF48: 0.096
A49: 1 | B49: 40 | C49: =INDEX(DEFN!$A$11:$K$60, MATCH($A49, DEFN!$A$11:$A$60, 0), MATCH(C$9, DEFN!$A$10:$K$10, 0)) -> 1.01 | D49: =INDEX(DEFN!$A$11:$K$60, MATCH($A49, DEFN!$A$11:$A$60, 0), MATCH(D$9, DEFN!$A$10:$K$10, 0)) -> Enabling Framework | E49: =INDEX(DEFN!$A$11:$K$60, MATCH($A49, DEFN!$A$11:$A$60, 0), MATCH(E$9, DEFN!$A$10:$K$10, 0)) -> Policy & Regulation | F49: =INDEX(DEFN!$A$11:$K$60, MATCH($A49, DEFN!$A$11:$A$60, 0), MATCH(F$9, DEFN!$A$10:$K$10, 0)) -> Clean energy policies | G49: =INDEX(DEFN!$A$11:$K$60, MATCH($A49, DEFN!$A$11:$A$60, 0), MATCH(G$9, DEFN!$A$10:$K$10, 0)) -> Both | H49: =INDEX(DEFN!$A$11:$K$60, MATCH($A49, DEFN!$A$11:$A$60, 0), MATCH(H$9, DEFN!$A$10:$K$10, 0)) -> None | I49: =INDEX(DEFN!$A$11:$K$60, MATCH($A49, DEFN!$A$11:$A$60, 0), MATCH(I$9, DEFN!$A$10:$K$10, 0)) -> None | J49: =INDEX(DEFN!$A$11:$K$60, MATCH($A49, DEFN!$A$11:$A$60, 0), MATCH(J$9, DEFN!$A$10:$K$10, 0)) -> Policy Types | K49: =INDEX(DEFN!B$263:B$339, MATCH($B49, DEFN!$A$263:$A$339, 0), 1) -> Asia | L49: =INDEX(DEFN!C$263:C$339, MATCH($B49, DEFN!$A$263:$A$339, 0), 1) -> Turkmenistan | M49: =INDEX(DEFN!$A$11:$K$60, MATCH($A49, DEFN!$A$11:$A$60, 0), MATCH(M$9, DEFN!$A$10:$K$10, 0)) -> User Defined | N49: =INDEX(DEFN!$A$11:$K$60, MATCH($A49, DEFN!$A$11:$A$60, 0), MATCH(N$9, DEFN!$A$10:$K$10, 0)) -> 5 | O49: =IFERROR(IF($H49="None", 1, IF($H49="All Capacity", SUMIFS(SID!X$5:X$14942, SID!$G$5:$G$14942, "<>Power demand", SID!$K$5:$K$14942, $L49, SID!$I$5:$I$14942, $J49), IF($H49="All Generation", SUMIFS(SID!X$5:X$14942, SID!$K$5:$K$14942, $L49, SID!$I$5:$I$14942, $J49), SUMIFS(SID!X$5:X$14942, SID!$F$5:$F$14942, $H49, SID!$K$5:$K$14942, $L49)))), 1) -> 1 | P49: =IF(ISNUMBER(FIND("Growth", F49)), U49, IF(V49<>0,V49, SUMIFS(SID!X$5:X$14942, SID!$C$5:$C$14942, $C49, SID!$K$5:$K$14942, $L49, SID!$Y$5:$Y$14942, 0))) -> 0 | Q49: 0 | R49: 5 | S49: 0 | T49: 0 | U49: =IF(I49="Clean energy investments", IF(OR(W49=0, X49=0), 0, X49/W49-1), IF(OR(I49="None", SUMIFS(SID!X$5:X$14942, SID!$F$5:$F$14942, I49, SID!$K$5:$K$14942, L49, SID!$Y$5:$Y$14942, 0)=0), 0, IFERROR(SUMIFS(SID!X$5:X$14942, SID!$F$5:$F$14942, I49, SID!$K$5:$K$14942, L49, SID!$Y$5:$Y$14942, 0)/SUMIFS(SID!W$5:W$14942, SID!$F$5:$F$14942, I49, SID!$K$5:$K$14942, L49, SID!$Y$5:$Y$14942, 0) - 1, 0))) -> 0 | V49: =IF(J49<>"USDm", 0, IF(F49="Clean energy investments", IF(ISNUMBER(FIND("-", $L49)), SUMIFS(INV!$J$3:$J$20000, INV!$E$3:$E$20000, $L49, INV!$A$3:$A$20000, "<=" & int_Year, INV!$A$3:$A$20000, ">=" & $G$6), SUMIFS(INV!$J$3:$J$20000, INV!$F$3:$F$20000, $L49, INV!$A$3:$A$20000, "<=" & int_Year, INV!$A$3:$A$20000, ">=" & $G$6)), IF(ISNUMBER(FIND("-", $L49)), SUMIFS(INV!$J$3:$J$20000, INV!$E$3:$E$20000, $L49, INV!$I$3:$I$20000, $F49, INV!$A$3:$A$20000, "<=" & int_Year, INV!$A$3:$A$20000, ">=" & $G$6), SUMIFS(INV!$J$3:$J$20000, INV!$F$3:$F$20000, $L49, INV!$I$3:$I$20000, $F49, INV!$A$3:$A$20000, "<=" & int_Year, INV!$A$3:$A$20000, ">=" & $G$6)))) -> 0 | W49: =IF(I49<>"Clean energy investments", 0, IF(ISNUMBER(FIND("-", $L49)), SUMIFS(INV!$J$3:$J$20000, INV!$E$3:$E$20000, $L49, INV!$A$3:$A$20000, ">="& int_InvStartYear, INV!$A$3:$A$20000, "<="& int_Year-1), SUMIFS(INV!$J$3:$J$20000, INV!$F$3:$F$20000, $L49, INV!$A$3:$A$20000, ">="& int_InvStartYear, INV!$A$3:$A$20000, "<="& int_Year-1))) -> 0 | X49: =IF(I49<>"Clean energy investments", 0, IF(ISNUMBER(FIND("-", $L49)), SUMIFS(INV!$J$3:$J$20000, INV!$E$3:$E$20000, $L49, INV!$A$3:$A$20000, ">="& int_InvStartYear, INV!$A$3:$A$20000, "<="& int_Year), SUMIFS(INV!$J$3:$J$20000, INV!$F$3:$F$20000, $L49, INV!$A$3:$A$20000, ">="& int_InvStartYear, INV!$A$3:$A$20000, "<="& int_Year))) -> 0 | Y49: 1.01 > Turkmenistan | Z49: On-Grid | AA49: =IFERROR(INDEX(COUNTRY!$C$18:$C$67, MATCH(C49, COUNTRY!$F$18:$F$67, 0), 1), 0) -> 0.4 | AB49: =IFERROR(INDEX(COUNTRY!$E$18:$E$67, MATCH(C49, COUNTRY!$F$18:$F$67, 0), 1), 0) -> 0.4 | AC49: 0.6 | AD49: 0.6 | AE49: 0.096 | AF49: 0
A50: 1 | B50: 41 | C50: =INDEX(DEFN!$A$11:$K$60, MATCH($A50, DEFN!$A$11:$A$60, 0), MATCH(C$9, DEFN!$A$10:$K$10, 0)) -> 1.01 | D50: =INDEX(DEFN!$A$11:$K$60, MATCH($A50, DEFN!$A$11:$A$60, 0), MATCH(D$9, DEFN!$A$10:$K$10, 0)) -> Enabling Framework | E50: =INDEX(DEFN!$A$11:$K$60, MATCH($A50, DEFN!$A$11:$A$60, 0), MATCH(E$9, DEFN!$A$10:$K$10, 0)) -> Policy & Regulation | F50: =INDEX(DEFN!$A$11:$K$60, MATCH($A50, DEFN!$A$11:$A$60, 0), MATCH(F$9, DEFN!$A$10:$K$10, 0)) -> Clean energy policies | G50: =INDEX(DEFN!$A$11:$K$60, MATCH($A50, DEFN!$A$11:$A$60, 0), MATCH(G$9, DEFN!$A$10:$K$10, 0)) -> Both | H50: =INDEX(DEFN!$A$11:$K$60, MATCH($A50, DEFN!$A$11:$A$60, 0), MATCH(H$9, DEFN!$A$10:$K$10, 0)) -> None | I50: =INDEX(DEFN!$A$11:$K$60, MATCH($A50, DEFN!$A$11:$A$60, 0), MATCH(I$9, DEFN!$A$10:$K$10, 0)) -> None | J50: =INDEX(DEFN!$A$11:$K$60, MATCH($A50, DEFN!$A$11:$A$60, 0), MATCH(J$9, DEFN!$A$10:$K$10, 0)) -> Policy Types | K50: =INDEX(DEFN!B$263:B$339, MATCH($B50, DEFN!$A$263:$A$339, 0), 1) -> Asia | L50: =INDEX(DEFN!C$263:C$339, MATCH($B50, DEFN!$A$263:$A$339, 0), 1) -> Uzbekistan | M50: =INDEX(DEFN!$A$11:$K$60, MATCH($A50, DEFN!$A$11:$A$60, 0), MATCH(M$9, DEFN!$A$10:$K$10, 0)) -> User Defined | N50: =INDEX(DEFN!$A$11:$K$60, MATCH($A50, DEFN!$A$11:$A$60, 0), MATCH(N$9, DEFN!$A$10:$K$10, 0)) -> 5 | O50: =IFERROR(IF($H50="None", 1, IF($H50="All Capacity", SUMIFS(SID!X$5:X$14942, SID!$G$5:$G$14942, "<>Power demand", SID!$K$5:$K$14942, $L50, SID!$I$5:$I$14942, $J50), IF($H50="All Generation", SUMIFS(SID!X$5:X$14942, SID!$K$5:$K$14942, $L50, SID!$I$5:$I$14942, $J50), SUMIFS(SID!X$5:X$14942, SID!$F$5:$F$14942, $H50, SID!$K$5:$K$14942, $L50)))), 1) -> 1 | P50: =IF(ISNUMBER(FIND("Growth", F50)), U50, IF(V50<>0,V50, SUMIFS(SID!X$5:X$14942, SID!$C$5:$C$14942, $C50, SID!$K$5:$K$14942, $L50, SID!$Y$5:$Y$14942, 0))) -> 3 | Q50: 0.96 | R50: 5 | S50: 19.2 | T50: 0.96 | U50: =IF(I50="Clean energy investments", IF(OR(W50=0, X50=0), 0, X50/W50-1), IF(OR(I50="None", SUMIFS(SID!X$5:X$14942, SID!$F$5:$F$14942, I50, SID!$K$5:$K$14942, L50, SID!$Y$5:$Y$14942, 0)=0), 0, IFERROR(SUMIFS(SID!X$5:X$14942, SID!$F$5:$F$14942, I50, SID!$K$5:$K$14942, L50, SID!$Y$5:$Y$14942, 0)/SUMIFS(SID!W$5:W$14942, SID!$F$5:$F$14942, I50, SID!$K$5:$K$14942, L50, SID!$Y$5:$Y$14942, 0) - 1, 0))) -> 0 | V50: =IF(J50<>"USDm", 0, IF(F50="Clean energy investments", IF(ISNUMBER(FIND("-", $L50)), SUMIFS(INV!$J$3:$J$20000, INV!$E$3:$E$20000, $L50, INV!$A$3:$A$20000, "<=" & int_Year, INV!$A$3:$A$20000, ">=" & $G$6), SUMIFS(INV!$J$3:$J$20000, INV!$F$3:$F$20000, $L50, INV!$A$3:$A$20000, "<=" & int_Year, INV!$A$3:$A$20000, ">=" & $G$6)), IF(ISNUMBER(FIND("-", $L50)), SUMIFS(INV!$J$3:$J$20000, INV!$E$3:$E$20000, $L50, INV!$I$3:$I$20000, $F50, INV!$A$3:$A$20000, "<=" & int_Year, INV!$A$3:$A$20000, ">=" & $G$6), SUMIFS(INV!$J$3:$J$20000, INV!$F$3:$F$20000, $L50, INV!$I$3:$I$20000, $F50, INV!$A$3:$A$20000, "<=" & int_Year, INV!$A$3:$A$20000, ">=" & $G$6)))) -> 0 | W50: =IF(I50<>"Clean energy investments", 0, IF(ISNUMBER(FIND("-", $L50)), SUMIFS(INV!$J$3:$J$20000, INV!$E$3:$E$20000, $L50, INV!$A$3:$A$20000, ">="& int_InvStartYear, INV!$A$3:$A$20000, "<="& int_Year-1), SUMIFS(INV!$J$3:$J$20000, INV!$F$3:$F$20000, $L50, INV!$A$3:$A$20000, ">="& int_InvStartYear, INV!$A$3:$A$20000, "<="& int_Year-1))) -> 0 | X50: =IF(I50<>"Clean energy investments", 0, IF(ISNUMBER(FIND("-", $L50)), SUMIFS(INV!$J$3:$J$20000, INV!$E$3:$E$20000, $L50, INV!$A$3:$A$20000, ">="& int_InvStartYear, INV!$A$3:$A$20000, "<="& int_Year), SUMIFS(INV!$J$3:$J$20000, INV!$F$3:$F$20000, $L50, INV!$A$3:$A$20000, ">="& int_InvStartYear, INV!$A$3:$A$20000, "<="& int_Year))) -> 0 | Y50: 1.01 > Uzbekistan | Z50: On-Grid | AA50: =IFERROR(INDEX(COUNTRY!$C$18:$C$67, MATCH(C50, COUNTRY!$F$18:$F$67, 0), 1), 0) -> 0.4 | AB50: =IFERROR(INDEX(COUNTRY!$E$18:$E$67, MATCH(C50, COUNTRY!$F$18:$F$67, 0), 1), 0) -> 0.4 | AC50: 0.6 | AD50: 0.6 | AE50: 0.096 | AF50: 0.09216
A51: 1 | B51: 42 | C51: =INDEX(DEFN!$A$11:$K$60, MATCH($A51, DEFN!$A$11:$A$60, 0), MATCH(C$9, DEFN!$A$10:$K$10, 0)) -> 1.01 | D51: =INDEX(DEFN!$A$11:$K$60, MATCH($A51, DEFN!$A$11:$A$60, 0), MATCH(D$9, DEFN!$A$10:$K$10, 0)) -> Enabling Framework | E51: =INDEX(DEFN!$A$11:$K$60, MATCH($A51, DEFN!$A$11:$A$60, 0), MATCH(E$9, DEFN!$A$10:$K$10, 0)) -> Policy & Regulation | F51: =INDEX(DEFN!$A$11:$K$60, MATCH($A51, DEFN!$A$11:$A$60, 0), MATCH(F$9, DEFN!$A$10:$K$10, 0)) -> Clean energy policies | G51: =INDEX(DEFN!$A$11:$K$60, MATCH($A51, DEFN!$A$11:$A$60, 0), MATCH(G$9, DEFN!$A$10:$K$10, 0)) -> Both | H51: =INDEX(DEFN!$A$11:$K$60, MATCH($A51, DEFN!$A$11:$A$60, 0), MATCH(H$9, DEFN!$A$10:$K$10, 0)) -> None | I51: =INDEX(DEFN!$A$11:$K$60, MATCH($A51, DEFN!$A$11:$A$60, 0), MATCH(I$9, DEFN!$A$10:$K$10, 0)) -> None | J51: =INDEX(DEFN!$A$11:$K$60, MATCH($A51, DEFN!$A$11:$A$60, 0), MATCH(J$9, DEFN!$A$10:$K$10, 0)) -> Policy Types | K51: =INDEX(DEFN!B$263:B$339, MATCH($B51, DEFN!$A$263:$A$339, 0), 1) -> Asia | L51: =INDEX(DEFN!C$263:C$339, MATCH($B51, DEFN!$A$263:$A$339, 0), 1) -> Vietnam | M51: =INDEX(DEFN!$A$11:$K$60, MATCH($A51, DEFN!$A$11:$A$60, 0), MATCH(M$9, DEFN!$A$10:$K$10, 0)) -> User Defined | N51: =INDEX(DEFN!$A$11:$K$60, MATCH($A51, DEFN!$A$11:$A$60, 0), MATCH(N$9, DEFN!$A$10:$K$10, 0)) -> 5 | O51: =IFERROR(IF($H51="None", 1, IF($H51="All Capacity", SUMIFS(SID!X$5:X$14942, SID!$G$5:$G$14942, "<>Power demand", SID!$K$5:$K$14942, $L51, SID!$I$5:$I$14942, $J51), IF($H51="All Generation", SUMIFS(SID!X$5:X$14942, SID!$K$5:$K$14942, $L51, SID!$I$5:$I$14942, $J51), SUMIFS(SID!X$5:X$14942, SID!$F$5:$F$14942, $H51, SID!$K$5:$K$14942, $L51)))), 1) -> 1 | P51: =IF(ISNUMBER(FIND("Growth", F51)), U51, IF(V51<>0,V51, SUMIFS(SID!X$5:X$14942, SID!$C$5:$C$14942, $C51, SID!$K$5:$K$14942, $L51, SID!$Y$5:$Y$14942, 0))) -> 4 | Q51: 1.32 | R51: 5 | S51: 26.4 | T51: 1.32 | U51: =IF(I51="Clean energy investments", IF(OR(W51=0, X51=0), 0, X51/W51-1), IF(OR(I51="None", SUMIFS(SID!X$5:X$14942, SID!$F$5:$F$14942, I51, SID!$K$5:$K$14942, L51, SID!$Y$5:$Y$14942, 0)=0), 0, IFERROR(SUMIFS(SID!X$5:X$14942, SID!$F$5:$F$14942, I51, SID!$K$5:$K$14942, L51, SID!$Y$5:$Y$14942, 0)/SUMIFS(SID!W$5:W$14942, SID!$F$5:$F$14942, I51, SID!$K$5:$K$14942, L51, SID!$Y$5:$Y$14942, 0) - 1, 0))) -> 0 | V51: =IF(J51<>"USDm", 0, IF(F51="Clean energy investments", IF(ISNUMBER(FIND("-", $L51)), SUMIFS(INV!$J$3:$J$20000, INV!$E$3:$E$20000, $L51, INV!$A$3:$A$20000, "<=" & int_Year, INV!$A$3:$A$20000, ">=" & $G$6), SUMIFS(INV!$J$3:$J$20000, INV!$F$3:$F$20000, $L51, INV!$A$3:$A$20000, "<=" & int_Year, INV!$A$3:$A$20000, ">=" & $G$6)), IF(ISNUMBER(FIND("-", $L51)), SUMIFS(INV!$J$3:$J$20000, INV!$E$3:$E$20000, $L51, INV!$I$3:$I$20000, $F51, INV!$A$3:$A$20000, "<=" & int_Year, INV!$A$3:$A$20000, ">=" & $G$6), SUMIFS(INV!$J$3:$J$20000, INV!$F$3:$F$20000, $L51, INV!$I$3:$I$20000, $F51, INV!$A$3:$A$20000, "<=" & int_Year, INV!$A$3:$A$20000, ">=" & $G$6)))) -> 0 | W51: =IF(I51<>"Clean energy investments", 0, IF(ISNUMBER(FIND("-", $L51)), SUMIFS(INV!$J$3:$J$20000, INV!$E$3:$E$20000, $L51, INV!$A$3:$A$20000, ">="& int_InvStartYear, INV!$A$3:$A$20000, "<="& int_Year-1), SUMIFS(INV!$J$3:$J$20000, INV!$F$3:$F$20000, $L51, INV!$A$3:$A$20000, ">="& int_InvStartYear, INV!$A$3:$A$20000, "<="& int_Year-1))) -> 0 | X51: =IF(I51<>"Clean energy investments", 0, IF(ISNUMBER(FIND("-", $L51)), SUMIFS(INV!$J$3:$J$20000, INV!$E$3:$E$20000, $L51, INV!$A$3:$A$20000, ">="& int_InvStartYear, INV!$A$3:$A$20000, "<="& int_Year), SUMIFS(INV!$J$3:$J$20000, INV!$F$3:$F$20000, $L51, INV!$A$3:$A$20000, ">="& int_InvStartYear, INV!$A$3:$A$20000, "<="& int_Year))) -> 0 | Y51: 1.01 > Vietnam | Z51: On-Grid | AA51: =IFERROR(INDEX(COUNTRY!$C$18:$C$67, MATCH(C51, COUNTRY!$F$18:$F$67, 0), 1), 0) -> 0.4 | AB51: =IFERROR(INDEX(COUNTRY!$E$18:$E$67, MATCH(C51, COUNTRY!$F$18:$F$67, 0), 1), 0) -> 0.4 | AC51: 0.6 | AD51: 0.6 | AE51: 0.096 | AF51: 0.12672
A52: 1 | B52: 43 | C52: =INDEX(DEFN!$A$11:$K$60, MATCH($A52, DEFN!$A$11:$A$60, 0), MATCH(C$9, DEFN!$A$10:$K$10, 0)) -> 1.01 | D52: =INDEX(DEFN!$A$11:$K$60, MATCH($A52, DEFN!$A$11:$A$60, 0), MATCH(D$9, DEFN!$A$10:$K$10, 0)) -> Enabling Framework | E52: =INDEX(DEFN!$A$11:$K$60, MATCH($A52, DEFN!$A$11:$A$60, 0), MATCH(E$9, DEFN!$A$10:$K$10, 0)) -> Policy & Regulation | F52: =INDEX(DEFN!$A$11:$K$60, MATCH($A52, DEFN!$A$11:$A$60, 0), MATCH(F$9, DEFN!$A$10:$K$10, 0)) -> Clean energy policies | G52: =INDEX(DEFN!$A$11:$K$60, MATCH($A52, DEFN!$A$11:$A$60, 0), MATCH(G$9, DEFN!$A$10:$K$10, 0)) -> Both | H52: =INDEX(DEFN!$A$11:$K$60, MATCH($A52, DEFN!$A$11:$A$60, 0), MATCH(H$9, DEFN!$A$10:$K$10, 0)) -> None | I52: =INDEX(DEFN!$A$11:$K$60, MATCH($A52, DEFN!$A$11:$A$60, 0), MATCH(I$9, DEFN!$A$10:$K$10, 0)) -> None | J52: =INDEX(DEFN!$A$11:$K$60, MATCH($A52, DEFN!$A$11:$A$60, 0), MATCH(J$9, DEFN!$A$10:$K$10, 0)) -> Policy Types | K52: =INDEX(DEFN!B$263:B$339, MATCH($B52, DEFN!$A$263:$A$339, 0), 1) -> Europe | L52: =INDEX(DEFN!C$263:C$339, MATCH($B52, DEFN!$A$263:$A$339, 0), 1) -> Belarus | M52: =INDEX(DEFN!$A$11:$K$60, MATCH($A52, DEFN!$A$11:$A$60, 0), MATCH(M$9, DEFN!$A$10:$K$10, 0)) -> User Defined | N52: =INDEX(DEFN!$A$11:$K$60, MATCH($A52, DEFN!$A$11:$A$60, 0), MATCH(N$9, DEFN!$A$10:$K$10, 0)) -> 5 | O52: =IFERROR(IF($H52="None", 1, IF($H52="All Capacity", SUMIFS(SID!X$5:X$14942, SID!$G$5:$G$14942, "<>Power demand", SID!$K$5:$K$14942, $L52, SID!$I$5:$I$14942, $J52), IF($H52="All Generation", SUMIFS(SID!X$5:X$14942, SID!$K$5:$K$14942, $L52, SID!$I$5:$I$14942, $J52), SUMIFS(SID!X$5:X$14942, SID!$F$5:$F$14942, $H52, SID!$K$5:$K$14942, $L52)))), 1) -> 1 | P52: =IF(ISNUMBER(FIND("Growth", F52)), U52, IF(V52<>0,V52, SUMIFS(SID!X$5:X$14942, SID!$C$5:$C$14942, $C52, SID!$K$5:$K$14942, $L52, SID!$Y$5:$Y$14942, 0))) -> 2 | Q52: 0.57 | R52: 5 | S52: 11.4 | T52: 0.57 | U52: =IF(I52="Clean energy investments", IF(OR(W52=0, X52=0), 0, X52/W52-1), IF(OR(I52="None", SUMIFS(SID!X$5:X$14942, SID!$F$5:$F$14942, I52, SID!$K$5:$K$14942, L52, SID!$Y$5:$Y$14942, 0)=0), 0, IFERROR(SUMIFS(SID!X$5:X$14942, SID!$F$5:$F$14942, I52, SID!$K$5:$K$14942, L52, SID!$Y$5:$Y$14942, 0)/SUMIFS(SID!W$5:W$14942, SID!$F$5:$F$14942, I52, SID!$K$5:$K$14942, L52, SID!$Y$5:$Y$14942, 0) - 1, 0))) -> 0 | V52: =IF(J52<>"USDm", 0, IF(F52="Clean energy investments", IF(ISNUMBER(FIND("-", $L52)), SUMIFS(INV!$J$3:$J$20000, INV!$E$3:$E$20000, $L52, INV!$A$3:$A$20000, "<=" & int_Year, INV!$A$3:$A$20000, ">=" & $G$6), SUMIFS(INV!$J$3:$J$20000, INV!$F$3:$F$20000, $L52, INV!$A$3:$A$20000, "<=" & int_Year, INV!$A$3:$A$20000, ">=" & $G$6)), IF(ISNUMBER(FIND("-", $L52)), SUMIFS(INV!$J$3:$J$20000, INV!$E$3:$E$20000, $L52, INV!$I$3:$I$20000, $F52, INV!$A$3:$A$20000, "<=" & int_Year, INV!$A$3:$A$20000, ">=" & $G$6), SUMIFS(INV!$J$3:$J$20000, INV!$F$3:$F$20000, $L52, INV!$I$3:$I$20000, $F52, INV!$A$3:$A$20000, "<=" & int_Year, INV!$A$3:$A$20000, ">=" & $G$6)))) -> 0 | W52: =IF(I52<>"Clean energy investments", 0, IF(ISNUMBER(FIND("-", $L52)), SUMIFS(INV!$J$3:$J$20000, INV!$E$3:$E$20000, $L52, INV!$A$3:$A$20000, ">="& int_InvStartYear, INV!$A$3:$A$20000, "<="& int_Year-1), SUMIFS(INV!$J$3:$J$20000, INV!$F$3:$F$20000, $L52, INV!$A$3:$A$20000, ">="& int_InvStartYear, INV!$A$3:$A$20000, "<="& int_Year-1))) -> 0 | X52: =IF(I52<>"Clean energy investments", 0, IF(ISNUMBER(FIND("-", $L52)), SUMIFS(INV!$J$3:$J$20000, INV!$E$3:$E$20000, $L52, INV!$A$3:$A$20000, ">="& int_InvStartYear, INV!$A$3:$A$20000, "<="& int_Year), SUMIFS(INV!$J$3:$J$20000, INV!$F$3:$F$20000, $L52, INV!$A$3:$A$20000, ">="& int_InvStartYear, INV!$A$3:$A$20000, "<="& int_Year))) -> 0 | Y52: 1.01 > Belarus | Z52: On-Grid | AA52: =IFERROR(INDEX(COUNTRY!$C$18:$C$67, MATCH(C52, COUNTRY!$F$18:$F$67, 0), 1), 0) -> 0.4 | AB52: =IFERROR(INDEX(COUNTRY!$E$18:$E$67, MATCH(C52, COUNTRY!$F$18:$F$67, 0), 1), 0) -> 0.4 | AC52: 0.6 | AD52: 0.6 | AE52: 0.096 | AF52: 0.05472
A53: 1 | B53: 44 | C53: =INDEX(DEFN!$A$11:$K$60, MATCH($A53, DEFN!$A$11:$A$60, 0), MATCH(C$9, DEFN!$A$10:$K$10, 0)) -> 1.01 | D53: =INDEX(DEFN!$A$11:$K$60, MATCH($A53, DEFN!$A$11:$A$60, 0), MATCH(D$9, DEFN!$A$10:$K$10, 0)) -> Enabling Framework | E53: =INDEX(DEFN!$A$11:$K$60, MATCH($A53, DEFN!$A$11:$A$60, 0), MATCH(E$9, DEFN!$A$10:$K$10, 0)) -> Policy & Regulation | F53: =INDEX(DEFN!$A$11:$K$60, MATCH($A53, DEFN!$A$11:$A$60, 0), MATCH(F$9, DEFN!$A$10:$K$10, 0)) -> Clean energy policies | G53: =INDEX(DEFN!$A$11:$K$60, MATCH($A53, DEFN!$A$11:$A$60, 0), MATCH(G$9, DEFN!$A$10:$K$10, 0)) -> Both | H53: =INDEX(DEFN!$A$11:$K$60, MATCH($A53, DEFN!$A$11:$A$60, 0), MATCH(H$9, DEFN!$A$10:$K$10, 0)) -> None | I53: =INDEX(DEFN!$A$11:$K$60, MATCH($A53, DEFN!$A$11:$A$60, 0), MATCH(I$9, DEFN!$A$10:$K$10, 0)) -> None | J53: =INDEX(DEFN!$A$11:$K$60, MATCH($A53, DEFN!$A$11:$A$60, 0), MATCH(J$9, DEFN!$A$10:$K$10, 0)) -> Policy Types | K53: =INDEX(DEFN!B$263:B$339, MATCH($B53, DEFN!$A$263:$A$339, 0), 1) -> Europe | L53: =INDEX(DEFN!C$263:C$339, MATCH($B53, DEFN!$A$263:$A$339, 0), 1) -> Georgia | M53: =INDEX(DEFN!$A$11:$K$60, MATCH($A53, DEFN!$A$11:$A$60, 0), MATCH(M$9, DEFN!$A$10:$K$10, 0)) -> User Defined | N53: =INDEX(DEFN!$A$11:$K$60, MATCH($A53, DEFN!$A$11:$A$60, 0), MATCH(N$9, DEFN!$A$10:$K$10, 0)) -> 5 | O53: =IFERROR(IF($H53="None", 1, IF($H53="All Capacity", SUMIFS(SID!X$5:X$14942, SID!$G$5:$G$14942, "<>Power demand", SID!$K$5:$K$14942, $L53, SID!$I$5:$I$14942, $J53), IF($H53="All Generation", SUMIFS(SID!X$5:X$14942, SID!$K$5:$K$14942, $L53, SID!$I$5:$I$14942, $J53), SUMIFS(SID!X$5:X$14942, SID!$F$5:$F$14942, $H53, SID!$K$5:$K$14942, $L53)))), 1) -> 1 | P53: =IF(ISNUMBER(FIND("Growth", F53)), U53, IF(V53<>0,V53, SUMIFS(SID!X$5:X$14942, SID!$C$5:$C$14942, $C53, SID!$K$5:$K$14942, $L53, SID!$Y$5:$Y$14942, 0))) -> 3 | Q53: 1.31 | R53: 5 | S53: 26.2 | T53: 1.31 | U53: =IF(I53="Clean energy investments", IF(OR(W53=0, X53=0), 0, X53/W53-1), IF(OR(I53="None", SUMIFS(SID!X$5:X$14942, SID!$F$5:$F$14942, I53, SID!$K$5:$K$14942, L53, SID!$Y$5:$Y$14942, 0)=0), 0, IFERROR(SUMIFS(SID!X$5:X$14942, SID!$F$5:$F$14942, I53, SID!$K$5:$K$14942, L53, SID!$Y$5:$Y$14942, 0)/SUMIFS(SID!W$5:W$14942, SID!$F$5:$F$14942, I53, SID!$K$5:$K$14942, L53, SID!$Y$5:$Y$14942, 0) - 1, 0))) -> 0 | V53: =IF(J53<>"USDm", 0, IF(F53="Clean energy investments", IF(ISNUMBER(FIND("-", $L53)), SUMIFS(INV!$J$3:$J$20000, INV!$E$3:$E$20000, $L53, INV!$A$3:$A$20000, "<=" & int_Year, INV!$A$3:$A$20000, ">=" & $G$6), SUMIFS(INV!$J$3:$J$20000, INV!$F$3:$F$20000, $L53, INV!$A$3:$A$20000, "<=" & int_Year, INV!$A$3:$A$20000, ">=" & $G$6)), IF(ISNUMBER(FIND("-", $L53)), SUMIFS(INV!$J$3:$J$20000, INV!$E$3:$E$20000, $L53, INV!$I$3:$I$20000, $F53, INV!$A$3:$A$20000, "<=" & int_Year, INV!$A$3:$A$20000, ">=" & $G$6), SUMIFS(INV!$J$3:$J$20000, INV!$F$3:$F$20000, $L53, INV!$I$3:$I$20000, $F53, INV!$A$3:$A$20000, "<=" & int_Year, INV!$A$3:$A$20000, ">=" & $G$6)))) -> 0 | W53: =IF(I53<>"Clean energy investments", 0, IF(ISNUMBER(FIND("-", $L53)), SUMIFS(INV!$J$3:$J$20000, INV!$E$3:$E$20000, $L53, INV!$A$3:$A$20000, ">="& int_InvStartYear, INV!$A$3:$A$20000, "<="& int_Year-1), SUMIFS(INV!$J$3:$J$20000, INV!$F$3:$F$20000, $L53, INV!$A$3:$A$20000, ">="& int_InvStartYear, INV!$A$3:$A$20000, "<="& int_Year-1))) -> 0 | X53: =IF(I53<>"Clean energy investments", 0, IF(ISNUMBER(FIND("-", $L53)), SUMIFS(INV!$J$3:$J$20000, INV!$E$3:$E$20000, $L53, INV!$A$3:$A$20000, ">="& int_InvStartYear, INV!$A$3:$A$20000, "<="& int_Year), SUMIFS(INV!$J$3:$J$20000, INV!$F$3:$F$20000, $L53, INV!$A$3:$A$20000, ">="& int_InvStartYear, INV!$A$3:$A$20000, "<="& int_Year))) -> 0 | Y53: 1.01 > Georgia | Z53: On-Grid | AA53: =IFERROR(INDEX(COUNTRY!$C$18:$C$67, MATCH(C53, COUNTRY!$F$18:$F$67, 0), 1), 0) -> 0.4 | AB53: =IFERROR(INDEX(COUNTRY!$E$18:$E$67, MATCH(C53, COUNTRY!$F$18:$F$67, 0), 1), 0) -> 0.4 | AC53: 0.6 | AD53: 0.6 | AE53: 0.096 | AF53: 0.12576
A54: 1 | B54: 45 | C54: =INDEX(DEFN!$A$11:$K$60, MATCH($A54, DEFN!$A$11:$A$60, 0), MATCH(C$9, DEFN!$A$10:$K$10, 0)) -> 1.01 | D54: =INDEX(DEFN!$A$11:$K$60, MATCH($A54, DEFN!$A$11:$A$60, 0), MATCH(D$9, DEFN!$A$10:$K$10, 0)) -> Enabling Framework | E54: =INDEX(DEFN!$A$11:$K$60, MATCH($A54, DEFN!$A$11:$A$60, 0), MATCH(E$9, DEFN!$A$10:$K$10, 0)) -> Policy & Regulation | F54: =INDEX(DEFN!$A$11:$K$60, MATCH($A54, DEFN!$A$11:$A$60, 0), MATCH(F$9, DEFN!$A$10:$K$10, 0)) -> Clean energy policies | G54: =INDEX(DEFN!$A$11:$K$60, MATCH($A54, DEFN!$A$11:$A$60, 0), MATCH(G$9, DEFN!$A$10:$K$10, 0)) -> Both | H54: =INDEX(DEFN!$A$11:$K$60, MATCH($A54, DEFN!$A$11:$A$60, 0), MATCH(H$9, DEFN!$A$10:$K$10, 0)) -> None | I54: =INDEX(DEFN!$A$11:$K$60, MATCH($A54, DEFN!$A$11:$A$60, 0), MATCH(I$9, DEFN!$A$10:$K$10, 0)) -> None | J54: =INDEX(DEFN!$A$11:$K$60, MATCH($A54, DEFN!$A$11:$A$60, 0), MATCH(J$9, DEFN!$A$10:$K$10, 0)) -> Policy Types | K54: =INDEX(DEFN!B$263:B$339, MATCH($B54, DEFN!$A$263:$A$339, 0), 1) -> Europe | L54: =INDEX(DEFN!C$263:C$339, MATCH($B54, DEFN!$A$263:$A$339, 0), 1) -> Moldova | M54: =INDEX(DEFN!$A$11:$K$60, MATCH($A54, DEFN!$A$11:$A$60, 0), MATCH(M$9, DEFN!$A$10:$K$10, 0)) -> User Defined | N54: =INDEX(DEFN!$A$11:$K$60, MATCH($A54, DEFN!$A$11:$A$60, 0), MATCH(N$9, DEFN!$A$10:$K$10, 0)) -> 5 | O54: =IFERROR(IF($H54="None", 1, IF($H54="All Capacity", SUMIFS(SID!X$5:X$14942, SID!$G$5:$G$14942, "<>Power demand", SID!$K$5:$K$14942, $L54, SID!$I$5:$I$14942, $J54), IF($H54="All Generation", SUMIFS(SID!X$5:X$14942, SID!$K$5:$K$14942, $L54, SID!$I$5:$I$14942, $J54), SUMIFS(SID!X$5:X$14942, SID!$F$5:$F$14942, $H54, SID!$K$5:$K$14942, $L54)))), 1) -> 1 | P54: =IF(ISNUMBER(FIND("Growth", F54)), U54, IF(V54<>0,V54, SUMIFS(SID!X$5:X$14942, SID!$C$5:$C$14942, $C54, SID!$K$5:$K$14942, $L54, SID!$Y$5:$Y$14942, 0))) -> 3 | Q54: 1.13 | R54: 5 | S54: 22.6 | T54: 1.13 | U54: =IF(I54="Clean energy investments", IF(OR(W54=0, X54=0), 0, X54/W54-1), IF(OR(I54="None", SUMIFS(SID!X$5:X$14942, SID!$F$5:$F$14942, I54, SID!$K$5:$K$14942, L54, SID!$Y$5:$Y$14942, 0)=0), 0, IFERROR(SUMIFS(SID!X$5:X$14942, SID!$F$5:$F$14942, I54, SID!$K$5:$K$14942, L54, SID!$Y$5:$Y$14942, 0)/SUMIFS(SID!W$5:W$14942, SID!$F$5:$F$14942, I54, SID!$K$5:$K$14942, L54, SID!$Y$5:$Y$14942, 0) - 1, 0))) -> 0 | V54: =IF(J54<>"USDm", 0, IF(F54="Clean energy investments", IF(ISNUMBER(FIND("-", $L54)), SUMIFS(INV!$J$3:$J$20000, INV!$E$3:$E$20000, $L54, INV!$A$3:$A$20000, "<=" & int_Year, INV!$A$3:$A$20000, ">=" & $G$6), SUMIFS(INV!$J$3:$J$20000, INV!$F$3:$F$20000, $L54, INV!$A$3:$A$20000, "<=" & int_Year, INV!$A$3:$A$20000, ">=" & $G$6)), IF(ISNUMBER(FIND("-", $L54)), SUMIFS(INV!$J$3:$J$20000, INV!$E$3:$E$20000, $L54, INV!$I$3:$I$20000, $F54, INV!$A$3:$A$20000, "<=" & int_Year, INV!$A$3:$A$20000, ">=" & $G$6), SUMIFS(INV!$J$3:$J$20000, INV!$F$3:$F$20000, $L54, INV!$I$3:$I$20000, $F54, INV!$A$3:$A$20000, "<=" & int_Year, INV!$A$3:$A$20000, ">=" & $G$6)))) -> 0 | W54: =IF(I54<>"Clean energy investments", 0, IF(ISNUMBER(FIND("-", $L54)), SUMIFS(INV!$J$3:$J$20000, INV!$E$3:$E$20000, $L54, INV!$A$3:$A$20000, ">="& int_InvStartYear, INV!$A$3:$A$20000, "<="& int_Year-1), SUMIFS(INV!$J$3:$J$20000, INV!$F$3:$F$20000, $L54, INV!$A$3:$A$20000, ">="& int_InvStartYear, INV!$A$3:$A$20000, "<="& int_Year-1))) -> 0 | X54: =IF(I54<>"Clean energy investments", 0, IF(ISNUMBER(FIND("-", $L54)), SUMIFS(INV!$J$3:$J$20000, INV!$E$3:$E$20000, $L54, INV!$A$3:$A$20000, ">="& int_InvStartYear, INV!$A$3:$A$20000, "<="& int_Year), SUMIFS(INV!$J$3:$J$20000, INV!$F$3:$F$20000, $L54, INV!$A$3:$A$20000, ">="& int_InvStartYear, INV!$A$3:$A$20000, "<="& int_Year))) -> 0 | Y54: 1.01 > Moldova | Z54: On-Grid | AA54: =IFERROR(INDEX(COUNTRY!$C$18:$C$67, MATCH(C54, COUNTRY!$F$18:$F$67, 0), 1), 0) -> 0.4 | AB54: =IFERROR(INDEX(COUNTRY!$E$18:$E$67, MATCH(C54, COUNTRY!$F$18:$F$67, 0), 1), 0) -> 0.4 | AC54: 0.6 | AD54: 0.6 | AE54: 0.096 | AF54: 0.10848
A55: 1 | B55: 46 | C55: =INDEX(DEFN!$A$11:$K$60, MATCH($A55, DEFN!$A$11:$A$60, 0), MATCH(C$9, DEFN!$A$10:$K$10, 0)) -> 1.01 | D55: =INDEX(DEFN!$A$11:$K$60, MATCH($A55, DEFN!$A$11:$A$60, 0), MATCH(D$9, DEFN!$A$10:$K$10, 0)) -> Enabling Framework | E55: =INDEX(DEFN!$A$11:$K$60, MATCH($A55, DEFN!$A$11:$A$60, 0), MATCH(E$9, DEFN!$A$10:$K$10, 0)) -> Policy & Regulation | F55: =INDEX(DEFN!$A$11:$K$60, MATCH($A55, DEFN!$A$11:$A$60, 0), MATCH(F$9, DEFN!$A$10:$K$10, 0)) -> Clean energy policies | G55: =INDEX(DEFN!$A$11:$K$60, MATCH($A55, DEFN!$A$11:$A$60, 0), MATCH(G$9, DEFN!$A$10:$K$10, 0)) -> Both | H55: =INDEX(DEFN!$A$11:$K$60, MATCH($A55, DEFN!$A$11:$A$60, 0), MATCH(H$9, DEFN!$A$10:$K$10, 0)) -> None | I55: =INDEX(DEFN!$A$11:$K$60, MATCH($A55, DEFN!$A$11:$A$60, 0), MATCH(I$9, DEFN!$A$10:$K$10, 0)) -> None | J55: =INDEX(DEFN!$A$11:$K$60, MATCH($A55, DEFN!$A$11:$A$60, 0), MATCH(J$9, DEFN!$A$10:$K$10, 0)) -> Policy Types | K55: =INDEX(DEFN!B$263:B$339, MATCH($B55, DEFN!$A$263:$A$339, 0), 1) -> Europe | L55: =INDEX(DEFN!C$263:C$339, MATCH($B55, DEFN!$A$263:$A$339, 0), 1) -> Russia | M55: =INDEX(DEFN!$A$11:$K$60, MATCH($A55, DEFN!$A$11:$A$60, 0), MATCH(M$9, DEFN!$A$10:$K$10, 0)) -> User Defined | N55: =INDEX(DEFN!$A$11:$K$60, MATCH($A55, DEFN!$A$11:$A$60, 0), MATCH(N$9, DEFN!$A$10:$K$10, 0)) -> 5 | O55: =IFERROR(IF($H55="None", 1, IF($H55="All Capacity", SUMIFS(SID!X$5:X$14942, SID!$G$5:$G$14942, "<>Power demand", SID!$K$5:$K$14942, $L55, SID!$I$5:$I$14942, $J55), IF($H55="All Generation", SUMIFS(SID!X$5:X$14942, SID!$K$5:$K$14942, $L55, SID!$I$5:$I$14942, $J55), SUMIFS(SID!X$5:X$14942, SID!$F$5:$F$14942, $H55, SID!$K$5:$K$14942, $L55)))), 1) -> 1 | P55: =IF(ISNUMBER(FIND("Growth", F55)), U55, IF(V55<>0,V55, SUMIFS(SID!X$5:X$14942, SID!$C$5:$C$14942, $C55, SID!$K$5:$K$14942, $L55, SID!$Y$5:$Y$14942, 0))) -> 2 | Q55: 0.6 | R55: 5 | S55: 12 | T55: 0.6 | U55: =IF(I55="Clean energy investments", IF(OR(W55=0, X55=0), 0, X55/W55-1), IF(OR(I55="None", SUMIFS(SID!X$5:X$14942, SID!$F$5:$F$14942, I55, SID!$K$5:$K$14942, L55, SID!$Y$5:$Y$14942, 0)=0), 0, IFERROR(SUMIFS(SID!X$5:X$14942, SID!$F$5:$F$14942, I55, SID!$K$5:$K$14942, L55, SID!$Y$5:$Y$14942, 0)/SUMIFS(SID!W$5:W$14942, SID!$F$5:$F$14942, I55, SID!$K$5:$K$14942, L55, SID!$Y$5:$Y$14942, 0) - 1, 0))) -> 0 | V55: =IF(J55<>"USDm", 0, IF(F55="Clean energy investments", IF(ISNUMBER(FIND("-", $L55)), SUMIFS(INV!$J$3:$J$20000, INV!$E$3:$E$20000, $L55, INV!$A$3:$A$20000, "<=" & int_Year, INV!$A$3:$A$20000, ">=" & $G$6), SUMIFS(INV!$J$3:$J$20000, INV!$F$3:$F$20000, $L55, INV!$A$3:$A$20000, "<=" & int_Year, INV!$A$3:$A$20000, ">=" & $G$6)), IF(ISNUMBER(FIND("-", $L55)), SUMIFS(INV!$J$3:$J$20000, INV!$E$3:$E$20000, $L55, INV!$I$3:$I$20000, $F55, INV!$A$3:$A$20000, "<=" & int_Year, INV!$A$3:$A$20000, ">=" & $G$6), SUMIFS(INV!$J$3:$J$20000, INV!$F$3:$F$20000, $L55, INV!$I$3:$I$20000, $F55, INV!$A$3:$A$20000, "<=" & int_Year, INV!$A$3:$A$20000, ">=" & $G$6)))) -> 0 | W55: =IF(I55<>"Clean energy investments", 0, IF(ISNUMBER(FIND("-", $L55)), SUMIFS(INV!$J$3:$J$20000, INV!$E$3:$E$20000, $L55, INV!$A$3:$A$20000, ">="& int_InvStartYear, INV!$A$3:$A$20000, "<="& int_Year-1), SUMIFS(INV!$J$3:$J$20000, INV!$F$3:$F$20000, $L55, INV!$A$3:$A$20000, ">="& int_InvStartYear, INV!$A$3:$A$20000, "<="& int_Year-1))) -> 0 | X55: =IF(I55<>"Clean energy investments", 0, IF(ISNUMBER(FIND("-", $L55)), SUMIFS(INV!$J$3:$J$20000, INV!$E$3:$E$20000, $L55, INV!$A$3:$A$20000, ">="& int_InvStartYear, INV!$A$3:$A$20000, "<="& int_Year), SUMIFS(INV!$J$3:$J$20000, INV!$F$3:$F$20000, $L55, INV!$A$3:$A$20000, ">="& int_InvStartYear, INV!$A$3:$A$20000, "<="& int_Year))) -> 0 | Y55: 1.01 > Russia | Z55: On-Grid | AA55: =IFERROR(INDEX(COUNTRY!$C$18:$C$67, MATCH(C55, COUNTRY!$F$18:$F$67, 0), 1), 0) -> 0.4 | AB55: =IFERROR(INDEX(COUNTRY!$E$18:$E$67, MATCH(C55, COUNTRY!$F$18:$F$67, 0), 1), 0) -> 0.4 | AC55: 0.6 | AD55: 0.6 | AE55: 0.096 | AF55: 0.0576
A56: 1 | B56: 47 | C56: =INDEX(DEFN!$A$11:$K$60, MATCH($A56, DEFN!$A$11:$A$60, 0), MATCH(C$9, DEFN!$A$10:$K$10, 0)) -> 1.01 | D56: =INDEX(DEFN!$A$11:$K$60, MATCH($A56, DEFN!$A$11:$A$60, 0), MATCH(D$9, DEFN!$A$10:$K$10, 0)) -> Enabling Framework | E56: =INDEX(DEFN!$A$11:$K$60, MATCH($A56, DEFN!$A$11:$A$60, 0), MATCH(E$9, DEFN!$A$10:$K$10, 0)) -> Policy & Regulation | F56: =INDEX(DEFN!$A$11:$K$60, MATCH($A56, DEFN!$A$11:$A$60, 0), MATCH(F$9, DEFN!$A$10:$K$10, 0)) -> Clean energy policies | G56: =INDEX(DEFN!$A$11:$K$60, MATCH($A56, DEFN!$A$11:$A$60, 0), MATCH(G$9, DEFN!$A$10:$K$10, 0)) -> Both | H56: =INDEX(DEFN!$A$11:$K$60, MATCH($A56, DEFN!$A$11:$A$60, 0), MATCH(H$9, DEFN!$A$10:$K$10, 0)) -> None | I56: =INDEX(DEFN!$A$11:$K$60, MATCH($A56, DEFN!$A$11:$A$60, 0), MATCH(I$9, DEFN!$A$10:$K$10, 0)) -> None | J56: =INDEX(DEFN!$A$11:$K$60, MATCH($A56, DEFN!$A$11:$A$60, 0), MATCH(J$9, DEFN!$A$10:$K$10, 0)) -> Policy Types | K56: =INDEX(DEFN!B$263:B$339, MATCH($B56, DEFN!$A$263:$A$339, 0), 1) -> Europe | L56: =INDEX(DEFN!C$263:C$339, MATCH($B56, DEFN!$A$263:$A$339, 0), 1) -> Turkey | M56: =INDEX(DEFN!$A$11:$K$60, MATCH($A56, DEFN!$A$11:$A$60, 0), MATCH(M$9, DEFN!$A$10:$K$10, 0)) -> User Defined | N56: =INDEX(DEFN!$A$11:$K$60, MATCH($A56, DEFN!$A$11:$A$60, 0), MATCH(N$9, DEFN!$A$10:$K$10, 0)) -> 5 | O56: =IFERROR(IF($H56="None", 1, IF($H56="All Capacity", SUMIFS(SID!X$5:X$14942, SID!$G$5:$G$14942, "<>Power demand", SID!$K$5:$K$14942, $L56, SID!$I$5:$I$14942, $J56), IF($H56="All Generation", SUMIFS(SID!X$5:X$14942, SID!$K$5:$K$14942, $L56, SID!$I$5:$I$14942, $J56), SUMIFS(SID!X$5:X$14942, SID!$F$5:$F$14942, $H56, SID!$K$5:$K$14942, $L56)))), 1) -> 1 | P56: =IF(ISNUMBER(FIND("Growth", F56)), U56, IF(V56<>0,V56, SUMIFS(SID!X$5:X$14942, SID!$C$5:$C$14942, $C56, SID!$K$5:$K$14942, $L56, SID!$Y$5:$Y$14942, 0))) -> 3 | Q56: 1.27 | R56: 5 | S56: 25.4 | T56: 1.27 | U56: =IF(I56="Clean energy investments", IF(OR(W56=0, X56=0), 0, X56/W56-1), IF(OR(I56="None", SUMIFS(SID!X$5:X$14942, SID!$F$5:$F$14942, I56, SID!$K$5:$K$14942, L56, SID!$Y$5:$Y$14942, 0)=0), 0, IFERROR(SUMIFS(SID!X$5:X$14942, SID!$F$5:$F$14942, I56, SID!$K$5:$K$14942, L56, SID!$Y$5:$Y$14942, 0)/SUMIFS(SID!W$5:W$14942, SID!$F$5:$F$14942, I56, SID!$K$5:$K$14942, L56, SID!$Y$5:$Y$14942, 0) - 1, 0))) -> 0 | V56: =IF(J56<>"USDm", 0, IF(F56="Clean energy investments", IF(ISNUMBER(FIND("-", $L56)), SUMIFS(INV!$J$3:$J$20000, INV!$E$3:$E$20000, $L56, INV!$A$3:$A$20000, "<=" & int_Year, INV!$A$3:$A$20000, ">=" & $G$6), SUMIFS(INV!$J$3:$J$20000, INV!$F$3:$F$20000, $L56, INV!$A$3:$A$20000, "<=" & int_Year, INV!$A$3:$A$20000, ">=" & $G$6)), IF(ISNUMBER(FIND("-", $L56)), SUMIFS(INV!$J$3:$J$20000, INV!$E$3:$E$20000, $L56, INV!$I$3:$I$20000, $F56, INV!$A$3:$A$20000, "<=" & int_Year, INV!$A$3:$A$20000, ">=" & $G$6), SUMIFS(INV!$J$3:$J$20000, INV!$F$3:$F$20000, $L56, INV!$I$3:$I$20000, $F56, INV!$A$3:$A$20000, "<=" & int_Year, INV!$A$3:$A$20000, ">=" & $G$6)))) -> 0 | W56: =IF(I56<>"Clean energy investments", 0, IF(ISNUMBER(FIND("-", $L56)), SUMIFS(INV!$J$3:$J$20000, INV!$E$3:$E$20000, $L56, INV!$A$3:$A$20000, ">="& int_InvStartYear, INV!$A$3:$A$20000, "<="& int_Year-1), SUMIFS(INV!$J$3:$J$20000, INV!$F$3:$F$20000, $L56, INV!$A$3:$A$20000, ">="& int_InvStartYear, INV!$A$3:$A$20000, "<="& int_Year-1))) -> 0 | X56: =IF(I56<>"Clean energy investments", 0, IF(ISNUMBER(FIND("-", $L56)), SUMIFS(INV!$J$3:$J$20000, INV!$E$3:$E$20000, $L56, INV!$A$3:$A$20000, ">="& int_InvStartYear, INV!$A$3:$A$20000, "<="& int_Year), SUMIFS(INV!$J$3:$J$20000, INV!$F$3:$F$20000, $L56, INV!$A$3:$A$20000, ">="& int_InvStartYear, INV!$A$3:$A$20000, "<="& int_Year))) -> 0 | Y56: 1.01 > Turkey | Z56: On-Grid | AA56: =IFERROR(INDEX(COUNTRY!$C$18:$C$67, MATCH(C56, COUNTRY!$F$18:$F$67, 0), 1), 0) -> 0.4 | AB56: =IFERROR(INDEX(COUNTRY!$E$18:$E$67, MATCH(C56, COUNTRY!$F$18:$F$67, 0), 1), 0) -> 0.4 | AC56: 0.6 | AD56: 0.6 | AE56: 0.096 | AF56: 0.12192
A57: 1 | B57: 48 | C57: =INDEX(DEFN!$A$11:$K$60, MATCH($A57, DEFN!$A$11:$A$60, 0), MATCH(C$9, DEFN!$A$10:$K$10, 0)) -> 1.01 | D57: =INDEX(DEFN!$A$11:$K$60, MATCH($A57, DEFN!$A$11:$A$60, 0), MATCH(D$9, DEFN!$A$10:$K$10, 0)) -> Enabling Framework | E57: =INDEX(DEFN!$A$11:$K$60, MATCH($A57, DEFN!$A$11:$A$60, 0), MATCH(E$9, DEFN!$A$10:$K$10, 0)) -> Policy & Regulation | F57: =INDEX(DEFN!$A$11:$K$60, MATCH($A57, DEFN!$A$11:$A$60, 0), MATCH(F$9, DEFN!$A$10:$K$10, 0)) -> Clean energy policies | G57: =INDEX(DEFN!$A$11:$K$60, MATCH($A57, DEFN!$A$11:$A$60, 0), MATCH(G$9, DEFN!$A$10:$K$10, 0)) -> Both | H57: =INDEX(DEFN!$A$11:$K$60, MATCH($A57, DEFN!$A$11:$A$60, 0), MATCH(H$9, DEFN!$A$10:$K$10, 0)) -> None | I57: =INDEX(DEFN!$A$11:$K$60, MATCH($A57, DEFN!$A$11:$A$60, 0), MATCH(I$9, DEFN!$A$10:$K$10, 0)) -> None | J57: =INDEX(DEFN!$A$11:$K$60, MATCH($A57, DEFN!$A$11:$A$60, 0), MATCH(J$9, DEFN!$A$10:$K$10, 0)) -> Policy Types | K57: =INDEX(DEFN!B$263:B$339, MATCH($B57, DEFN!$A$263:$A$339, 0), 1) -> Europe | L57: =INDEX(DEFN!C$263:C$339, MATCH($B57, DEFN!$A$263:$A$339, 0), 1) -> Ukraine | M57: =INDEX(DEFN!$A$11:$K$60, MATCH($A57, DEFN!$A$11:$A$60, 0), MATCH(M$9, DEFN!$A$10:$K$10, 0)) -> User Defined | N57: =INDEX(DEFN!$A$11:$K$60, MATCH($A57, DEFN!$A$11:$A$60, 0), MATCH(N$9, DEFN!$A$10:$K$10, 0)) -> 5 | O57: =IFERROR(IF($H57="None", 1, IF($H57="All Capacity", SUMIFS(SID!X$5:X$14942, SID!$G$5:$G$14942, "<>Power demand", SID!$K$5:$K$14942, $L57, SID!$I$5:$I$14942, $J57), IF($H57="All Generation", SUMIFS(SID!X$5:X$14942, SID!$K$5:$K$14942, $L57, SID!$I$5:$I$14942, $J57), SUMIFS(SID!X$5:X$14942, SID!$F$5:$F$14942, $H57, SID!$K$5:$K$14942, $L57)))), 1) -> 1 | P57: =IF(ISNUMBER(FIND("Growth", F57)), U57, IF(V57<>0,V57, SUMIFS(SID!X$5:X$14942, SID!$C$5:$C$14942, $C57, SID!$K$5:$K$14942, $L57, SID!$Y$5:$Y$14942, 0))) -> 2 | Q57: 0.36 | R57: 5 | S57: 7.2 | T57: 0.36 | U57: =IF(I57="Clean energy investments", IF(OR(W57=0, X57=0), 0, X57/W57-1), IF(OR(I57="None", SUMIFS(SID!X$5:X$14942, SID!$F$5:$F$14942, I57, SID!$K$5:$K$14942, L57, SID!$Y$5:$Y$14942, 0)=0), 0, IFERROR(SUMIFS(SID!X$5:X$14942, SID!$F$5:$F$14942, I57, SID!$K$5:$K$14942, L57, SID!$Y$5:$Y$14942, 0)/SUMIFS(SID!W$5:W$14942, SID!$F$5:$F$14942, I57, SID!$K$5:$K$14942, L57, SID!$Y$5:$Y$14942, 0) - 1, 0))) -> 0 | V57: =IF(J57<>"USDm", 0, IF(F57="Clean energy investments", IF(ISNUMBER(FIND("-", $L57)), SUMIFS(INV!$J$3:$J$20000, INV!$E$3:$E$20000, $L57, INV!$A$3:$A$20000, "<=" & int_Year, INV!$A$3:$A$20000, ">=" & $G$6), SUMIFS(INV!$J$3:$J$20000, INV!$F$3:$F$20000, $L57, INV!$A$3:$A$20000, "<=" & int_Year, INV!$A$3:$A$20000, ">=" & $G$6)), IF(ISNUMBER(FIND("-", $L57)), SUMIFS(INV!$J$3:$J$20000, INV!$E$3:$E$20000, $L57, INV!$I$3:$I$20000, $F57, INV!$A$3:$A$20000, "<=" & int_Year, INV!$A$3:$A$20000, ">=" & $G$6), SUMIFS(INV!$J$3:$J$20000, INV!$F$3:$F$20000, $L57, INV!$I$3:$I$20000, $F57, INV!$A$3:$A$20000, "<=" & int_Year, INV!$A$3:$A$20000, ">=" & $G$6)))) -> 0 | W57: =IF(I57<>"Clean energy investments", 0, IF(ISNUMBER(FIND("-", $L57)), SUMIFS(INV!$J$3:$J$20000, INV!$E$3:$E$20000, $L57, INV!$A$3:$A$20000, ">="& int_InvStartYear, INV!$A$3:$A$20000, "<="& int_Year-1), SUMIFS(INV!$J$3:$J$20000, INV!$F$3:$F$20000, $L57, INV!$A$3:$A$20000, ">="& int_InvStartYear, INV!$A$3:$A$20000, "<="& int_Year-1))) -> 0 | X57: =IF(I57<>"Clean energy investments", 0, IF(ISNUMBER(FIND("-", $L57)), SUMIFS(INV!$J$3:$J$20000, INV!$E$3:$E$20000, $L57, INV!$A$3:$A$20000, ">="& int_InvStartYear, INV!$A$3:$A$20000, "<="& int_Year), SUMIFS(INV!$J$3:$J$20000, INV!$F$3:$F$20000, $L57, INV!$A$3:$A$20000, ">="& int_InvStartYear, INV!$A$3:$A$20000, "<="& int_Year))) -> 0 | Y57: 1.01 > Ukraine | Z57: On-Grid | AA57: =IFERROR(INDEX(COUNTRY!$C$18:$C$67, MATCH(C57, COUNTRY!$F$18:$F$67, 0), 1), 0) -> 0.4 | AB57: =IFERROR(INDEX(COUNTRY!$E$18:$E$67, MATCH(C57, COUNTRY!$F$18:$F$67, 0), 1), 0) -> 0.4 | AC57: 0.6 | AD57: 0.6 | AE57: 0.096 | AF57: 0.03456
A58: 1 | B58: 49 | C58: =INDEX(DEFN!$A$11:$K$60, MATCH($A58, DEFN!$A$11:$A$60, 0), MATCH(C$9, DEFN!$A$10:$K$10, 0)) -> 1.01 | D58: =INDEX(DEFN!$A$11:$K$60, MATCH($A58, DEFN!$A$11:$A$60, 0), MATCH(D$9, DEFN!$A$10:$K$10, 0)) -> Enabling Framework | E58: =INDEX(DEFN!$A$11:$K$60, MATCH($A58, DEFN!$A$11:$A$60, 0), MATCH(E$9, DEFN!$A$10:$K$10, 0)) -> Policy & Regulation | F58: =INDEX(DEFN!$A$11:$K$60, MATCH($A58, DEFN!$A$11:$A$60, 0), MATCH(F$9, DEFN!$A$10:$K$10, 0)) -> Clean energy policies | G58: =INDEX(DEFN!$A$11:$K$60, MATCH($A58, DEFN!$A$11:$A$60, 0), MATCH(G$9, DEFN!$A$10:$K$10, 0)) -> Both | H58: =INDEX(DEFN!$A$11:$K$60, MATCH($A58, DEFN!$A$11:$A$60, 0), MATCH(H$9, DEFN!$A$10:$K$10, 0)) -> None | I58: =INDEX(DEFN!$A$11:$K$60, MATCH($A58, DEFN!$A$11:$A$60, 0), MATCH(I$9, DEFN!$A$10:$K$10, 0)) -> None | J58: =INDEX(DEFN!$A$11:$K$60, MATCH($A58, DEFN!$A$11:$A$60, 0), MATCH(J$9, DEFN!$A$10:$K$10, 0)) -> Policy Types | K58: =INDEX(DEFN!B$263:B$339, MATCH($B58, DEFN!$A$263:$A$339, 0), 1) -> LAC | L58: =INDEX(DEFN!C$263:C$339, MATCH($B58, DEFN!$A$263:$A$339, 0), 1) -> Argentina | M58: =INDEX(DEFN!$A$11:$K$60, MATCH($A58, DEFN!$A$11:$A$60, 0), MATCH(M$9, DEFN!$A$10:$K$10, 0)) -> User Defined | N58: =INDEX(DEFN!$A$11:$K$60, MATCH($A58, DEFN!$A$11:$A$60, 0), MATCH(N$9, DEFN!$A$10:$K$10, 0)) -> 5 | O58: =IFERROR(IF($H58="None", 1, IF($H58="All Capacity", SUMIFS(SID!X$5:X$14942, SID!$G$5:$G$14942, "<>Power demand", SID!$K$5:$K$14942, $L58, SID!$I$5:$I$14942, $J58), IF($H58="All Generation", SUMIFS(SID!X$5:X$14942, SID!$K$5:$K$14942, $L58, SID!$I$5:$I$14942, $J58), SUMIFS(SID!X$5:X$14942, SID!$F$5:$F$14942, $H58, SID!$K$5:$K$14942, $L58)))), 1) -> 1 | P58: =IF(ISNUMBER(FIND("Growth", F58)), U58, IF(V58<>0,V58, SUMIFS(SID!X$5:X$14942, SID!$C$5:$C$14942, $C58, SID!$K$5:$K$14942, $L58, SID!$Y$5:$Y$14942, 0))) -> 4 | Q58: 1.511982272 | R58: 5 | S58: 30.23964544 | T58: 1.511982272 | U58: =IF(I58="Clean energy investments", IF(OR(W58=0, X58=0), 0, X58/W58-1), IF(OR(I58="None", SUMIFS(SID!X$5:X$14942, SID!$F$5:$F$14942, I58, SID!$K$5:$K$14942, L58, SID!$Y$5:$Y$14942, 0)=0), 0, IFERROR(SUMIFS(SID!X$5:X$14942, SID!$F$5:$F$14942, I58, SID!$K$5:$K$14942, L58, SID!$Y$5:$Y$14942, 0)/SUMIFS(SID!W$5:W$14942, SID!$F$5:$F$14942, I58, SID!$K$5:$K$14942, L58, SID!$Y$5:$Y$14942, 0) - 1, 0))) -> 0 | V58: =IF(J58<>"USDm", 0, IF(F58="Clean energy investments", IF(ISNUMBER(FIND("-", $L58)), SUMIFS(INV!$J$3:$J$20000, INV!$E$3:$E$20000, $L58, INV!$A$3:$A$20000, "<=" & int_Year, INV!$A$3:$A$20000, ">=" & $G$6), SUMIFS(INV!$J$3:$J$20000, INV!$F$3:$F$20000, $L58, INV!$A$3:$A$20000, "<=" & int_Year, INV!$A$3:$A$20000, ">=" & $G$6)), IF(ISNUMBER(FIND("-", $L58)), SUMIFS(INV!$J$3:$J$20000, INV!$E$3:$E$20000, $L58, INV!$I$3:$I$20000, $F58, INV!$A$3:$A$20000, "<=" & int_Year, INV!$A$3:$A$20000, ">=" & $G$6), SUMIFS(INV!$J$3:$J$20000, INV!$F$3:$F$20000, $L58, INV!$I$3:$I$20000, $F58, INV!$A$3:$A$20000, "<=" & int_Year, INV!$A$3:$A$20000, ">=" & $G$6)))) -> 0 | W58: =IF(I58<>"Clean energy investments", 0, IF(ISNUMBER(FIND("-", $L58)), SUMIFS(INV!$J$3:$J$20000, INV!$E$3:$E$20000, $L58, INV!$A$3:$A$20000, ">="& int_InvStartYear, INV!$A$3:$A$20000, "<="& int_Year-1), SUMIFS(INV!$J$3:$J$20000, INV!$F$3:$F$20000, $L58, INV!$A$3:$A$20000, ">="& int_InvStartYear, INV!$A$3:$A$20000, "<="& int_Year-1))) -> 0 | X58: =IF(I58<>"Clean energy investments", 0, IF(ISNUMBER(FIND("-", $L58)), SUMIFS(INV!$J$3:$J$20000, INV!$E$3:$E$20000, $L58, INV!$A$3:$A$20000, ">="& int_InvStartYear, INV!$A$3:$A$20000, "<="& int_Year), SUMIFS(INV!$J$3:$J$20000, INV!$F$3:$F$20000, $L58, INV!$A$3:$A$20000, ">="& int_InvStartYear, INV!$A$3:$A$20000, "<="& int_Year))) -> 0 | Y58: 1.01 > Argentina | Z58: On-Grid | AA58: =IFERROR(INDEX(COUNTRY!$C$18:$C$67, MATCH(C58, COUNTRY!$F$18:$F$67, 0), 1), 0) -> 0.4 | AB58: =IFERROR(INDEX(COUNTRY!$E$18:$E$67, MATCH(C58, COUNTRY!$F$18:$F$67, 0), 1), 0) -> 0.4 | AC58: 0.6 | AD58: 0.6 | AE58: 0.096 | AF58: 0.1451502981
A59: 1 | B59: 50 | C59: =INDEX(DEFN!$A$11:$K$60, MATCH($A59, DEFN!$A$11:$A$60, 0), MATCH(C$9, DEFN!$A$10:$K$10, 0)) -> 1.01 | D59: =INDEX(DEFN!$A$11:$K$60, MATCH($A59, DEFN!$A$11:$A$60, 0), MATCH(D$9, DEFN!$A$10:$K$10, 0)) -> Enabling Framework | E59: =INDEX(DEFN!$A$11:$K$60, MATCH($A59, DEFN!$A$11:$A$60, 0), MATCH(E$9, DEFN!$A$10:$K$10, 0)) -> Policy & Regulation | F59: =INDEX(DEFN!$A$11:$K$60, MATCH($A59, DEFN!$A$11:$A$60, 0), MATCH(F$9, DEFN!$A$10:$K$10, 0)) -> Clean energy policies | G59: =INDEX(DEFN!$A$11:$K$60, MATCH($A59, DEFN!$A$11:$A$60, 0), MATCH(G$9, DEFN!$A$10:$K$10, 0)) -> Both | H59: =INDEX(DEFN!$A$11:$K$60, MATCH($A59, DEFN!$A$11:$A$60, 0), MATCH(H$9, DEFN!$A$10:$K$10, 0)) -> None | I59: =INDEX(DEFN!$A$11:$K$60, MATCH($A59, DEFN!$A$11:$A$60, 0), MATCH(I$9, DEFN!$A$10:$K$10, 0)) -> None | J59: =INDEX(DEFN!$A$11:$K$60, MATCH($A59, DEFN!$A$11:$A$60, 0), MATCH(J$9, DEFN!$A$10:$K$10, 0)) -> Policy Types | K59: =INDEX(DEFN!B$263:B$339, MATCH($B59, DEFN!$A$263:$A$339, 0), 1) -> LAC | L59: =INDEX(DEFN!C$263:C$339, MATCH($B59, DEFN!$A$263:$A$339, 0), 1) -> Bahamas | M59: =INDEX(DEFN!$A$11:$K$60, MATCH($A59, DEFN!$A$11:$A$60, 0), MATCH(M$9, DEFN!$A$10:$K$10, 0)) -> User Defined | N59: =INDEX(DEFN!$A$11:$K$60, MATCH($A59, DEFN!$A$11:$A$60, 0), MATCH(N$9, DEFN!$A$10:$K$10, 0)) -> 5 | O59: =IFERROR(IF($H59="None", 1, IF($H59="All Capacity", SUMIFS(SID!X$5:X$14942, SID!$G$5:$G$14942, "<>Power demand", SID!$K$5:$K$14942, $L59, SID!$I$5:$I$14942, $J59), IF($H59="All Generation", SUMIFS(SID!X$5:X$14942, SID!$K$5:$K$14942, $L59, SID!$I$5:$I$14942, $J59), SUMIFS(SID!X$5:X$14942, SID!$F$5:$F$14942, $H59, SID!$K$5:$K$14942, $L59)))), 1) -> 1 | P59: =IF(ISNUMBER(FIND("Growth", F59)), U59, IF(V59<>0,V59, SUMIFS(SID!X$5:X$14942, SID!$C$5:$C$14942, $C59, SID!$K$5:$K$14942, $L59, SID!$Y$5:$Y$14942, 0))) -> 2 | Q59: 0.686123501 | R59: 5 | S59: 13.72247002 | T59: 0.686123501 | U59: =IF(I59="Clean energy investments", IF(OR(W59=0, X59=0), 0, X59/W59-1), IF(OR(I59="None", SUMIFS(SID!X$5:X$14942, SID!$F$5:$F$14942, I59, SID!$K$5:$K$14942, L59, SID!$Y$5:$Y$14942, 0)=0), 0, IFERROR(SUMIFS(SID!X$5:X$14942, SID!$F$5:$F$14942, I59, SID!$K$5:$K$14942, L59, SID!$Y$5:$Y$14942, 0)/SUMIFS(SID!W$5:W$14942, SID!$F$5:$F$14942, I59, SID!$K$5:$K$14942, L59, SID!$Y$5:$Y$14942, 0) - 1, 0))) -> 0 | V59: =IF(J59<>"USDm", 0, IF(F59="Clean energy investments", IF(ISNUMBER(FIND("-", $L59)), SUMIFS(INV!$J$3:$J$20000, INV!$E$3:$E$20000, $L59, INV!$A$3:$A$20000, "<=" & int_Year, INV!$A$3:$A$20000, ">=" & $G$6), SUMIFS(INV!$J$3:$J$20000, INV!$F$3:$F$20000, $L59, INV!$A$3:$A$20000, "<=" & int_Year, INV!$A$3:$A$20000, ">=" & $G$6)), IF(ISNUMBER(FIND("-", $L59)), SUMIFS(INV!$J$3:$J$20000, INV!$E$3:$E$20000, $L59, INV!$I$3:$I$20000, $F59, INV!$A$3:$A$20000, "<=" & int_Year, INV!$A$3:$A$20000, ">=" & $G$6), SUMIFS(INV!$J$3:$J$20000, INV!$F$3:$F$20000, $L59, INV!$I$3:$I$20000, $F59, INV!$A$3:$A$20000, "<=" & int_Year, INV!$A$3:$A$20000, ">=" & $G$6)))) -> 0 | W59: =IF(I59<>"Clean energy investments", 0, IF(ISNUMBER(FIND("-", $L59)), SUMIFS(INV!$J$3:$J$20000, INV!$E$3:$E$20000, $L59, INV!$A$3:$A$20000, ">="& int_InvStartYear, INV!$A$3:$A$20000, "<="& int_Year-1), SUMIFS(INV!$J$3:$J$20000, INV!$F$3:$F$20000, $L59, INV!$A$3:$A$20000, ">="& int_InvStartYear, INV!$A$3:$A$20000, "<="& int_Year-1))) -> 0 | X59: =IF(I59<>"Clean energy investments", 0, IF(ISNUMBER(FIND("-", $L59)), SUMIFS(INV!$J$3:$J$20000, INV!$E$3:$E$20000, $L59, INV!$A$3:$A$20000, ">="& int_InvStartYear, INV!$A$3:$A$20000, "<="& int_Year), SUMIFS(INV!$J$3:$J$20000, INV!$F$3:$F$20000, $L59, INV!$A$3:$A$20000, ">="& int_InvStartYear, INV!$A$3:$A$20000, "<="& int_Year))) -> 0 | Y59: 1.01 > Bahamas | Z59: On-Grid | AA59: =IFERROR(INDEX(COUNTRY!$C$18:$C$67, MATCH(C59, COUNTRY!$F$18:$F$67, 0), 1), 0) -> 0.4 | AB59: =IFERROR(INDEX(COUNTRY!$E$18:$E$67, MATCH(C59, COUNTRY!$F$18:$F$67, 0), 1), 0) -> 0.4 | AC59: 0.6 | AD59: 0.6 | AE59: 0.096 | AF59: 0.0658678561
A60: 1 | B60: 51 | C60: =INDEX(DEFN!$A$11:$K$60, MATCH($A60, DEFN!$A$11:$A$60, 0), MATCH(C$9, DEFN!$A$10:$K$10, 0)) -> 1.01 | D60: =INDEX(DEFN!$A$11:$K$60, MATCH($A60, DEFN!$A$11:$A$60, 0), MATCH(D$9, DEFN!$A$10:$K$10, 0)) -> Enabling Framework | E60: =INDEX(DEFN!$A$11:$K$60, MATCH($A60, DEFN!$A$11:$A$60, 0), MATCH(E$9, DEFN!$A$10:$K$10, 0)) -> Policy & Regulation | F60: =INDEX(DEFN!$A$11:$K$60, MATCH($A60, DEFN!$A$11:$A$60, 0), MATCH(F$9, DEFN!$A$10:$K$10, 0)) -> Clean energy policies | G60: =INDEX(DEFN!$A$11:$K$60, MATCH($A60, DEFN!$A$11:$A$60, 0), MATCH(G$9, DEFN!$A$10:$K$10, 0)) -> Both | H60: =INDEX(DEFN!$A$11:$K$60, MATCH($A60, DEFN!$A$11:$A$60, 0), MATCH(H$9, DEFN!$A$10:$K$10, 0)) -> None | I60: =INDEX(DEFN!$A$11:$K$60, MATCH($A60, DEFN!$A$11:$A$60, 0), MATCH(I$9, DEFN!$A$10:$K$10, 0)) -> None | J60: =INDEX(DEFN!$A$11:$K$60, MATCH($A60, DEFN!$A$11:$A$60, 0), MATCH(J$9, DEFN!$A$10:$K$10, 0)) -> Policy Types | K60: =INDEX(DEFN!B$263:B$339, MATCH($B60, DEFN!$A$263:$A$339, 0), 1) -> LAC | L60: =INDEX(DEFN!C$263:C$339, MATCH($B60, DEFN!$A$263:$A$339, 0), 1) -> Barbados | M60: =INDEX(DEFN!$A$11:$K$60, MATCH($A60, DEFN!$A$11:$A$60, 0), MATCH(M$9, DEFN!$A$10:$K$10, 0)) -> User Defined | N60: =INDEX(DEFN!$A$11:$K$60, MATCH($A60, DEFN!$A$11:$A$60, 0), MATCH(N$9, DEFN!$A$10:$K$10, 0)) -> 5 | O60: =IFERROR(IF($H60="None", 1, IF($H60="All Capacity", SUMIFS(SID!X$5:X$14942, SID!$G$5:$G$14942, "<>Power demand", SID!$K$5:$K$14942, $L60, SID!$I$5:$I$14942, $J60), IF($H60="All Generation", SUMIFS(SID!X$5:X$14942, SID!$K$5:$K$14942, $L60, SID!$I$5:$I$14942, $J60), SUMIFS(SID!X$5:X$14942, SID!$F$5:$F$14942, $H60, SID!$K$5:$K$14942, $L60)))), 1) -> 1 | P60: =IF(ISNUMBER(FIND("Growth", F60)), U60, IF(V60<>0,V60, SUMIFS(SID!X$5:X$14942, SID!$C$5:$C$14942, $C60, SID!$K$5:$K$14942, $L60, SID!$Y$5:$Y$14942, 0))) -> 3 | Q60: 1.654995985 | R60: 5 | S60: 33.09991969 | T60: 1.654995985 | U60: =IF(I60="Clean energy investments", IF(OR(W60=0, X60=0), 0, X60/W60-1), IF(OR(I60="None", SUMIFS(SID!X$5:X$14942, SID!$F$5:$F$14942, I60, SID!$K$5:$K$14942, L60, SID!$Y$5:$Y$14942, 0)=0), 0, IFERROR(SUMIFS(SID!X$5:X$14942, SID!$F$5:$F$14942, I60, SID!$K$5:$K$14942, L60, SID!$Y$5:$Y$14942, 0)/SUMIFS(SID!W$5:W$14942, SID!$F$5:$F$14942, I60, SID!$K$5:$K$14942, L60, SID!$Y$5:$Y$14942, 0) - 1, 0))) -> 0 | V60: =IF(J60<>"USDm", 0, IF(F60="Clean energy investments", IF(ISNUMBER(FIND("-", $L60)), SUMIFS(INV!$J$3:$J$20000, INV!$E$3:$E$20000, $L60, INV!$A$3:$A$20000, "<=" & int_Year, INV!$A$3:$A$20000, ">=" & $G$6), SUMIFS(INV!$J$3:$J$20000, INV!$F$3:$F$20000, $L60, INV!$A$3:$A$20000, "<=" & int_Year, INV!$A$3:$A$20000, ">=" & $G$6)), IF(ISNUMBER(FIND("-", $L60)), SUMIFS(INV!$J$3:$J$20000, INV!$E$3:$E$20000, $L60, INV!$I$3:$I$20000, $F60, INV!$A$3:$A$20000, "<=" & int_Year, INV!$A$3:$A$20000, ">=" & $G$6), SUMIFS(INV!$J$3:$J$20000, INV!$F$3:$F$20000, $L60, INV!$I$3:$I$20000, $F60, INV!$A$3:$A$20000, "<=" & int_Year, INV!$A$3:$A$20000, ">=" & $G$6)))) -> 0 | W60: =IF(I60<>"Clean energy investments", 0, IF(ISNUMBER(FIND("-", $L60)), SUMIFS(INV!$J$3:$J$20000, INV!$E$3:$E$20000, $L60, INV!$A$3:$A$20000, ">="& int_InvStartYear, INV!$A$3:$A$20000, "<="& int_Year-1), SUMIFS(INV!$J$3:$J$20000, INV!$F$3:$F$20000, $L60, INV!$A$3:$A$20000, ">="& int_InvStartYear, INV!$A$3:$A$20000, "<="& int_Year-1))) -> 0 | X60: =IF(I60<>"Clean energy investments", 0, IF(ISNUMBER(FIND("-", $L60)), SUMIFS(INV!$J$3:$J$20000, INV!$E$3:$E$20000, $L60, INV!$A$3:$A$20000, ">="& int_InvStartYear, INV!$A$3:$A$20000, "<="& int_Year), SUMIFS(INV!$J$3:$J$20000, INV!$F$3:$F$20000, $L60, INV!$A$3:$A$20000, ">="& int_InvStartYear, INV!$A$3:$A$20000, "<="& int_Year))) -> 0 | Y60: 1.01 > Barbados | Z60: On-Grid | AA60: =IFERROR(INDEX(COUNTRY!$C$18:$C$67, MATCH(C60, COUNTRY!$F$18:$F$67, 0), 1), 0) -> 0.4 | AB60: =IFERROR(INDEX(COUNTRY!$E$18:$E$67, MATCH(C60, COUNTRY!$F$18:$F$67, 0), 1), 0) -> 0.4 | AC60: 0.6 | AD60: 0.6 | AE60: 0.096 | AF60: 0.1588796145
A61: 1 | B61: 52 | C61: =INDEX(DEFN!$A$11:$K$60, MATCH($A61, DEFN!$A$11:$A$60, 0), MATCH(C$9, DEFN!$A$10:$K$10, 0)) -> 1.01 | D61: =INDEX(DEFN!$A$11:$K$60, MATCH($A61, DEFN!$A$11:$A$60, 0), MATCH(D$9, DEFN!$A$10:$K$10, 0)) -> Enabling Framework | E61: =INDEX(DEFN!$A$11:$K$60, MATCH($A61, DEFN!$A$11:$A$60, 0), MATCH(E$9, DEFN!$A$10:$K$10, 0)) -> Policy & Regulation | F61: =INDEX(DEFN!$A$11:$K$60, MATCH($A61, DEFN!$A$11:$A$60, 0), MATCH(F$9, DEFN!$A$10:$K$10, 0)) -> Clean energy policies | G61: =INDEX(DEFN!$A$11:$K$60, MATCH($A61, DEFN!$A$11:$A$60, 0), MATCH(G$9, DEFN!$A$10:$K$10, 0)) -> Both | H61: =INDEX(DEFN!$A$11:$K$60, MATCH($A61, DEFN!$A$11:$A$60, 0), MATCH(H$9, DEFN!$A$10:$K$10, 0)) -> None | I61: =INDEX(DEFN!$A$11:$K$60, MATCH($A61, DEFN!$A$11:$A$60, 0), MATCH(I$9, DEFN!$A$10:$K$10, 0)) -> None | J61: =INDEX(DEFN!$A$11:$K$60, MATCH($A61, DEFN!$A$11:$A$60, 0), MATCH(J$9, DEFN!$A$10:$K$10, 0)) -> Policy Types | K61: =INDEX(DEFN!B$263:B$339, MATCH($B61, DEFN!$A$263:$A$339, 0), 1) -> LAC | L61: =INDEX(DEFN!C$263:C$339, MATCH($B61, DEFN!$A$263:$A$339, 0), 1) -> Belize | M61: =INDEX(DEFN!$A$11:$K$60, MATCH($A61, DEFN!$A$11:$A$60, 0), MATCH(M$9, DEFN!$A$10:$K$10, 0)) -> User Defined | N61: =INDEX(DEFN!$A$11:$K$60, MATCH($A61, DEFN!$A$11:$A$60, 0), MATCH(N$9, DEFN!$A$10:$K$10, 0)) -> 5 | O61: =IFERROR(IF($H61="None", 1, IF($H61="All Capacity", SUMIFS(SID!X$5:X$14942, SID!$G$5:$G$14942, "<>Power demand", SID!$K$5:$K$14942, $L61, SID!$I$5:$I$14942, $J61), IF($H61="All Generation", SUMIFS(SID!X$5:X$14942, SID!$K$5:$K$14942, $L61, SID!$I$5:$I$14942, $J61), SUMIFS(SID!X$5:X$14942, SID!$F$5:$F$14942, $H61, SID!$K$5:$K$14942, $L61)))), 1) -> 1 | P61: =IF(ISNUMBER(FIND("Growth", F61)), U61, IF(V61<>0,V61, SUMIFS(SID!X$5:X$14942, SID!$C$5:$C$14942, $C61, SID!$K$5:$K$14942, $L61, SID!$Y$5:$Y$14942, 0))) -> 2 | Q61: 0.472190885 | R61: 5 | S61: 9.443817699 | T61: 0.472190885 | U61: =IF(I61="Clean energy investments", IF(OR(W61=0, X61=0), 0, X61/W61-1), IF(OR(I61="None", SUMIFS(SID!X$5:X$14942, SID!$F$5:$F$14942, I61, SID!$K$5:$K$14942, L61, SID!$Y$5:$Y$14942, 0)=0), 0, IFERROR(SUMIFS(SID!X$5:X$14942, SID!$F$5:$F$14942, I61, SID!$K$5:$K$14942, L61, SID!$Y$5:$Y$14942, 0)/SUMIFS(SID!W$5:W$14942, SID!$F$5:$F$14942, I61, SID!$K$5:$K$14942, L61, SID!$Y$5:$Y$14942, 0) - 1, 0))) -> 0 | V61: =IF(J61<>"USDm", 0, IF(F61="Clean energy investments", IF(ISNUMBER(FIND("-", $L61)), SUMIFS(INV!$J$3:$J$20000, INV!$E$3:$E$20000, $L61, INV!$A$3:$A$20000, "<=" & int_Year, INV!$A$3:$A$20000, ">=" & $G$6), SUMIFS(INV!$J$3:$J$20000, INV!$F$3:$F$20000, $L61, INV!$A$3:$A$20000, "<=" & int_Year, INV!$A$3:$A$20000, ">=" & $G$6)), IF(ISNUMBER(FIND("-", $L61)), SUMIFS(INV!$J$3:$J$20000, INV!$E$3:$E$20000, $L61, INV!$I$3:$I$20000, $F61, INV!$A$3:$A$20000, "<=" & int_Year, INV!$A$3:$A$20000, ">=" & $G$6), SUMIFS(INV!$J$3:$J$20000, INV!$F$3:$F$20000, $L61, INV!$I$3:$I$20000, $F61, INV!$A$3:$A$20000, "<=" & int_Year, INV!$A$3:$A$20000, ">=" & $G$6)))) -> 0 | W61: =IF(I61<>"Clean energy investments", 0, IF(ISNUMBER(FIND("-", $L61)), SUMIFS(INV!$J$3:$J$20000, INV!$E$3:$E$20000, $L61, INV!$A$3:$A$20000, ">="& int_InvStartYear, INV!$A$3:$A$20000, "<="& int_Year-1), SUMIFS(INV!$J$3:$J$20000, INV!$F$3:$F$20000, $L61, INV!$A$3:$A$20000, ">="& int_InvStartYear, INV!$A$3:$A$20000, "<="& int_Year-1))) -> 0 | X61: =IF(I61<>"Clean energy investments", 0, IF(ISNUMBER(FIND("-", $L61)), SUMIFS(INV!$J$3:$J$20000, INV!$E$3:$E$20000, $L61, INV!$A$3:$A$20000, ">="& int_InvStartYear, INV!$A$3:$A$20000, "<="& int_Year), SUMIFS(INV!$J$3:$J$20000, INV!$F$3:$F$20000, $L61, INV!$A$3:$A$20000, ">="& int_InvStartYear, INV!$A$3:$A$20000, "<="& int_Year))) -> 0 | Y61: 1.01 > Belize | Z61: On-Grid | AA61: =IFERROR(INDEX(COUNTRY!$C$18:$C$67, MATCH(C61, COUNTRY!$F$18:$F$67, 0), 1), 0) -> 0.4 | AB61: =IFERROR(INDEX(COUNTRY!$E$18:$E$67, MATCH(C61, COUNTRY!$F$18:$F$67, 0), 1), 0) -> 0.4 | AC61: 0.6 | AD61: 0.6 | AE61: 0.096 | AF61: 0.04533032496
A62: 1 | B62: 53 | C62: =INDEX(DEFN!$A$11:$K$60, MATCH($A62, DEFN!$A$11:$A$60, 0), MATCH(C$9, DEFN!$A$10:$K$10, 0)) -> 1.01 | D62: =INDEX(DEFN!$A$11:$K$60, MATCH($A62, DEFN!$A$11:$A$60, 0), MATCH(D$9, DEFN!$A$10:$K$10, 0)) -> Enabling Framework | E62: =INDEX(DEFN!$A$11:$K$60, MATCH($A62, DEFN!$A$11:$A$60, 0), MATCH(E$9, DEFN!$A$10:$K$10, 0)) -> Policy & Regulation | F62: =INDEX(DEFN!$A$11:$K$60, MATCH($A62, DEFN!$A$11:$A$60, 0), MATCH(F$9, DEFN!$A$10:$K$10, 0)) -> Clean energy policies | G62: =INDEX(DEFN!$A$11:$K$60, MATCH($A62, DEFN!$A$11:$A$60, 0), MATCH(G$9, DEFN!$A$10:$K$10, 0)) -> Both | H62: =INDEX(DEFN!$A$11:$K$60, MATCH($A62, DEFN!$A$11:$A$60, 0), MATCH(H$9, DEFN!$A$10:$K$10, 0)) -> None | I62: =INDEX(DEFN!$A$11:$K$60, MATCH($A62, DEFN!$A$11:$A$60, 0), MATCH(I$9, DEFN!$A$10:$K$10, 0)) -> None | J62: =INDEX(DEFN!$A$11:$K$60, MATCH($A62, DEFN!$A$11:$A$60, 0), MATCH(J$9, DEFN!$A$10:$K$10, 0)) -> Policy Types | K62: =INDEX(DEFN!B$263:B$339, MATCH($B62, DEFN!$A$263:$A$339, 0), 1) -> LAC | L62: =INDEX(DEFN!C$263:C$339, MATCH($B62, DEFN!$A$263:$A$339, 0), 1) -> Bolivia | M62: =INDEX(DEFN!$A$11:$K$60, MATCH($A62, DEFN!$A$11:$A$60, 0), MATCH(M$9, DEFN!$A$10:$K$10, 0)) -> User Defined | N62: =INDEX(DEFN!$A$11:$K$60, MATCH($A62, DEFN!$A$11:$A$60, 0), MATCH(N$9, DEFN!$A$10:$K$10, 0)) -> 5 | O62: =IFERROR(IF($H62="None", 1, IF($H62="All Capacity", SUMIFS(SID!X$5:X$14942, SID!$G$5:$G$14942, "<>Power demand", SID!$K$5:$K$14942, $L62, SID!$I$5:$I$14942, $J62), IF($H62="All Generation", SUMIFS(SID!X$5:X$14942, SID!$K$5:$K$14942, $L62, SID!$I$5:$I$14942, $J62), SUMIFS(SID!X$5:X$14942, SID!$F$5:$F$14942, $H62, SID!$K$5:$K$14942, $L62)))), 1) -> 1 | P62: =IF(ISNUMBER(FIND("Growth", F62)), U62, IF(V62<>0,V62, SUMIFS(SID!X$5:X$14942, SID!$C$5:$C$14942, $C62, SID!$K$5:$K$14942, $L62, SID!$Y$5:$Y$14942, 0))) -> 1 | Q62: 0.3879270619 | R62: 5 | S62: 7.758541238 | T62: 0.3879270619 | U62: =IF(I62="Clean energy investments", IF(OR(W62=0, X62=0), 0, X62/W62-1), IF(OR(I62="None", SUMIFS(SID!X$5:X$14942, SID!$F$5:$F$14942, I62, SID!$K$5:$K$14942, L62, SID!$Y$5:$Y$14942, 0)=0), 0, IFERROR(SUMIFS(SID!X$5:X$14942, SID!$F$5:$F$14942, I62, SID!$K$5:$K$14942, L62, SID!$Y$5:$Y$14942, 0)/SUMIFS(SID!W$5:W$14942, SID!$F$5:$F$14942, I62, SID!$K$5:$K$14942, L62, SID!$Y$5:$Y$14942, 0) - 1, 0))) -> 0 | V62: =IF(J62<>"USDm", 0, IF(F62="Clean energy investments", IF(ISNUMBER(FIND("-", $L62)), SUMIFS(INV!$J$3:$J$20000, INV!$E$3:$E$20000, $L62, INV!$A$3:$A$20000, "<=" & int_Year, INV!$A$3:$A$20000, ">=" & $G$6), SUMIFS(INV!$J$3:$J$20000, INV!$F$3:$F$20000, $L62, INV!$A$3:$A$20000, "<=" & int_Year, INV!$A$3:$A$20000, ">=" & $G$6)), IF(ISNUMBER(FIND("-", $L62)), SUMIFS(INV!$J$3:$J$20000, INV!$E$3:$E$20000, $L62, INV!$I$3:$I$20000, $F62, INV!$A$3:$A$20000, "<=" & int_Year, INV!$A$3:$A$20000, ">=" & $G$6), SUMIFS(INV!$J$3:$J$20000, INV!$F$3:$F$20000, $L62, INV!$I$3:$I$20000, $F62, INV!$A$3:$A$20000, "<=" & int_Year, INV!$A$3:$A$20000, ">=" & $G$6)))) -> 0 | W62: =IF(I62<>"Clean energy investments", 0, IF(ISNUMBER(FIND("-", $L62)), SUMIFS(INV!$J$3:$J$20000, INV!$E$3:$E$20000, $L62, INV!$A$3:$A$20000, ">="& int_InvStartYear, INV!$A$3:$A$20000, "<="& int_Year-1), SUMIFS(INV!$J$3:$J$20000, INV!$F$3:$F$20000, $L62, INV!$A$3:$A$20000, ">="& int_InvStartYear, INV!$A$3:$A$20000, "<="& int_Year-1))) -> 0 | X62: =IF(I62<>"Clean energy investments", 0, IF(ISNUMBER(FIND("-", $L62)), SUMIFS(INV!$J$3:$J$20000, INV!$E$3:$E$20000, $L62, INV!$A$3:$A$20000, ">="& int_InvStartYear, INV!$A$3:$A$20000, "<="& int_Year), SUMIFS(INV!$J$3:$J$20000, INV!$F$3:$F$20000, $L62, INV!$A$3:$A$20000, ">="& int_InvStartYear, INV!$A$3:$A$20000, "<="& int_Year))) -> 0 | Y62: 1.01 > Bolivia | Z62: On-Grid | AA62: =IFERROR(INDEX(COUNTRY!$C$18:$C$67, MATCH(C62, COUNTRY!$F$18:$F$67, 0), 1), 0) -> 0.4 | AB62: =IFERROR(INDEX(COUNTRY!$E$18:$E$67, MATCH(C62, COUNTRY!$F$18:$F$67, 0), 1), 0) -> 0.4 | AC62: 0.6 | AD62: 0.6 | AE62: 0.096 | AF62: 0.03724099794
A63: 1 | B63: 54 | C63: =INDEX(DEFN!$A$11:$K$60, MATCH($A63, DEFN!$A$11:$A$60, 0), MATCH(C$9, DEFN!$A$10:$K$10, 0)) -> 1.01 | D63: =INDEX(DEFN!$A$11:$K$60, MATCH($A63, DEFN!$A$11:$A$60, 0), MATCH(D$9, DEFN!$A$10:$K$10, 0)) -> Enabling Framework | E63: =INDEX(DEFN!$A$11:$K$60, MATCH($A63, DEFN!$A$11:$A$60, 0), MATCH(E$9, DEFN!$A$10:$K$10, 0)) -> Policy & Regulation | F63: =INDEX(DEFN!$A$11:$K$60, MATCH($A63, DEFN!$A$11:$A$60, 0), MATCH(F$9, DEFN!$A$10:$K$10, 0)) -> Clean energy policies | G63: =INDEX(DEFN!$A$11:$K$60, MATCH($A63, DEFN!$A$11:$A$60, 0), MATCH(G$9, DEFN!$A$10:$K$10, 0)) -> Both | H63: =INDEX(DEFN!$A$11:$K$60, MATCH($A63, DEFN!$A$11:$A$60, 0), MATCH(H$9, DEFN!$A$10:$K$10, 0)) -> None | I63: =INDEX(DEFN!$A$11:$K$60, MATCH($A63, DEFN!$A$11:$A$60, 0), MATCH(I$9, DEFN!$A$10:$K$10, 0)) -> None | J63: =INDEX(DEFN!$A$11:$K$60, MATCH($A63, DEFN!$A$11:$A$60, 0), MATCH(J$9, DEFN!$A$10:$K$10, 0)) -> Policy Types | K63: =INDEX(DEFN!B$263:B$339, MATCH($B63, DEFN!$A$263:$A$339, 0), 1) -> LAC | L63: =INDEX(DEFN!C$263:C$339, MATCH($B63, DEFN!$A$263:$A$339, 0), 1) -> Brazil | M63: =INDEX(DEFN!$A$11:$K$60, MATCH($A63, DEFN!$A$11:$A$60, 0), MATCH(M$9, DEFN!$A$10:$K$10, 0)) -> User Defined | N63: =INDEX(DEFN!$A$11:$K$60, MATCH($A63, DEFN!$A$11:$A$60, 0), MATCH(N$9, DEFN!$A$10:$K$10, 0)) -> 5 | O63: =IFERROR(IF($H63="None", 1, IF($H63="All Capacity", SUMIFS(SID!X$5:X$14942, SID!$G$5:$G$14942, "<>Power demand", SID!$K$5:$K$14942, $L63, SID!$I$5:$I$14942, $J63), IF($H63="All Generation", SUMIFS(SID!X$5:X$14942, SID!$K$5:$K$14942, $L63, SID!$I$5:$I$14942, $J63), SUMIFS(SID!X$5:X$14942, SID!$F$5:$F$14942, $H63, SID!$K$5:$K$14942, $L63)))), 1) -> 1 | P63: =IF(ISNUMBER(FIND("Growth", F63)), U63, IF(V63<>0,V63, SUMIFS(SID!X$5:X$14942, SID!$C$5:$C$14942, $C63, SID!$K$5:$K$14942, $L63, SID!$Y$5:$Y$14942, 0))) -> 8 | Q63: 2.872425134 | R63: 5 | S63: 57.44850267 | T63: 2.872425134 | U63: =IF(I63="Clean energy investments", IF(OR(W63=0, X63=0), 0, X63/W63-1), IF(OR(I63="None", SUMIFS(SID!X$5:X$14942, SID!$F$5:$F$14942, I63, SID!$K$5:$K$14942, L63, SID!$Y$5:$Y$14942, 0)=0), 0, IFERROR(SUMIFS(SID!X$5:X$14942, SID!$F$5:$F$14942, I63, SID!$K$5:$K$14942, L63, SID!$Y$5:$Y$14942, 0)/SUMIFS(SID!W$5:W$14942, SID!$F$5:$F$14942, I63, SID!$K$5:$K$14942, L63, SID!$Y$5:$Y$14942, 0) - 1, 0))) -> 0 | V63: =IF(J63<>"USDm", 0, IF(F63="Clean energy investments", IF(ISNUMBER(FIND("-", $L63)), SUMIFS(INV!$J$3:$J$20000, INV!$E$3:$E$20000, $L63, INV!$A$3:$A$20000, "<=" & int_Year, INV!$A$3:$A$20000, ">=" & $G$6), SUMIFS(INV!$J$3:$J$20000, INV!$F$3:$F$20000, $L63, INV!$A$3:$A$20000, "<=" & int_Year, INV!$A$3:$A$20000, ">=" & $G$6)), IF(ISNUMBER(FIND("-", $L63)), SUMIFS(INV!$J$3:$J$20000, INV!$E$3:$E$20000, $L63, INV!$I$3:$I$20000, $F63, INV!$A$3:$A$20000, "<=" & int_Year, INV!$A$3:$A$20000, ">=" & $G$6), SUMIFS(INV!$J$3:$J$20000, INV!$F$3:$F$20000, $L63, INV!$I$3:$I$20000, $F63, INV!$A$3:$A$20000, "<=" & int_Year, INV!$A$3:$A$20000, ">=" & $G$6)))) -> 0 | W63: =IF(I63<>"Clean energy investments", 0, IF(ISNUMBER(FIND("-", $L63)), SUMIFS(INV!$J$3:$J$20000, INV!$E$3:$E$20000, $L63, INV!$A$3:$A$20000, ">="& int_InvStartYear, INV!$A$3:$A$20000, "<="& int_Year-1), SUMIFS(INV!$J$3:$J$20000, INV!$F$3:$F$20000, $L63, INV!$A$3:$A$20000, ">="& int_InvStartYear, INV!$A$3:$A$20000, "<="& int_Year-1))) -> 0 | X63: =IF(I63<>"Clean energy investments", 0, IF(ISNUMBER(FIND("-", $L63)), SUMIFS(INV!$J$3:$J$20000, INV!$E$3:$E$20000, $L63, INV!$A$3:$A$20000, ">="& int_InvStartYear, INV!$A$3:$A$20000, "<="& int_Year), SUMIFS(INV!$J$3:$J$20000, INV!$F$3:$F$20000, $L63, INV!$A$3:$A$20000, ">="& int_InvStartYear, INV!$A$3:$A$20000, "<="& int_Year))) -> 0 | Y63: 1.01 > Brazil | Z63: On-Grid | AA63: =IFERROR(INDEX(COUNTRY!$C$18:$C$67, MATCH(C63, COUNTRY!$F$18:$F$67, 0), 1), 0) -> 0.4 | AB63: =IFERROR(INDEX(COUNTRY!$E$18:$E$67, MATCH(C63, COUNTRY!$F$18:$F$67, 0), 1), 0) -> 0.4 | AC63: 0.6 | AD63: 0.6 | AE63: 0.096 | AF63: 0.2757528128
A64: 1 | B64: 55 | C64: =INDEX(DEFN!$A$11:$K$60, MATCH($A64, DEFN!$A$11:$A$60, 0), MATCH(C$9, DEFN!$A$10:$K$10, 0)) -> 1.01 | D64: =INDEX(DEFN!$A$11:$K$60, MATCH($A64, DEFN!$A$11:$A$60, 0), MATCH(D$9, DEFN!$A$10:$K$10, 0)) -> Enabling Framework | E64: =INDEX(DEFN!$A$11:$K$60, MATCH($A64, DEFN!$A$11:$A$60, 0), MATCH(E$9, DEFN!$A$10:$K$10, 0)) -> Policy & Regulation | F64: =INDEX(DEFN!$A$11:$K$60, MATCH($A64, DEFN!$A$11:$A$60, 0), MATCH(F$9, DEFN!$A$10:$K$10, 0)) -> Clean energy policies | G64: =INDEX(DEFN!$A$11:$K$60, MATCH($A64, DEFN!$A$11:$A$60, 0), MATCH(G$9, DEFN!$A$10:$K$10, 0)) -> Both | H64: =INDEX(DEFN!$A$11:$K$60, MATCH($A64, DEFN!$A$11:$A$60, 0), MATCH(H$9, DEFN!$A$10:$K$10, 0)) -> None | I64: =INDEX(DEFN!$A$11:$K$60, MATCH($A64, DEFN!$A$11:$A$60, 0), MATCH(I$9, DEFN!$A$10:$K$10, 0)) -> None | J64: =INDEX(DEFN!$A$11:$K$60, MATCH($A64, DEFN!$A$11:$A$60, 0), MATCH(J$9, DEFN!$A$10:$K$10, 0)) -> Policy Types | K64: =INDEX(DEFN!B$263:B$339, MATCH($B64, DEFN!$A$263:$A$339, 0), 1) -> LAC | L64: =INDEX(DEFN!C$263:C$339, MATCH($B64, DEFN!$A$263:$A$339, 0), 1) -> Chile | M64: =INDEX(DEFN!$A$11:$K$60, MATCH($A64, DEFN!$A$11:$A$60, 0), MATCH(M$9, DEFN!$A$10:$K$10, 0)) -> User Defined | N64: =INDEX(DEFN!$A$11:$K$60, MATCH($A64, DEFN!$A$11:$A$60, 0), MATCH(N$9, DEFN!$A$10:$K$10, 0)) -> 5 | O64: =IFERROR(IF($H64="None", 1, IF($H64="All Capacity", SUMIFS(SID!X$5:X$14942, SID!$G$5:$G$14942, "<>Power demand", SID!$K$5:$K$14942, $L64, SID!$I$5:$I$14942, $J64), IF($H64="All Generation", SUMIFS(SID!X$5:X$14942, SID!$K$5:$K$14942, $L64, SID!$I$5:$I$14942, $J64), SUMIFS(SID!X$5:X$14942, SID!$F$5:$F$14942, $H64, SID!$K$5:$K$14942, $L64)))), 1) -> 1 | P64: =IF(ISNUMBER(FIND("Growth", F64)), U64, IF(V64<>0,V64, SUMIFS(SID!X$5:X$14942, SID!$C$5:$C$14942, $C64, SID!$K$5:$K$14942, $L64, SID!$Y$5:$Y$14942, 0))) -> 4 | Q64: 1.919882172 | R64: 5 | S64: 38.39764344 | T64: 1.919882172 | U64: =IF(I64="Clean energy investments", IF(OR(W64=0, X64=0), 0, X64/W64-1), IF(OR(I64="None", SUMIFS(SID!X$5:X$14942, SID!$F$5:$F$14942, I64, SID!$K$5:$K$14942, L64, SID!$Y$5:$Y$14942, 0)=0), 0, IFERROR(SUMIFS(SID!X$5:X$14942, SID!$F$5:$F$14942, I64, SID!$K$5:$K$14942, L64, SID!$Y$5:$Y$14942, 0)/SUMIFS(SID!W$5:W$14942, SID!$F$5:$F$14942, I64, SID!$K$5:$K$14942, L64, SID!$Y$5:$Y$14942, 0) - 1, 0))) -> 0 | V64: =IF(J64<>"USDm", 0, IF(F64="Clean energy investments", IF(ISNUMBER(FIND("-", $L64)), SUMIFS(INV!$J$3:$J$20000, INV!$E$3:$E$20000, $L64, INV!$A$3:$A$20000, "<=" & int_Year, INV!$A$3:$A$20000, ">=" & $G$6), SUMIFS(INV!$J$3:$J$20000, INV!$F$3:$F$20000, $L64, INV!$A$3:$A$20000, "<=" & int_Year, INV!$A$3:$A$20000, ">=" & $G$6)), IF(ISNUMBER(FIND("-", $L64)), SUMIFS(INV!$J$3:$J$20000, INV!$E$3:$E$20000, $L64, INV!$I$3:$I$20000, $F64, INV!$A$3:$A$20000, "<=" & int_Year, INV!$A$3:$A$20000, ">=" & $G$6), SUMIFS(INV!$J$3:$J$20000, INV!$F$3:$F$20000, $L64, INV!$I$3:$I$20000, $F64, INV!$A$3:$A$20000, "<=" & int_Year, INV!$A$3:$A$20000, ">=" & $G$6)))) -> 0 | W64: =IF(I64<>"Clean energy investments", 0, IF(ISNUMBER(FIND("-", $L64)), SUMIFS(INV!$J$3:$J$20000, INV!$E$3:$E$20000, $L64, INV!$A$3:$A$20000, ">="& int_InvStartYear, INV!$A$3:$A$20000, "<="& int_Year-1), SUMIFS(INV!$J$3:$J$20000, INV!$F$3:$F$20000, $L64, INV!$A$3:$A$20000, ">="& int_InvStartYear, INV!$A$3:$A$20000, "<="& int_Year-1))) -> 0 | X64: =IF(I64<>"Clean energy investments", 0, IF(ISNUMBER(FIND("-", $L64)), SUMIFS(INV!$J$3:$J$20000, INV!$E$3:$E$20000, $L64, INV!$A$3:$A$20000, ">="& int_InvStartYear, INV!$A$3:$A$20000, "<="& int_Year), SUMIFS(INV!$J$3:$J$20000, INV!$F$3:$F$20000, $L64, INV!$A$3:$A$20000, ">="& int_InvStartYear, INV!$A$3:$A$20000, "<="& int_Year))) -> 0 | Y64: 1.01 > Chile | Z64: On-Grid | AA64: =IFERROR(INDEX(COUNTRY!$C$18:$C$67, MATCH(C64, COUNTRY!$F$18:$F$67, 0), 1), 0) -> 0.4 | AB64: =IFERROR(INDEX(COUNTRY!$E$18:$E$67, MATCH(C64, COUNTRY!$F$18:$F$67, 0), 1), 0) -> 0.4 | AC64: 0.6 | AD64: 0.6 | AE64: 0.096 | AF64: 0.1843086885
